Workbook

Sheet ورقة1
C3: عصام سليمان محمد
C5: المستحق | AE5: المستقطع | BI5: مسلسل | BJ5: الرقم الكودي | BK5: الإسم | BL5: المرتب | BM5: الحافز | BN5: المكافأة | BT5: الإجمالي
C6: الشهر | D6: غياب | E6: مرضي | F6: إصابة | G6: إيقاف | H6: الأجر الأساسي | I6: بدل تمثيل | J6: بدل تفرغ | K6: عمولة انتاج | L6: معونة مرضي وإصابة | M6: بدل مخاطر | N6: بدل إقامة | P6: علاوات خاصة واجتماعية | W6: بدل نقدي | X6: فرق بدل نقدي | Y6: المنحة | Z6: بدل تباع | AA6: مصاريف صياتة | AB6: بدل مظهر | AC6: بدل انتقال | AD6: جملة المستحق | AE6: تأمينات أساسية | AF6: تأمينات متغيرة | AG6: كسب عمل | AH6: مدة سابقة | AI6: اشتراكات أجازة خاصة | AJ6: إعانة وفاة | AK6: نقابة | AL6: نشاط رياضي | AM6: الصندوق التأميني | AN6: غياب | AO6: غياب حصة الشركة أساسي / متغير | AP6: غياب بدل انتقال | AQ6: فاقد إنتاج | AR6: تلفيات | AS6: عجوزات | AT6: مخالفات مرور | AU6: فاقد سولار | AV6: إيجار سكن | AW6: عهد | AY6: جملة المستقطع | AZ6: الصافي المستحق | BA6: الحافز | BB6: ضريبة كسب عمل | BC6: صافي الحافز | BD6: ملاحظات | BI6: 1 | BJ6: 202 | BK6: عصام سليمان محمد | BL6: =$AZ$14 -> 1819.31 | BM6: =$BC$14 -> 1792.917 | BT6: =SUM(BL6:BS6) -> 3612.227
O7: مجموع ع.سابقة | P7: 2013 | Q7: 2014 | R7: 2015 | S7: 2016 | V7: إجتماعية
C8: يناير | M8: =H8*15% -> 0 | P8: 86.39 | Q8: 92.44 | R8: 103.27 | S8: 120 | V8: 10 | Y8: 10 | AD8: =(SUM(D8:AC8))-O8 -> 422.1 | AY8: =SUM(AE8:AX8) -> 0 | AZ8: =AD8-AY8 -> 422.1 | BA8: =H8*120% -> 0 | BB8: =((H8+M8+I8+J8+N8+BA8)-(1125+AE8+AF8+AM8+O8))*10% -> -112.5
C9: فبراير | M9: =H9*15% -> 0 | P9: 86.39 | Q9: 92.44 | R9: 103.27 | S9: 120 | V9: 10 | Y9: 10 | AD9: =(SUM(D9:AC9))-O9 -> 422.1 | AY9: =SUM(AE9:AX9) -> 0 | AZ9: =AD9-AY9 -> 422.1 | BA9: =H9*120% -> 0 | BB9: -112.5
C10: مارس | M10: 0 | P10: 86.39 | Q10: 92.44 | R10: 103.27 | S10: 120 | V10: 10 | Y10: 10 | AD10: 422.1 | AY10: 0 | AZ10: 422.1 | BA10: 0 | BB10: -112.5
C11: أبريل | M11: 0 | P11: 86.39 | Q11: 92.44 | R11: 103.27 | S11: 120 | V11: 10 | Y11: 10 | AD11: 422.1 | AY11: 0 | AZ11: 422.1 | BA11: 0 | BB11: -112.5
C12: مايو | M12: 0 | P12: 86.39 | Q12: 92.44 | R12: 103.27 | S12: 120 | V12: 10 | Y12: 10 | AD12: 422.1 | AY12: 0 | AZ12: 422.1 | BA12: 0 | BB12: -112.5
C13: يونيو | M13: 0 | P13: 86.39 | Q13: 92.44 | R13: 103.27 | S13: 120 | V13: 10 | Y13: 10 | AD13: 422.1 | AY13: 0 | AZ13: 422.1 | BA13: 0 | BB13: -112.5
C14: يوليو | H14: 1616.2 | M14: 242.43 | O14: 716.3 | P14: 86.39 | Q14: 92.44 | R14: 103.27 | S14: 120 | V14: 10 | Y14: 10 | AC14: 96.64 | AD14: 2377.37 | AE14: 191.8 | AF14: 267.3 | AI14: 5.45 | AJ14: 0.5 | AK14: 3 | AL14: 0.25 | AM14: 26.99 | AP14: 33.27 | AV14: 29.5 | AY14: 558.06 | AZ14: 1819.31 | BA14: 1939.44 | BB14: =((H14+M14+I14+J14+N14+BA14)-(1125+AE14+AF14+AM14+AI14+O14))*10% -> 146.523 | BC14: =BA14-BB14 -> 1792.917
C15: أغسطس | H15: 1616.2 | M15: 242.43 | P15: 86.39 | Q15: 92.44 | R15: 103.27 | S15: 120 | V15: 10 | Y15: 10 | AD15: 2280.73 | AE15: 191.8 | AF15: 267.3 | AI15: 5.45 | AJ15: 0.5 | AK15: 3 | AL15: 0.25 | AM15: 26.99 | AY15: 495.29 | AZ15: 1785.44 | BA15: 1939.44
C16: سبتمبر | H16: 1616.2 | M16: 242.43 | P16: 86.39 | Q16: 92.44 | R16: 103.27 | S16: 120 | V16: 10 | Y16: 10 | AD16: 2280.73 | AE16: 191.8 | AF16: 267.3 | AI16: 5.45 | AJ16: 0.5 | AK16: 3 | AL16: 0.25 | AM16: 26.99 | AY16: 495.29 | AZ16: 1785.44 | BA16: 1939.44
C17: أكتوبر | M17: 0 | P17: 86.39 | Q17: 92.44 | R17: 103.27 | S17: 120 | V17: 10 | Y17: 10 | AY17: 0 | AZ17: 0 | BA17: 0
C18: نوفمبر | M18: 0 | P18: 86.39 | Q18: 92.44 | R18: 103.27 | S18: 120 | V18: 10 | Y18: 10 | AY18: 0 | AZ18: 0 | BA18: 0
C19: ديسمبر | M19: 0 | P19: 86.39 | Q19: 92.44 | R19: 103.27 | S19: 120 | V19: 10 | Y19: 10 | AY19: 0 | AZ19: 0 | BA19: 0
C20: الجملة
C27: الإسم /
C29: المستحق | AE29: المستقطع
C30: الشهر | D30: غياب | E30: مرضي | F30: إصابة | G30: إيقاف | H30: الأجر الأساسي | I30: بدل تمثيل | J30: بدل تفرغ | K30: عمولة انتاج | L30: معونة مرضي وإصابة | M30: بدل مخاطر | N30: بدل إقامة | P30: علاوات خاصة واجتماعية | W30: بدل نقدي | X30: فرق بدل نقدي | Y30: المنحة | Z30: بدل تباع | AA30: مصاريف صياتة | AB30: بدل مظهر | AC30: بدل انتقال | AD30: جملة المستحق | AE30: تأمينات أساسية | AF30: تأمينات متغيرة | AG30: كسب عمل | AH30: مدة سابقة | AI30: اشتراكات أجازة خاصة | AJ30: إعانة وفاة | AK30: نقابة | AL30: نشاط رياضي | AM30: الصندوق التأميني | AN30: غياب | AO30: غياب حصة الشركة أساسي / متغير | AQ30: فاقد إنتاج | AR30: تلفيات | AS30: عجوزات | AT30: مخالفات مرور | AU30: فاقد سولار | AV30: عهد | AY30: جملة المستقطع | AZ30: الصافي المستحق | BD30: ملاحظات
P31: 2013 | Q31: 2014 | R31: 2015 | S31: 2016 | V31: إجتماعية
C32: يناير
C33: فبراير
C34: مارس
C35: أبريل
C36: مايو
C37: يونيو
C38: يوليو
C39: أغسطس
C40: سبتمبر
C41: أكتوبر
C42: نوفمبر
C43: ديسمبر
C44: الجملة
C50: الإسم /
C52: المستحق | AE52: المستقطع
C53: الشهر | D53: غياب | E53: مرضي | F53: إصابة | G53: إيقاف | H53: الأجر الأساسي | I53: بدل تمثيل | J53: بدل تفرغ | K53: عمولة انتاج | L53: معونة مرضي وإصابة | M53: بدل مخاطر | N53: بدل إقامة | P53: علاوات خاصة واجتماعية | W53: بدل نقدي | X53: فرق بدل نقدي | Y53: المنحة | Z53: بدل تباع | AA53: مصاريف صياتة | AB53: بدل مظهر | AC53: بدل انتقال | AD53: جملة المستحق | AE53: تأمينات أساسية | AF53: تأمينات متغيرة | AG53: كسب عمل | AH53: مدة سابقة | AI53: اشتراكات أجازة خاصة | AJ53: إعانة وفاة | AK53: نقابة | AL53: نشاط رياضي | AM53: الصندوق التأميني | AN53: غياب | AO53: غياب حصة الشركة أساسي / متغير | AQ53: فاقد إنتاج | AR53: تلفيات | AS53: عجوزات | AT53: مخالفات مرور | AU53: فاقد سولار | AV53: عهد | AY53: جملة المستقطع | AZ53: الصافي المستحق | BD53: ملاحظات
P54: 2013 | Q54: 2014 | R54: 2015 | S54: 2016 | V54: إجتماعية
C55: يناير
C56: فبراير
C57: مارس
C58: أبريل
C59: مايو
C60: يونيو
C61: يوليو
C62: أغسطس
C63: سبتمبر
C64: أكتوبر
C65: نوفمبر
C66: ديسمبر
C67: الجملة
BK68: الإجمالي العام
C73: الإسم /
C75: المستحق | AE75: المستقطع
C76: الشهر | D76: غياب | E76: مرضي | F76: إصابة | G76: إيقاف | H76: الأجر الأساسي | I76: بدل تمثيل | J76: بدل تفرغ | K76: عمولة انتاج | L76: معونة مرضي وإصابة | M76: بدل مخاطر | N76: بدل إقامة | P76: علاوات خاصة واجتماعية | W76: بدل نقدي | X76: فرق بدل نقدي | Y76: المنحة | Z76: بدل تباع | AA76: مصاريف صياتة | AB76: بدل مظهر | AC76: بدل انتقال | AD76: جملة المستحق | AE76: تأمينات أساسية | AF76: تأمينات متغيرة | AG76: كسب عمل | AH76: مدة سابقة | AI76: اشتراكات أجازة خاصة | AJ76: إعانة وفاة | AK76: نقابة | AL76: نشاط رياضي | AM76: الصندوق التأميني | AN76: غياب | AO76: غياب حصة الشركة أساسي / متغير | AQ76: فاقد إنتاج | AR76: تلفيات | AS76: عجوزات | AT76: مخالفات مرور | AU76: فاقد سولار | AV76: عهد | AY76: جملة المستقطع | AZ76: الصافي المستحق | BD76: ملاحظات
P77: 2013 | Q77: 2014 | R77: 2015 | S77: 2016 | V77: إجتماعية
C78: يناير
C79: فبراير
C80: مارس
C81: أبريل
C82: مايو
C83: يونيو
C84: يوليو
C85: أغسطس
C86: سبتمبر
C87: أكتوبر
C88: نوفمبر
C89: ديسمبر
C90: الجملة
C96: الإسم /
C98: المستحق | AE98: المستقطع
C99: الشهر | D99: غياب | E99: مرضي | F99: إصابة | G99: إيقاف | H99: الأجر الأساسي | I99: بدل تمثيل | J99: بدل تفرغ | K99: عمولة انتاج | L99: معونة مرضي وإصابة | M99: بدل مخاطر | N99: بدل إقامة | P99: علاوات خاصة واجتماعية | W99: بدل نقدي | X99: فرق بدل نقدي | Y99: المنحة | Z99: بدل تباع | AA99: مصاريف صياتة | AB99: بدل مظهر | AC99: بدل انتقال | AD99: جملة المستحق | AE99: تأمينات أساسية | AF99: تأمينات متغيرة | AG99: كسب عمل | AH99: مدة سابقة | AI99: اشتراكات أجازة خاصة | AJ99: إعانة وفاة | AK99: نقابة | AL99: نشاط رياضي | AM99: الصندوق التأميني | AN99: غياب | AO99: غياب حصة الشركة أساسي / متغير | AQ99: فاقد إنتاج | AR99: تلفيات | AS99: عجوزات | AT99: مخالفات مرور | AU99: فاقد سولار | AV99: عهد | AY99: جملة المستقطع | AZ99: الصافي المستحق | BD99: ملاحظات
P100: 2013 | Q100: 2014 | R100: 2015 | S100: 2016 | V100: إجتماعية
C101: يناير
C102: فبراير
C103: مارس
C104: أبريل
C105: مايو
C106: يونيو
C107: يوليو
C108: أغسطس
C109: سبتمبر
C110: أكتوبر
C111: نوفمبر
C112: ديسمبر
C113: الجملة
C119: الإسم /
C121: المستحق | AE121: المستقطع
C122: الشهر | D122: غياب | E122: مرضي | F122: إصابة | G122: إيقاف | H122: الأجر الأساسي | I122: بدل تمثيل | J122: بدل تفرغ | K122: عمولة انتاج | L122: معونة مرضي وإصابة | M122: بدل مخاطر | N122: بدل إقامة | P122: علاوات خاصة واجتماعية | W122: بدل نقدي | X122: فرق بدل نقدي | Y122: المنحة | Z122: بدل تباع | AA122: مصاريف صياتة | AB122: بدل مظهر | AC122: بدل انتقال | AD122: جملة المستحق | AE122: تأمينات أساسية | AF122: تأمينات متغيرة | AG122: كسب عمل | AH122: مدة سابقة | AI122: اشتراكات أجازة خاصة | AJ122: إعانة وفاة | AK122: نقابة | AL122: نشاط رياضي | AM122: الصندوق التأميني | AN122: غياب | AO122: غياب حصة الشركة أساسي / متغير | AQ122: فاقد إنتاج | AR122: تلفيات | AS122: عجوزات | AT122: مخالفات مرور | AU122: فاقد سولار | AV122: عهد | AY122: جملة المستقطع | AZ122: الصافي المستحق | BD122: ملاحظات
P123: 2013 | Q123: 2014 | R123: 2015 | S123: 2016 | V123: إجتماعية
C124: يناير
C125: فبراير
C126: مارس
C127: أبريل
C128: مايو
C129: يونيو
C130: يوليو
C131: أغسطس
C132: سبتمبر
C133: أكتوبر
C134: نوفمبر
C135: ديسمبر
C136: الجملة
C142: الإسم /
C144: المستحق | AE144: المستقطع
C145: الشهر | D145: غياب | E145: مرضي | F145: إصابة | G145: إيقاف | H145: الأجر الأساسي | I145: بدل تمثيل | J145: بدل تفرغ | K145: عمولة انتاج | L145: معونة مرضي وإصابة | M145: بدل مخاطر | N145: بدل إقامة | P145: علاوات خاصة واجتماعية | W145: بدل نقدي | X145: فرق بدل نقدي | Y145: المنحة | Z145: بدل تباع | AA145: مصاريف صياتة | AB145: بدل مظهر | AC145: بدل انتقال | AD145: جملة المستحق | AE145: تأمينات أساسية | AF145: تأمينات متغيرة | AG145: كسب عمل | AH145: مدة سابقة | AI145: اشتراكات أجازة خاصة | AJ145: إعانة وفاة | AK145: نقابة | AL145: نشاط رياضي | AM145: الصندوق التأميني | AN145: غياب | AO145: غياب حصة الشركة أساسي / متغير | AQ145: فاقد إنتاج | AR145: تلفيات | AS145: عجوزات | AT145: مخالفات مرور | AU145: فاقد سولار | AV145: عهد | AY145: جملة المستقطع | AZ145: الصافي المستحق | BD145: ملاحظات
P146: 2013 | Q146: 2014 | R146: 2015 | S146: 2016 | V146: إجتماعية
C147: يناير
C148: فبراير
C149: مارس
C150: أبريل
C151: مايو
C152: يونيو
C153: يوليو
C154: أغسطس
C155: سبتمبر
C156: أكتوبر
C157: نوفمبر
C158: ديسمبر
C159: الجملة
C165: الإسم /
C167: المستحق | AE167: المستقطع
C168: الشهر | D168: غياب | E168: مرضي | F168: إصابة | G168: إيقاف | H168: الأجر الأساسي | I168: بدل تمثيل | J168: بدل تفرغ | K168: عمولة انتاج | L168: معونة مرضي وإصابة | M168: بدل مخاطر | N168: بدل إقامة | P168: علاوات خاصة واجتماعية | W168: بدل نقدي | X168: فرق بدل نقدي | Y168: المنحة | Z168: بدل تباع | AA168: مصاريف صياتة | AB168: بدل مظهر | AC168: بدل انتقال | AD168: جملة المستحق | AE168: تأمينات أساسية | AF168: تأمينات متغيرة | AG168: كسب عمل | AH168: مدة سابقة | AI168: اشتراكات أجازة خاصة | AJ168: إعانة وفاة | AK168: نقابة | AL168: نشاط رياضي | AM168: الصندوق التأميني | AN168: غياب | AO168: غياب حصة الشركة أساسي / متغير | AQ168: فاقد إنتاج | AR168: تلفيات | AS168: عجوزات | AT168: مخالفات مرور | AU168: فاقد سولار | AV168: عهد | AY168: جملة المستقطع | AZ168: الصافي المستحق | BD168: ملاحظات
P169: 2013 | Q169: 2014 | R169: 2015 | S169: 2016 | V169: إجتماعية
C170: يناير
C171: فبراير
C172: مارس
C173: أبريل
C174: مايو
C175: يونيو
C176: يوليو
C177: أغسطس
C178: سبتمبر
C179: أكتوبر
C180: نوفمبر
C181: ديسمبر
C182: الجملة
C188: الإسم /
C190: المستحق | AE190: المستقطع
C191: الشهر | D191: غياب | E191: مرضي | F191: إصابة | G191: إيقاف | H191: الأجر الأساسي | I191: بدل تمثيل | J191: بدل تفرغ | K191: عمولة انتاج | L191: معونة مرضي وإصابة | M191: بدل مخاطر | N191: بدل إقامة | P191: علاوات خاصة واجتماعية | W191: بدل نقدي | X191: فرق بدل نقدي | Y191: المنحة | Z191: بدل تباع | AA191: مصاريف صياتة | AB191: بدل مظهر | AC191: بدل انتقال | AD191: جملة المستحق | AE191: تأمينات أساسية | AF191: تأمينات متغيرة | AG191: كسب عمل | AH191: مدة سابقة | AI191: اشتراكات أجازة خاصة | AJ191: إعانة وفاة | AK191: نقابة | AL191: نشاط رياضي | AM191: الصندوق التأميني | AN191: غياب | AO191: غياب حصة الشركة أساسي / متغير | AQ191: فاقد إنتاج | AR191: تلفيات | AS191: عجوزات | AT191: مخالفات مرور | AU191: فاقد سولار | AV191: عهد | AY191: جملة المستقطع | AZ191: الصافي المستحق | BD191: ملاحظات
P192: 2013 | Q192: 2014 | R192: 2015 | S192: 2016 | V192: إجتماعية
C193: يناير
C194: فبراير
C195: مارس
C196: أبريل
C197: مايو
C198: يونيو
C199: يوليو
C200: أغسطس
C201: سبتمبر
C202: أكتوبر
C203: نوفمبر
C204: ديسمبر
C205: الجملة
C211: الإسم /
C213: المستحق | AE213: المستقطع
C214: الشهر | D214: غياب | E214: مرضي | F214: إصابة | G214: إيقاف | H214: الأجر الأساسي | I214: بدل تمثيل | J214: بدل تفرغ | K214: عمولة انتاج | L214: معونة مرضي وإصابة | M214: بدل مخاطر | N214: بدل إقامة | P214: علاوات خاصة واجتماعية | W214: بدل نقدي | X214: فرق بدل نقدي | Y214: المنحة | Z214: بدل تباع | AA214: مصاريف صياتة | AB214: بدل مظهر | AC214: بدل انتقال | AD214: جملة المستحق | AE214: تأمينات أساسية | AF214: تأمينات متغيرة | AG214: كسب عمل | AH214: مدة سابقة | AI214: اشتراكات أجازة خاصة | AJ214: إعانة وفاة | AK214: نقابة | AL214: نشاط رياضي | AM214: الصندوق التأميني | AN214: غياب | AO214: غياب حصة الشركة أساسي / متغير | AQ214: فاقد إنتاج | AR214: تلفيات | AS214: عجوزات | AT214: مخالفات مرور | AU214: فاقد سولار | AV214: عهد | AY214: جملة المستقطع | AZ214: الصافي المستحق | BD214: ملاحظات
P215: 2013 | Q215: 2014 | R215: 2015 | S215: 2016 | V215: إجتماعية
C216: يناير
C217: فبراير
C218: مارس
C219: أبريل
C220: مايو
C221: يونيو
C222: يوليو
C223: أغسطس
C224: سبتمبر
C225: أكتوبر
C226: نوفمبر
C227: ديسمبر
C228: الجملة
C234: الإسم /
C236: المستحق | AE236: المستقطع
C237: الشهر | D237: غياب | E237: مرضي | F237: إصابة | G237: إيقاف | H237: الأجر الأساسي | I237: بدل تمثيل | J237: بدل تفرغ | K237: عمولة انتاج | L237: معونة مرضي وإصابة | M237: بدل مخاطر | N237: بدل إقامة | P237: علاوات خاصة واجتماعية | W237: بدل نقدي | X237: فرق بدل نقدي | Y237: المنحة | Z237: بدل تباع | AA237: مصاريف صياتة | AB237: بدل مظهر | AC237: بدل انتقال | AD237: جملة المستحق | AE237: تأمينات أساسية | AF237: تأمينات متغيرة | AG237: كسب عمل | AH237: مدة سابقة | AI237: اشتراكات أجازة خاصة | AJ237: إعانة وفاة | AK237: نقابة | AL237: نشاط رياضي | AM237: الصندوق التأميني | AN237: غياب | AO237: غياب حصة الشركة أساسي / متغير | AQ237: فاقد إنتاج | AR237: تلفيات | AS237: عجوزات | AT237: مخالفات مرور | AU237: فاقد سولار | AV237: عهد | AY237: جملة المستقطع | AZ237: الصافي المستحق | BD237: ملاحظات
P238: 2013 | Q238: 2014 | R238: 2015 | S238: 2016 | V238: إجتماعية
C239: يناير
C240: فبراير
C241: مارس
C242: أبريل
C243: مايو
C244: يونيو
C245: يوليو
C246: أغسطس
C247: سبتمبر
C248: أكتوبر
C249: نوفمبر
C250: ديسمبر
C251: الجملة
C256: الإسم /
C258: المستحق | AE258: المستقطع
C259: الشهر | D259: غياب | E259: مرضي | F259: إصابة | G259: إيقاف | H259: الأجر الأساسي | I259: بدل تمثيل | J259: بدل تفرغ | K259: عمولة انتاج | L259: معونة مرضي وإصابة | M259: بدل مخاطر | N259: بدل إقامة | P259: علاوات خاصة واجتماعية | W259: بدل نقدي | X259: فرق بدل نقدي | Y259: المنحة | Z259: بدل تباع | AA259: مصاريف صياتة | AB259: بدل مظهر | AC259: بدل انتقال | AD259: جملة المستحق | AE259: تأمينات أساسية | AF259: تأمينات متغيرة | AG259: كسب عمل | AH259: مدة سابقة | AI259: اشتراكات أجازة خاصة | AJ259: إعانة وفاة | AK259: نقابة | AL259: نشاط رياضي | AM259: الصندوق التأميني | AN259: غياب | AO259: غياب حصة الشركة أساسي / متغير | AQ259: فاقد إنتاج | AR259: تلفيات | AS259: عجوزات | AT259: مخالفات مرور | AU259: فاقد سولار | AV259: عهد | AY259: جملة المستقطع | AZ259: الصافي المستحق | BD259: ملاحظات
P260: 2013 | Q260: 2014 | R260: 2015 | S260: 2016 | V260: إجتماعية
C261: يناير
C262: فبراير
C263: مارس
C264: أبريل
C265: مايو
C266: يونيو
C267: يوليو
C268: أغسطس
... 566 more rows

Sheet يناير 2022
E2: الــــــمــــــــســــــــتـــــــــحـــــــــــقـــــــــــــــــــات | AK2: الـــــــــتـــــــــأثيرات | AU2: الــــــــــــــــــــمـــــــــــــــــــــســـــــــــــــــــتــــــــــــــــــــــــــــــــــــقــــــــــــــــــــــــــطـــــــــــــــــــــــــع | BT2: الــــحــافــــــــز
CK4: استخراج الضرائب شهريا خلال عام 2022
D5: الاسم | E5: مجموع العلاوات | F5: كود | G5: غياب | H5: مرضي | I5: إصابة | J5: إيقاف | K5: الأجر الأساسي 7/2021 | L5: بدل تمثيل | M5: بدل تفرغ | N5: عمولة انتاج | O5: معونة مرضي وإصابة | P5: بدل مخاطر | Q5: بدل انتقال | R5: بدل إقامة | U5: 2014 | V5: 2015 | W5: 2016 | X5: 0.03 | Y5: 0.05 | Z5: 0.06 | AA5: علاوة استثنائية | AB5: إجتماعية | AC5: بدل نقدي | AD5: فرق بدل نقدي | AE5: المنحة | AF5: بدل تباع | AG5: م. صياتة | AH5: بدل مظهر | AJ5: إجمالي المستحق | AK5: عدد أيام الحضور | AL5: أيام الجمعة والسبت | AM5: غياب | AN5: أجازات عارضة | AO5: أجازات اعتيادي | AP5: أجازات سنوية | AQ5: أجازات مرضي تطبيق قرار | AR5: أجازات مرضي لم ينطبق القرار | AS5: صافي أيام عمل بدل مخاطر | AT5: صافي أيام العمل بدل انتقال | AU5: تأمينات شاملة 1/1/2020 | AW5: كسب عمل | AX5: مدة سابقة | AY5: اشتراكات أجازة خاصة | AZ5: إعانة وفاة | BA5: نقابة | BB5: ن. رياضي | BC5: ص. التأميني | BD5: غياب | BE5: غياب حصة الشركة أساسي / متغير | BF5: غياب بدل مخاطر | BG5: غياب بدل انتقال | BH5: فاقد إنتاج | BI5: تلفيات | BJ5: عجوزات | BK5: مخالفات مرور | BL5: فاقد سولار | BM5: إيجار سكن | BN5: عهد | BO5: شهداء 0.0005 | BP5: صندوق إعاقة | BQ5: مصاريف استئناف | BR5: إجمالي المستقطع | BS5: صافي المستحق | BT5: الحافز | BU5: خصم مبالغ من الحافز | BV5: إجازات عارضة+اعتيادي+سنوي | BW5: نسبة الخصم للأجازات | BX5: المخصوم بعد نسبة الأداء | BY5: خصم مريضي ينطبق القرار | BZ5: خصم مرضي لم ينطبق القرار | CA5: صافي الحافز | CB5: ملاحظات حافز | CC5: مرتب وحافز | CD5: مكافأة | CG5: إجمالي مرتب+حافز+ مكافأة | CH5: ملاحظات | CK5: إجمالي المستحق الضريبي | CL5: إجمالي المستقطع الضريبي | CM5: الصافي | CN5: الوعاء الضريبي | CO5: الضريبة المستحقة | CQ5: الصافي بعد خصم ضريبة 2022 | CS5: إجمالي المستحق الشهري للتأمينات
B6: 1777.8157 | C6: 1 | D6: سهير محمد مدني | E6: 675.83 | K6: =B6*107% -> 1902.262799 | P6: =K6*15% -> 285.3394199 | Q6: 141.49 | U6: 76.44 | V6: 85.57 | W6: 102.85 | X6: 46.58 | Y6: 83.0755 | Z6: =B6*6% -> 106.668942 | AA6: 190 | AB6: 6 | AE6: 10 | AJ6: =SUM(G6:AI6) -> 3036.276661 | AS6: 20 | AT6: 15 | AU6: 627 | AW6: 142 | AZ6: 0.5 | BA6: 3 | BC6: 0 | BF6: =IF(AS6<18,(P6/18)*(18-AS6),"0") -> 0 | BG6: =IF(AT6<18,(Q6/18)*(18-AT6),"0") -> 23.58166667 | BO6: 1.3 | BP6: 5 | BR6: =SUM(AU6:BQ6) -> 802.3816667 | BS6: =AJ6-BR6 -> 2233.894994 | BT6: =K6*120% -> 2282.715359 | BV6: 3 | BW6: =IF(BV6=4,30%,IF(BV6=5,40%,IF(BV6=6,50%,IF(BV6>6,1,"0")))) -> 0 | BX6: =(BT6*BW6) -> 0 | CA6: =BT6-BU6-BX6-BY6-BZ6 -> 2282.715359 | CB6: حافز 11/2021 نصفين | CC6: =BS6+CA6 -> 4516.610353 | CG6: =(BS6+CA6+CD6)-(CE6+CF6) -> 4516.610353 | CK6: =K6+P6+X6+Y6+Z6+AA6+CA6+CD6 -> 4896.64202 | CL6: =E6+AU6+AX6+AY6+BC6+BF6+BO6+BP6+750 -> 2059.13 | CM6: =CK6-CL6 -> 2837.51202 | CN6: =TRUNC(CM6,-1) -> 2830 | CO6: =IF(AND(CN6>1250,CN6<2501),(CN6-1250)*2.5%,IF(AND(CN6>2500,CN6<3751),(CN6-2500)*10%+31.25,IF(AND(CN6>3750,CN6<5001),(CN6-3750)*15%+31.25+125,IF(AND(CN6>5000,CN6<16666.68),(CN6-5000)*20%+31.25+125+187.5,"0")))) -> 64.25 | CQ6: =CG6-CO6 -> 4452.360353 | CS6: =(AJ6-Q6)+CA6+CD6 -> 5177.50202
B7: 1825.3879 | C7: 2 | D7: محمد محمود صقر | E7: 687.13 | K7: =B7*107% -> 1953.165053 | P7: =K7*15% -> 292.974758 | Q7: 141.49 | U7: 78.33 | V7: 87.73 | W7: 105.57 | X7: 47.83 | Y7: 85.2985 | Z7: =B7*6% -> 109.523274 | AA7: 190 | AB7: 10 | AE7: 10 | AJ7: =SUM(G7:AI7) -> 3111.911585 | AS7: 20 | AT7: 20 | AU7: 649 | AW7: 139.3 | AY7: 18.74 | AZ7: 0.5 | BA7: 3 | BC7: 0 | BF7: =IF(AS7<18,(P7/18)*(18-AS7),"0") -> 0 | BG7: =IF(AT7<18,(Q7/18)*(18-AT7),"0") -> 0 | BO7: 1.34 | BP7: 5 | BR7: =SUM(AU7:BQ7) -> 816.88 | BS7: =AJ7-BR7 -> 2295.031585 | BT7: 2343.798064 | BV7: 3 | BW7: =IF(BV7=4,30%,IF(BV7=5,40%,IF(BV7=6,50%,IF(BV7>6,1,"0")))) -> 0 | BX7: =(BT7*BW7) -> 0 | CA7: =BT7-BU7-BX7-BY7-BZ7 -> 2343.798064 | CB7: حافز 11/2021 نصفين | CC7: =BS7+CA7 -> 4638.829649 | CG7: =(BS7+CA7+CD7)-CE7 -> 4638.829649 | CK7: =K7+P7+X7+Y7+Z7+AA7+CA7+CD7 -> 5022.589649 | CL7: =E7+AU7+AX7+AY7+BC7+BF7+BO7+BP7+750 -> 2111.21 | CM7: =CK7-CL7 -> 2911.379649 | CN7: =TRUNC(CM7,-1) -> 2910 | CO7: =IF(AND(CN7>1250,CN7<2501),(CN7-1250)*2.5%,IF(AND(CN7>2500,CN7<3751),(CN7-2500)*10%+31.25,IF(AND(CN7>3750,CN7<5001),(CN7-3750)*15%+31.25+125,IF(AND(CN7>5000,CN7<16666.68),(CN7-5000)*20%+31.25+125+187.5,"0")))) -> 72.25 | CQ7: =CG7-CO7 -> 4566.579649 | CS7: =(AJ7-Q7)+CA7+CD7 -> 5314.219649
B8: 778.0505 | C8: 3 | D8: محمود السيد برسي | E8: 470.48 | K8: 832.514035 | M8: 81 | P8: 124.8771053 | Q8: =141.49+20 -> 161.49 | U8: 36.22 | V8: 38.22 | W8: 65 | X8: 27.43 | Y8: 36.3575 | Z8: 46.68303 | AA8: 190 | AB8: 10 | AE8: 10 | AJ8: =SUM(G8:AI8) -> 1659.79167 | AS8: 22 | AT8: 22 | AU8: 286 | AW8: 0 | AZ8: 0.5 | BA8: 3 | BC8: 0 | BF8: 0 | BG8: 0 | BO8: 0.69 | BP8: 3 | BQ8: 998 | BR8: 1291.19 | BS8: 368.6016703 | BT8: 999.016842 | BU8: 999.02 | BV8: 3 | BW8: 0 | BX8: 0 | CA8: -0.003158 | CB8: حافز 11/2021 نصفين | CC8: 368.5985123 | CG8: 368.5985123 | CK8: =K8+P8+X8+Y8+Z8+AA8+CA8+CD8 -> 1257.858512 | CL8: =E8+AU8+AX8+AY8+BC8+BF8+BO8+BP8+750 -> 1510.17 | CM8: -252.3114877 | CN8: -250 | CO8: 0 | CQ8: 368.5985123 | CS8: 1498.298512
B9: 3324.8003 | C9: 4 | D9: سمير حلمي محمود | E9: 1275.89 | K9: 3557.536321 | P9: 533.6304482 | Q9: 141.49 | U9: 154.26 | V9: 172.26 | W9: 120 | X9: 87.12 | Y9: 155.3645 | Z9: 199.488018 | AA9: 190 | AB9: 10 | AE9: 10 | AJ9: 5331.149287 | AS9: 24 | AT9: 12 | AU9: 1034 | AW9: 354.9333333 | AZ9: 0.5 | BA9: 3 | BC9: 0 | BF9: 0 | BG9: 47.16333333 | BO9: 2.33 | BP9: 5 | BR9: 1446.926667 | BS9: 3884.22262 | BT9: 4269.043585 | BU9: 2269.04 | BV9: 3 | BW9: 0 | BX9: 0 | CA9: 2000.003585 | CB9: حافز 11/2021 نصفين | CC9: 5884.226206 | CG9: 5884.226206 | CK9: 6723.142872 | CL9: 3067.22 | CM9: 3655.922872 | CN9: 3650 | CO9: 146.25 | CQ9: 5737.976206 | CS9: 7189.662872
B10: 1536.4665 | C10: 5 | D10: ممدوح محمد عبد المجيد | E10: 609 | K10: 1644.019155 | P10: 246.6028733 | Q10: 141.49 | U10: 70.73 | V10: 78.94 | W10: 94.69 | X10: 40.26 | Y10: 71.7975 | Z10: 92.18799 | AA10: 190 | AB10: 10 | AE10: 10 | AJ10: 2690.717518 | AR10: 30 | AS10: 0 | AT10: 0 | AU10: 528 | AW10: 60.16666667 | AZ10: 0.5 | BA10: 3 | BC10: 0 | BF10: 246.6028733 | BG10: 141.49 | BO10: 1.15 | BP10: 3 | BR10: 983.9095399 | BS10: 1706.807978 | BT10: 1972.822986 | BV10: 3 | BW10: 0 | BX10: 0 | BY10: 181.52 | CA10: 1791.302986 | CB10: حافز 11/2021 نصفين | CC10: 3498.110964 | CG10: 3498.110964 | CK10: 4076.170504 | CL10: 2137.752873 | CM10: 1938.417631 | CN10: 1930 | CO10: 17 | CQ10: 3481.110964 | CS10: 4340.530504
B11: 1936.7856 | C11: 6 | D11: السعيد حسن الشورى | E11: 646.03 | K11: 2072.360592 | P11: 310.8540888 | Q11: 141.49 | U11: 89.99 | V11: 100.44 | W11: 119.89 | X11: 50.75 | Y11: 90.504 | Z11: 116.207136 | AA11: 190 | AB11: 10 | AE11: 10 | AJ11: 3302.485817 | AS11: 19 | AT11: 19 | AU11: 671 | AW11: 115.44 | AZ11: 0.5 | BA11: 3 | BC11: 0 | BF11: 0 | BG11: 0 | BO11: 1.43 | BP11: 5 | BR11: 796.37 | BS11: 2506.115817 | BT11: 2486.83271 | BV11: 3 | BW11: 0 | BX11: 0 | CA11: 2486.83271 | CB11: حافز 11/2021 نصفين | CC11: 4992.948527 | CG11: 4992.948527 | CK11: 5317.508527 | CL11: 2073.46 | CM11: 3244.048527 | CN11: 3240 | CO11: 105.25 | CQ11: 4887.698527 | CS11: 5647.828527
B12: 1852.0523 | C12: 7 | D12: خالد حسن سليمان | E12: 703.74 | K12: 1981.695961 | P12: 297.2543942 | Q12: 141.49 | U12: 79.61 | V12: 89.13 | W12: 107.16 | X12: 48.52 | Y12: 86.5445 | Z12: 111.123138 | AA12: 190 | AB12: 10 | AE12: 10 | AJ12: 3152.527993 | AS12: 25 | AT12: 13 | AU12: 649 | AW12: 143.3333333 | AZ12: 0.5 | BA12: 3 | BC12: 0 | BF12: 0 | BG12: 39.30277778 | BO12: 1.36 | BP12: 5 | BR12: 841.4961111 | BS12: 2311.031882 | BT12: 2378.035153 | BV12: 3 | BW12: 0 | BX12: 0 | CA12: 2378.035153 | CB12: حافز 11/2021 نصفين | CC12: 4689.067035 | CG12: 4689.067035 | CK12: 5093.173146 | CL12: 2109.1 | CM12: 2984.073146 | CN12: 2980 | CO12: 79.25 | CQ12: 4609.817035 | CS12: 5389.073146
B13: 1850.6827 | C13: 8 | D13: رجب إبراهيم صالح | E13: 683.06 | K13: 1980.230489 | P13: 297.0345734 | Q13: 141.49 | U13: 79.81 | V13: 89.11 | W13: 106.96 | X13: 48.49 | Y13: 86.4805 | Z13: 111.040962 | AA13: 190 | AB13: 10 | AE13: 10 | AH13: 5.5 | AJ13: 3156.146524 | AS13: 28 | AT13: 28 | AU13: 649 | AW13: 112.5916667 | AZ13: 0.5 | BA13: 3 | BC13: 0 | BF13: 0 | BG13: 0 | BO13: 1.36 | BP13: 3 | BR13: 769.4516667 | BS13: 2386.694858 | BT13: 2376.276587 | BV13: 3 | BW13: 0 | BX13: 0 | CA13: 2376.276587 | CB13: حافز 11/2021 نصفين | CC13: 4762.971444 | CG13: 4762.971444 | CK13: 5089.553111 | CL13: 2086.42 | CM13: 3003.133111 | CN13: 3000 | CO13: 81.25 | CQ13: 4681.721444 | CS13: 5390.933111
B14: 1759.8397 | C14: 9 | D14: أحمد محمد حسن | E14: 650.36 | K14: 1883.028479 | P14: 282.4542719 | Q14: 141.49 | U14: 75.92 | V14: 84.75 | W14: 101.7 | X14: 46.11 | Y14: 82.2355 | Z14: 105.590382 | AA14: 190 | AB14: 10 | AE14: 10 | AH14: 5.5 | AJ14: 3018.778633 | AS14: 29 | AT14: 29 | AU14: 627 | AW14: 131.308 | AX14: 4.62 | AZ14: 0.5 | BA14: 3 | BC14: 0 | BF14: 0 | BG14: 0 | BO14: 1.3 | BP14: 3 | BR14: 770.728 | BS14: 2248.050633 | BT14: 2259.634175 | BV14: 3 | BW14: 0 | BX14: 0 | CA14: 2259.634175 | CB14: حافز 11/2021 نصفين | CC14: 4507.684808 | CG14: 4507.684808 | CK14: 4849.052808 | CL14: 2036.28 | CM14: 2812.772808 | CN14: 2810 | CO14: 62.25 | CQ14: 4445.434808 | CS14: 5136.922808
B15: 1647.7679 | C15: 10 | D15: شحاته عبد الله | E15: 648.22 | K15: 1763.111653 | P15: 264.466748 | Q15: 141.49 | U15: 76.45 | V15: 85.35 | W15: 101.93 | X15: 43.17 | Y15: 76.9985 | Z15: 98.866074 | AA15: 200 | AB15: 10 | AE15: 10 | AH15: 5.5 | AJ15: 2877.332975 | AS15: 9 | AT15: 9 | AU15: 583 | AW15: 111.3333333 | AZ15: 0.5 | BA15: 3 | BC15: 0 | BF15: 132.233374 | BG15: 70.745 | BO15: 1.24 | BP15: 3 | BR15: 905.0517073 | BS15: 1972.281268 | BT15: 2115.733984 | BV15: 3 | BW15: 0 | BX15: 0 | CA15: 2115.733984 | CB15: حافز 11/2021 نصفين | CC15: 4088.015251 | CG15: 4088.015251 | CK15: 4562.346959 | CL15: 2117.693374 | CM15: 2444.653585 | CN15: 2440 | CO15: 29.75 | CQ15: 4058.265251 | CS15: 4851.576959
B16: 675.2342 | C16: 12 | D16: أحمد شحاته مصطفى | E16: 368.01 | K16: 722.500594 | P16: 108.3750891 | Q16: 141.49 | U16: 29.87 | V16: 33.52 | W16: 65 | X16: 33.74 | Y16: 31.553 | Z16: 40.514052 | AA16: 200 | AB16: 10 | AE16: 10 | AH16: 5.5 | AJ16: 1432.062735 | AS16: 31 | AT16: 31 | AU16: 253 | AW16: 0 | AZ16: 0.5 | BA16: 3 | BC16: 0 | BF16: 0 | BG16: 0 | BO16: 0.59 | BP16: 3 | BR16: 260.09 | BS16: 1171.972735 | BT16: 867.0007128 | BV16: 3 | BW16: 0 | BX16: 0 | CA16: 867.0007128 | CB16: حافز 11/2021 نصفين | CC16: 2038.973448 | CG16: 2038.973448 | CK16: 2003.683448 | CL16: 1374.6 | CM16: 629.0834479 | CN16: 620 | CO16: 0 | CQ16: 2038.973448 | CS16: 2157.573448
B17: 1611.9978 | C17: 13 | D17: أحمد شوقي حميدة | E17: 619.05 | K17: 1724.837646 | P17: 258.7256469 | Q17: 141.49 | U17: 74.8 | V17: 83.51 | W17: 99.71 | X17: 42.23 | Y17: 75.327 | Z17: 96.719868 | AA17: 200 | AB17: 10 | AE17: 10 | AH17: 5.5 | AJ17: 2822.850161 | AS17: 29 | AT17: 29 | AU17: 572 | AW17: 111.6666667 | AZ17: 0.5 | BA17: 3 | BC17: 0 | BF17: 0 | BG17: 0 | BO17: 1.21 | BP17: 3 | BR17: 691.3766667 | BS17: 2131.473494 | BT17: 2069.805175 | BV17: 3 | BW17: 0 | BX17: 0 | CA17: 2069.805175 | CB17: حافز 11/2021 نصفين | CC17: 4201.278669 | CG17: 4201.278669 | CK17: 4467.645336 | CL17: 1945.26 | CM17: 2522.385336 | CN17: 2520 | CO17: 33.25 | CQ17: 4168.028669 | CS17: 4751.165336
B18: 2198.0903 | C18: 14 | D18: عبد الناصر سيد هلال | E18: 826.2 | K18: 2351.956621 | P18: 352.7934932 | Q18: 141.49 | U18: 95.19 | V18: 106.34 | W18: 120 | X18: 57.59 | Y18: 102.7145 | Z18: 131.885418 | AA18: 190 | AB18: 10 | AE18: 10 | AJ18: 3669.960032 | AS18: 22 | AT18: 12 | AU18: 770 | AW18: 188.9093333 | AZ18: 0.5 | BA18: 3 | BC18: 0 | BF18: 0 | BG18: 47.16333333 | BO18: 1.59 | BP18: 5 | BR18: 1016.162667 | BS18: 2653.797365 | BT18: 2822.347945 | BV18: 3 | BW18: 0 | BX18: 0 | CA18: 2822.347945 | CB18: حافز 11/2021 نصفين | CC18: 5476.145311 | CG18: 5476.145311 | CK18: 6009.287977 | CL18: 2352.79 | CM18: 3656.497977 | CN18: 3650 | CO18: 146.25 | CQ18: 5329.895311 | CS18: 6350.817977
B19: 1524.322 | C19: 15 | D19: إبراهيم أحمد السيد | E19: 587.46 | K19: 1631.02454 | P19: 244.653681 | Q19: 141.49 | U19: 70.76 | V19: 78.99 | W19: 94.28 | X19: 39.94 | Y19: 71.23 | Z19: 91.45932 | AA19: 200 | AB19: 10 | AE19: 10 | AJ19: 2683.827541 | AS19: 24 | AT19: 12 | AU19: 550 | AW19: 73.33333333 | AY19: 3.04 | AZ19: 0.5 | BA19: 3 | BC19: 0 | BF19: 0 | BG19: 47.16333333 | BO19: 1.15 | BP19: 3 | BR19: 681.1866667 | BS19: 2002.640874 | BT19: 1957.229448 | BV19: 3 | BW19: 0 | BX19: 0 | CA19: 1957.229448 | CB19: حافز 11/2021 نصفين | CC19: 3959.870322 | CG19: 3959.870322 | CK19: 4235.536989 | CL19: 1894.65 | CM19: 2340.886989 | CN19: 2340 | CO19: 27.25 | CQ19: 3932.620322 | CS19: 4499.566989
B20: 1703.6112 | C20: 16 | D20: إيهاب أحمد صالح | E20: 647.92 | K20: 1822.863984 | P20: 273.4295976 | Q20: 141.49 | U20: 73.27 | V20: 82.02 | W20: 98.55 | X20: 44.64 | Y20: 79.608 | Z20: 102.216672 | AA20: 190 | AB20: 10 | AE20: 10 | AJ20: 2928.088254 | AS20: 19 | AT20: 19 | AU20: 605 | AW20: 127.7 | AY20: 4.18 | AZ20: 0.5 | BA20: 3 | BC20: 0 | BF20: 0 | BG20: 0 | BO20: 1.26 | BP20: 3 | BR20: 744.64 | BS20: 2183.448254 | BT20: 2187.436781 | BV20: 3 | BW20: 0 | BX20: 0 | CA20: 2187.436781 | CB20: حافز 11/2021 نصفين | CC20: 4370.885034 | CG20: 4370.885034 | CK20: 4700.195034 | CL20: 2011.36 | CM20: 2688.835034 | CN20: 2680 | CO20: 49.25 | CQ20: 4321.635034 | CS20: 4974.035034
B21: 2123.1047 | C21: 19 | D21: محمد محمد نوفل | E21: 817.96 | K21: 2271.722029 | P21: 340.7583044 | Q21: 141.49 | U21: 98.6 | V21: 110.06 | W21: 120 | X21: 55.63 | Y21: 99.2105 | Z21: 127.386282 | AA21: 190 | AB21: 10 | AE21: 10 | AJ21: 3574.857115 | AS21: 18 | AT21: 18 | AU21: 748 | AW21: 161.7933333 | AZ21: 0.5 | BA21: 3 | BC21: 0 | BF21: 0 | BG21: 0 | BO21: 1.55 | BP21: 5 | BR21: 919.8433333 | BS21: 2655.013782 | BT21: 2726.066435 | BV21: 3 | BW21: 0 | BX21: 0 | CA21: 2726.066435 | CB21: حافز 11/2021 نصفين | CC21: 5381.080217 | CG21: 5381.080217 | CK21: 5810.77355 | CL21: 2322.51 | CM21: 3488.26355 | CN21: 3480 | CO21: 129.25 | CQ21: 5251.830217 | CS21: 6159.43355
B22: 2128.3049 | C22: 20 | D22: عبد الباسط هريدي | E22: 799.39 | K22: 2277.286243 | P22: 341.5929364 | Q22: 141.49 | U22: 91.24 | V22: 102.23 | W22: 120 | X22: 55.76 | Y22: 99.4535 | Z22: 127.698294 | AA22: 190 | AB22: 10 | AE22: 10 | AJ22: 3566.750973 | AS22: 18 | AT22: 18 | AU22: 748 | AW22: 142.2633333 | AZ22: 0.5 | BA22: 3 | BC22: 0 | BF22: 0 | BG22: 0 | BO22: 1.54 | BP22: 5 | BR22: 900.3033333 | BS22: 2666.44764 | BT22: 2732.743492 | BV22: 3 | BW22: 0 | BX22: 0 | CA22: 2732.743492 | CB22: حافز 11/2021 نصفين | CC22: 5399.191132 | CG22: 5399.191132 | CK22: 5824.534465 | CL22: 2303.93 | CM22: 3520.604465 | CN22: 3520 | CO22: 133.25 | CQ22: 5265.941132 | CS22: 6158.004465
B23: 1823.9006 | C23: 21 | D23: أحمد حسين حسن | E23: 681.76 | K23: 1951.573642 | P23: 292.7360463 | Q23: 141.49 | U23: 84.55 | V23: 94.43 | W23: 112.84 | X23: 47.79 | Y23: 85.229 | Z23: 109.434036 | AA23: 190 | AB23: 8 | AE23: 10 | AJ23: 3128.072724 | AS23: 18 | AT23: 18 | AU23: 649 | AW23: 144.8713333 | AY23: 21.47 | AZ23: 0.5 | BA23: 3 | BC23: 0 | BF23: 0 | BG23: 0 | BO23: 1.35 | BP23: 3 | BR23: 823.1913333 | BS23: 2304.881391 | BT23: 2341.88837 | BV23: 3 | BW23: 0 | BX23: 0 | CA23: 2341.88837 | CB23: حافز 11/2021 نصفين | CC23: 4646.769761 | CG23: 4646.769761 | CK23: 5018.651095 | CL23: 2106.58 | CM23: 2912.071095 | CN23: 2910 | CO23: 72.25 | CQ23: 4574.519761 | CS23: 5328.471095
B24: 1759.8076 | C24: 22 | D24: كمال عطية عبد الغني | E24: 650.36 | K24: 1882.994132 | P24: 282.4491198 | Q24: 141.49 | U24: 75.91 | V24: 84.75 | W24: 101.7 | X24: 46.11 | Y24: 82.234 | Z24: 105.588456 | AA24: 190 | AB24: 10 | AE24: 10 | AJ24: 3013.225708 | AS24: 18 | AT24: 18 | AU24: 627 | AW24: 139.806 | AY24: 51.32 | AZ24: 0.5 | BA24: 3 | BC24: 0 | BF24: 0 | BG24: 0 | BO24: 1.29 | BP24: 3 | BR24: 825.916 | BS24: 2187.309708 | BT24: 2259.592958 | BV24: 3 | BW24: 0 | BX24: 0 | CA24: 2259.592958 | CB24: حافز 11/2021 نصفين | CC24: 4446.902666 | CG24: 4446.902666 | CK24: 4848.968666 | CL24: 2082.97 | CM24: 2765.998666 | CN24: 2760 | CO24: 57.25 | CQ24: 4389.652666 | CS24: 5131.328666
B25: 1579.5233 | C25: 24 | D25: خالد عربي محمد | E25: 607.16 | K25: 1690.089931 | P25: 253.5134897 | Q25: 141.49 | U25: 73.3 | V25: 81.83 | W25: 97.7 | X25: 41.38 | Y25: 73.8095 | Z25: 94.771398 | AA25: 200 | AB25: 10 | AE25: 10 | AJ25: 2767.884319 | AS25: 22 | AT25: 22 | AU25: 561 | AW25: 97.33333333 | AY25: 2.73 | AZ25: 0.5 | BA25: 3 | BC25: 0 | BF25: 0 | BG25: 0 | BO25: 1.19 | BP25: 3 | BR25: 668.7533333 | BS25: 2099.130985 | BT25: 2028.107917 | BV25: 3 | BW25: 0 | BX25: 0 | CA25: 2028.107917 | CB25: حافز 11/2021 نصفين | CC25: 4127.238903 | CG25: 4127.238903 | CK25: 4381.672236 | CL25: 1925.08 | CM25: 2456.592236 | CN25: 2450 | CO25: 30 | CQ25: 4097.238903 | CS25: 4654.502236
B26: 1524.3327 | C26: 25 | D26: عمرو شوقي عنتر | E26: 587.47 | K26: 1631.035989 | P26: 244.6553983 | Q26: 141.49 | U26: 70.76 | V26: 78.99 | W26: 94.28 | X26: 39.94 | Y26: 71.2305 | Z26: 91.459962 | AA26: 200 | AB26: 10 | AE26: 10 | AJ26: 2683.841849 | AS26: 24 | AT26: 13 | AU26: 550 | AW26: 78.5 | AZ26: 0.5 | BA26: 3 | BC26: 0 | BF26: 0 | BG26: 39.30277778 | BR26: 671.3027778 | BS26: 2012.539072 | BT26: 1957.243187 | BV26: 3 | BW26: 0 | BX26: 0 | CA26: 1957.243187 | CB26: حافز 11/2021 نصفين | CC26: 3969.782258 | CG26: 3969.782258 | CK26: 4235.565036 | CL26: 1887.47 | CM26: 2348.095036 | CN26: 2340 | CO26: 27.25 | CQ26: 3942.532258 | CS26: 4499.595036
B27: 1599.008 | C27: 26 | D27: سعيد محمد علي | E27: 615.34 | K27: 1710.93856 | P27: 256.640784 | Q27: 141.49 | U27: 70.76 | V27: 78.99 | W27: 98.94 | X27: 41.89 | Y27: 74.72 | Z27: 95.94048 | AA27: 190 | AB27: 10 | AE27: 10 | AJ27: 2780.309824 | AS27: 18 | AT27: 18 | AU27: 572 | AW27: 107.1666667 | AZ27: 0.5 | BA27: 3 | BC27: 0 | BF27: 0 | BG27: 0 | BR27: 682.6666667 | BS27: 2097.643157 | BT27: 2053.126272 | BV27: 3 | BW27: 0 | BX27: 0 | CA27: 2053.126272 | CB27: حافز 11/2021 نصفين | CC27: 4150.769429 | CG27: 4150.769429 | CK27: 4423.256096 | CL27: 1937.34 | CM27: 2485.916096 | CN27: 2480 | CO27: 30.75 | CQ27: 4120.019429 | CS27: 4691.946096
B28: 1210.384 | C28: 27 | D28: محمد حسن عبد الفتاح | E28: 477.64 | K28: 1295.11088 | P28: 194.266632 | Q28: 141.49 | U28: 52.68 | V28: 58.73 | W28: 75.07 | X28: 31.71 | Y28: 56.56 | Z28: 72.62304 | AA28: 200 | AB28: 10 | AE28: 10 | AJ28: 2198.240552 | AS28: 20 | AT28: 15 | AU28: 440 | AW28: 32.95833333 | AZ28: 0.5 | BA28: 3 | BC28: 0 | BF28: 0 | BG28: 23.58166667 | BR28: 500.04 | BS28: 1698.200552 | BT28: 1554.133056 | BV28: 3 | BW28: 0 | BX28: 0 | CA28: 1554.133056 | CB28: حافز 11/2021 نصفين | CC28: 3252.333608 | CG28: 3252.333608 | CK28: 3404.403608 | CL28: 1667.64 | CM28: 1736.763608 | CN28: 1730 | CO28: 12 | CQ28: 3240.333608 | CS28: 3610.883608
B29: 1156.7556 | C29: 28 | D29: سامح سعيد إبراهيم | E29: 467.95 | K29: 1237.728492 | P29: 185.6592738 | Q29: 141.49 | U29: 50.38 | V29: 56.28 | W29: 71.79 | X29: 30.31 | Y29: 54.054 | Z29: 69.405336 | AA29: 200 | AB29: 6 | AE29: 10 | AJ29: 2113.097102 | AS29: 21 | AT29: 21 | AU29: 407 | AW29: 21.41666667 | AZ29: 0.5 | BA29: 3 | BC29: 0 | BF29: 0 | BG29: 0 | BR29: 431.9166667 | BS29: 1681.180435 | BT29: 1485.27419 | BV29: 3 | BW29: 0 | BX29: 0 | CA29: 1485.27419 | CB29: حافز 11/2021 نصفين | CC29: 3166.454626 | CG29: 3166.454626 | CK29: 3262.431292 | CL29: 1624.95 | CM29: 1637.481292 | CN29: 1630 | CO29: 9.5 | CQ29: 3156.954626 | CS29: 3456.881292
B30: 1140.7163 | C30: 29 | D30: جمال عبد الستار | E30: 457.64 | K30: 1220.566441 | P30: 183.0849662 | Q30: 141.49 | U30: 49.69 | V30: 55.38 | W30: 70.73 | X30: 29.89 | Y30: 53.3045 | Z30: 68.442978 | AA30: 200 | AB30: 10 | AE30: 10 | AJ30: 2092.578885 | AS30: 20 | AT30: 15 | AU30: 418 | AW30: 25.70833333 | AZ30: 0.5 | BA30: 3 | BC30: 0 | BF30: 0 | BG30: 23.58166667 | BR30: 470.79 | BS30: 1621.788885 | BT30: 1464.679729 | BV30: 3 | BW30: 0 | BX30: 0 | CA30: 1464.679729 | CB30: حافز 11/2021 نصفين | CC30: 3086.468614 | CG30: 3086.468614 | CK30: 3219.968614 | CL30: 1625.64 | CM30: 1594.328614 | CN30: 1590 | CO30: 8.5 | CQ30: 3077.968614 | CS30: 3415.768614
B31: 1012.1879 | C31: 30 | D31: عصام محمد السيد | E31: 419.81 | K31: 1083.041053 | P31: 162.456158 | Q31: 141.49 | U31: 50.38 | V31: 56.28 | W31: 65 | X31: 26.52 | Y31: 47.2985 | Z31: 60.731274 | AA31: 200 | AB31: 6 | AE31: 10 | AJ31: 1909.196985 | AS31: 21 | AT31: 21 | AU31: 374 | AW31: 11.75 | AZ31: 0.5 | BA31: 3 | BC31: 0 | BF31: 0 | BG31: 0 | BR31: 389.25 | BS31: 1519.946985 | BT31: 1299.649264 | BV31: 3 | BW31: 0 | BX31: 0 | CA31: 1299.649264 | CB31: حافز 11/2021 نصفين | CC31: 2819.596249 | CG31: 2819.596249 | CK31: 2879.696249 | CL31: 1543.81 | CM31: 1335.886249 | CN31: 1330 | CO31: 2 | CQ31: 2817.596249 | CS31: 3067.356249
K32: =B32*107% -> 0 | P32: =K32*15% -> 0 | Z32: =B32*6% -> 0 | AJ32: 0 | AS32: 18 | AT32: 18 | AZ32: 0.5 | BA32: 3 | BC32: 0 | BF32: =IF(AS32<18,(P32/18)*(18-AS32),"0") -> 0 | BG32: =IF(AT32<18,(Q32/18)*(18-AT32),"0") -> 0 | BR32: =SUM(AU32:BQ32) -> 3.5 | BS32: =AJ32-BR32 -> -3.5 | BT32: =K32*120% -> 0 | BW32: =IF(BV32=4,30%,IF(BV32=5,40%,IF(BV32=6,50%,IF(BV32>6,1,"0")))) -> 0 | BX32: =(BT32*BW32) -> 0 | CA32: =BT32-BU32-BX32-BY32-BZ32 -> 0 | CB32: حافز 11/2021 نصفين | CC32: =BS32+CA32 -> -3.5 | CG32: =(BS32+CA32+CD32)-CE32 -> -3.5 | CK32: =K32+P32+X32+Y32+Z32+AA32+CA32+CD32 -> 0 | CL32: =E32+AU32+AX32+AY32+BC32+BF32+BO32+BP32+750 -> 750 | CM32: =CK32-CL32 -> -750 | CN32: =TRUNC(CM32,-1) -> -750 | CO32: =IF(AND(CN32>1250,CN32<2501),(CN32-1250)*2.5%,IF(AND(CN32>2500,CN32<3751),(CN32-2500)*10%+31.25,IF(AND(CN32>3750,CN32<5001),(CN32-3750)*15%+31.25+125,IF(AND(CN32>5000,CN32<16666.68),(CN32-5000)*20%+31.25+125+187.5,"0")))) -> 0 | CQ32: =CG32-CO32 -> -3.5 | CS32: 0
K33: 0 | P33: 0 | Z33: 0 | AJ33: 0 | AS33: 18 | AT33: 18 | AZ33: 0.5 | BA33: 3 | BC33: 0 | BF33: 0 | BG33: 0 | BR33: 3.5 | BS33: -3.5 | BT33: 0 | BW33: 0 | BX33: 0 | CA33: 0 | CC33: -3.5 | CG33: -3.5 | CK33: 0 | CL33: 750 | CM33: -750 | CN33: -750 | CO33: 0 | CQ33: -3.5 | CS33: 0
D34: السائقين | CS34: 0
B35: 1178.4552 | C35: 32 | D35: أحمد محمد حسن خاطر | E35: 479.37 | K35: 1260.947064 | O35: 1112.59 | P35: 189.1420596 | Q35: 0 | U35: 36.67 | V35: 40.9 | W35: 68.11 | X35: 30.87 | Y35: 55.068 | Z35: 70.707312 | AA35: 190 | AB35: 10 | AE35: 10 | AJ35: 3075.004436 | AS35: 0 | AT35: 0 | AU35: 407 | AW35: 19.625 | AY35: 47.76 | AZ35: 0.5 | BA35: 3 | BC35: 0 | BF35: 189.1420596 | BG35: 0 | BO35: 0.9 | BP35: 3 | BR35: 670.9270596 | BS35: 2404.077376 | BV35: 3 | BW35: 0 | BX35: 0 | BY35: =IF(AQ35>=1,(BS35*12)/360*AQ35,0) -> 0 | CA35: 0 | CC35: 2404.077376 | CG35: 2404.077376 | CK35: 1796.734436 | CL35: 1877.17206 | CM35: -80.437624 | CN35: -80 | CO35: 0 | CQ35: 2404.077376 | CS35: 3075.004436
B36: 984.4963 | C36: 33 | D36: إبراهيم الحسيني إبراهيم | E36: 427.51 | K36: 1053.411041 | N36: 3110.32 | P36: 158.0116562 | Q36: 0 | U36: 42.63 | V36: 47.54 | W36: 65 | X36: 25.79 | Y36: 46.0045 | Z36: 59.069778 | AA36: 190 | AB36: 6 | AE36: 10 | AF36: 311.03 | AJ36: =SUM(G36:AI36) -> 5124.806975 | AS36: 31 | AT36: 0 | AU36: 308 | AW36: 0 | AZ36: 0.5 | BA36: 3 | BC36: 0 | BF36: 0 | BG36: 0 | BO36: 0.77 | BP36: 3 | BR36: 315.27 | BS36: 4809.536975 | BV36: 3 | BW36: 0 | BX36: 0 | BY36: 0 | CA36: 0 | CC36: 4809.536975 | CG36: 4809.536975 | CK36: 1532.286975 | CL36: 1489.28 | CM36: 43.00697515 | CN36: 40 | CO36: 0 | CQ36: 4809.536975 | CS36: 5124.806975
B37: 976.6425 | C37: 40 | D37: أحمد محمود عبد الله | E37: 427.51 | K37: =B37*107% -> 1045.007475 | N37: 3471.94 | P37: =K37*15% -> 156.7511213 | Q37: 0 | U37: 42.63 | V37: 47.54 | W37: 65 | X37: 25.59 | Y37: 45.6375 | Z37: =B37*6% -> 58.59855 | AA37: 190 | AB37: 10 | AE37: 10 | AF37: 347.19 | AJ37: =SUM(G37:AI37) -> 5515.884646 | AS37: 31 | AT37: 0 | AU37: 506 | AW37: 0 | AZ37: 0.5 | BA37: 3 | BC37: 0 | BF37: =IF(AS37<18,(P37/18)*(18-AS37),"0") -> 0 | BG37: =IF(AT37<18,(Q37/18)*(18-AT37),"0") -> 0 | BO37: 0.77 | BP37: 3 | BR37: =SUM(AU37:BQ37) -> 513.27 | BS37: =AJ37-BR37 -> 5002.614646 | BV37: 3 | BW37: =IF(BV37=4,30%,IF(BV37=5,40%,IF(BV37=6,50%,IF(BV37>6,1,"0")))) -> 0 | BX37: =(BT37*BW37) -> 0 | BY37: =IF(AQ37>=1,(BS37*12)/360*AQ37,0) -> 0 | CA37: =BT37-BU37-BX37-BY37-BZ37 -> 0 | CC37: =BS37+CA37 -> 5002.614646 | CG37: =(BS37+CA37+CD37)-CE37 -> 5002.614646 | CK37: =K37+P37+X37+Y37+Z37+AA37+CA37+CD37 -> 1521.584646 | CL37: =E37+AU37+AX37+AY37+BC37+BF37+BO37+BP37+750 -> 1687.28 | CM37: =CK37-CL37 -> -165.6953537 | CN37: =TRUNC(CM37,-1) -> -160 | CO37: =IF(AND(CN37>1250,CN37<2501),(CN37-1250)*2.5%,IF(AND(CN37>2500,CN37<3751),(CN37-2500)*10%+31.25,IF(AND(CN37>3750,CN37<5001),(CN37-3750)*15%+31.25+125,IF(AND(CN37>5000,CN37<16666.68),(CN37-5000)*20%+31.25+125+187.5,"0")))) -> 0 | CQ37: =CG37-CO37 -> 5002.614646 | CS37: 5515.884646
B38: 1513.515 | C38: 34 | D38: خالد العوضي عبد الله | E38: 588.96 | K38: 1619.46105 | N38: 0 | P38: 242.9191575 | Q38: 0 | U38: 65.73 | V38: 73.52 | W38: 94 | X38: 39.65 | Y38: 70.725 | Z38: 90.8109 | AA38: 190 | AB38: 10 | AE38: 10 | AF38: 0 | AJ38: 2506.816108 | AS38: 16 | AT38: 0 | AU38: 286 | AW38: 0 | AZ38: 0.5 | BA38: 3 | BC38: 0 | BF38: 26.9910175 | BG38: 0 | BI38: 500 | BO38: 1.13 | BP38: 3 | BR38: 820.6210175 | BS38: 1686.19509 | BV38: 3 | BW38: 0 | BX38: 0 | BY38: 0 | CA38: 0 | CC38: 1686.19509 | CG38: 1686.19509 | CK38: 2253.566108 | CL38: 1656.081018 | CM38: 597.48509 | CN38: 590 | CO38: 0 | CQ38: 1686.19509 | CS38: 2506.816108
B39: 1710.4592 | C39: 36 | D39: جمال خميس إسماعيل | E39: 653.4 | K39: 1830.191344 | N39: 0 | P39: 274.5287016 | Q39: 0 | U39: 79.33 | V39: 88.58 | W39: 105.81 | X39: 44.81 | Y39: 79.928 | Z39: 102.627552 | AA39: 190 | AB39: 10 | AE39: 10 | AF39: 0 | AJ39: 2815.805598 | AS39: 0 | AT39: 0 | AU39: 385 | AW39: 3.4167 | AZ39: 0.5 | BA39: 3 | BC39: 0 | BF39: 274.5287016 | BG39: 0 | BO39: 1.27 | BP39: 3 | BR39: 670.7154016 | BS39: 2145.090196 | BV39: 3 | BW39: 0 | BX39: 0 | BY39: 0 | CA39: 0 | CC39: 2145.090196 | CG39: 2145.090196 | CK39: 2522.085598 | CL39: 2067.198702 | CM39: 454.886896 | CN39: 450 | CO39: 0 | CQ39: 2145.090196 | CS39: 2815.805598
A40: نقل م.نصر | B40: 1573.4564 | C40: 37 | D40: محمد خليل إبراهيم | E40: 616.3 | F40: نقل م.نصر | K40: 1683.598348 | P40: 252.5397522 | Q40: 0 | U40: 80.67 | V40: 90.36 | W40: 97.36 | X40: 41.22 | Y40: 73.526 | Z40: 94.407384 | AA40: 200 | AB40: 10 | AE40: 10 | AJ40: 2633.681484 | AS40: 14 | AT40: 0 | AU40: 352 | AW40: 0 | AZ40: 0.5 | BA40: 3 | BC40: 0 | BF40: 56.11994493 | BG40: 0 | BR40: 411.6199449 | BS40: 2222.061539 | BV40: 3 | BW40: 0 | BX40: 0 | BY40: 0 | CA40: 0 | CC40: 2222.061539 | CG40: 2222.061539 | CK40: 2345.291484 | CL40: 1774.419945 | CM40: 570.8715393 | CN40: 570 | CO40: 0 | CQ40: 2222.061539 | CS40: 2633.681484
A41: نقل م.نصر | B41: 1579.5233 | C41: 38 | D41: شعبان عبد اللطيف | E41: 632.8 | F41: نقل م.نصر | K41: 1690.089931 | P41: 253.5134897 | Q41: 0 | U41: 77.71 | V41: 86.7 | W41: 97.7 | X41: 41.38 | Y41: 73.8095 | Z41: 94.771398 | AA41: 200 | AB41: 10 | AE41: 10 | AJ41: 2635.674319 | AS41: 14 | AT41: 0 | AU41: 352 | AW41: 0 | AZ41: 0.5 | BA41: 3 | BC41: 0 | BF41: 56.33633103 | BG41: 0 | BR41: 411.836331 | BS41: 2223.837988 | BV41: 3 | BW41: 0 | BX41: 0 | BY41: 0 | CA41: 0 | CC41: 2223.837988 | CG41: 2223.837988 | CK41: 2353.564319 | CL41: 1791.136331 | CM41: 562.4279876 | CN41: 560 | CO41: 0 | CQ41: 2223.837988 | CS41: 2635.674319
B42: 1615.91 | C42: 39 | D42: محمد محمود محمود شرارة | E42: 611.49 | K42: 1729.0237 | N42: 0 | P42: 259.353555 | Q42: 0 | U42: 70.12 | V42: 78.28 | W42: 100.31 | X42: 42.34 | Y42: 75.5125 | Z42: 96.9546 | AA42: 190 | AB42: 10 | AE42: 10 | AF42: 0 | AJ42: 2661.894355 | AS42: 14 | AT42: 0 | AU42: 352 | AW42: 1.25 | AZ42: 0.5 | BA42: 3 | BC42: 0 | BF42: 57.63412333 | BG42: 0 | BO42: 1.2 | BP42: 3 | BR42: 418.5841233 | BS42: 2243.310232 | BV42: 3 | BW42: 0 | BX42: 0 | BY42: 0 | CA42: 0 | CC42: 2243.310232 | CG42: 2243.310232 | CK42: 2393.184355 | CL42: 1775.324123 | CM42: 617.8602317 | CN42: 610 | CO42: 0 | CQ42: 2243.310232 | CS42: 2661.894355
B43: 976.6425 | C43: 40 | P43: 0 | Q43: 0 | AJ43: 0 | AS43: 18 | AT43: 18 | AU43: 0 | AZ43: 0.5 | BA43: 3 | BC43: 0 | BF43: 0 | BG43: 0 | BR43: 3.5 | BS43: -3.5 | BV43: 3 | BW43: 0 | BX43: 0 | BY43: 0 | CA43: 0 | CC43: -3.5 | CG43: -3.5 | CK43: 0 | CL43: 750 | CM43: -750 | CN43: -750 | CO43: 0 | CQ43: -3.5 | CS43: 0
C44: 41 | K44: =B44*107% -> 0 | Z44: =B44*6% -> 0 | AS44: 18 | AT44: 18 | AZ44: 0.5 | BA44: 3 | BC44: 0 | BF44: 0 | BG44: 0 | BR44: 3.5 | BV44: 3 | BY44: 0 | CA44: 0 | CG44: =(BS44+CA44+CD44)-CE44 -> 0 | CK44: 0 | CL44: 750 | CM44: -750 | CN44: -750 | CO44: 0 | CQ44: 0 | CS44: 0
C45: 42 | K45: 0 | Z45: 0 | AS45: 18 | AT45: 18 | AZ45: 0.5 | BA45: 3 | BC45: 0 | BF45: 0 | BG45: 0 | BR45: 3.5 | BV45: 3 | BY45: 0 | CA45: 0 | CG45: 0 | CK45: 0 | CL45: 750 | CM45: -750 | CN45: -750 | CO45: 0 | CQ45: 0 | CS45: 0

Sheet فبراير 2022
E2: الــــــمــــــــســــــــتـــــــــحـــــــــــقـــــــــــــــــــات | AK2: الـــــــــتـــــــــأثيرات | AU2: الــــــــــــــــــــمـــــــــــــــــــــســـــــــــــــــــتــــــــــــــــــــــــــــــــــــقــــــــــــــــــــــــــطـــــــــــــــــــــــــع | BT2: الــــحــافــــــــز
CK4: استخراج الضرائب شهريا خلال عام 2022
D5: الاسم | E5: مجموع العلاوات | F5: كود | G5: غياب | H5: مرضي | I5: إصابة | J5: إيقاف | K5: الأجر الأساسي 7/2021 | L5: بدل تمثيل | M5: بدل تفرغ | N5: عمولة انتاج | O5: معونة مرضي وإصابة | P5: بدل مخاطر | Q5: بدل انتقال | R5: بدل إقامة | S5: انتقال محامين | U5: 2014 | V5: 2015 | W5: 2016 | X5: 0.03 | Y5: 0.05 | Z5: 0.06 | AA5: علاوة استثنائية | AB5: إجتماعية | AC5: بدل نقدي | AD5: فرق بدل نقدي | AE5: المنحة | AF5: بدل تباع | AG5: م. صياتة | AH5: بدل مظهر | AJ5: إجمالي المستحق | AK5: عدد أيام الحضور | AL5: أيام الجمعة والسبت | AM5: غياب | AN5: أجازات عارضة | AO5: أجازات اعتيادي | AP5: أجازات سنوية | AQ5: أجازات مرضي تطبيق قرار | AR5: أجازات مرضي لم ينطبق القرار | AS5: صافي أيام عمل بدل مخاطر | AT5: صافي أيام العمل بدل انتقال | AU5: تأمينات شاملة 1/1/2020 | AW5: كسب عمل | AX5: مدة سابقة | AY5: اشتراكات أجازة خاصة | AZ5: إعانة وفاة | BA5: نقابة | BB5: ن. رياضي | BC5: ص. التأميني | BD5: غياب | BE5: غياب حصة الشركة أساسي / متغير | BF5: غياب بدل مخاطر | BG5: غياب بدل انتقال | BH5: فاقد إنتاج | BI5: تلفيات | BJ5: عجوزات | BK5: مخالفات مرور | BL5: فاقد سولار | BM5: إيجار سكن | BN5: عهد | BO5: شهداء 0.0005 | BP5: صندوق إعاقة | BQ5: مصاريف استئناف | BR5: إجمالي المستقطع | BS5: صافي المستحق | BT5: الحافز | BU5: خصم مبالغ من الحافز | BV5: إجازات عارضة+اعتيادي+سنوي | BW5: نسبة الخصم للأجازات | BX5: المخصوم بعد نسبة الأداء | BY5: خصم مريضي ينطبق القرار | BZ5: خصم مرضي لم ينطبق القرار | CA5: صافي الحافز | CB5: ملاحظات حافز | CC5: مرتب وحافز | CD5: مكافأة | CG5: إجمالي مرتب+حافز+ مكافأة | CH5: ملاحظات | CK5: إجمالي المستحق الضريبي | CL5: إجمالي المستقطع الضريبي | CM5: الصافي | CN5: الوعاء الضريبي | CO5: الضريبة المستحقة | CQ5: الصافي بعد خصم ضريبة 2022 | CS5: إجمالي المستحق الشهري للتأمينات
B6: 1777.8157 | C6: 1 | D6: سهير محمد مدني | E6: 675.83 | K6: =B6*107% -> 1902.262799 | P6: =K6*15% -> 285.3394199 | Q6: 141.49 | U6: 76.44 | V6: 85.57 | W6: 102.85 | X6: 46.58 | Y6: 83.0755 | Z6: =B6*6% -> 106.668942 | AA6: 190 | AB6: 6 | AE6: 10 | AJ6: =SUM(G6:AI6) -> 3036.276661 | AS6: 19 | AT6: 17 | AU6: 627 | AW6: 142 | AZ6: 0.5 | BA6: 3 | BC6: 0 | BF6: =IF(AS6<18,(P6/18)*(18-AS6),"0") -> 0 | BG6: =IF(AT6<18,(Q6/18)*(18-AT6),"0") -> 7.860555556 | BO6: 1.3 | BP6: 5 | BR6: =SUM(AU6:BQ6) -> 786.6605556 | BS6: =AJ6-BR6 -> 2249.616105 | BT6: =K6*120% -> 2282.715359 | BV6: 3 | BW6: =IF(BV6=4,30%,IF(BV6=5,40%,IF(BV6=6,50%,IF(BV6>6,1,"0")))) -> 0 | BX6: =(BT6*BW6) -> 0 | CA6: =BT6-BU6-BX6-BY6-BZ6 -> 2282.715359 | CB6: حافز 12/2021 نصفين | CC6: =BS6+CA6 -> 4532.331464 | CG6: =(BS6+CA6+CD6)-(CE6+CF6) -> 4532.331464 | CK6: =K6+P6+X6+Y6+Z6+AA6+CA6+CD6 -> 4896.64202 | CL6: =E6+AU6+AX6+AY6+BC6+BF6+BO6+BP6+750 -> 2059.13 | CM6: =CK6-CL6 -> 2837.51202 | CN6: =TRUNC(CM6,-1) -> 2830 | CO6: =IF(AND(CN6>1250,CN6<2501),(CN6-1250)*2.5%,IF(AND(CN6>2500,CN6<3751),(CN6-2500)*10%+31.25,IF(AND(CN6>3750,CN6<5001),(CN6-3750)*15%+31.25+125,IF(AND(CN6>5000,CN6<16666.68),(CN6-5000)*20%+31.25+125+187.5,"0")))) -> 64.25 | CQ6: =CG6-CO6 -> 4468.081464 | CS6: =(AJ6-Q6)+CA6+CD6 -> 5177.50202
B7: 1825.3879 | C7: 2 | D7: محمد محمود صقر | E7: 687.13 | K7: =B7*107% -> 1953.165053 | P7: =K7*15% -> 292.974758 | Q7: 141.49 | U7: 78.33 | V7: 87.73 | W7: 105.57 | X7: 47.83 | Y7: 85.2985 | Z7: =B7*6% -> 109.523274 | AA7: 190 | AB7: 10 | AE7: 10 | AJ7: =SUM(G7:AI7) -> 3111.911585 | AS7: 19 | AT7: 17 | AU7: 649 | AW7: 139.3 | AY7: 18.74 | AZ7: 0.5 | BA7: 3 | BC7: 0 | BF7: =IF(AS7<18,(P7/18)*(18-AS7),"0") -> 0 | BG7: 7.860555556 | BO7: 1.34 | BP7: 5 | BR7: =SUM(AU7:BQ7) -> 824.7405556 | BS7: =AJ7-BR7 -> 2287.171029 | BT7: 2343.798064 | BV7: 3 | BW7: =IF(BV7=4,30%,IF(BV7=5,40%,IF(BV7=6,50%,IF(BV7>6,1,"0")))) -> 0 | BX7: =(BT7*BW7) -> 0 | CA7: =BT7-BU7-BX7-BY7-BZ7 -> 2343.798064 | CB7: حافز 12/2021 نصفين | CC7: =BS7+CA7 -> 4630.969093 | CG7: =(BS7+CA7+CD7)-CE7 -> 4630.969093 | CK7: =K7+P7+X7+Y7+Z7+AA7+CA7+CD7 -> 5022.589649 | CL7: =E7+AU7+AX7+AY7+BC7+BF7+BO7+BP7+750 -> 2111.21 | CM7: =CK7-CL7 -> 2911.379649 | CN7: =TRUNC(CM7,-1) -> 2910 | CO7: =IF(AND(CN7>1250,CN7<2501),(CN7-1250)*2.5%,IF(AND(CN7>2500,CN7<3751),(CN7-2500)*10%+31.25,IF(AND(CN7>3750,CN7<5001),(CN7-3750)*15%+31.25+125,IF(AND(CN7>5000,CN7<16666.68),(CN7-5000)*20%+31.25+125+187.5,"0")))) -> 72.25 | CQ7: =CG7-CO7 -> 4558.719093 | CS7: =(AJ7-Q7)+CA7+CD7 -> 5314.219649
B8: 778.0505 | C8: 3 | D8: محمود السيد برسي | E8: 470.48 | K8: 832.514035 | M8: 81 | P8: 124.8771053 | Q8: 141.49 | S8: 20 | U8: 36.22 | V8: 38.22 | W8: 65 | X8: 27.43 | Y8: 36.3575 | Z8: 46.68303 | AA8: 190 | AB8: 10 | AE8: 10 | AJ8: =SUM(G8:AI8) -> 1659.79167 | AS8: 20 | AT8: 16 | AU8: 286 | AW8: 0 | AZ8: 0.5 | BA8: 3 | BC8: 0 | BF8: 0 | BG8: 15.72111111 | BO8: 0.69 | BP8: 3 | BQ8: 1000 | BR8: 1308.911111 | BS8: 350.8805591 | BT8: 999.016842 | BV8: 3 | BW8: 0 | BX8: 0 | CA8: 999.016842 | CB8: حافز 12/2021 نصفين | CC8: 1349.897401 | CG8: 1349.897401 | CK8: =K8+P8+X8+Y8+Z8+AA8+CA8+CD8 -> 2256.878512 | CL8: =E8+AU8+AX8+AY8+BC8+BF8+BO8+BP8+750 -> 1510.17 | CM8: 746.7085123 | CN8: 740 | CO8: 0 | CQ8: 1349.897401 | CS8: 2517.318512
B9: 3324.8003 | C9: 4 | D9: سمير حلمي محمود | E9: 1275.89 | K9: 3557.536321 | P9: 533.6304482 | Q9: 141.49 | U9: 154.26 | V9: 172.26 | W9: 120 | X9: 87.12 | Y9: 155.3645 | Z9: 199.488018 | AA9: 190 | AB9: 10 | AE9: 10 | AJ9: 5331.149287 | AS9: 0 | AT9: 0 | AU9: 1034 | AW9: 354.9333333 | AZ9: 0.5 | BA9: 3 | BC9: 0 | BF9: 533.6304482 | BG9: 141.49 | BO9: 2.33 | BP9: 5 | BR9: 2074.883781 | BS9: 3256.265506 | BT9: 4269.043585 | BU9: 2135.04 | BV9: 3 | BW9: 0 | BX9: 0 | CA9: 2134.003585 | CB9: حافز 12/2021 نصفين | CC9: 5390.269091 | CG9: 5390.269091 | CK9: 6857.142872 | CL9: 3600.850448 | CM9: 3256.292424 | CN9: 3250 | CO9: 106.25 | CP9: =CO9/30*20 -> 70.83333333 | CQ9: 5284.019091 | CS9: 7323.662872
B10: 1536.4665 | C10: 5 | D10: ممدوح محمد عبد المجيد | E10: 609 | K10: 1644.019155 | P10: 246.6028733 | Q10: 141.49 | U10: 70.73 | V10: 78.94 | W10: 94.69 | X10: 40.26 | Y10: 71.7975 | Z10: 92.18799 | AA10: 190 | AB10: 10 | AE10: 10 | AJ10: 2690.717518 | AS10: 15 | AT10: 4 | AU10: 528 | AW10: 60.16666667 | AZ10: 0.5 | BA10: 3 | BC10: 0 | BF10: 41.10047888 | BG10: 110.0477778 | BO10: 1.15 | BP10: 3 | BR10: 746.9649233 | BS10: 1943.752595 | BT10: 1972.822986 | BV10: 3 | BW10: 0 | BX10: 0 | BZ10: 629.34 | CA10: 1343.482986 | CB10: حافز 12/2021 نصفين | CC10: 3287.235581 | CG10: 3287.235581 | CK10: 3628.350504 | CL10: 1932.250479 | CM10: 1696.100025 | CN10: 1690 | CO10: 11 | CQ10: 3276.235581 | CS10: 3892.710504
B11: 1936.7856 | C11: 6 | D11: السعيد حسن الشورى | E11: 646.03 | K11: 2072.360592 | P11: 310.8540888 | Q11: 141.49 | U11: 89.99 | V11: 100.44 | W11: 119.89 | X11: 50.75 | Y11: 90.504 | Z11: 116.207136 | AA11: 190 | AB11: 10 | AE11: 10 | AJ11: 3302.485817 | AS11: 22 | AT11: 10 | AU11: 671 | AW11: 115.44 | AZ11: 0.5 | BA11: 3 | BC11: 0 | BF11: 0 | BG11: 62.88444444 | BO11: 1.43 | BP11: 5 | BR11: 859.2544444 | BS11: 2443.231372 | BT11: 2486.83271 | BV11: 3 | BW11: 0 | BX11: 0 | CA11: 2486.83271 | CB11: حافز 12/2021 نصفين | CC11: 4930.064083 | CG11: 4930.064083 | CK11: 5317.508527 | CL11: 2073.46 | CM11: 3244.048527 | CN11: 3240 | CO11: 105.25 | CQ11: 4824.814083 | CS11: 5647.828527
B12: 1852.0523 | C12: 7 | D12: خالد حسن سليمان | E12: 703.74 | K12: 1981.695961 | P12: 297.2543942 | Q12: 141.49 | U12: 79.61 | V12: 89.13 | W12: 107.16 | X12: 48.52 | Y12: 86.5445 | Z12: 111.123138 | AA12: 190 | AB12: 10 | AE12: 10 | AJ12: 3152.527993 | AS12: 18 | AT12: 16 | AU12: 649 | AW12: 143.3333333 | AZ12: 0.5 | BA12: 3 | BC12: 0 | BF12: 0 | BG12: 15.72111111 | BO12: 1.36 | BP12: 5 | BR12: 817.9144444 | BS12: 2334.613549 | BT12: 2378.035153 | BV12: 3 | BW12: 0 | BX12: 0 | CA12: 2378.035153 | CB12: حافز 12/2021 نصفين | CC12: 4712.648702 | CG12: 4712.648702 | CK12: 5093.173146 | CL12: 2109.1 | CM12: 2984.073146 | CN12: 2980 | CO12: 79.25 | CQ12: 4633.398702 | CS12: 5389.073146
B13: 1850.6827 | C13: 8 | D13: رجب إبراهيم صالح | E13: 683.06 | K13: 1980.230489 | P13: 297.0345734 | Q13: 141.49 | U13: 79.81 | V13: 89.11 | W13: 106.96 | X13: 48.49 | Y13: 86.4805 | Z13: 111.040962 | AA13: 190 | AB13: 10 | AE13: 10 | AH13: 5.5 | AJ13: 3156.146524 | AS13: 31 | AT13: 31 | AU13: 649 | AW13: 112.5916667 | AZ13: 0.5 | BA13: 3 | BC13: 0 | BF13: 0 | BG13: 0 | BO13: 1.36 | BP13: 3 | BR13: 769.4516667 | BS13: 2386.694858 | BT13: 2376.276587 | BV13: 3 | BW13: 0 | BX13: 0 | CA13: 2376.276587 | CB13: حافز 12/2021 نصفين | CC13: 4762.971444 | CG13: 4762.971444 | CK13: 5089.553111 | CL13: 2086.42 | CM13: 3003.133111 | CN13: 3000 | CO13: 81.25 | CQ13: 4681.721444 | CS13: 5390.933111
B14: 1759.8397 | C14: 9 | D14: أحمد محمد حسن | E14: 650.36 | K14: 1883.028479 | P14: 282.4542719 | Q14: 141.49 | U14: 75.92 | V14: 84.75 | W14: 101.7 | X14: 46.11 | Y14: 82.2355 | Z14: 105.590382 | AA14: 190 | AB14: 10 | AE14: 10 | AH14: 5.5 | AJ14: 3018.778633 | AS14: 31 | AT14: 31 | AU14: 627 | AW14: 131.308 | AX14: 4.62 | AZ14: 0.5 | BA14: 3 | BC14: 0 | BF14: 0 | BG14: 0 | BO14: 1.3 | BP14: 3 | BR14: 770.728 | BS14: 2248.050633 | BT14: 2259.634175 | BV14: 3 | BW14: 0 | BX14: 0 | CA14: 2259.634175 | CB14: حافز 12/2021 نصفين | CC14: 4507.684808 | CG14: 4507.684808 | CK14: 4849.052808 | CL14: 2036.28 | CM14: 2812.772808 | CN14: 2810 | CO14: 62.25 | CQ14: 4445.434808 | CS14: 5136.922808
B15: 1647.7679 | C15: 10 | D15: شحاته عبد الله | E15: 648.22 | K15: 1763.111653 | P15: 264.466748 | Q15: 141.49 | U15: 76.45 | V15: 85.35 | W15: 101.93 | X15: 43.17 | Y15: 76.9985 | Z15: 98.866074 | AA15: 200 | AB15: 10 | AE15: 10 | AH15: 5.5 | AJ15: 2877.332975 | AS15: 31 | AT15: 31 | AU15: 583 | AW15: 111.3333333 | AZ15: 0.5 | BA15: 3 | BC15: 0 | BF15: 0 | BG15: 0 | BO15: 1.24 | BP15: 3 | BR15: 702.0733333 | BS15: 2175.259642 | BT15: 2115.733984 | BV15: 3 | BW15: 0 | BX15: 0 | BZ15: 412.64 | CA15: 1703.093984 | CB15: حافز 12/2021 نصفين | CC15: 3878.353625 | CG15: 3878.353625 | CK15: 4149.706959 | CL15: 1985.46 | CM15: 2164.246959 | CN15: 2160 | CO15: 22.75 | CQ15: 3855.603625 | CS15: 4438.936959
B16: 675.2342 | C16: 12 | D16: أحمد شحاته مصطفى | E16: 368.01 | K16: 722.500594 | P16: 108.3750891 | Q16: 141.49 | U16: 29.87 | V16: 33.52 | W16: 65 | X16: 33.74 | Y16: 31.553 | Z16: 40.514052 | AA16: 200 | AB16: 10 | AE16: 10 | AH16: 5.5 | AJ16: 1432.062735 | AS16: 31 | AT16: 31 | AU16: 253 | AW16: 0 | AZ16: 0.5 | BA16: 3 | BC16: 0 | BF16: 0 | BG16: 0 | BO16: 0.59 | BP16: 3 | BR16: 260.09 | BS16: 1171.972735 | BT16: 867.0007128 | BV16: 3 | BW16: 0 | BX16: 0 | CA16: 867.0007128 | CB16: حافز 12/2021 نصفين | CC16: 2038.973448 | CG16: 2038.973448 | CK16: 2003.683448 | CL16: 1374.6 | CM16: 629.0834479 | CN16: 620 | CO16: 0 | CQ16: 2038.973448 | CS16: 2157.573448
B17: 1611.9978 | C17: 13 | D17: أحمد شوقي حميدة | E17: 619.05 | K17: 1724.837646 | P17: 258.7256469 | Q17: 141.49 | U17: 74.8 | V17: 83.51 | W17: 99.71 | X17: 42.23 | Y17: 75.327 | Z17: 96.719868 | AA17: 200 | AB17: 10 | AE17: 10 | AH17: 5.5 | AJ17: 2822.850161 | AS17: 31 | AT17: 31 | AU17: 572 | AW17: 111.6666667 | AZ17: 0.5 | BA17: 3 | BC17: 0 | BF17: 0 | BG17: 0 | BO17: 1.21 | BP17: 3 | BR17: 691.3766667 | BS17: 2131.473494 | BT17: 2069.805175 | BV17: 3 | BW17: 0 | BX17: 0 | CA17: 2069.805175 | CB17: حافز 12/2021 نصفين | CC17: 4201.278669 | CG17: 4201.278669 | CK17: 4467.645336 | CL17: 1945.26 | CM17: 2522.385336 | CN17: 2520 | CO17: 33.25 | CQ17: 4168.028669 | CS17: 4751.165336
B18: 2198.0903 | C18: 14 | D18: عبد الناصر سيد هلال | E18: 826.2 | K18: 2351.956621 | P18: 352.7934932 | Q18: 141.49 | U18: 95.19 | V18: 106.34 | W18: 120 | X18: 57.59 | Y18: 102.7145 | Z18: 131.885418 | AA18: 190 | AB18: 10 | AE18: 10 | AJ18: 3669.960032 | AS18: 19 | AT18: 17 | AU18: 770 | AW18: 188.9093333 | AZ18: 0.5 | BA18: 3 | BC18: 0 | BF18: 0 | BG18: 7.860555556 | BO18: 1.59 | BP18: 5 | BR18: 976.8598889 | BS18: 2693.100143 | BT18: 2822.347945 | BV18: 3 | BW18: 0 | BX18: 0 | CA18: 2822.347945 | CB18: حافز 12/2021 نصفين | CC18: 5515.448088 | CG18: 5515.448088 | CK18: 6009.287977 | CL18: 2352.79 | CM18: 3656.497977 | CN18: 3650 | CO18: 146.25 | CQ18: 5369.198088 | CS18: 6350.817977
B19: 1524.322 | C19: 15 | D19: إبراهيم أحمد السيد | E19: 587.46 | K19: 1631.02454 | P19: 244.653681 | Q19: 141.49 | U19: 70.76 | V19: 78.99 | W19: 94.28 | X19: 39.94 | Y19: 71.23 | Z19: 91.45932 | AA19: 200 | AB19: 10 | AE19: 10 | AJ19: 2683.827541 | AS19: 19 | AT19: 17 | AU19: 550 | AW19: 73.33333333 | AY19: 3.04 | AZ19: 0.5 | BA19: 3 | BC19: 0 | BF19: 0 | BG19: 7.860555556 | BO19: 1.15 | BP19: 3 | BR19: 641.8838889 | BS19: 2041.943652 | BT19: 1957.229448 | BV19: 3 | BW19: 0 | BX19: 0 | CA19: 1957.229448 | CB19: حافز 12/2021 نصفين | CC19: 3999.1731 | CG19: 3999.1731 | CK19: 4235.536989 | CL19: 1894.65 | CM19: 2340.886989 | CN19: 2340 | CO19: 27.25 | CQ19: 3971.9231 | CS19: 4499.566989
B20: 1703.6112 | C20: 16 | D20: إيهاب أحمد صالح | E20: 647.92 | K20: 1822.863984 | P20: 273.4295976 | Q20: 141.49 | U20: 73.27 | V20: 82.02 | W20: 98.55 | X20: 44.64 | Y20: 79.608 | Z20: 102.216672 | AA20: 190 | AB20: 10 | AE20: 10 | AJ20: 2928.088254 | AS20: 20 | AT20: 18 | AU20: 605 | AW20: 127.7 | AY20: 4.18 | AZ20: 0.5 | BA20: 3 | BC20: 0 | BF20: 0 | BG20: 0 | BO20: 1.26 | BP20: 3 | BR20: 744.64 | BS20: 2183.448254 | BT20: 2187.436781 | BV20: 3 | BW20: 0 | BX20: 0 | CA20: 2187.436781 | CB20: حافز 12/2021 نصفين | CC20: 4370.885034 | CG20: 4370.885034 | CK20: 4700.195034 | CL20: 2011.36 | CM20: 2688.835034 | CN20: 2680 | CO20: 49.25 | CQ20: 4321.635034 | CS20: 4974.035034
B21: 2123.1047 | C21: 19 | D21: محمد محمد نوفل | E21: 817.96 | K21: 2271.722029 | P21: 340.7583044 | Q21: 141.49 | U21: 98.6 | V21: 110.06 | W21: 120 | X21: 55.63 | Y21: 99.2105 | Z21: 127.386282 | AA21: 190 | AB21: 10 | AE21: 10 | AJ21: 3574.857115 | AS21: 18 | AT21: 18 | AU21: 748 | AW21: 161.7933333 | AZ21: 0.5 | BA21: 3 | BC21: 0 | BF21: 0 | BG21: 0 | BO21: 1.55 | BP21: 5 | BR21: 919.8433333 | BS21: 2655.013782 | BT21: 2726.066435 | BV21: 3 | BW21: 0 | BX21: 0 | CA21: 2726.066435 | CB21: حافز 12/2021 نصفين | CC21: 5381.080217 | CG21: 5381.080217 | CK21: 5810.77355 | CL21: 2322.51 | CM21: 3488.26355 | CN21: 3480 | CO21: 129.25 | CQ21: 5251.830217 | CS21: 6159.43355
B22: 2128.3049 | C22: 20 | D22: عبد الباسط هريدي | E22: 799.39 | K22: 2277.286243 | P22: 341.5929364 | Q22: 141.49 | U22: 91.24 | V22: 102.23 | W22: 120 | X22: 55.76 | Y22: 99.4535 | Z22: 127.698294 | AA22: 190 | AB22: 10 | AE22: 10 | AJ22: 3566.750973 | AS22: 18 | AT22: 18 | AU22: 748 | AW22: 142.2633333 | AZ22: 0.5 | BA22: 3 | BC22: 0 | BF22: 0 | BG22: 0 | BO22: 1.54 | BP22: 5 | BR22: 900.3033333 | BS22: 2666.44764 | BT22: 2732.743492 | BV22: 3 | BW22: 0 | BX22: 0 | CA22: 2732.743492 | CB22: حافز 12/2021 نصفين | CC22: 5399.191132 | CG22: 5399.191132 | CK22: 5824.534465 | CL22: 2303.93 | CM22: 3520.604465 | CN22: 3520 | CO22: 133.25 | CQ22: 5265.941132 | CS22: 6158.004465
B23: 1823.9006 | C23: 21 | D23: أحمد حسين حسن | E23: 681.76 | K23: 1951.573642 | P23: 292.7360463 | Q23: 141.49 | U23: 84.55 | V23: 94.43 | W23: 112.84 | X23: 47.79 | Y23: 85.229 | Z23: 109.434036 | AA23: 190 | AB23: 8 | AE23: 10 | AJ23: 3128.072724 | AS23: 18 | AT23: 18 | AU23: 649 | AW23: 144.8713333 | AY23: 21.47 | AZ23: 0.5 | BA23: 3 | BC23: 0 | BF23: 0 | BG23: 0 | BO23: 1.35 | BP23: 3 | BR23: 823.1913333 | BS23: 2304.881391 | BT23: 2341.88837 | BV23: 3 | BW23: 0 | BX23: 0 | CA23: 2341.88837 | CB23: حافز 12/2021 نصفين | CC23: 4646.769761 | CG23: 4646.769761 | CK23: 5018.651095 | CL23: 2106.58 | CM23: 2912.071095 | CN23: 2910 | CO23: 72.25 | CQ23: 4574.519761 | CS23: 5328.471095
B24: 1759.8076 | C24: 22 | D24: كمال عطية عبد الغني | E24: 650.36 | K24: 1882.994132 | P24: 282.4491198 | Q24: 141.49 | U24: 75.91 | V24: 84.75 | W24: 101.7 | X24: 46.11 | Y24: 82.234 | Z24: 105.588456 | AA24: 190 | AB24: 10 | AE24: 10 | AJ24: 3013.225708 | AS24: 18 | AT24: 18 | AU24: 627 | AW24: 139.806 | AY24: 51.32 | AZ24: 0.5 | BA24: 3 | BC24: 0 | BF24: 0 | BG24: 0 | BO24: 1.29 | BP24: 3 | BR24: 825.916 | BS24: 2187.309708 | BT24: 2259.592958 | BV24: 3 | BW24: 0 | BX24: 0 | CA24: 2259.592958 | CB24: حافز 12/2021 نصفين | CC24: 4446.902666 | CG24: 4446.902666 | CK24: 4848.968666 | CL24: 2082.97 | CM24: 2765.998666 | CN24: 2760 | CO24: 57.25 | CQ24: 4389.652666 | CS24: 5131.328666
B25: 1579.5233 | C25: 24 | D25: خالد عربي محمد | E25: 607.16 | K25: 1690.089931 | P25: 253.5134897 | Q25: 141.49 | U25: 73.3 | V25: 81.83 | W25: 97.7 | X25: 41.38 | Y25: 73.8095 | Z25: 94.771398 | AA25: 200 | AB25: 10 | AE25: 10 | AJ25: 2767.884319 | AS25: 18 | AT25: 16 | AU25: 561 | AW25: 97.33333333 | AY25: 2.73 | AZ25: 0.5 | BA25: 3 | BC25: 0 | BF25: 0 | BG25: 15.72111111 | BO25: 1.19 | BP25: 3 | BR25: 684.4744444 | BS25: 2083.409874 | BT25: 2028.107917 | BV25: 3 | BW25: 0 | BX25: 0 | CA25: 2028.107917 | CB25: حافز 12/2021 نصفين | CC25: 4111.517791 | CG25: 4111.517791 | CK25: 4381.672236 | CL25: 1925.08 | CM25: 2456.592236 | CN25: 2450 | CO25: 30 | CQ25: 4081.517791 | CS25: 4654.502236
B26: 1524.3327 | C26: 25 | D26: عمرو شوقي عنتر | E26: 587.47 | K26: 1631.035989 | P26: 244.6553983 | Q26: 141.49 | U26: 70.76 | V26: 78.99 | W26: 94.28 | X26: 39.94 | Y26: 71.2305 | Z26: 91.459962 | AA26: 200 | AB26: 10 | AE26: 10 | AJ26: 2683.841849 | AS26: 20 | AT26: 18 | AU26: 550 | AW26: 78.5 | AZ26: 0.5 | BA26: 3 | BC26: 0 | BF26: 0 | BG26: 0 | BO26: 1.15 | BP26: 3 | BR26: 636.15 | BS26: 2047.691849 | BT26: 1957.243187 | BV26: 3 | BW26: 0 | BX26: 0 | CA26: 1957.243187 | CB26: حافز 12/2021 نصفين | CC26: 4004.935036 | CG26: 4004.935036 | CK26: 4235.565036 | CL26: 1891.62 | CM26: 2343.945036 | CN26: 2340 | CO26: 27.25 | CQ26: 3977.685036 | CS26: 4499.595036
B27: 1599.008 | C27: 26 | D27: سعيد محمد علي | E27: 615.34 | K27: 1710.93856 | P27: 256.640784 | Q27: 141.49 | U27: 70.76 | V27: 78.99 | W27: 98.94 | X27: 41.89 | Y27: 74.72 | Z27: 95.94048 | AA27: 190 | AB27: 10 | AE27: 10 | AJ27: 2780.309824 | AS27: 18 | AT27: 18 | AU27: 572 | AW27: 107.1666667 | AZ27: 0.5 | BA27: 3 | BC27: 0 | BF27: 0 | BG27: 0 | BR27: 682.6666667 | BS27: 2097.643157 | BT27: 2053.126272 | BV27: 3 | BW27: 0 | BX27: 0 | CA27: 2053.126272 | CB27: حافز 12/2021 نصفين | CC27: 4150.769429 | CG27: 4150.769429 | CK27: 4423.256096 | CL27: 1937.34 | CM27: 2485.916096 | CN27: 2480 | CO27: 30.75 | CQ27: 4120.019429 | CS27: 4691.946096
B28: 1210.384 | C28: 27 | D28: محمد حسن عبد الفتاح | E28: 477.64 | K28: 1295.11088 | P28: 194.266632 | Q28: 141.49 | U28: 52.68 | V28: 58.73 | W28: 75.07 | X28: 31.71 | Y28: 56.56 | Z28: 72.62304 | AA28: 200 | AB28: 10 | AE28: 10 | AJ28: 2198.240552 | AS28: 19 | AT28: 17 | AU28: 440 | AW28: 32.95833333 | AZ28: 0.5 | BA28: 3 | BC28: 0 | BF28: 0 | BG28: 7.860555556 | BO28: 0.93 | BP28: 3 | BR28: 488.2488889 | BS28: 1709.991663 | BT28: 1554.133056 | BV28: 3 | BW28: 0 | BX28: 0 | CA28: 1554.133056 | CB28: حافز 12/2021 نصفين | CC28: 3264.124719 | CG28: 3264.124719 | CK28: 3404.403608 | CL28: 1671.57 | CM28: 1732.833608 | CN28: 1730 | CO28: 12 | CQ28: 3252.124719 | CS28: 3610.883608
B29: 1156.7556 | C29: 28 | D29: سامح سعيد إبراهيم | E29: 467.95 | K29: 1237.728492 | P29: 185.6592738 | Q29: 141.49 | U29: 50.38 | V29: 56.28 | W29: 71.79 | X29: 30.31 | Y29: 54.054 | Z29: 69.405336 | AA29: 200 | AB29: 6 | AE29: 10 | AJ29: 2113.097102 | AS29: 15 | AT29: 8 | AU29: 407 | AW29: 21.41666667 | AZ29: 0.5 | BA29: 3 | BC29: 0 | BF29: 30.9432123 | BG29: 78.60555556 | BO29: 0.89 | BP29: 3 | BR29: 545.3554345 | BS29: 1567.741667 | BT29: 1485.27419 | BU29: 297.04 | BV29: 3 | BW29: 0 | BX29: 0 | CA29: 1188.23419 | CB29: حافز 12/2021 نصفين | CC29: 2755.975858 | CG29: 2755.975858 | CK29: 2965.391292 | CL29: 1659.783212 | CM29: 1305.60808 | CN29: 1300 | CO29: 1.25 | CQ29: 2754.725858 | CS29: 3159.841292
B30: 1140.7163 | C30: 29 | D30: جمال عبد الستار | E30: 457.64 | K30: 1220.566441 | P30: 183.0849662 | Q30: 141.49 | U30: 49.69 | V30: 55.38 | W30: 70.73 | X30: 29.89 | Y30: 53.3045 | Z30: 68.442978 | AA30: 200 | AB30: 10 | AE30: 10 | AJ30: 2092.578885 | AS30: 19 | AT30: 17 | AU30: 418 | AW30: 25.70833333 | AZ30: 0.5 | BA30: 3 | BC30: 0 | BF30: 0 | BG30: 7.860555556 | BO30: 0.88 | BP30: 3 | BR30: 458.9488889 | BS30: 1633.629996 | BT30: 1464.679729 | BV30: 3 | BW30: 0 | BX30: 0 | CA30: 1464.679729 | CB30: حافز 12/2021 نصفين | CC30: 3098.309725 | CG30: 3098.309725 | CK30: 3219.968614 | CL30: 1629.52 | CM30: 1590.448614 | CN30: 1590 | CO30: 8.5 | CQ30: 3089.809725 | CS30: 3415.768614
B31: 1012.1879 | C31: 30 | D31: عصام محمد السيد | E31: 419.81 | K31: 1083.041053 | P31: 162.456158 | Q31: 141.49 | U31: 43.92 | V31: 48.88 | W31: 65 | X31: 26.52 | Y31: 47.2985 | Z31: 60.731274 | AA31: 200 | AB31: 10 | AE31: 10 | AJ31: 1899.336985 | AS31: 16 | AT31: 14 | AU31: 374 | AW31: 11.75 | AZ31: 0.5 | BA31: 3 | BC31: 0 | BF31: 18.05068422 | BG31: 31.44222222 | BO31: 0.8 | BP31: 3 | BR31: 442.5429064 | BS31: 1456.794079 | BT31: 1299.649264 | BV31: 3 | BW31: 0 | BX31: 0 | CA31: 1299.649264 | CB31: حافز 12/2021 نصفين | CC31: 2756.443342 | CG31: 2756.443342 | CK31: 2879.696249 | CL31: 1565.660684 | CM31: 1314.035564 | CN31: 1310 | CO31: 1.5 | CQ31: 2754.943342 | CS31: 3057.496249
K32: 0 | P32: 0 | Z32: 0 | AJ32: 0 | AS32: 18 | AT32: 18 | BC32: 0 | BF32: 0 | BG32: 0 | BR32: 0 | BS32: 0 | BT32: 0 | BW32: 0 | BX32: 0 | CA32: 0 | CB32: حافز 12/2021 نصفين | CC32: 0 | CG32: 0 | CK32: 0 | CL32: 750 | CM32: -750 | CN32: -750 | CO32: 0 | CQ32: 0 | CS32: 0
K33: 0 | P33: 0 | Z33: 0 | AJ33: 0 | AS33: 18 | AT33: 18 | BC33: 0 | BF33: 0 | BG33: 0 | BR33: 0 | BS33: 0 | BT33: 0 | BW33: 0 | BX33: 0 | CA33: 0 | CB33: حافز 12/2021 نصفين | CC33: 0 | CG33: 0 | CK33: 0 | CL33: 750 | CM33: -750 | CN33: -750 | CO33: 0 | CQ33: 0 | CS33: 0
D34: السائقين | CS34: 0
B35: 1178.4552 | C35: 32 | D35: أحمد محمد حسن خاطر | E35: 479.37 | K35: 1260.947064 | O35: 1112.59 | P35: 189.1420596 | Q35: 0 | U35: 50.91 | V35: 56.88 | W35: 68.11 | X35: 30.87 | Y35: 55.068 | Z35: 70.707312 | AA35: 190 | AB35: 10 | AE35: 10 | AJ35: 3105.224436 | AS35: 0 | AT35: 0 | AU35: 407 | AW35: 19.625 | AY35: 47.76 | AZ35: 0.5 | BA35: 3 | BC35: 0 | BF35: 189.1420596 | BG35: 0 | BO35: 0.9 | BP35: 3 | BR35: 670.9270596 | BS35: 2434.297376 | BV35: 3 | BW35: 0 | BX35: 0 | BY35: =IF(AQ35>=1,(BS35*12)/360*AQ35,0) -> 0 | CA35: 0 | CC35: 2434.297376 | CG35: 2434.297376 | CK35: 1796.734436 | CL35: 1877.17206 | CM35: -80.437624 | CN35: -80 | CO35: 0 | CQ35: 2434.297376 | CS35: 3105.224436
B36: 984.4963 | C36: 33 | D36: إبراهيم الحسيني إبراهيم | E36: 427.51 | K36: 1053.411041 | N36: 2144.85 | P36: 158.0116562 | Q36: 0 | U36: 42.63 | V36: 47.54 | W36: 65 | X36: 25.79 | Y36: 46.0045 | Z36: 59.069778 | AA36: 190 | AB36: 6 | AE36: 10 | AF36: 214.48 | AJ36: 4062.786975 | AS36: 31 | AT36: 0 | AU36: 308 | AW36: 0 | AZ36: 0.5 | BA36: 3 | BC36: 0 | BF36: 0 | BG36: 0 | BO36: 0.77 | BP36: 3 | BR36: 315.27 | BS36: 3747.516975 | BV36: 3 | BW36: 0 | BX36: 0 | BY36: 0 | CA36: 0 | CC36: 3747.516975 | CG36: 3747.516975 | CK36: 1532.286975 | CL36: 1489.28 | CM36: 43.00697515 | CN36: 40 | CO36: 0 | CQ36: 3747.516975 | CS36: 4062.786975
B37: 976.6425 | C37: 40 | D37: أحمد محمود عبد الله | E37: 427.51 | K37: 1045.007475 | N37: 2155.85 | P37: 156.7511213 | Q37: 0 | U37: 42.63 | V37: 47.54 | W37: 65 | X37: 25.59 | Y37: 45.6375 | Z37: 58.59855 | AA37: 190 | AB37: 10 | AE37: 10 | AF37: 215.59 | AJ37: 4068.194646 | AS37: 31 | AT37: 0 | AU37: 506 | AW37: 0 | AZ37: 0.5 | BA37: 3 | BC37: 0 | BF37: 0 | BG37: 0 | BO37: 0.77 | BP37: 3 | BR37: 513.27 | BS37: 3554.924646 | BV37: 3 | BW37: 0 | BX37: 0 | BY37: 0 | CA37: 0 | CC37: 3554.924646 | CG37: 3554.924646 | CK37: 1521.584646 | CL37: 1687.28 | CM37: -165.6953537 | CN37: -160 | CO37: 0 | CQ37: 3554.924646 | CS37: 4068.194646
B38: 1513.515 | C38: 34 | D38: خالد العوضي عبد الله | E38: 588.96 | K38: 1619.46105 | N38: 0 | P38: 242.9191575 | Q38: 0 | U38: 65.73 | V38: 73.52 | W38: 94 | X38: 39.65 | Y38: 70.725 | Z38: 90.8109 | AA38: 190 | AB38: 10 | AE38: 10 | AF38: 0 | AJ38: 2506.816108 | AS38: 0 | AT38: 0 | AU38: 286 | AW38: 0 | AZ38: 0.5 | BA38: 3 | BC38: 0 | BF38: 242.9191575 | BG38: 0 | BI38: 500 | BO38: 1.13 | BP38: 3 | BR38: 1036.549158 | BS38: 1470.26695 | BV38: 3 | BW38: 0 | BX38: 0 | BY38: 0 | CA38: 0 | CC38: 1470.26695 | CG38: 1470.26695 | CK38: 2253.566108 | CL38: 1872.009158 | CM38: 381.55695 | CN38: 380 | CO38: 0 | CQ38: 1470.26695 | CS38: 2506.816108
B39: 1710.4592 | C39: 36 | D39: جمال خميس إسماعيل | E39: 653.4 | K39: 1830.191344 | N39: 0 | P39: 274.5287016 | Q39: 0 | U39: 79.33 | V39: 88.58 | W39: 105.81 | X39: 44.81 | Y39: 79.928 | Z39: 102.627552 | AA39: 190 | AB39: 10 | AE39: 10 | AF39: 0 | AJ39: 2815.805598 | AS39: 0 | AT39: 0 | AU39: 385 | AW39: 3.4167 | AZ39: 0.5 | BA39: 3 | BC39: 0 | BF39: 274.5287016 | BG39: 0 | BO39: 1.27 | BP39: 3 | BR39: 670.7154016 | BS39: 2145.090196 | BV39: 3 | BW39: 0 | BX39: 0 | BY39: 0 | CA39: 0 | CC39: 2145.090196 | CG39: 2145.090196 | CK39: 2522.085598 | CL39: 2067.198702 | CM39: 454.886896 | CN39: 450 | CO39: 0 | CQ39: 2145.090196 | CS39: 2815.805598
A40: نقل م.نصر | B40: 1573.4564 | C40: 37 | D40: محمد خليل إبراهيم | E40: 616.3 | F40: نقل م.نصر | K40: 1683.598348 | P40: 252.5397522 | Q40: 0 | U40: 80.67 | V40: 90.36 | W40: 97.36 | X40: 41.22 | Y40: 73.526 | Z40: 94.407384 | AA40: 200 | AB40: 10 | AE40: 10 | AJ40: 2633.681484 | AS40: 14 | AT40: 0 | AU40: 352 | AW40: 0 | AZ40: 0.5 | BA40: 3 | BF40: 56.11994493 | BG40: 0 | BR40: 411.6199449 | BS40: 2222.061539 | BV40: 3 | BW40: 0 | BX40: 0 | BY40: 0 | CA40: 0 | CC40: 2222.061539 | CG40: 2222.061539 | CK40: 2345.291484 | CL40: 1774.419945 | CM40: 570.8715393 | CN40: 570 | CO40: 0 | CQ40: 2222.061539 | CS40: 2633.681484
A41: نقل م.نصر | B41: 1579.5233 | C41: 38 | D41: شعبان عبد اللطيف | E41: 632.8 | F41: نقل م.نصر | K41: 1690.089931 | P41: 253.5134897 | Q41: 0 | U41: 77.71 | V41: 86.7 | W41: 97.7 | X41: 41.38 | Y41: 73.8095 | Z41: 94.771398 | AA41: 200 | AB41: 10 | AE41: 10 | AJ41: 2635.674319 | AS41: 14 | AT41: 0 | AU41: 352 | AW41: 0 | AZ41: 0.5 | BA41: 3 | BF41: 56.33633103 | BG41: 0 | BR41: 411.836331 | BS41: 2223.837988 | BV41: 3 | BW41: 0 | BX41: 0 | BY41: 0 | CA41: 0 | CC41: 2223.837988 | CG41: 2223.837988 | CK41: 2353.564319 | CL41: 1791.136331 | CM41: 562.4279876 | CN41: 560 | CO41: 0 | CQ41: 2223.837988 | CS41: 2635.674319
B42: 1615.91 | C42: 39 | D42: محمد محمود محمود شرارة | E42: 611.49 | K42: 1729.0237 | N42: 0 | P42: 259.353555 | Q42: 0 | U42: 70.12 | V42: 78.28 | W42: 100.31 | X42: 42.34 | Y42: 75.5125 | Z42: 96.9546 | AA42: 190 | AB42: 10 | AE42: 10 | AF42: 0 | AJ42: 2661.894355 | AS42: 0 | AT42: 0 | AU42: 352 | AW42: 1.25 | AZ42: 0.5 | BA42: 3 | BC42: 0 | BF42: 259.353555 | BG42: 0 | BO42: 1.2 | BP42: 3 | BR42: 620.303555 | BS42: 2041.5908 | BV42: 3 | BW42: 0 | BX42: 0 | BY42: 0 | CA42: 0 | CC42: 2041.5908 | CG42: 2041.5908 | CK42: 2393.184355 | CL42: 1977.043555 | CM42: 416.1408 | CN42: 410 | CO42: 0 | CQ42: 2041.5908 | CS42: 2661.894355
B43: 976.6425 | C43: 40 | P43: 0 | AJ43: 0 | AS43: 18 | AT43: 18 | AU43: 0 | AZ43: 0.5 | BA43: 3 | BC43: 0 | BF43: 0 | BG43: 0 | BR43: 3.5 | BS43: -3.5 | BV43: 3 | BW43: 0 | BX43: 0 | BY43: 0 | CA43: 0 | CC43: -3.5 | CG43: -3.5 | CK43: 0 | CL43: 750 | CM43: -750 | CN43: -750 | CO43: 0 | CQ43: -3.5 | CS43: 0
C44: 41 | K44: =B44*107% -> 0 | Z44: =B44*6% -> 0 | AS44: 18 | AT44: 18 | AZ44: 0.5 | BA44: 3 | BC44: 0 | BF44: 0 | BG44: 0 | BR44: 3.5 | BV44: 3 | BY44: 0 | CA44: 0 | CG44: =(BS44+CA44+CD44)-CE44 -> 0 | CK44: 0 | CL44: 750 | CM44: -750 | CN44: -750 | CO44: 0 | CQ44: 0 | CS44: 0
C45: 42 | K45: 0 | Z45: 0 | AS45: 18 | AT45: 18 | AZ45: 0.5 | BA45: 3 | BC45: 0 | BF45: 0 | BG45: 0 | BR45: 3.5 | BV45: 3 | BY45: 0 | CA45: 0 | CG45: 0 | CK45: 0 | CL45: 750 | CM45: -750 | CN45: -750 | CO45: 0 | CQ45: 0 | CS45: 0

Sheet مارس 2022
E2: الــــــمــــــــســــــــتـــــــــحـــــــــــقـــــــــــــــــــات | AK2: الـــــــــتـــــــــأثيرات | AU2: الــــــــــــــــــــمـــــــــــــــــــــســـــــــــــــــــتــــــــــــــــــــــــــــــــــــقــــــــــــــــــــــــــطـــــــــــــــــــــــــع | BT2: الــــحــافــــــــز
CQ4: استخراج الضرائب شهريا خلال عام 2022
D5: الاسم | E5: مجموع العلاوات | F5: كود | G5: غياب | H5: مرضي | I5: إصابة | J5: إيقاف | K5: الأجر الأساسي 7/2021 | L5: بدل تمثيل | M5: بدل تفرغ | N5: عمولة انتاج | O5: معونة مرضي وإصابة | P5: بدل مخاطر | Q5: بدل انتقال | R5: بدل إقامة | S5: انتقال محامين | U5: 2014 | V5: 2015 | W5: 2016 | X5: 0.03 | Y5: 0.05 | Z5: 0.06 | AA5: علاوة استثنائية | AB5: إجتماعية | AC5: بدل نقدي | AD5: فرق بدل نقدي | AE5: المنحة | AF5: بدل تباع | AG5: م. صياتة | AH5: بدل مظهر | AJ5: إجمالي المستحق | AK5: عدد أيام الحضور | AL5: أيام الجمعة والسبت | AM5: غياب | AN5: أجازات عارضة | AO5: أجازات اعتيادي | AP5: أجازات سنوية | AQ5: أجازات مرضي تطبيق قرار | AR5: أجازات مرضي لم ينطبق القرار | AS5: صافي أيام عمل بدل مخاطر | AT5: صافي أيام العمل بدل انتقال | AU5: تأمينات شاملة 1/1/2020 | AW5: كسب عمل | AX5: مدة سابقة | AY5: اشتراكات أجازة خاصة | AZ5: إعانة وفاة | BA5: نقابة | BB5: ن. رياضي | BC5: ص. التأميني | BD5: غياب | BE5: غياب حصة الشركة أساسي / متغير | BF5: غياب بدل مخاطر | BG5: غياب بدل انتقال | BH5: فاقد إنتاج | BI5: تلفيات | BJ5: عجوزات | BK5: مخالفات مرور | BL5: فاقد سولار | BM5: إيجار سكن | BN5: عهد | BO5: شهداء 0.0005 | BP5: صندوق إعاقة | BQ5: مصاريف استئناف | BR5: إجمالي المستقطع | BS5: صافي المستحق | BT5: الحافز | BU5: خصم مبالغ من الحافز | BV5: إجازات عارضة+اعتيادي+سنوي | BW5: نسبة الخصم للأجازات | BX5: المخصوم بعد نسبة الأداء | BY5: نسبة خصم إداء-أجازات | BZ5: المبلغ المخصوم بعد نسبة أداء - أجازات | CA5: خصم مريضي ينطبق القرار | CB5: خصم مرضي لم ينطبق القرار | CC5: صافي الحافز | CD5: نصف أول شهر يناير 2022 | CE5: نصف ثاني يناير 2022 | CF5: ملاحظات حافز | CG5: مرتب وحافز | CH5: مكافأة | CI5: ضريبة من المكافأة | CJ5: صافي المكافأة | CM5: إجمالي مرتب+حافز+ مكافأة | CN5: ملاحظات | CQ5: إجمالي المستحق الضريبي | CR5: إجمالي المستقطع الضريبي | CS5: الصافي | CT5: الوعاء الضريبي | CU5: الضريبة المستحقة | CW5: الصافي بعد خصم ضريبة 2022 | CY5: إجمالي المستحق الشهري للتأمينات
B6: 1777.8157 | C6: 1 | D6: سهير محمد مدني | E6: 675.83 | K6: =B6*107% -> 1902.262799 | P6: =K6*15% -> 285.3394199 | Q6: 141.49 | U6: 76.44 | V6: 85.57 | W6: 102.85 | X6: 46.58 | Y6: 83.0755 | Z6: =B6*6% -> 106.668942 | AA6: 190 | AB6: 6 | AE6: 10 | AJ6: =SUM(G6:AI6) -> 3036.276661 | AS6: 17 | AT6: 17 | AU6: 627 | AW6: 142 | AZ6: 0.5 | BA6: 3 | BC6: 0 | BF6: =IF(AS6<18,(P6/18)*(18-AS6),"0") -> 15.85218999 | BG6: =IF(AT6<18,(Q6/18)*(18-AT6),"0") -> 7.860555556 | BO6: 1.3 | BP6: 5 | BR6: =SUM(AU6:BQ6) -> 802.5127455 | BS6: =AJ6-BR6 -> 2233.763915 | BT6: =K6*120% -> 2282.715359 | BV6: 3 | BW6: =IF(BV6=4,20%,IF(BV6=5,30%,IF(BV6=6,50%,IF(BV6>6,1,"0")))) -> 0 | BX6: =(BT6*BW6) -> 0 | BZ6: =BT6*BY6 -> 0 | CC6: =BT6-BU6-BX6-BZ6-CA6-CB6 -> 2282.715359 | CD6: =CC6/2 -> 1141.357679 | CE6: =CC6/2 -> 1141.357679 | CF6: حافز يناير 2022 نصفين | CG6: =BS6+CC6 -> 4516.479274 | CH6: 1902.262799 | CI6: =IF(CH6>1500,CH6*10%,0) -> 190.2262799 | CJ6: =CH6-CI6 -> 1712.036519 | CM6: =(BS6+CC6+CH6)-(CK6+CL6) -> 6418.742073 | CQ6: =K6+P6+X6+Y6+Z6+AA6+CC6+CH6 -> 6798.904819 | CR6: =E6+AU6+AX6+AY6+BC6+BF6+BO6+BP6+750 -> 2074.98219 | CS6: =CQ6-CR6 -> 4723.922629 | CT6: =TRUNC(CS6,-1) -> 4720 | CU6: =IF(AND(CT6>1250,CT6<2501),(CT6-1250)*2.5%,IF(AND(CT6>2500,CT6<3751),(CT6-2500)*10%+31.25,IF(AND(CT6>3750,CT6<5001),(CT6-3750)*15%+31.25+125,IF(AND(CT6>5000,CT6<16666.68),(CT6-5000)*20%+31.25+125+187.5,"0"))))-CI6 -> 111.5237201 | CW6: =CM6-CU6 -> 6307.218353 | CY6: =(AJ6-(Q6+S6))+CC6+CJ6 -> 6889.538539
B7: 1825.3879 | C7: 2 | D7: محمد محمود صقر | E7: 687.13 | K7: =B7*107% -> 1953.165053 | P7: =K7*15% -> 292.974758 | Q7: 141.49 | U7: 78.33 | V7: 87.73 | W7: 105.57 | X7: 47.83 | Y7: 85.2985 | Z7: =B7*6% -> 109.523274 | AA7: 190 | AB7: 10 | AE7: 10 | AJ7: =SUM(G7:AI7) -> 3111.911585 | AS7: 20 | AT7: 13 | AU7: 649 | AW7: 139.3 | AY7: 18.74 | AZ7: 0.5 | BA7: 3 | BC7: 0 | BF7: =IF(AS7<18,(P7/18)*(18-AS7),"0") -> 0 | BG7: 39.30277778 | BO7: 1.34 | BP7: 5 | BR7: =SUM(AU7:BQ7) -> 856.1827778 | BS7: =AJ7-BR7 -> 2255.728807 | BT7: 2343.798064 | BV7: 3 | BW7: =IF(BV7=4,30%,IF(BV7=5,40%,IF(BV7=6,50%,IF(BV7>6,1,"0")))) -> 0 | BX7: =(BT7*BW7) -> 0 | BZ7: 0 | CC7: 2343.798064 | CD7: =CC7/2 -> 1171.899032 | CE7: =CC7/2 -> 1171.899032 | CF7: حافز يناير 2022 نصفين | CG7: 4599.526871 | CH7: 1953.165053 | CI7: =IF(CH7>1500,CH7*10%,0) -> 195.3165053 | CJ7: =CH7-CI7 -> 1757.848548 | CM7: =(BS7+CC7+CH7)-CK7 -> 6552.691924 | CQ7: =K7+P7+X7+Y7+Z7+AA7+CC7+CH7 -> 6975.754702 | CR7: =E7+AU7+AX7+AY7+BC7+BF7+BO7+BP7+750 -> 2111.21 | CS7: =CQ7-CR7 -> 4864.544702 | CT7: =TRUNC(CS7,-1) -> 4860 | CU7: =IF(AND(CT7>1250,CT7<2501),(CT7-1250)*2.5%,IF(AND(CT7>2500,CT7<3751),(CT7-2500)*10%+31.25,IF(AND(CT7>3750,CT7<5001),(CT7-3750)*15%+31.25+125,IF(AND(CT7>5000,CT7<16666.68),(CT7-5000)*20%+31.25+125+187.5,"0"))))-CI7 -> 127.4334947 | CW7: =CM7-CU7 -> 6425.258429 | CY7: =(AJ7-(Q7+S7))+CC7+CJ7 -> 7072.068196
B8: 778.0505 | C8: 3 | D8: محمود السيد برسي | E8: 470.48 | K8: 832.514035 | M8: 81 | P8: 124.8771053 | Q8: 141.49 | S8: 20 | U8: 36.22 | V8: 38.22 | W8: 65 | X8: 27.43 | Y8: 36.3575 | Z8: 46.68303 | AA8: 190 | AB8: 10 | AE8: 10 | AJ8: =SUM(G8:AI8) -> 1659.79167 | AS8: 15 | AT8: 15 | AU8: 286 | AW8: 0 | AZ8: 0.5 | BA8: 3 | BC8: 0 | BF8: 20.81285088 | BG8: 23.58166667 | BO8: 0.69 | BP8: 3 | BQ8: 300 | BR8: 637.5845175 | BS8: 1022.207153 | BT8: 999.016842 | BV8: 2 | BW8: 0 | BX8: 0 | BZ8: 0 | CC8: 999.016842 | CD8: 499.508421 | CE8: 499.508421 | CF8: حافز يناير 2022 نصفين | CG8: 2021.223995 | CH8: 832.514035 | CI8: 0 | CJ8: 832.514035 | CM8: 2853.73803 | CQ8: 3089.392547 | CR8: =E8+AU8+AX8+AY8+BC8+BF8+BO8+BP8+750 -> 1530.982851 | CS8: 1558.409696 | CT8: 1550 | CU8: 7.5 | CW8: 2846.23803 | CY8: 3329.832547
B9: 3324.8003 | C9: 4 | D9: سمير حلمي محمود | AJ9: 0 | AS9: 15 | AT9: 15 | BS9: 0 | BT9: 0 | BV9: 3 | BW9: 0 | BX9: 0 | BZ9: 0 | CC9: 0 | CD9: 0 | CE9: 0 | CF9: حافز يناير 2022 نصفين | CG9: 0 | CI9: 0 | CJ9: 0 | CM9: 0 | CQ9: 0 | CR9: 750 | CS9: -750 | CT9: -750 | CU9: 0 | CW9: 0 | CY9: 0
B10: 1536.4665 | C10: 5 | D10: ممدوح محمد عبد المجيد | E10: 609 | K10: 1644.019155 | P10: 246.6028733 | Q10: 141.49 | U10: 70.73 | V10: 78.94 | W10: 94.69 | X10: 40.26 | Y10: 71.7975 | Z10: 92.18799 | AA10: 190 | AB10: 10 | AE10: 10 | AJ10: 2690.717518 | AS10: 18 | AT10: 18 | AU10: 528 | AW10: 60.16666667 | AZ10: 0.5 | BA10: 3 | BC10: 0 | BF10: 0 | BG10: 0 | BO10: 1.15 | BP10: 3 | BR10: 595.8166667 | BS10: 2094.900852 | BT10: 1972.822986 | BV10: 1 | BW10: 0 | BX10: 0 | BZ10: 0 | CB10: 213.59 | CC10: 1759.232986 | CD10: 879.616493 | CE10: 879.616493 | CF10: حافز يناير 2022 نصفين | CG10: 3854.133838 | CH10: 1644.019155 | CI10: 164.4019155 | CJ10: 1479.61724 | CM10: 5498.152993 | CQ10: 5688.119659 | CR10: 1891.15 | CS10: 3796.969659 | CT10: 3790 | CU10: -2.1519155 | CW10: 5500.304908 | CY10: 5788.077744
B11: 1936.7856 | C11: 6 | D11: السعيد حسن الشورى | E11: 646.03 | K11: 2072.360592 | P11: 310.8540888 | Q11: 141.49 | U11: 89.99 | V11: 100.44 | W11: 119.89 | X11: 50.75 | Y11: 90.504 | Z11: 116.207136 | AA11: 190 | AB11: 10 | AE11: 10 | AJ11: 3302.485817 | AS11: 17 | AT11: 17 | AU11: 671 | AW11: 115.44 | AZ11: 0.5 | BA11: 3 | BC11: 0 | BF11: 17.2696716 | BG11: 7.860555556 | BO11: 1.43 | BP11: 5 | BR11: 821.5002272 | BS11: 2480.98559 | BT11: 2486.83271 | BV11: 3 | BW11: 0 | BX11: 0 | BZ11: 0 | CC11: 2486.83271 | CD11: 1243.416355 | CE11: 1243.416355 | CF11: حافز يناير 2022 نصفين | CG11: 4967.8183 | CH11: 2072.360592 | CI11: 207.2360592 | CJ11: 1865.124533 | CM11: 7040.178892 | CQ11: 7389.869119 | CR11: 2090.729672 | CS11: 5299.139448 | CT11: 5290 | CU11: 194.5139408 | CW11: 6845.664951 | CY11: 7512.95306
B12: 1852.0523 | C12: 7 | D12: خالد حسن سليمان | E12: 703.74 | K12: 1981.695961 | P12: 297.2543942 | Q12: 141.49 | U12: 79.61 | V12: 89.13 | W12: 107.16 | X12: 48.52 | Y12: 86.5445 | Z12: 111.123138 | AA12: 190 | AB12: 10 | AE12: 10 | AJ12: 3152.527993 | AS12: 17 | AT12: 17 | AU12: 649 | AW12: 143.3333333 | AZ12: 0.5 | BA12: 3 | BC12: 0 | BF12: 16.51413301 | BG12: 7.860555556 | BO12: 1.36 | BP12: 5 | BR12: 826.5680219 | BS12: 2325.959971 | BT12: 2378.035153 | BV12: 3 | BW12: 0 | BX12: 0 | BZ12: 0 | CC12: 2378.035153 | CD12: 1189.017577 | CE12: 1189.017577 | CF12: حافز يناير 2022 نصفين | CG12: 4703.995124 | CH12: 1981.695961 | CI12: 198.1695961 | CJ12: 1783.526365 | CM12: 6685.691085 | CQ12: 7074.869107 | CR12: 2125.614133 | CS12: 4949.254974 | CT12: 4940 | CU12: 136.5804039 | CW12: 6549.110682 | CY12: 7172.599511
B13: 1850.6827 | C13: 8 | D13: رجب إبراهيم صالح | E13: 683.06 | K13: 1980.230489 | P13: 297.0345734 | Q13: 141.49 | U13: 79.81 | V13: 89.11 | W13: 106.96 | X13: 48.49 | Y13: 86.4805 | Z13: 111.040962 | AA13: 190 | AB13: 10 | AE13: 10 | AH13: 5.5 | AJ13: 3156.146524 | AS13: 28 | AT13: 28 | AU13: 649 | AW13: 112.5916667 | AZ13: 0.5 | BA13: 3 | BC13: 0 | BF13: 0 | BG13: 0 | BO13: 1.36 | BP13: 3 | BR13: 769.4516667 | BS13: 2386.694858 | BT13: 2376.276587 | BV13: 3 | BW13: 0 | BX13: 0 | BZ13: 0 | CC13: 2376.276587 | CD13: 1188.138293 | CE13: 1188.138293 | CF13: حافز يناير 2022 نصفين | CG13: 4762.971444 | CH13: 1980.230489 | CI13: 198.0230489 | CJ13: 1782.20744 | CM13: 6743.201933 | CQ13: 7069.7836 | CR13: 2086.42 | CS13: 4983.3636 | CT13: 4980 | CU13: 142.7269511 | CW13: 6600.474982 | CY13: 7173.140551
B14: 1759.8397 | C14: 9 | D14: أحمد محمد حسن | E14: 650.36 | K14: 1883.028479 | P14: 282.4542719 | Q14: 141.49 | U14: 75.92 | V14: 84.75 | W14: 101.7 | X14: 46.11 | Y14: 82.2355 | Z14: 105.590382 | AA14: 190 | AB14: 10 | AE14: 10 | AH14: 5.5 | AJ14: 3018.778633 | AS14: 28 | AT14: 28 | AU14: 627 | AW14: 131.308 | AX14: 4.62 | AZ14: 0.5 | BA14: 3 | BC14: 0 | BF14: 0 | BG14: 0 | BO14: 1.3 | BP14: 3 | BR14: 770.728 | BS14: 2248.050633 | BT14: 2259.634175 | BV14: 3 | BW14: 0 | BX14: 0 | BZ14: 0 | CC14: 2259.634175 | CD14: 1129.817087 | CE14: 1129.817087 | CF14: حافز يناير 2022 نصفين | CG14: 4507.684808 | CH14: 1883.028479 | CI14: 188.3028479 | CJ14: 1694.725631 | CM14: 6390.713287 | CQ14: 6732.081287 | CR14: 2036.28 | CS14: 4695.801287 | CT14: 4690 | CU14: 108.9471521 | CW14: 6281.766135 | CY14: 6831.648439
B15: 1647.7679 | C15: 10 | D15: شحاته عبد الله | E15: 648.22 | K15: 1763.111653 | P15: 264.466748 | Q15: 141.49 | U15: 76.45 | V15: 85.35 | W15: 101.93 | X15: 43.17 | Y15: 76.9985 | Z15: 98.866074 | AA15: 200 | AB15: 10 | AE15: 10 | AH15: 5.5 | AJ15: 2877.332975 | AS15: 28 | AT15: 28 | AU15: 583 | AW15: 111.3333333 | AZ15: 0.5 | BA15: 3 | BC15: 0 | BF15: 0 | BG15: 0 | BO15: 1.24 | BP15: 3 | BR15: 702.0733333 | BS15: 2175.259642 | BT15: 2115.733984 | BV15: 3 | BW15: 0 | BX15: 0 | BZ15: 0 | CC15: 2115.733984 | CD15: 1057.866992 | CE15: 1057.866992 | CF15: حافز يناير 2022 نصفين | CG15: 4290.993625 | CH15: 1763.111653 | CI15: 176.3111653 | CJ15: 1586.800488 | CM15: 6054.105278 | CQ15: 6325.458612 | CR15: 1985.46 | CS15: 4339.998612 | CT15: 4330 | CU15: 66.9388347 | CW15: 5987.166444 | CY15: 6438.377446
B16: 675.2342 | C16: 12 | D16: أحمد شحاته مصطفى | E16: 368.01 | K16: 722.500594 | P16: 108.3750891 | Q16: 141.49 | U16: 29.87 | V16: 33.52 | W16: 65 | X16: 33.74 | Y16: 31.553 | Z16: 40.514052 | AA16: 200 | AB16: 10 | AE16: 10 | AH16: 5.5 | AJ16: 1432.062735 | AS16: 28 | AT16: 28 | AU16: 253 | AW16: 0 | AZ16: 0.5 | BA16: 3 | BC16: 0 | BF16: 0 | BG16: 0 | BO16: 0.59 | BP16: 3 | BR16: 260.09 | BS16: 1171.972735 | BT16: 867.0007128 | BV16: 3 | BW16: 0 | BX16: 0 | BZ16: 0 | CC16: 867.0007128 | CD16: 433.5003564 | CE16: 433.5003564 | CF16: حافز يناير 2022 نصفين | CG16: 2038.973448 | CH16: 722.500594 | CI16: 0 | CJ16: 722.500594 | CM16: 2761.474042 | CQ16: 2726.184042 | CR16: 1374.6 | CS16: 1351.584042 | CT16: 1350 | CU16: 2.5 | CW16: 2758.974042 | CY16: 2880.074042
B17: 1611.9978 | C17: 13 | D17: أحمد شوقي حميدة | E17: 619.05 | K17: 1724.837646 | P17: 258.7256469 | Q17: 141.49 | U17: 74.8 | V17: 83.51 | W17: 99.71 | X17: 42.23 | Y17: 75.327 | Z17: 96.719868 | AA17: 200 | AB17: 10 | AE17: 10 | AH17: 5.5 | AJ17: 2822.850161 | AS17: 28 | AT17: 28 | AU17: 572 | AW17: 111.6666667 | AZ17: 0.5 | BA17: 3 | BC17: 0 | BF17: 0 | BG17: 0 | BO17: 1.21 | BP17: 3 | BR17: 691.3766667 | BS17: 2131.473494 | BT17: 2069.805175 | BV17: 3 | BW17: 0 | BX17: 0 | BZ17: 0 | CC17: 2069.805175 | CD17: 1034.902588 | CE17: 1034.902588 | CF17: حافز يناير 2022 نصفين | CG17: 4201.278669 | CH17: 1724.837646 | CI17: 172.4837646 | CJ17: 1552.353881 | CM17: 5926.116315 | CQ17: 6192.482982 | CR17: 1945.26 | CS17: 4247.222982 | CT17: 4240 | CU17: 57.2662354 | CW17: 5868.85008 | CY17: 6303.519218
B18: 2198.0903 | C18: 14 | D18: عبد الناصر سيد هلال | E18: 826.2 | K18: 2351.956621 | P18: 352.7934932 | Q18: 141.49 | U18: 95.19 | V18: 106.34 | W18: 120 | X18: 57.59 | Y18: 102.7145 | Z18: 131.885418 | AA18: 190 | AB18: 10 | AE18: 10 | AJ18: 3669.960032 | AS18: 17 | AT18: 17 | AU18: 770 | AW18: 188.9093333 | AZ18: 0.5 | BA18: 3 | BC18: 0 | BF18: 19.59963851 | BG18: 7.860555556 | BO18: 1.59 | BP18: 5 | BR18: 996.4595274 | BS18: 2673.500505 | BT18: 2822.347945 | BV18: 3 | BW18: 0 | BX18: 0 | BZ18: 0 | CC18: 2822.347945 | CD18: 1411.173973 | CE18: 1411.173973 | CF18: حافز يناير 2022 نصفين | CG18: 5495.84845 | CH18: 2351.956621 | CI18: 235.1956621 | CJ18: 2116.760959 | CM18: 7847.805071 | CQ18: 8361.244598 | CR18: 2372.389639 | CS18: 5988.85496 | CT18: 5980 | CU18: 304.5543379 | CW18: 7543.250733 | CY18: 8467.578936
B19: 1524.322 | C19: 15 | D19: إبراهيم أحمد السيد | E19: 587.46 | K19: 1631.02454 | P19: 244.653681 | Q19: 141.49 | U19: 70.76 | V19: 78.99 | W19: 94.28 | X19: 39.94 | Y19: 71.23 | Z19: 91.45932 | AA19: 200 | AB19: 10 | AE19: 10 | AJ19: 2683.827541 | AS19: 20 | AT19: 20 | AU19: 550 | AW19: 73.33333333 | AY19: 3.04 | AZ19: 0.5 | BA19: 3 | BC19: 0 | BF19: 0 | BG19: 0 | BO19: 1.15 | BP19: 3 | BR19: 634.0233333 | BS19: 2049.804208 | BT19: 1957.229448 | BV19: 3 | BW19: 0 | BX19: 0 | BZ19: 0 | CC19: 1957.229448 | CD19: 978.614724 | CE19: 978.614724 | CF19: حافز يناير 2022 نصفين | CG19: 4007.033656 | CH19: 1631.02454 | CI19: 163.102454 | CJ19: 1467.922086 | CM19: 5638.058196 | CQ19: 5866.561529 | CR19: 1894.65 | CS19: 3971.911529 | CT19: 3970 | CU19: 26.147546 | CW19: 5611.91065 | CY19: 5967.489075
B20: 1703.6112 | C20: 16 | D20: إيهاب أحمد صالح | E20: 647.92 | K20: 1822.863984 | P20: 273.4295976 | Q20: 141.49 | U20: 73.27 | V20: 82.02 | W20: 98.55 | X20: 44.64 | Y20: 79.608 | Z20: 102.216672 | AA20: 190 | AB20: 10 | AE20: 10 | AJ20: 2928.088254 | AS20: 18 | AT20: 18 | AU20: 605 | AW20: 127.7 | AY20: 4.18 | AZ20: 0.5 | BA20: 3 | BC20: 0 | BF20: 0 | BG20: 0 | BO20: 1.26 | BP20: 3 | BR20: 744.64 | BS20: 2183.448254 | BT20: 2187.436781 | BV20: 3 | BW20: 0 | BX20: 0 | BZ20: 0 | CC20: 2187.436781 | CD20: 1093.71839 | CE20: 1093.71839 | CF20: حافز يناير 2022 نصفين | CG20: 4370.885034 | CH20: 1822.863984 | CI20: 182.2863984 | CJ20: 1640.577586 | CM20: 6193.749018 | CQ20: 6523.059018 | CR20: 2011.36 | CS20: 4511.699018 | CT20: 4510 | CU20: 87.9636016 | CW20: 6105.785417 | CY20: 6614.61262
B21: 2123.1047 | C21: 19 | D21: محمد محمد نوفل | E21: 817.96 | K21: 2271.722029 | P21: 340.7583044 | Q21: 141.49 | U21: 98.6 | V21: 110.06 | W21: 120 | X21: 55.63 | Y21: 99.2105 | Z21: 127.386282 | AA21: 190 | AB21: 10 | AE21: 10 | AJ21: 3574.857115 | AS21: 18 | AT21: 18 | AU21: 748 | AW21: 161.7933333 | AZ21: 0.5 | BA21: 3 | BC21: 0 | BF21: 0 | BG21: 0 | BO21: 1.55 | BP21: 5 | BR21: 919.8433333 | BS21: 2655.013782 | BT21: 2726.066435 | BV21: 3 | BW21: 0 | BX21: 0 | BZ21: 0 | CC21: 2726.066435 | CD21: 1363.033217 | CE21: 1363.033217 | CF21: حافز يناير 2022 نصفين | CG21: 5381.080217 | CH21: 2271.722029 | CI21: 227.1722029 | CJ21: 2044.549826 | CM21: 7652.802246 | CQ21: 8082.495579 | CR21: 2322.51 | CS21: 5759.985579 | CT21: 5750 | CU21: 266.5777971 | CW21: 7386.224449 | CY21: 8203.983376
B22: 2128.3049 | C22: 20 | D22: عبد الباسط هريدي | E22: 799.39 | K22: 2277.286243 | P22: 341.5929364 | Q22: 141.49 | U22: 91.24 | V22: 102.23 | W22: 120 | X22: 55.76 | Y22: 99.4535 | Z22: 127.698294 | AA22: 190 | AB22: 10 | AE22: 10 | AJ22: 3566.750973 | AS22: 18 | AT22: 18 | AU22: 748 | AW22: 142.2633333 | AZ22: 0.5 | BA22: 3 | BC22: 0 | BF22: 0 | BG22: 0 | BO22: 1.54 | BP22: 5 | BR22: 900.3033333 | BS22: 2666.44764 | BT22: 2732.743492 | BV22: 3 | BW22: 0 | BX22: 0 | BZ22: 0 | CC22: 2732.743492 | CD22: 1366.371746 | CE22: 1366.371746 | CF22: حافز يناير 2022 نصفين | CG22: 5399.191132 | CH22: 2277.286243 | CI22: 227.7286243 | CJ22: 2049.557619 | CM22: 7676.477375 | CQ22: 8101.820708 | CR22: 2303.93 | CS22: 5797.890708 | CT22: 5790 | CU22: 274.0213757 | CW22: 7402.455999 | CY22: 8207.562084
B23: 1823.9006 | C23: 21 | D23: أحمد حسين حسن | E23: 681.76 | K23: 1951.573642 | P23: 292.7360463 | Q23: 141.49 | U23: 84.55 | V23: 94.43 | W23: 112.84 | X23: 47.79 | Y23: 85.229 | Z23: 109.434036 | AA23: 190 | AB23: 8 | AE23: 10 | AJ23: 3128.072724 | AS23: 18 | AT23: 18 | AU23: 649 | AW23: 144.8713333 | AY23: 21.47 | AZ23: 0.5 | BA23: 3 | BC23: 0 | BF23: 0 | BG23: 0 | BO23: 1.35 | BP23: 3 | BR23: 823.1913333 | BS23: 2304.881391 | BT23: 2341.88837 | BV23: 3 | BW23: 0 | BX23: 0 | BZ23: 0 | CC23: 2341.88837 | CD23: 1170.944185 | CE23: 1170.944185 | CF23: حافز يناير 2022 نصفين | CG23: 4646.769761 | CH23: 1951.573642 | CI23: 195.1573642 | CJ23: 1756.416278 | CM23: 6598.343403 | CQ23: 6970.224737 | CR23: 2106.58 | CS23: 4863.644737 | CT23: 4860 | CU23: 127.5926358 | CW23: 6470.750768 | CY23: 7084.887372
B24: 1759.8076 | C24: 22 | D24: كمال عطية عبد الغني | E24: 650.36 | K24: 1882.994132 | P24: 282.4491198 | Q24: 141.49 | U24: 75.91 | V24: 84.75 | W24: 101.7 | X24: 46.11 | Y24: 82.234 | Z24: 105.588456 | AA24: 190 | AB24: 10 | AE24: 10 | AJ24: 3013.225708 | AS24: 18 | AT24: 18 | AU24: 627 | AW24: 139.806 | AY24: 51.32 | AZ24: 0.5 | BA24: 3 | BC24: 0 | BF24: 0 | BG24: 0 | BO24: 1.29 | BP24: 3 | BR24: 825.916 | BS24: 2187.309708 | BT24: 2259.592958 | BV24: 3 | BW24: 0 | BX24: 0 | BZ24: 0 | CC24: 2259.592958 | CD24: 1129.796479 | CE24: 1129.796479 | CF24: حافز يناير 2022 نصفين | CG24: 4446.902666 | CH24: 1882.994132 | CI24: 188.2994132 | CJ24: 1694.694719 | CM24: 6329.896798 | CQ24: 6731.962798 | CR24: 2082.97 | CS24: 4648.992798 | CT24: 4640 | CU24: 101.4505868 | CW24: 6228.446211 | CY24: 6826.023385
B25: 1579.5233 | C25: 24 | D25: خالد عربي محمد | E25: 607.16 | K25: 1690.089931 | P25: 253.5134897 | Q25: 141.49 | U25: 73.3 | V25: 81.83 | W25: 97.7 | X25: 41.38 | Y25: 73.8095 | Z25: 94.771398 | AA25: 200 | AB25: 10 | AE25: 10 | AJ25: 2767.884319 | AS25: 18 | AT25: 18 | AU25: 561 | AW25: 97.33333333 | AY25: 2.73 | AZ25: 0.5 | BA25: 3 | BC25: 0 | BF25: 0 | BG25: 0 | BO25: 1.19 | BP25: 3 | BR25: 668.7533333 | BS25: 2099.130985 | BT25: 2028.107917 | BV25: 3 | BW25: 0 | BX25: 0 | BZ25: 0 | CC25: 2028.107917 | CD25: 1014.053959 | CE25: 1014.053959 | CF25: حافز يناير 2022 نصفين | CG25: 4127.238903 | CH25: 1690.089931 | CI25: 169.0089931 | CJ25: 1521.080938 | CM25: 5817.328834 | CQ25: 6071.762167 | CR25: 1925.08 | CS25: 4146.682167 | CT25: 4140 | CU25: 45.7410069 | CW25: 5771.587827 | CY25: 6175.583174
B26: 1524.3327 | C26: 25 | D26: عمرو شوقي عنتر | E26: 587.47 | K26: 1631.035989 | P26: 244.6553983 | Q26: 141.49 | U26: 70.76 | V26: 78.99 | W26: 94.28 | X26: 39.94 | Y26: 71.2305 | Z26: 91.459962 | AA26: 200 | AB26: 10 | AE26: 10 | AJ26: 2683.841849 | AS26: 2 | AT26: 2 | AU26: 550 | AW26: 78.5 | AZ26: 0.5 | BA26: 3 | BC26: 0 | BF26: 217.4714652 | BG26: 125.7688889 | BO26: 1.15 | BP26: 3 | BR26: 979.3903541 | BS26: 1704.451495 | BT26: 1957.243187 | BV26: 3 | BW26: 0 | BX26: 0 | BZ26: 0 | CC26: 1957.243187 | CD26: 978.6215934 | CE26: 978.6215934 | CF26: حافز يناير 2022 نصفين | CG26: 3661.694682 | CH26: 1631.035989 | CI26: 163.1035989 | CJ26: 1467.93239 | CM26: 5292.730671 | CQ26: 5866.601025 | CR26: 2109.091465 | CS26: 3757.50956 | CT26: 3750 | CU26: -6.8535989 | CW26: 5299.58427 | CY26: 5967.527426
B27: 1599.008 | C27: 26 | D27: سعيد محمد علي | E27: 615.34 | K27: 1710.93856 | P27: 256.640784 | Q27: 141.49 | U27: 70.76 | V27: 78.99 | W27: 98.94 | X27: 41.89 | Y27: 74.72 | Z27: 95.94048 | AA27: 190 | AB27: 10 | AE27: 10 | AJ27: 2780.309824 | AS27: 18 | AT27: 18 | AU27: 572 | AW27: 107.1666667 | AZ27: 0.5 | BA27: 3 | BC27: 0 | BF27: 0 | BG27: 0 | BR27: 682.6666667 | BS27: 2097.643157 | BT27: 2053.126272 | BV27: 3 | BW27: 0 | BX27: 0 | BZ27: 0 | CC27: 2053.126272 | CD27: 1026.563136 | CE27: 1026.563136 | CF27: حافز يناير 2022 نصفين | CG27: 4150.769429 | CH27: 1710.93856 | CI27: 171.093856 | CJ27: 1539.844704 | CM27: 5861.707989 | CQ27: 6134.194656 | CR27: 1937.34 | CS27: 4196.854656 | CT27: 4190 | CU27: 51.156144 | CW27: 5810.551845 | CY27: 6231.7908
B28: 1210.384 | C28: 27 | D28: محمد حسن عبد الفتاح | E28: 477.64 | K28: 1295.11088 | P28: 194.266632 | Q28: 141.49 | U28: 52.68 | V28: 58.73 | W28: 75.07 | X28: 31.71 | Y28: 56.56 | Z28: 72.62304 | AA28: 200 | AB28: 10 | AE28: 10 | AJ28: 2198.240552 | AS28: 18 | AT28: 18 | AU28: 440 | AW28: 32.95833333 | AZ28: 0.5 | BA28: 3 | BC28: 0 | BF28: 0 | BG28: 0 | BO28: 0.93 | BP28: 3 | BR28: 480.3883333 | BS28: 1717.852219 | BT28: 1554.133056 | BV28: 3 | BW28: 0 | BX28: 0 | BZ28: 0 | CC28: 1554.133056 | CD28: 777.066528 | CE28: 777.066528 | CF28: حافز يناير 2022 نصفين | CG28: 3271.985275 | CH28: 1295.11088 | CI28: 0 | CJ28: 1295.11088 | CM28: 4567.096155 | CQ28: 4699.514488 | CR28: 1671.57 | CS28: 3027.944488 | CT28: 3020 | CU28: 83.25 | CW28: 4483.846155 | CY28: 4905.994488
B29: 1156.7556 | C29: 28 | D29: سامح سعيد إبراهيم | E29: 467.95 | K29: 1237.728492 | P29: 185.6592738 | Q29: 141.49 | U29: 50.38 | V29: 56.28 | W29: 71.79 | X29: 30.31 | Y29: 54.054 | Z29: 69.405336 | AA29: 200 | AB29: 6 | AE29: 10 | AJ29: 2113.097102 | AS29: 16 | AT29: 16 | AU29: 407 | AW29: 21.41666667 | AZ29: 0.5 | BA29: 3 | BC29: 0 | BF29: 20.6288082 | BG29: 15.72111111 | BO29: 0.89 | BP29: 3 | BR29: 472.156586 | BS29: 1640.940516 | BT29: 1485.27419 | BV29: 3 | BW29: 0 | BX29: 0 | BY29: 0.3 | BZ29: =BT29*BY29 -> 445.5822571 | CB29: 7.86 | CC29: =BT29-BU29-BX29-BZ29-CA29-CB29 -> 1031.831933 | CD29: 515.9159666 | CE29: 515.9159666 | CF29: حافز يناير 2022 نصفين | CG29: 2672.772449 | CH29: 1237.728492 | CI29: 0 | CJ29: 1237.728492 | CM29: 3910.500941 | CQ29: 4046.717527 | CR29: 1649.468808 | CS29: 2397.248719 | CT29: 2390 | CU29: 28.5 | CW29: 3882.000941 | CY29: 4241.167527
B30: 1140.7163 | C30: 29 | D30: جمال عبد الستار | E30: 457.64 | K30: 1220.566441 | P30: 183.0849662 | Q30: 141.49 | U30: 49.69 | V30: 55.38 | W30: 70.73 | X30: 29.89 | Y30: 53.3045 | Z30: 68.442978 | AA30: 200 | AB30: 10 | AE30: 10 | AJ30: 2092.578885 | AS30: 18 | AT30: 18 | AU30: 418 | AW30: 25.70833333 | AZ30: 0.5 | BA30: 3 | BC30: 0 | BF30: 0 | BG30: 0 | BO30: 0.88 | BP30: 3 | BR30: 451.0883333 | BS30: 1641.490552 | BT30: 1464.679729 | BV30: 3 | BW30: 0 | BX30: 0 | BZ30: =BT30*BY30 -> 0 | CC30: =BT30-BU30-BX30-BZ30-CA30-CB30 -> 1464.679729 | CD30: 732.3398646 | CE30: 732.3398646 | CF30: حافز يناير 2022 نصفين | CG30: 3106.170281 | CH30: 1220.566441 | CI30: 0 | CJ30: 1220.566441 | CM30: 4326.736722 | CQ30: 4440.535055 | CR30: 1629.52 | CS30: 2811.015055 | CT30: 2810 | CU30: 62.25 | CW30: 4264.486722 | CY30: 4636.335055
B31: 1012.1879 | C31: 30 | D31: عصام محمد السيد | E31: 419.81 | K31: 1083.041053 | P31: 162.456158 | Q31: 141.49 | U31: 43.92 | V31: 48.88 | W31: 65 | X31: 26.52 | Y31: 47.2985 | Z31: 60.731274 | AA31: 200 | AB31: 10 | AE31: 10 | AJ31: 1899.336985 | AS31: 17 | AT31: 17 | AU31: 374 | AW31: 11.75 | AZ31: 0.5 | BA31: 3 | BC31: 0 | BF31: 9.025342108 | BG31: 7.860555556 | BO31: 0.8 | BP31: 3 | BR31: 409.9358977 | BS31: 1489.401087 | BT31: 1299.649264 | BV31: 3 | BW31: 0 | BX31: 0 | BZ31: 0 | CC31: 1299.649264 | CD31: 649.8246318 | CE31: 649.8246318 | CF31: حافز يناير 2022 نصفين | CG31: 2789.050351 | CH31: 1083.041053 | CI31: 0 | CJ31: 1083.041053 | CM31: 3872.091404 | CQ31: 3962.737302 | CR31: 1556.635342 | CS31: 2406.101959 | CT31: 2400 | CU31: 28.75 | CW31: 3843.341404 | CY31: 4140.537302
K32: 0 | P32: 0 | Z32: 0 | AJ32: 0 | AS32: 18 | AT32: 18 | BC32: 0 | BF32: 0 | BG32: 0 | BR32: 0 | BS32: 0 | BT32: 0 | BW32: 0 | BX32: 0 | BZ32: 0 | CC32: 0 | CD32: 0 | CE32: 0 | CF32: حافز يناير 2022 نصفين | CG32: 0 | CH32: 0 | CI32: 0 | CJ32: 0 | CM32: 0 | CQ32: 0 | CR32: 750 | CS32: -750 | CT32: -750 | CU32: 0 | CW32: 0 | CY32: 0
K33: 0 | P33: 0 | Z33: 0 | AJ33: 0 | AS33: 18 | AT33: 18 | BC33: 0 | BF33: 0 | BG33: 0 | BR33: 0 | BS33: 0 | BT33: 0 | BW33: 0 | BX33: 0 | BZ33: 0 | CC33: 0 | CD33: 0 | CE33: 0 | CF33: حافز يناير 2022 نصفين | CG33: 0 | CH33: 0 | CI33: 0 | CJ33: 0 | CM33: 0 | CQ33: 0 | CR33: 750 | CS33: -750 | CT33: -750 | CU33: 0 | CW33: 0 | CY33: 0
D34: السائقين | BZ34: 0 | CI34: 0 | CJ34: 0 | CQ34: 0 | CU34: 0 | CY34: 0
B35: 1178.4552 | C35: 32 | D35: أحمد محمد حسن خاطر | E35: 479.37 | K35: 1260.947064 | O35: 1112.59 | P35: 189.1420596 | Q35: 0 | U35: 50.91 | V35: 56.88 | W35: 68.11 | X35: 30.87 | Y35: 55.068 | Z35: 70.707312 | AA35: 190 | AB35: 10 | AE35: 10 | AJ35: 3105.224436 | AS35: 0 | AT35: 0 | AU35: 407 | AW35: 19.625 | AY35: 47.76 | AZ35: 0.5 | BA35: 3 | BC35: 0 | BF35: 189.1420596 | BG35: 0 | BO35: 0.9 | BP35: 3 | BR35: 670.9270596 | BS35: 2434.297376 | BV35: 3 | BW35: 0 | BX35: 0 | BZ35: 0 | CC35: =BT35-BU35-BX35-CA35-CB35 -> 0 | CG35: =BS35+CC35 -> 2434.297376 | CH35: 1260.947064 | CI35: 0 | CJ35: 1260.947064 | CM35: =(BS35+CC35+CH35)-CK35 -> 3695.24444 | CQ35: 3057.6815 | CR35: 1877.17206 | CS35: 1180.50944 | CT35: 1180 | CU35: 0 | CW35: 3695.24444 | CY35: 4366.1715
B36: 984.4963 | C36: 33 | D36: إبراهيم الحسيني إبراهيم | E36: 427.51 | K36: 1053.411041 | N36: 2144.85 | P36: 158.0116562 | Q36: 0 | U36: 42.63 | V36: 47.54 | W36: 65 | X36: 25.79 | Y36: 46.0045 | Z36: 59.069778 | AA36: 190 | AB36: 6 | AE36: 10 | AF36: 214.48 | AJ36: 4062.786975 | AS36: 28 | AT36: 0 | AU36: 308 | AW36: 0 | AZ36: 0.5 | BA36: 3 | BC36: 0 | BF36: 0 | BG36: 0 | BO36: 0.77 | BP36: 3 | BR36: 315.27 | BS36: 3747.516975 | BV36: 3 | BW36: 0 | BX36: 0 | BZ36: 0 | CC36: 0 | CG36: 3747.516975 | CH36: 948.07 | CI36: 0 | CJ36: 948.07 | CM36: 4695.586975 | CQ36: 2480.356975 | CR36: 1489.28 | CS36: 991.0769752 | CT36: 990 | CU36: 0 | CW36: 4695.586975 | CY36: 5010.856975
B37: 976.6425 | C37: 40 | D37: أحمد محمود عبد الله | E37: 427.51 | K37: 1045.007475 | N37: 2155.85 | P37: 156.7511213 | Q37: 0 | U37: 42.63 | V37: 47.54 | W37: 65 | X37: 25.59 | Y37: 45.6375 | Z37: 58.59855 | AA37: 190 | AB37: 10 | AE37: 10 | AF37: 215.59 | AJ37: 4068.194646 | AS37: 28 | AT37: 0 | AU37: 506 | AW37: 0 | AZ37: 0.5 | BA37: 3 | BC37: 0 | BF37: 0 | BG37: 0 | BO37: 0.77 | BP37: 3 | BR37: 513.27 | BS37: 3554.924646 | BV37: 3 | BW37: 0 | BX37: 0 | BZ37: 0 | CC37: 0 | CG37: 3554.924646 | CH37: 1045.007475 | CI37: 0 | CJ37: 1045.007475 | CM37: 4599.932121 | CQ37: 2566.592121 | CR37: 1687.28 | CS37: 879.3121213 | CT37: 870 | CU37: 0 | CW37: 4599.932121 | CY37: 5113.202121
B38: 1513.515 | C38: 34 | D38: خالد العوضي عبد الله | E38: 588.96 | K38: 1619.46105 | N38: 0 | P38: 242.9191575 | Q38: 0 | U38: 65.73 | V38: 73.52 | W38: 94 | X38: 39.65 | Y38: 70.725 | Z38: 90.8109 | AA38: 190 | AB38: 10 | AE38: 10 | AF38: 0 | AJ38: 2506.816108 | AS38: 18 | AT38: 0 | AU38: 286 | AW38: 0 | AZ38: 0.5 | BA38: 3 | BC38: 0 | BF38: 0 | BG38: 0 | BI38: 500 | BO38: 1.13 | BP38: 3 | BR38: 793.63 | BS38: 1713.186108 | BV38: 3 | BW38: 0 | BX38: 0 | BZ38: 0 | CC38: 0 | CG38: 1713.186108 | CH38: 1619.46105 | CI38: 161.946105 | CJ38: 1457.514945 | CM38: 3332.647158 | CQ38: 3873.027158 | CR38: 1629.09 | CS38: 2243.937158 | CT38: 2240 | CU38: -137.196105 | CW38: 3469.843263 | CY38: 3964.331053
B39: 1710.4592 | C39: 36 | D39: جمال خميس إسماعيل | E39: 653.4 | K39: 1830.191344 | N39: 0 | P39: 274.5287016 | Q39: 0 | U39: 79.33 | V39: 88.58 | W39: 105.81 | X39: 44.81 | Y39: 79.928 | Z39: 102.627552 | AA39: 190 | AB39: 10 | AE39: 10 | AF39: 0 | AJ39: 2815.805598 | AS39: 0 | AT39: 0 | AU39: 385 | AW39: 3.4167 | AZ39: 0.5 | BA39: 3 | BC39: 0 | BF39: 274.5287016 | BG39: 0 | BO39: 1.27 | BP39: 3 | BR39: 670.7154016 | BS39: 2145.090196 | BV39: 3 | BW39: 0 | BX39: 0 | BZ39: 0 | CC39: 0 | CG39: 2145.090196 | CH39: 1830.191344 | CI39: 183.0191344 | CJ39: 1647.17221 | CM39: 3975.28154 | CQ39: 4352.276942 | CR39: 2067.198702 | CS39: 2285.07824 | CT39: 2280 | CU39: -157.2691344 | CW39: 4132.550674 | CY39: 4462.977807
A40: نقل م.نصر | B40: 1573.4564 | C40: 37 | D40: محمد خليل إبراهيم | E40: 616.3 | F40: نقل م.نصر | K40: 1683.598348 | P40: 252.5397522 | Q40: 0 | U40: 80.67 | V40: 90.36 | W40: 97.36 | X40: 41.22 | Y40: 73.526 | Z40: 94.407384 | AA40: 200 | AB40: 10 | AE40: 10 | AJ40: 2633.681484 | AS40: 14 | AT40: 0 | AU40: 352 | AW40: 0 | AZ40: 0.5 | BA40: 3 | BF40: 56.11994493 | BG40: 0 | BR40: 411.6199449 | BS40: 2222.061539 | BV40: 3 | BW40: 0 | BX40: 0 | BZ40: 0 | CC40: 0 | CG40: 2222.061539 | CH40: 1683.598348 | CI40: 168.3598348 | CJ40: 1515.238513 | CM40: 3905.659887 | CQ40: 4028.889832 | CR40: 1774.419945 | CS40: 2254.469887 | CT40: 2250 | CU40: -143.3598348 | CW40: 4049.019722 | CY40: 4148.919997
A41: نقل م.نصر | B41: 1579.5233 | C41: 38 | D41: شعبان عبد اللطيف | E41: 632.8 | F41: نقل م.نصر | K41: 1690.089931 | P41: 253.5134897 | Q41: 0 | U41: 77.71 | V41: 86.7 | W41: 97.7 | X41: 41.38 | Y41: 73.8095 | Z41: 94.771398 | AA41: 200 | AB41: 10 | AE41: 10 | AJ41: 2635.674319 | AS41: 14 | AT41: 0 | AU41: 352 | AW41: 0 | AZ41: 0.5 | BA41: 3 | BF41: 56.33633103 | BG41: 0 | BR41: 411.836331 | BS41: 2223.837988 | BV41: 3 | BW41: 0 | BX41: 0 | BZ41: 0 | CC41: 0 | CG41: 2223.837988 | CH41: 1690.089931 | CI41: 169.0089931 | CJ41: 1521.080938 | CM41: 3913.927919 | CQ41: 4043.65425 | CR41: 1791.136331 | CS41: 2252.517919 | CT41: 2250 | CU41: -144.0089931 | CW41: 4057.936912 | CY41: 4156.755257
B42: 1615.91 | C42: 39 | D42: محمد محمود محمود شرارة | E42: 611.49 | K42: 1729.0237 | N42: 0 | P42: 259.353555 | Q42: 0 | U42: 70.12 | V42: 78.28 | W42: 100.31 | X42: 42.34 | Y42: 75.5125 | Z42: 96.9546 | AA42: 190 | AB42: 10 | AE42: 10 | AF42: 0 | AJ42: 2661.894355 | AS42: 0 | AT42: 0 | AU42: 352 | AW42: 1.25 | AZ42: 0.5 | BA42: 3 | BC42: 0 | BF42: 259.353555 | BG42: 0 | BO42: 1.2 | BP42: 3 | BR42: 620.303555 | BS42: 2041.5908 | BV42: 3 | BW42: 0 | BX42: 0 | BZ42: 0 | CC42: 0 | CG42: 2041.5908 | CH42: 1729.0237 | CI42: 172.90237 | CJ42: 1556.12133 | CM42: 3770.6145 | CQ42: 4122.208055 | CR42: =E42+AU42+AX42+AY42+BC42+BF42+BO42+BP42+750 -> 1977.043555 | CS42: 2145.1645 | CT42: 2140 | CU42: -150.65237 | CW42: 3921.26687 | CY42: 4218.015685
B43: 976.6425 | C43: 40 | P43: 0 | AJ43: 0 | AS43: 18 | AT43: 18 | AU43: 0 | AZ43: 0.5 | BA43: 3 | BC43: 0 | BF43: 0 | BG43: 0 | BR43: 3.5 | BS43: -3.5 | BV43: 3 | BW43: 0 | BX43: 0 | BZ43: 0 | CC43: 0 | CG43: -3.5 | CI43: 0 | CJ43: 0 | CM43: -3.5 | CQ43: 0 | CR43: 750 | CS43: -750 | CT43: -750 | CU43: 0 | CW43: -3.5 | CY43: 0
C44: 41 | K44: =B44*107% -> 0 | Z44: =B44*6% -> 0 | AS44: 18 | AT44: 18 | AZ44: 0.5 | BA44: 3 | BC44: 0 | BF44: 0 | BG44: 0 | BR44: 3.5 | BV44: 3 | BZ44: 0 | CC44: 0 | CH44: 0 | CI44: 0 | CJ44: 0 | CM44: 0 | CQ44: 0 | CR44: 750 | CS44: -750 | CT44: -750 | CU44: 0 | CW44: 0 | CY44: 0
C45: 42 | K45: 0 | Z45: 0 | AS45: 18 | AT45: 18 | AZ45: 0.5 | BA45: 3 | BC45: 0 | BF45: 0 | BG45: 0 | BR45: 3.5 | BV45: 3 | BZ45: 0 | CC45: 0 | CJ45: 0 | CM45: 0 | CQ45: 0 | CR45: 750 | CS45: -750 | CT45: -750 | CU45: 0 | CW45: 0 | CY45: 0

Sheet ابريل 2022
E2: الــــــمــــــــســــــــتـــــــــحـــــــــــقـــــــــــــــــــات | AL2: الـــــــــتـــــــــأثيرات | AV2: الــــــــــــــــــــمـــــــــــــــــــــســـــــــــــــــــتــــــــــــــــــــــــــــــــــــقــــــــــــــــــــــــــطـــــــــــــــــــــــــع | BU2: الــــحــافــــــــز
CR4: استخراج الضرائب شهريا خلال عام 2022
D5: الاسم | E5: مجموع العلاوات | F5: كود | G5: غياب | H5: مرضي | I5: إصابة | J5: إيقاف | K5: الأجر الأساسي 7/2021 | L5: بدل تمثيل | M5: بدل تفرغ | N5: عمولة انتاج | O5: معونة مرضي وإصابة | P5: بدل مخاطر | Q5: بدل انتقال | R5: بدل إقامة | S5: انتقال محامين | U5: 2014 | V5: 2015 | W5: 2016 | X5: 0.03 | Y5: 0.05 | Z5: 0.06 | AA5: 0.08 | AB5: علاوة استثنائية | AC5: إجتماعية | AD5: بدل نقدي | AE5: فرق بدل نقدي | AF5: المنحة | AG5: بدل تباع | AH5: م. صياتة | AI5: بدل مظهر | AK5: إجمالي المستحق | AL5: عدد أيام الحضور | AM5: أيام الجمعة والسبت | AN5: غياب | AO5: أجازات عارضة | AP5: أجازات اعتيادي | AQ5: أجازات سنوية | AR5: أجازات مرضي تطبيق قرار | AS5: أجازات مرضي لم ينطبق القرار | AT5: صافي أيام عمل بدل مخاطر | AU5: صافي أيام العمل بدل انتقال | AV5: تأمينات شاملة 1/1/2020 | AX5: كسب عمل | AY5: مدة سابقة | AZ5: اشتراكات أجازة خاصة | BA5: إعانة وفاة | BB5: نقابة | BC5: ن. رياضي | BD5: ص. التأميني | BE5: غياب | BF5: غياب حصة الشركة أساسي / متغير | BG5: غياب بدل مخاطر | BH5: غياب بدل انتقال | BI5: فاقد إنتاج | BJ5: تلفيات | BK5: عجوزات | BL5: مخالفات مرور | BM5: فاقد سولار | BN5: إيجار سكن | BO5: عهد | BP5: شهداء 0.0005 | BQ5: صندوق إعاقة | BR5: مصاريف استئناف | BS5: إجمالي المستقطع | BT5: صافي المستحق | BU5: الحافز | BV5: خصم مبالغ من الحافز | BW5: إجازات عارضة+اعتيادي+سنوي | BX5: نسبة الخصم للأجازات | BY5: المخصوم بعد نسبة الأداء | BZ5: نسبة خصم إداء-أجازات | CA5: المبلغ المخصوم بعد نسبة أداء - أجازات | CB5: خصم مريضي ينطبق القرار | CC5: خصم مرضي لم ينطبق القرار | CD5: صافي الحافز | CE5: نصف أول شهر فبراير 2022 | CF5: نصف ثاني فبراير 2022 | CG5: ملاحظات حافز | CH5: مرتب وحافز | CI5: مكافأة | CJ5: ضريبة من المكافأة | CK5: صافي المكافأة | CN5: إجمالي مرتب+حافز+ مكافأة | CO5: ملاحظات | CR5: إجمالي المستحق الضريبي | CS5: إجمالي المستقطع الضريبي | CT5: الصافي | CU5: الوعاء الضريبي | CV5: الضريبة المستحقة | CX5: الصافي بعد خصم ضريبة 2022 | CZ5: إجمالي المستحق الشهري للتأمينات
B6: 1777.8157 | C6: 1 | D6: سهير محمد مدني | E6: 675.83 | K6: ='مارس 2022'!K6*107% -> 2035.421195 | P6: =K6*15% -> 305.3131792 | Q6: ='مارس 2022'!Q6*110% -> 155.639 | U6: 76.44 | V6: 85.57 | W6: 102.85 | X6: 46.58 | Y6: 83.0755 | Z6: =B6*6% -> 106.668942 | AA6: ='مارس 2022'!K6*8% -> 152.1810239 | AB6: 190 | AC6: 6 | AF6: 10 | AK6: =SUM(G6:AJ6) -> 3355.73884 | AT6: 20 | AU6: 20 | AV6: 627 | AX6: 142 | BA6: 0.5 | BB6: 3 | BD6: 0 | BG6: =IF(AT6<18,(P6/18)*(18-AT6),"0") -> 0 | BH6: 0 | BP6: =(AK6-(P6+Q6))*0.0005 -> 1.44739333 | BQ6: 5 | BS6: =SUM(AV6:BR6) -> 778.9473933 | BT6: =AK6-BS6 -> 2576.791447 | BU6: =(K6/107%)*120% -> 2282.715359 | BW6: 3 | BX6: =IF(BW6=4,20%,IF(BW6=5,30%,IF(BW6=6,50%,IF(BW6>6,1,"0")))) -> 0 | BY6: =(BU6*BX6) -> 0 | CA6: =BU6*BZ6 -> 0 | CD6: =BU6-BV6-BY6-CA6-CB6-CC6 -> 2282.715359 | CE6: =CD6/2 -> 1141.357679 | CF6: =CE6 -> 1141.357679 | CG6: حافزفبراير 2022 نصفين | CH6: =BT6+CD6 -> 4859.506806 | CI6: 1902.262799 | CJ6: =IF(CI6>1500,CI6*10%,0) -> 190.2262799 | CK6: =CI6-CJ6 -> 1712.036519 | CN6: =(BT6+CD6+CI6)-(CL6+CM6) -> 6761.769605 | CR6: =K6+P6+X6+Y6+Z6+AA6+AB6+CD6+CI6 -> 7104.217998 | CS6: =E6+AV6+AY6+AZ6+BD6+BG6+BP6+BQ6+750 -> 2059.277393 | CT6: =CR6-CS6 -> 5044.940605 | CU6: =TRUNC(CT6,-1) -> 5040 | CV6: =IF(AND(CU6>1250,CU6<2501),(CU6-1250)*2.5%,IF(AND(CU6>2500,CU6<3751),(CU6-2500)*10%+31.25,IF(AND(CU6>3750,CU6<5001),(CU6-3750)*15%+31.25+125,IF(AND(CU6>5000,CU6<16666.68),(CU6-5000)*20%+31.25+125+187.5,"0"))))-CJ6 -> 161.5237201 | CX6: =CN6-CV6 -> 6600.245884 | CZ6: =(AK6-(Q6+S6))+CD6+CK6 -> 7194.851718
B7: 1825.3879 | C7: 2 | D7: محمد محمود صقر | E7: 687.13 | K7: ='مارس 2022'!K7*107% -> 2089.886607 | P7: =K7*15% -> 313.482991 | Q7: ='مارس 2022'!Q7*110% -> 155.639 | U7: 78.33 | V7: 87.73 | W7: 105.57 | X7: 47.83 | Y7: 85.2985 | Z7: =B7*6% -> 109.523274 | AA7: ='مارس 2022'!K7*8% -> 156.2532042 | AB7: 190 | AC7: 10 | AF7: 10 | AK7: =SUM(G7:AJ7) -> 3439.543576 | AT7: 21 | AU7: 16 | AV7: 649 | AX7: 139.3 | AZ7: 18.74 | BA7: 0.5 | BB7: 3 | BD7: 0 | BG7: 0 | BH7: 17.29322222 | BP7: =(AK7-(P7+Q7))*0.0005 -> 1.485210792 | BQ7: 5 | BS7: =SUM(AV7:BR7) -> 834.318433 | BT7: =AK7-BS7 -> 2605.225143 | BU7: =(K7/107%)*120% -> 2343.798064 | BW7: 3 | BX7: =IF(BW7=4,30%,IF(BW7=5,40%,IF(BW7=6,50%,IF(BW7>6,1,"0")))) -> 0 | BY7: =(BU7*BX7) -> 0 | CA7: 0 | CD7: 2343.798064 | CE7: =CD7/2 -> 1171.899032 | CF7: =CE7 -> 1171.899032 | CG7: حافزفبراير 2022 نصفين | CH7: 4949.023207 | CI7: 1953.165053 | CJ7: =IF(CI7>1500,CI7*10%,0) -> 195.3165053 | CK7: =CI7-CJ7 -> 1757.848548 | CN7: =(BT7+CD7+CI7)-CL7 -> 6902.18826 | CR7: =K7+P7+X7+Y7+Z7+AA7+AB7+CD7+CI7 -> 7289.237693 | CS7: =E7+AV7+AY7+AZ7+BD7+BG7+BP7+BQ7+750 -> 2111.355211 | CT7: =CR7-CS7 -> 5177.882482 | CU7: =TRUNC(CT7,-1) -> 5170 | CV7: =IF(AND(CU7>1250,CU7<2501),(CU7-1250)*2.5%,IF(AND(CU7>2500,CU7<3751),(CU7-2500)*10%+31.25,IF(AND(CU7>3750,CU7<5001),(CU7-3750)*15%+31.25+125,IF(AND(CU7>5000,CU7<16666.68),(CU7-5000)*20%+31.25+125+187.5,"0"))))-CJ7 -> 182.4334947 | CX7: =CN7-CV7 -> 6719.754765 | CZ7: =(AK7-(Q7+S7))+CD7+CK7 -> 7385.551187
B8: 778.0505 | C8: 3 | D8: محمود السيد برسي | E8: 470.48 | K8: ='مارس 2022'!K8*107% -> 890.7900175 | M8: 81 | P8: 133.6185026 | Q8: ='مارس 2022'!Q8*110% -> 155.639 | S8: 20 | U8: 36.22 | V8: 38.22 | W8: 65 | X8: 27.43 | Y8: 36.3575 | Z8: 46.68303 | AA8: ='مارس 2022'!K8*8% -> 66.6011228 | AB8: 190 | AC8: 10 | AF8: 10 | AK8: =SUM(G8:AJ8) -> 1807.559173 | AT8: 20 | AU8: 20 | AV8: 286 | AX8: 0 | BA8: 0.5 | BB8: 3 | BD8: 0 | BG8: 0 | BH8: 0 | BP8: =(AK8-(P8+Q8))*0.0005 -> 0.7591508351 | BQ8: 3 | BS8: 293.2591508 | BT8: 1514.300022 | BU8: =(K8/107%)*120% -> 999.016842 | BW8: 2 | BX8: 0 | BY8: 0 | BZ8: 0.3 | CA8: 299.7050526 | CD8: 699.3117894 | CE8: 349.6558947 | CF8: 349.6558947 | CG8: حافزفبراير 2022 نصفين | CH8: 2213.611811 | CI8: 832.514035 | CJ8: 0 | CK8: 832.514035 | CN8: 3046.125846 | CR8: =K8+P8+X8+Y8+Z8+AA8+AB8+CD8+CI8 -> 2923.305997 | CS8: =E8+AV8+AY8+AZ8+BD8+BG8+BP8+BQ8+750 -> 1510.239151 | CT8: 1413.066846 | CU8: 1410 | CV8: 4 | CX8: 3042.125846 | CZ8: 3163.745997
B9: 3324.8003 | C9: 4 | D9: سمير حلمي محمود | E9: مـــــــــــــــــــــــــــــــــــــــــــــــــــــــــــــــــــــــــــــــــعــــــــــــــــــــــــــــــــــــــــــــــــــــــــــــــــــــــــــــــــاش | BU9: =(K9/107%)*120% -> 0 | CG9: حافزفبراير 2022 نصفين | CJ9: 0 | CK9: 0 | CR9: 0 | CS9: 0 | CT9: 0 | CU9: 0 | CV9: 0 | CX9: 0 | CZ9: 0
B10: 1536.4665 | C10: 5 | D10: ممدوح محمد عبد المجيد | E10: 609 | K10: ='مارس 2022'!K10*107% -> 1759.100496 | P10: 263.8650744 | Q10: ='مارس 2022'!Q10*110% -> 155.639 | U10: 70.73 | V10: 78.94 | W10: 94.69 | X10: 40.26 | Y10: 71.7975 | Z10: 92.18799 | AA10: ='مارس 2022'!K10*8% -> 131.5215324 | AB10: 190 | AC10: 10 | AF10: 10 | AK10: 2968.731593 | AT10: 8 | AU10: 8 | AV10: 528 | AX10: 60.16666667 | BA10: 0.5 | BB10: 3 | BD10: 0 | BG10: =IF(AT10<18,(P10/18)*(18-AT10),"0") -> 146.591708 | BH10: =IF(AU10<18,(Q10/18)*(18-AU10),"0") -> 86.46611111 | BP10: 1.274613759 | BQ10: 3 | BS10: 828.9990995 | BT10: 2139.732493 | BU10: 1972.822986 | BW10: 1 | BX10: 0 | BY10: 0 | CA10: 0 | CD10: 1972.822986 | CE10: 986.411493 | CF10: 986.411493 | CG10: حافزفبراير 2022 نصفين | CH10: 4112.555479 | CI10: 1644.019155 | CJ10: 164.4019155 | CK10: 1479.61724 | CN10: 5756.574634 | CR10: 6165.574734 | CS10: 2037.866322 | CT10: 4127.708412 | CU10: 4120 | CV10: 47.3480845 | CX10: 5709.22655 | CZ10: 6265.532818
B11: 1936.7856 | C11: 6 | D11: السعيد حسن الشورى | E11: 646.03 | K11: ='مارس 2022'!K11*107% -> 2217.425833 | P11: 332.613875 | Q11: ='مارس 2022'!Q11*110% -> 155.639 | U11: 89.99 | V11: 100.44 | W11: 119.89 | X11: 50.75 | Y11: 90.504 | Z11: 116.207136 | AA11: ='مارس 2022'!K11*8% -> 165.7888474 | AB11: 190 | AC11: 10 | AF11: 10 | AK11: 3649.248692 | AT11: 20 | AU11: 20 | AV11: 671 | AX11: 115.44 | BA11: 0.5 | BB11: 3 | BD11: 0 | BG11: 0 | BH11: 0 | BP11: 1.580497908 | BQ11: 5 | BS11: 796.5204979 | BT11: 2852.728194 | BU11: 2486.83271 | BW11: 3 | BX11: 0 | BY11: 0 | CA11: 0 | CD11: 2486.83271 | CE11: 1243.416355 | CF11: 1243.416355 | CG11: حافزفبراير 2022 نصفين | CH11: 5339.560904 | CI11: 2072.360592 | CJ11: 207.2360592 | CK11: 1865.124533 | CN11: 7411.921496 | CR11: 7722.482994 | CS11: 2073.610498 | CT11: 5648.872496 | CU11: 5640 | CV11: 264.5139408 | CX11: 7147.407556 | CZ11: 7845.566935
B12: 1852.0523 | C12: 7 | D12: خالد حسن سليمان | E12: 703.74 | K12: ='مارس 2022'!K12*107% -> 2120.414678 | P12: 318.0622017 | Q12: ='مارس 2022'!Q12*110% -> 155.639 | U12: 79.61 | V12: 89.13 | W12: 107.16 | X12: 48.52 | Y12: 86.5445 | Z12: 111.123138 | AA12: ='مارس 2022'!K12*8% -> 158.5356769 | AB12: 190 | AC12: 10 | AF12: 10 | AK12: 3484.739195 | AT12: 20 | AU12: 20 | AV12: 649 | AX12: 143.3333333 | BA12: 0.5 | BB12: 3 | BD12: 0 | BG12: 0 | BH12: 0 | BP12: 1.505518997 | BQ12: 5 | BS12: 802.3388523 | BT12: 2682.400343 | BU12: 2378.035153 | BW12: 3 | BX12: 0 | BY12: 0 | CA12: 0 | CD12: 2378.035153 | CE12: 1189.017577 | CF12: 1189.017577 | CG12: حافزفبراير 2022 نصفين | CH12: 5060.435496 | CI12: 1981.695961 | CJ12: 198.1695961 | CK12: 1783.526365 | CN12: 7042.131457 | CR12: 7392.931309 | CS12: 2109.245519 | CT12: 5283.68579 | CU12: 5280 | CV12: 201.5804039 | CX12: 6840.551053 | CZ12: 7490.661713
B13: 1850.6827 | C13: 8 | D13: رجب إبراهيم صالح | E13: 683.06 | K13: ='مارس 2022'!K13*107% -> 2118.846623 | P13: 317.8269935 | Q13: ='مارس 2022'!Q13*110% -> 155.639 | U13: 79.81 | V13: 89.11 | W13: 106.96 | X13: 48.49 | Y13: 86.4805 | Z13: 111.040962 | AA13: ='مارس 2022'!K13*8% -> 158.4184391 | AB13: 190 | AC13: 10 | AF13: 10 | AI13: 5.5 | AK13: 3488.122518 | AT13: 28 | AU13: 28 | AV13: 649 | AX13: 112.5916667 | BA13: 0.5 | BB13: 3 | BD13: 0 | BG13: 0 | BH13: 0 | BP13: 1.507328262 | BQ13: 3 | BS13: 769.5989949 | BT13: 2718.523523 | BU13: 2376.276587 | BW13: 3 | BX13: 0 | BY13: 0 | CA13: 0 | CD13: 2376.276587 | CE13: 1188.138293 | CF13: 1188.138293 | CG13: حافزفبراير 2022 نصفين | CH13: 5094.80011 | CI13: 1980.230489 | CJ13: 198.0230489 | CK13: 1782.20744 | CN13: 7075.030599 | CR13: 7387.610594 | CS13: 2086.567328 | CT13: 5301.043265 | CU13: 5300 | CV13: 205.7269511 | CX13: 6869.303648 | CZ13: 7490.967545
B14: 1759.8397 | C14: 9 | D14: أحمد محمد حسن | E14: 650.36 | K14: ='مارس 2022'!K14*107% -> 2014.840473 | P14: 302.2260709 | Q14: ='مارس 2022'!Q14*110% -> 155.639 | U14: 75.92 | V14: 84.75 | W14: 101.7 | X14: 46.11 | Y14: 82.2355 | Z14: 105.590382 | AA14: ='مارس 2022'!K14*8% -> 150.6422783 | AB14: 190 | AC14: 10 | AF14: 10 | AI14: 5.5 | AK14: 3335.153704 | AT14: 20 | AU14: 20 | AV14: 627 | AX14: 131.308 | AY14: 4.62 | BA14: 0.5 | BB14: 3 | BD14: 0 | BG14: 0 | BH14: 0 | BP14: 1.438644316 | BQ14: 3 | BS14: 770.8666443 | BT14: 2564.287059 | BU14: 2259.634175 | BW14: 3 | BX14: 0 | BY14: 0 | CA14: 0 | CD14: 2259.634175 | CE14: 1129.817087 | CF14: 1129.817087 | CG14: حافزفبراير 2022 نصفين | CH14: 4823.921234 | CI14: 1883.028479 | CJ14: 188.3028479 | CK14: 1694.725631 | CN14: 6706.949713 | CR14: 7034.307358 | CS14: 2036.418644 | CT14: 4997.888713 | CU14: 4990 | CV14: 153.9471521 | CX14: 6553.002561 | CZ14: 7133.87451
B15: 1647.7679 | C15: 10 | D15: شحاته عبد الله | E15: 648.22 | K15: ='مارس 2022'!K15*107% -> 1886.529469 | P15: 282.9794203 | Q15: ='مارس 2022'!Q15*110% -> 155.639 | U15: 76.45 | V15: 85.35 | W15: 101.93 | X15: 43.17 | Y15: 76.9985 | Z15: 98.866074 | AA15: ='مارس 2022'!K15*8% -> 141.0489322 | AB15: 200 | AC15: 10 | AF15: 10 | AI15: 5.5 | AK15: 3174.461395 | AT15: 24 | AU15: 24 | AV15: 583 | AX15: 111.3333333 | BA15: 0.5 | BB15: 3 | BD15: 0 | BG15: 0 | BH15: 0 | BP15: 1.367921487 | BQ15: 3 | BS15: 702.2012548 | BT15: 2472.26014 | BU15: 2115.733984 | BW15: 3 | BX15: 0 | BY15: 0 | CA15: 0 | CD15: 2115.733984 | CE15: 1057.866992 | CF15: 1057.866992 | CG15: حافزفبراير 2022 نصفين | CH15: 4587.994124 | CI15: 1763.111653 | CJ15: 176.3111653 | CK15: 1586.800488 | CN15: 6351.105777 | CR15: 6608.438032 | CS15: 1985.587921 | CT15: 4622.85011 | CU15: 4620 | CV15: 110.4388347 | CX15: 6240.666942 | CZ15: 6721.356867
B16: 675.2342 | C16: 12 | D16: أحمد شحاته مصطفى | E16: 368.01 | K16: ='مارس 2022'!K16*107% -> 773.0756356 | P16: 115.9613453 | Q16: ='مارس 2022'!Q16*110% -> 155.639 | U16: 29.87 | V16: 33.52 | W16: 65 | X16: 33.74 | Y16: 31.553 | Z16: 40.514052 | AA16: ='مارس 2022'!K16*8% -> 57.80004752 | AB16: 200 | AC16: 10 | AF16: 10 | AI16: 5.5 | AK16: 1562.17308 | AT16: 22 | AU16: 22 | AV16: 253 | AX16: 0 | BA16: 0.5 | BB16: 3 | BD16: 0 | BG16: 0 | BH16: 0 | BP16: 0.6452863675 | BQ16: 3 | BS16: 260.1452864 | BT16: 1302.027794 | BU16: 867.0007128 | BW16: 3 | BX16: 0 | BY16: 0 | CA16: 0 | CD16: 867.0007128 | CE16: 433.5003564 | CF16: 433.5003564 | CG16: حافزفبراير 2022 نصفين | CH16: 2169.028507 | CI16: 722.500594 | CJ16: 0 | CK16: 722.500594 | CN16: 2891.529101 | CR16: 2842.145387 | CS16: 1374.655286 | CT16: 1467.490101 | CU16: 1460 | CV16: 5.25 | CX16: 2886.279101 | CZ16: 2996.035387
B17: 1611.9978 | C17: 13 | D17: أحمد شوقي حميدة | E17: 619.05 | K17: ='مارس 2022'!K17*107% -> 1845.576281 | P17: 276.8364422 | Q17: ='مارس 2022'!Q17*110% -> 155.639 | U17: 74.8 | V17: 83.51 | W17: 99.71 | X17: 42.23 | Y17: 75.327 | Z17: 96.719868 | AA17: ='مارس 2022'!K17*8% -> 137.9870117 | AB17: 200 | AC17: 10 | AF17: 10 | AI17: 5.5 | AK17: 3113.835603 | AT17: 28 | AU17: 28 | AV17: 572 | AX17: 111.6666667 | BA17: 0.5 | BB17: 3 | BD17: 0 | BG17: 0 | BH17: 0 | BP17: 1.34068008 | BQ17: 3 | BS17: 691.5073467 | BT17: 2422.328256 | BU17: 2069.805175 | BW17: 3 | BX17: 0 | BY17: 0 | CA17: 0 | CD17: 2069.805175 | CE17: 1034.902588 | CF17: 1034.902588 | CG17: حافزفبراير 2022 نصفين | CH17: 4492.133432 | CI17: 1724.837646 | CJ17: 172.4837646 | CK17: 1552.353881 | CN17: 6216.971078 | CR17: 6469.319424 | CS17: 1945.39068 | CT17: 4523.928744 | CU17: 4520 | CV17: 99.2662354 | CX17: 6117.704842 | CZ17: 6580.35566
B18: 2198.0903 | C18: 14 | D18: عبد الناصر سيد هلال | E18: 826.2 | K18: ='مارس 2022'!K18*107% -> 2516.593584 | P18: 377.4890377 | Q18: ='مارس 2022'!Q18*110% -> 155.639 | U18: 95.19 | V18: 106.34 | W18: 120 | X18: 57.59 | Y18: 102.7145 | Z18: 131.885418 | AA18: ='مارس 2022'!K18*8% -> 188.1565297 | AB18: 190 | AC18: 10 | AF18: 10 | AK18: 4061.59807 | AT18: 20 | AU18: 20 | AV18: 770 | AX18: 188.9093333 | BA18: 0.5 | BB18: 3 | BD18: 0 | BG18: 0 | BH18: 0 | BP18: 1.764235016 | BQ18: 5 | BS18: 969.1735683 | BT18: 3092.424501 | BU18: 2822.347945 | BW18: 3 | BX18: 0 | BY18: 0 | CA18: 0 | CD18: 2822.347945 | CE18: 1411.173973 | CF18: 1411.173973 | CG18: حافزفبراير 2022 نصفين | CH18: 5914.772447 | CI18: 2351.956621 | CJ18: 235.1956621 | CK18: 2116.760959 | CN18: 8266.729068 | CR18: 8738.733636 | CS18: 2352.964235 | CT18: 6385.769401 | CU18: 6380 | CV18: 384.5543379 | CX18: 7882.17473 | CZ18: 8845.067974
B19: 1524.322 | C19: 15 | D19: إبراهيم أحمد السيد | E19: 587.46 | K19: ='مارس 2022'!K19*107% -> 1745.196258 | P19: 261.7794387 | Q19: ='مارس 2022'!Q19*110% -> 155.639 | U19: 70.76 | V19: 78.99 | W19: 94.28 | X19: 39.94 | Y19: 71.23 | Z19: 91.45932 | AA19: ='مارس 2022'!K19*8% -> 130.4819632 | AB19: 200 | AC19: 10 | AF19: 10 | AK19: 2959.75598 | AT19: 23 | AU19: 23 | AV19: 550 | AX19: 73.33333333 | AZ19: 3.04 | BA19: 0.5 | BB19: 3 | BD19: 0 | BG19: 0 | BH19: 0 | BP19: 1.271168771 | BQ19: 3 | BS19: 634.1445021 | BT19: 2325.611478 | BU19: 1957.229448 | BW19: 3 | BX19: 0 | BY19: 0 | CA19: 0 | CD19: 1957.229448 | CE19: 978.614724 | CF19: 978.614724 | CG19: حافزفبراير 2022 نصفين | CH19: 4282.840926 | CI19: 1631.02454 | CJ19: 163.102454 | CK19: 1467.922086 | CN19: 5913.865466 | CR19: 6128.340968 | CS19: 1894.771169 | CT19: 4233.569799 | CU19: 4230 | CV19: 65.147546 | CX19: 5848.71792 | CZ19: 6229.268514
B20: 1703.6112 | C20: 16 | D20: إيهاب أحمد صالح | E20: 647.92 | K20: ='مارس 2022'!K20*107% -> 1950.464463 | P20: 292.5696694 | Q20: ='مارس 2022'!Q20*110% -> 155.639 | U20: 73.27 | V20: 82.02 | W20: 98.55 | X20: 44.64 | Y20: 79.608 | Z20: 102.216672 | AA20: ='مارس 2022'!K20*8% -> 145.8291187 | AB20: 190 | AC20: 10 | AF20: 10 | AK20: 3234.806923 | AT20: 21 | AU20: 21 | AV20: 605 | AX20: 127.7 | AZ20: 4.18 | BA20: 0.5 | BB20: 3 | BD20: 0 | BG20: 0 | BH20: 0 | BP20: 1.393299127 | BQ20: 3 | BS20: 744.7732991 | BT20: 2490.033624 | BU20: 2187.436781 | BW20: 3 | BX20: 0 | BY20: 0 | CA20: 0 | CD20: 2187.436781 | CE20: 1093.71839 | CF20: 1093.71839 | CG20: حافزفبراير 2022 نصفين | CH20: 4677.470405 | CI20: 1822.863984 | CJ20: 182.2863984 | CK20: 1640.577586 | CN20: 6500.334389 | CR20: 6815.628688 | CS20: 2011.493299 | CT20: 4804.135389 | CU20: 4800 | CV20: 131.4636016 | CX20: 6368.870787 | CZ20: 6907.182289
B21: 2123.1047 | C21: 19 | D21: محمد محمد نوفل | E21: 817.96 | K21: ='مارس 2022'!K21*107% -> 2430.742571 | P21: 364.6113857 | Q21: ='مارس 2022'!Q21*110% -> 155.639 | U21: 98.6 | V21: 110.06 | W21: 120 | X21: 55.63 | Y21: 99.2105 | Z21: 127.386282 | AA21: ='مارس 2022'!K21*8% -> 181.7377623 | AB21: 190 | AC21: 10 | AF21: 10 | AK21: 3953.617501 | AT21: 18 | AU21: 18 | AV21: 748 | AX21: 161.7933333 | BA21: 0.5 | BB21: 3 | BD21: 0 | BG21: 0 | BH21: 0 | BP21: 1.716683558 | BQ21: 5 | BS21: 920.0100169 | BT21: 3033.607484 | BU21: 2726.066435 | BW21: 3 | BX21: 0 | BY21: 0 | CA21: 0 | CD21: 2726.066435 | CE21: 1363.033217 | CF21: 1363.033217 | CG21: حافزفبراير 2022 نصفين | CH21: 5759.673919 | CI21: 2271.722029 | CJ21: 227.1722029 | CK21: 2044.549826 | CN21: 8031.395948 | CR21: 8447.106965 | CS21: 2322.676684 | CT21: 6124.430281 | CU21: 6120 | CV21: 340.5777971 | CX21: 7690.818151 | CZ21: 8568.594762
B22: 2128.3049 | C22: 20 | D22: عبد الباسط هريدي | E22: 799.39 | K22: ='مارس 2022'!K22*107% -> 2436.69628 | P22: 365.504442 | Q22: ='مارس 2022'!Q22*110% -> 155.639 | U22: 91.24 | V22: 102.23 | W22: 120 | X22: 55.76 | Y22: 99.4535 | Z22: 127.698294 | AA22: ='مارس 2022'!K22*8% -> 182.1828994 | AB22: 190 | AC22: 10 | AF22: 10 | AK22: 3946.404415 | AT22: 18 | AU22: 18 | AV22: 748 | AX22: 142.2633333 | BA22: 0.5 | BB22: 3 | BD22: 0 | BG22: 0 | BH22: 0 | BP22: 1.712630487 | BQ22: 5 | BS22: 900.4759638 | BT22: 3045.928452 | BU22: 2732.743492 | BW22: 3 | BX22: 0 | BY22: 0 | CA22: 0 | CD22: 2732.743492 | CE22: 1366.371746 | CF22: 1366.371746 | CG22: حافزفبراير 2022 نصفين | CH22: 5778.671943 | CI22: 2277.286243 | CJ22: 227.7286243 | CK22: 2049.557619 | CN22: 8055.958186 | CR22: 8467.32515 | CS22: 2304.10263 | CT22: 6163.22252 | CU22: 6160 | CV22: 348.0213757 | CX22: 7707.936811 | CZ22: 8573.066526
B23: 1823.9006 | C23: 21 | D23: أحمد حسين حسن | E23: 681.76 | K23: ='مارس 2022'!K23*107% -> 2088.183797 | P23: 313.2275695 | Q23: ='مارس 2022'!Q23*110% -> 155.639 | U23: 84.55 | V23: 94.43 | W23: 112.84 | X23: 47.79 | Y23: 85.229 | Z23: 109.434036 | AA23: ='مارس 2022'!K23*8% -> 156.1258914 | AB23: 190 | AC23: 8 | AF23: 10 | AK23: 3455.449294 | AT23: 18 | AU23: 18 | AV23: 649 | AX23: 144.8713333 | AZ23: 21.47 | BA23: 0.5 | BB23: 3 | BD23: 0 | BG23: 0 | BH23: 0 | BP23: 1.493291362 | BQ23: 3 | BS23: 823.3346247 | BT23: 2632.114669 | BU23: 2341.88837 | BW23: 3 | BX23: 0 | BY23: 0 | CA23: 0 | CD23: 2341.88837 | CE23: 1170.944185 | CF23: 1170.944185 | CG23: حافزفبراير 2022 نصفين | CH23: 4974.00304 | CI23: 1951.573642 | CJ23: 195.1573642 | CK23: 1756.416278 | CN23: 6925.576682 | CR23: 7283.452306 | CS23: 2106.723291 | CT23: 5176.729015 | CU23: 5170 | CV23: 182.5926358 | CX23: 6742.984046 | CZ23: 7398.114942
B24: 1759.8076 | C24: 22 | D24: كمال عطية عبد الغني | E24: 650.36 | K24: ='مارس 2022'!K24*107% -> 2014.803721 | P24: 302.2205582 | Q24: ='مارس 2022'!Q24*110% -> 155.639 | U24: 75.91 | V24: 84.75 | W24: 101.7 | X24: 46.11 | Y24: 82.234 | Z24: 105.588456 | AA24: ='مارس 2022'!K24*8% -> 150.6395306 | AB24: 190 | AC24: 10 | AF24: 10 | AK24: 3329.595266 | AT24: 18 | AU24: 18 | AV24: 627 | AX24: 139.806 | AZ24: 51.32 | BA24: 0.5 | BB24: 3 | BD24: 0 | BG24: 0 | BH24: 0 | BP24: 1.435867854 | BQ24: 3 | BS24: 826.0618679 | BT24: 2503.533398 | BU24: 2259.592958 | BW24: 3 | BX24: 0 | BY24: 0 | CA24: 0 | CD24: 2259.592958 | CE24: 1129.796479 | CF24: 1129.796479 | CG24: حافزفبراير 2022 نصفين | CH24: 4763.126357 | CI24: 1882.994132 | CJ24: 188.2994132 | CK24: 1694.694719 | CN24: 6646.120489 | CR24: 7034.183356 | CS24: 2083.115868 | CT24: 4951.067489 | CU24: 4950 | CV24: 147.9505868 | CX24: 6498.169902 | CZ24: 7128.243943
B25: 1579.5233 | C25: 24 | D25: خالد عربي محمد | E25: 607.16 | K25: ='مارس 2022'!K25*107% -> 1808.396226 | P25: 271.2594339 | Q25: ='مارس 2022'!Q25*110% -> 155.639 | U25: 73.3 | V25: 81.83 | W25: 97.7 | X25: 41.38 | Y25: 73.8095 | Z25: 94.771398 | AA25: ='مارس 2022'!K25*8% -> 135.2071945 | AB25: 200 | AC25: 10 | AF25: 10 | AK25: 3053.292753 | AT25: 21 | AU25: 16 | AV25: 561 | AX25: 97.33333333 | AZ25: 2.73 | BA25: 0.5 | BB25: 3 | BD25: 0 | BG25: 0 | BH25: 17.29322222 | BP25: 1.313197159 | BQ25: 3 | BS25: 686.1697527 | BT25: 2367.123 | BU25: 2028.107917 | BW25: 3 | BX25: 0 | BY25: 0 | CA25: 0 | CD25: 2028.107917 | CE25: 1014.053959 | CF25: 1014.053959 | CG25: حافزفبراير 2022 نصفين | CH25: 4395.230917 | CI25: 1690.089931 | CJ25: 169.0089931 | CK25: 1521.080938 | CN25: 6085.320848 | CR25: 6343.021601 | CS25: 1925.203197 | CT25: 4417.818404 | CU25: 4410 | CV25: 86.2410069 | CX25: 5999.079841 | CZ25: 6446.842608
B26: 1524.3327 | C26: 25 | D26: عمرو شوقي عنتر | E26: 587.47 | K26: ='مارس 2022'!K26*107% -> 1745.208508 | P26: 261.7812762 | Q26: ='مارس 2022'!Q26*110% -> 155.639 | U26: 70.76 | V26: 78.99 | W26: 94.28 | X26: 39.94 | Y26: 71.2305 | Z26: 91.459962 | AA26: ='مارس 2022'!K26*8% -> 130.4828791 | AB26: 200 | AC26: 10 | AF26: 10 | AK26: 2959.772126 | AT26: 2 | AU26: 2 | AV26: 550 | AX26: 78.5 | BA26: 0.5 | BB26: 3 | BD26: 0 | BG26: 232.6944678 | BH26: 138.3457778 | BP26: 1.271175925 | BQ26: 3 | BS26: 1007.311421 | BT26: 1952.460704 | BU26: 1957.243187 | BW26: 3 | BX26: 0 | BY26: 0 | CA26: 0 | CD26: 1957.243187 | CE26: 978.6215934 | CF26: 978.6215934 | CG26: حافزفبراير 2022 نصفين | CH26: 3909.703891 | CI26: 1631.035989 | CJ26: 163.1035989 | CK26: 1467.93239 | CN26: 5540.73988 | CR26: 6128.382301 | CS26: 2124.435644 | CT26: 4003.946658 | CU26: 4000 | CV26: 30.6464011 | CX26: 5510.093479 | CZ26: 6229.308702
B27: 1599.008 | C27: 26 | D27: سعيد محمد علي | E27: 615.34 | K27: ='مارس 2022'!K27*107% -> 1830.704259 | P27: 274.6056389 | Q27: ='مارس 2022'!Q27*110% -> 155.639 | U27: 70.76 | V27: 78.99 | W27: 98.94 | X27: 41.89 | Y27: 74.72 | Z27: 95.94048 | AA27: ='مارس 2022'!K27*8% -> 136.8750848 | AB27: 190 | AC27: 10 | AF27: 10 | AK27: 3069.064463 | AT27: 18 | AU27: 18 | AV27: 572 | AX27: 107.1666667 | BA27: 0.5 | BB27: 3 | BD27: 0 | BG27: 0 | BH27: 0 | BP27: 1.319409912 | BS27: 683.9860766 | BT27: 2385.078386 | BU27: 2053.126272 | BW27: 3 | BX27: 0 | BY27: 0 | CA27: 0 | CD27: 2053.126272 | CE27: 1026.563136 | CF27: 1026.563136 | CG27: حافزفبراير 2022 نصفين | CH27: 4438.204658 | CI27: 1710.93856 | CJ27: 171.093856 | CK27: 1539.844704 | CN27: 6149.143218 | CR27: 6408.800295 | CS27: 1938.65941 | CT27: 4470.140885 | CU27: 4470 | CV27: 93.156144 | CX27: 6055.987074 | CZ27: 6506.396439
B28: 1210.384 | C28: 27 | D28: محمد حسن عبد الفتاح | E28: 477.64 | K28: ='مارس 2022'!K28*107% -> 1385.768642 | P28: 207.8652962 | Q28: ='مارس 2022'!Q28*110% -> 155.639 | U28: 52.68 | V28: 58.73 | W28: 75.07 | X28: 31.71 | Y28: 56.56 | Z28: 72.62304 | AA28: ='مارس 2022'!K28*8% -> 103.6088704 | AB28: 200 | AC28: 10 | AF28: 10 | AK28: 2420.254848 | AT28: 21 | AU28: 21 | AV28: 440 | AX28: 32.95833333 | BA28: 0.5 | BB28: 3 | BD28: 0 | BG28: 0 | BH28: 0 | BP28: 1.028375276 | BQ28: 3 | BS28: 480.4867086 | BT28: 1939.76814 | BU28: 1554.133056 | BW28: 3 | BX28: 0 | BY28: 0 | CA28: 0 | CD28: 1554.133056 | CE28: 777.066528 | CF28: 777.066528 | CG28: حافزفبراير 2022 نصفين | CH28: 3493.901196 | CI28: 1295.11088 | CJ28: 0 | CK28: 1295.11088 | CN28: 4789.012076 | CR28: 4907.379784 | CS28: 1671.668375 | CT28: 3235.711409 | CU28: 3230 | CV28: 104.25 | CX28: 4684.762076 | CZ28: 5113.859784
B29: 1156.7556 | C29: 28 | D29: سامح سعيد إبراهيم | E29: 467.95 | K29: ='مارس 2022'!K29*107% -> 1324.369486 | P29: 198.655423 | Q29: ='مارس 2022'!Q29*110% -> 155.639 | U29: 50.38 | V29: 56.28 | W29: 71.79 | X29: 30.31 | Y29: 54.054 | Z29: 69.405336 | AA29: ='مارس 2022'!K29*8% -> 99.01827936 | AB29: 200 | AC29: 6 | AF29: 10 | AK29: 2325.901525 | AT29: 21 | AU29: 21 | AV29: 407 | AX29: 21.41666667 | BA29: 0.5 | BB29: 3 | BD29: 0 | BG29: 0 | BH29: 0 | BP29: 0.9858035509 | BQ29: 3 | BS29: 435.9024702 | BT29: 1889.999055 | BU29: 1485.27419 | BW29: 3 | BX29: 0 | BY29: 0 | BZ29: 0.2 | CA29: =BU29*BZ29 -> 297.0548381 | CD29: =BU29-BV29-BY29-CA29-CB29-CC29 -> 1188.219352 | CE29: 594.1096762 | CF29: 594.1096762 | CG29: حافزفبراير 2022 نصفين | CH29: 3078.218407 | CI29: 1237.728492 | CJ29: 0 | CK29: 1237.728492 | CN29: 4315.946899 | CR29: 4401.760369 | CS29: 1628.935804 | CT29: 2772.824566 | CU29: 2770 | CV29: 58.25 | CX29: 4257.696899 | CZ29: 4596.210369
B30: 1140.7163 | C30: 29 | D30: جمال عبد الستار | E30: 457.64 | K30: ='مارس 2022'!K30*107% -> 1306.006092 | P30: 195.9009138 | Q30: ='مارس 2022'!Q30*110% -> 155.639 | U30: 49.69 | V30: 55.38 | W30: 70.73 | X30: 29.89 | Y30: 53.3045 | Z30: 68.442978 | AA30: ='مارس 2022'!K30*8% -> 97.64531528 | AB30: 200 | AC30: 10 | AF30: 10 | AK30: 2302.628799 | AT30: 21 | AU30: 21 | AV30: 418 | AX30: 25.70833333 | BA30: 0.5 | BB30: 3 | BD30: 0 | BG30: 0 | BH30: 0 | BP30: 0.9755444426 | BQ30: 3 | BS30: 451.1838778 | BT30: 1851.444921 | BU30: 1464.679729 | BW30: 3 | BX30: 0 | BY30: 0 | CA30: =BU30*BZ30 -> 0 | CD30: =BU30-BV30-BY30-CA30-CB30-CC30 -> 1464.679729 | CE30: 732.3398646 | CF30: 732.3398646 | CG30: حافزفبراير 2022 نصفين | CH30: 3316.12465 | CI30: 1220.566441 | CJ30: 0 | CK30: 1220.566441 | CN30: 4536.691091 | CR30: 4636.435969 | CS30: 1629.615544 | CT30: 3006.820425 | CU30: 3000 | CV30: 81.25 | CX30: 4455.441091 | CZ30: 4832.235969
B31: 1012.1879 | C31: 30 | D31: عصام محمد السيد | E31: 419.81 | K31: ='مارس 2022'!K31*107% -> 1158.853927 | P31: 173.828089 | Q31: ='مارس 2022'!Q31*110% -> 155.639 | U31: 43.92 | V31: 48.88 | W31: 65 | X31: 26.52 | Y31: 47.2985 | Z31: 60.731274 | AA31: ='مارس 2022'!K31*8% -> 86.64328424 | AB31: 200 | AC31: 10 | AF31: 10 | AK31: 2087.314074 | AT31: 21 | AU31: 21 | AV31: 374 | AX31: 11.75 | BA31: 0.5 | BB31: 3 | BD31: 0 | BG31: 0 | BH31: 0 | BP31: 0.8789234925 | BQ31: 3 | BS31: 393.1289235 | BT31: 1694.18515 | BU31: 1299.649264 | BW31: 3 | BX31: 0 | BY31: 0 | CA31: 0 | CD31: 1299.649264 | CE31: 649.8246318 | CF31: 649.8246318 | CG31: حافزفبراير 2022 نصفين | CH31: 2993.834414 | CI31: 1083.041053 | CJ31: 0 | CK31: 1083.041053 | CN31: 4076.875467 | CR31: 4136.565391 | CS31: 1547.688923 | CT31: 2588.876467 | CU31: 2580 | CV31: 39.25 | CX31: 4037.625467 | CZ31: 4314.365391
K32: ='مارس 2022'!K32*107% -> 0 | P32: 0 | Q32: ='مارس 2022'!Q32*110% -> 0 | Z32: 0 | AA32: ='مارس 2022'!K32*8% -> 0 | AK32: 0 | BD32: 0 | BG32: 0 | BH32: 0 | BP32: 0 | BS32: 0 | BT32: 0 | BU32: 0 | BX32: 0 | BY32: 0 | CA32: 0 | CD32: 0 | CE32: 0 | CF32: 0 | CG32: حافزفبراير 2022 نصفين | CH32: 0 | CI32: 0 | CJ32: 0 | CK32: 0 | CN32: 0 | CR32: 0 | CS32: 750 | CT32: -750 | CU32: -750 | CV32: 0 | CX32: 0 | CZ32: 0
K33: ='مارس 2022'!K33*107% -> 0 | P33: 0 | Q33: ='مارس 2022'!Q33*110% -> 0 | Z33: 0 | AA33: ='مارس 2022'!K33*8% -> 0 | AK33: 0 | BD33: 0 | BG33: 0 | BH33: 0 | BP33: 0 | BS33: 0 | BT33: 0 | BU33: 0 | BX33: 0 | BY33: 0 | CA33: 0 | CD33: 0 | CE33: 0 | CF33: 0 | CG33: حافزفبراير 2022 نصفين | CH33: 0 | CI33: 0 | CJ33: 0 | CK33: 0 | CN33: 0 | CR33: 0 | CS33: 750 | CT33: -750 | CU33: -750 | CV33: 0 | CX33: 0 | CZ33: 0
D34: السائقين | K34: ='مارس 2022'!K34*107% -> 0 | P34: 0 | Q34: ='مارس 2022'!Q34*110% -> 0 | AA34: ='مارس 2022'!K34*8% -> 0 | BP34: 0 | CA34: 0 | CG34: حافزفبراير 2022 نصفين | CJ34: 0 | CK34: 0 | CR34: 0 | CV34: 0 | CZ34: 0
B35: 1178.4552 | C35: 32 | D35: أحمد محمد حسن خاطر | E35: 479.37 | K35: ='مارس 2022'!K35*107% -> 1349.213358 | O35: 1112.59 | P35: 202.3820038 | Q35: ='مارس 2022'!Q35*110% -> 0 | U35: 50.91 | V35: 56.88 | W35: 68.11 | X35: 30.87 | Y35: 55.068 | Z35: 70.707312 | AA35: ='مارس 2022'!K35*8% -> 100.8757651 | AB35: 190 | AC35: 10 | AF35: 10 | AK35: 3307.606439 | AT35: 0 | AU35: 0 | AV35: 407 | AX35: 19.625 | AZ35: 47.76 | BA35: 0.5 | BB35: 3 | BD35: 0 | BG35: =IF(AT35<18,(P35/18)*(18-AT35),"0") -> 202.3820038 | BP35: 1.552612218 | BQ35: 3 | BS35: 684.819616 | BT35: 2622.786823 | BW35: 3 | BX35: 0 | BY35: 0 | CA35: 0 | CD35: =BU35-BV35-BY35-CB35-CC35 -> 0 | CG35: حافزفبراير 2022 نصفين | CH35: =BT35+CD35 -> 2622.786823 | CI35: 1260.947064 | CJ35: 0 | CK35: 1260.947064 | CN35: =(BT35+CD35+CI35)-CL35 -> 3883.733887 | CR35: 3260.063503 | CS35: 1891.064616 | CT35: 1368.998887 | CU35: 1360 | CV35: 2.75 | CX35: 3880.983887 | CZ35: 4568.553503
B36: 984.4963 | C36: 33 | D36: إبراهيم الحسيني إبراهيم | E36: 427.51 | K36: ='مارس 2022'!K36*107% -> 1127.149814 | N36: 2144.85 | P36: 169.0724721 | Q36: ='مارس 2022'!Q36*110% -> 0 | U36: 42.63 | V36: 47.54 | W36: 65 | X36: 25.79 | Y36: 46.0045 | Z36: 59.069778 | AA36: ='مارس 2022'!K36*8% -> 84.27288328 | AB36: 190 | AC36: 6 | AF36: 10 | AG36: 214.48 | AK36: 4231.859447 | AT36: 31 | AU36: 0 | AV36: 308 | AX36: 0 | BA36: 0.5 | BB36: 3 | BD36: 0 | BG36: 0 | BP36: 2.031393488 | BQ36: 3 | BS36: 316.5313935 | BT36: 3915.328054 | BW36: 3 | BX36: 0 | BY36: 0 | CA36: 0 | CD36: 0 | CG36: حافزفبراير 2022 نصفين | CH36: 3915.328054 | CI36: 948.07 | CJ36: 0 | CK36: 948.07 | CN36: 4863.398054 | CR36: 2649.429447 | CS36: 1490.541393 | CT36: 1158.888054 | CU36: 1150 | CV36: 0 | CX36: 4863.398054 | CZ36: 5179.929447
B37: 976.6425 | C37: 40 | D37: أحمد محمود عبد الله | E37: 427.51 | K37: ='مارس 2022'!K37*107% -> 1118.157998 | N37: 2155.85 | P37: 167.7236997 | Q37: ='مارس 2022'!Q37*110% -> 0 | U37: 42.63 | V37: 47.54 | W37: 65 | X37: 25.59 | Y37: 45.6375 | Z37: 58.59855 | AA37: ='مارس 2022'!K37*8% -> 83.600598 | AB37: 190 | AC37: 10 | AF37: 10 | AG37: 215.59 | AK37: 4235.918346 | AT37: 31 | AU37: 0 | AV37: 506 | AX37: 0 | BA37: 0.5 | BB37: 3 | BD37: 0 | BG37: 0 | BP37: 2.034097323 | BQ37: 3 | BS37: 514.5340973 | BT37: 3721.384249 | BW37: 3 | BX37: 0 | BY37: 0 | CA37: 0 | CD37: 0 | CG37: حافزفبراير 2022 نصفين | CH37: 3721.384249 | CI37: 1045.007475 | CJ37: 0 | CK37: 1045.007475 | CN37: 4766.391724 | CR37: 2734.315821 | CS37: 1688.544097 | CT37: 1045.771724 | CU37: 1040 | CV37: 0 | CX37: 4766.391724 | CZ37: 5280.925821
B38: 1513.515 | C38: 34 | D38: خالد العوضي عبد الله | E38: 588.96 | K38: ='مارس 2022'!K38*107% -> 1732.823324 | N38: 0 | P38: 259.9234985 | Q38: ='مارس 2022'!Q38*110% -> 0 | U38: 65.73 | V38: 73.52 | W38: 94 | X38: 39.65 | Y38: 70.725 | Z38: 90.8109 | AA38: ='مارس 2022'!K38*8% -> 129.556884 | AB38: 190 | AC38: 10 | AF38: 10 | AG38: 0 | AK38: 2766.739606 | AT38: 18 | AU38: 0 | AV38: 286 | AX38: 0 | BA38: 0.5 | BB38: 3 | BD38: 0 | BG38: 0 | BJ38: 325 | BP38: 1.253408054 | BQ38: 3 | BS38: 618.7534081 | BT38: 2147.986198 | BW38: 3 | BX38: 0 | BY38: 0 | CA38: 0 | CD38: 0 | CG38: حافزفبراير 2022 نصفين | CH38: 2147.986198 | CI38: 1619.46105 | CJ38: 161.946105 | CK38: 1457.514945 | CN38: 3767.447248 | CR38: 4132.950656 | CS38: 1629.213408 | CT38: 2503.737248 | CU38: 2500 | CV38: -130.696105 | CX38: 3898.143353 | CZ38: 4224.254551
B39: 1710.4592 | C39: 36 | D39: جمال خميس إسماعيل | E39: 653.4 | K39: ='مارس 2022'!K39*107% -> 1958.304738 | N39: 0 | P39: 293.7457107 | Q39: ='مارس 2022'!Q39*110% -> 0 | U39: 79.33 | V39: 88.58 | W39: 105.81 | X39: 44.81 | Y39: 79.928 | Z39: 102.627552 | AA39: ='مارس 2022'!K39*8% -> 146.4153075 | AB39: 190 | AC39: 10 | AF39: 10 | AG39: 0 | AK39: 3109.551308 | AT39: 0 | AU39: 0 | AV39: 385 | AX39: 3.4167 | BA39: 0.5 | BB39: 3 | BD39: 0 | BG39: 293.7457107 | BP39: 1.407902799 | BQ39: 3 | BS39: 690.0703135 | BT39: 2419.480995 | BW39: 3 | BX39: 0 | BY39: 0 | CA39: 0 | CD39: 0 | CG39: حافزفبراير 2022 نصفين | CH39: 2419.480995 | CI39: 1830.191344 | CJ39: 183.0191344 | CK39: 1647.17221 | CN39: 4249.672339 | CR39: 4646.022652 | CS39: 2086.553614 | CT39: 2559.469039 | CU39: 2550 | CV39: -146.7691344 | CX39: 4396.441473 | CZ39: 4756.723518
A40: نقل م.نصر | B40: 1573.4564 | C40: 37 | D40: محمد خليل إبراهيم | E40: 616.3 | F40: نقل م.نصر | K40: ='مارس 2022'!K40*107% -> 1801.450232 | P40: 270.2175349 | Q40: ='مارس 2022'!Q40*110% -> 0 | U40: 80.67 | V40: 90.36 | W40: 97.36 | X40: 41.22 | Y40: 73.526 | Z40: 94.407384 | AA40: ='مارس 2022'!K40*8% -> 134.6878678 | AB40: 200 | AC40: 10 | AF40: 10 | AK40: 2903.899019 | AT40: 14 | AU40: 0 | AV40: 352 | AX40: 0 | BA40: 0.5 | BB40: 3 | BG40: 60.04834108 | BP40: 1.316840742 | BS40: 416.8651818 | BT40: 2487.033837 | BW40: 3 | BX40: 0 | BY40: 0 | CA40: 0 | CD40: 0 | CG40: حافزفبراير 2022 نصفين | CH40: 2487.033837 | CI40: 1683.598348 | CJ40: 168.3598348 | CK40: 1515.238513 | CN40: 4170.632185 | CR40: 4299.107367 | CS40: 1779.665182 | CT40: 2519.442185 | CU40: 2510 | CV40: -136.1098348 | CX40: 4306.74202 | CZ40: 4419.137532
A41: نقل م.نصر | B41: 1579.5233 | C41: 38 | D41: شعبان عبد اللطيف | E41: 632.8 | F41: نقل م.نصر | K41: ='مارس 2022'!K41*107% -> 1808.396226 | P41: 271.2594339 | Q41: ='مارس 2022'!Q41*110% -> 0 | U41: 77.71 | V41: 86.7 | W41: 97.7 | X41: 41.38 | Y41: 73.8095 | Z41: 94.771398 | AA41: ='مارس 2022'!K41*8% -> 135.2071945 | AB41: 200 | AC41: 10 | AF41: 10 | AK41: 2906.933753 | AT41: 14 | AU41: 0 | AV41: 352 | AX41: 0 | BA41: 0.5 | BB41: 3 | BG41: 60.27987421 | BP41: 1.317837159 | BS41: 417.0977114 | BT41: 2489.836041 | BW41: 3 | BX41: 0 | BY41: 0 | CA41: 0 | CD41: 0 | CG41: حافزفبراير 2022 نصفين | CH41: 2489.836041 | CI41: 1690.089931 | CJ41: 169.0089931 | CK41: 1521.080938 | CN41: 4179.925972 | CR41: 4314.913684 | CS41: 1796.397711 | CT41: 2518.515972 | CU41: 2510 | CV41: -136.7589931 | CX41: 4316.684965 | CZ41: 4428.01469
B42: 1615.91 | C42: 39 | D42: محمد محمود محمود شرارة | E42: 611.49 | K42: ='مارس 2022'!K42*107% -> 1850.055359 | N42: 0 | P42: 277.5083039 | Q42: ='مارس 2022'!Q42*110% -> 0 | U42: 70.12 | V42: 78.28 | W42: 100.31 | X42: 42.34 | Y42: 75.5125 | Z42: 96.9546 | AA42: ='مارس 2022'!K42*8% -> 138.321896 | AB42: 190 | AC42: 10 | AF42: 10 | AG42: 0 | AK42: 2939.402659 | AT42: 0 | AU42: 0 | AV42: 352 | AX42: 1.25 | BA42: 0.5 | BB42: 3 | BD42: 0 | BG42: 277.5083039 | BP42: 1.330947178 | BQ42: 3 | BS42: 638.589251 | BT42: 2300.813408 | BW42: 3 | BX42: 0 | BY42: 0 | CA42: 0 | CD42: 0 | CG42: حافزفبراير 2022 نصفين | CH42: 2300.813408 | CI42: 1729.0237 | CJ42: 172.90237 | CK42: 1556.12133 | CN42: 4029.837108 | CR42: 4399.716359 | CS42: =E42+AV42+AY42+AZ42+BD42+BG42+BP42+BQ42+750 -> 1995.329251 | CT42: 2404.387108 | CU42: 2400 | CV42: -144.15237 | CX42: 4173.989478 | CZ42: 4495.523989
B43: 976.6425 | C43: 40 | K43: ='مارس 2022'!K43*107% -> 0 | P43: 0 | Q43: ='مارس 2022'!Q43*110% -> 0 | AA43: ='مارس 2022'!K43*8% -> 0 | AK43: 0 | AV43: 0 | BA43: 0.5 | BB43: 3 | BD43: 0 | BG43: 0 | BP43: 0 | BS43: 3.5 | BT43: -3.5 | BW43: 3 | BX43: 0 | BY43: 0 | CA43: 0 | CD43: 0 | CH43: -3.5 | CJ43: 0 | CK43: 0 | CN43: -3.5 | CR43: 0 | CS43: 750 | CT43: -750 | CU43: -750 | CV43: 0 | CX43: -3.5 | CZ43: 0
C44: 41 | K44: ='مارس 2022'!K44*107% -> 0 | P44: 0 | Q44: ='مارس 2022'!Q44*110% -> 0 | Z44: =B44*6% -> 0 | AA44: ='مارس 2022'!K44*8% -> 0 | BA44: 0.5 | BB44: 3 | BD44: 0 | BG44: 0 | BP44: 0 | BS44: 3.5 | BW44: 3 | CA44: 0 | CD44: 0 | CI44: 0 | CJ44: 0 | CK44: 0 | CN44: 0 | CR44: 0 | CS44: 750 | CT44: -750 | CU44: -750 | CV44: 0 | CX44: 0 | CZ44: 0
C45: 42 | K45: ='مارس 2022'!K45*107% -> 0 | P45: 0 | Q45: ='مارس 2022'!Q45*110% -> 0 | Z45: 0 | AA45: ='مارس 2022'!K45*8% -> 0 | BA45: 0.5 | BB45: 3 | BD45: 0 | BG45: 0 | BP45: 0 | BS45: 3.5 | BW45: 3 | CA45: 0 | CD45: 0 | CJ45: 0 | CK45: 0 | CN45: 0 | CR45: 0 | CS45: 750 | CT45: -750 | CU45: -750 | CV45: =IF(AND(CU45>1250,CU45<2501),(CU45-1250)*2.5%,IF(AND(CU45>2500,CU45<3751),(CU45-2500)*10%+31.25,IF(AND(CU45>3750,CU45<5001),(CU45-3750)*15%+31.25+125,IF(AND(CU45>5000,CU45<16666.68),(CU45-5000)*20%+31.25+125+187.5,"0"))))-CJ45 -> 0 | CX45: 0 | CZ45: 0

Sheet مايو 2022
E2: الــــــمــــــــســــــــتـــــــــحـــــــــــقـــــــــــــــــــات | AL2: الـــــــــتـــــــــأثيرات | AV2: الــــــــــــــــــــمـــــــــــــــــــــســـــــــــــــــــتــــــــــــــــــــــــــــــــــــقــــــــــــــــــــــــــطـــــــــــــــــــــــــع | BV2: الــــحــافــــــــز
CS4: استخراج الضرائب شهريا خلال عام 2022
D5: الاسم | E5: مجموع العلاوات | F5: كود | G5: غياب | H5: مرضي | I5: إصابة | J5: إيقاف | K5: الأجر الأساسي 7/2021 | L5: بدل تمثيل | M5: بدل تفرغ | N5: عمولة انتاج | O5: معونة مرضي وإصابة | P5: بدل مخاطر | Q5: بدل انتقال | R5: بدل إقامة | S5: انتقال محامين | U5: 2014 | V5: 2015 | W5: 2016 | X5: 0.03 | Y5: 0.05 | Z5: 0.06 | AA5: 8*% | AB5: علاوة استثنائية | AC5: إجتماعية | AD5: بدل نقدي | AE5: فرق بدل نقدي | AF5: المنحة | AG5: بدل تباع | AH5: م. صياتة | AI5: بدل مظهر | AK5: إجمالي المستحق | AL5: عدد أيام الحضور | AM5: أيام الجمعة والسبت | AN5: غياب | AO5: أجازات عارضة | AP5: أجازات اعتيادي | AQ5: أجازات سنوية | AR5: أجازات مرضي تطبيق قرار | AS5: أجازات مرضي لم ينطبق القرار | AT5: صافي أيام عمل بدل مخاطر | AU5: صافي أيام العمل بدل انتقال | AV5: تأمينات شاملة 1/1/2020 | AX5: كسب عمل | AY5: مدة سابقة | AZ5: اشتراكات أجازة خاصة | BA5: إعانة وفاة | BB5: نقابة | BC5: ن. رياضي | BD5: ص. التأميني | BE5: غياب | BF5: غياب حصة الشركة أساسي / متغير | BG5: غياب بدل مخاطر | BH5: غياب بدل انتقال | BI5: فاقد إنتاج | BJ5: جزاءات | BK5: تلفيات | BL5: عجوزات | BM5: مخالفات مرور | BN5: فاقد سولار | BO5: إيجار سكن | BP5: عهد | BQ5: شهداء 0.0005 | BR5: صندوق إعاقة | BS5: مصاريف استئناف | BT5: إجمالي المستقطع | BU5: صافي المستحق | BV5: الحافز | BW5: خصم مبالغ من الحافز | BX5: إجازات عارضة+اعتيادي+سنوي | BY5: نسبة الخصم للأجازات | BZ5: المخصوم بعد نسبة الأداء | CA5: نسبة خصم إداء-أجازات | CB5: المبلغ المخصوم بعد نسبة أداء - أجازات | CC5: خصم مريضي ينطبق القرار | CD5: خصم مرضي لم ينطبق القرار | CE5: صافي الحافز | CF5: نصف أول شهر مارس 2022 | CG5: نصف ثاني مارس 2022 | CH5: ملاحظات حافز | CI5: مرتب وحافز | CJ5: مكافأة | CK5: ضريبة من المكافأة | CL5: صافي المكافأة | CO5: إجمالي مرتب+حافز+ مكافأة | CP5: ملاحظات | CS5: إجمالي المستحق الضريبي | CT5: إجمالي المستقطع الضريبي | CU5: الصافي | CV5: الوعاء الضريبي | CW5: الضريبة المستحقة | CY5: الصافي بعد خصم ضريبة 2022 | DA5: إجمالي المستحق الشهري للتأمينات
B6: 1777.8157 | C6: 1 | D6: سهير محمد مدني | E6: 675.83 | K6: ='مارس 2022'!K6*107% -> 2035.421195 | P6: =K6*15% -> 305.3131792 | Q6: ='مارس 2022'!Q6*110% -> 155.639 | U6: 76.44 | V6: 85.57 | W6: 102.85 | X6: 46.58 | Y6: 83.0755 | Z6: =B6*6% -> 106.668942 | AA6: ='مارس 2022'!K6*8% -> 152.1810239 | AB6: 190 | AC6: 6 | AF6: 10 | AK6: =SUM(G6:AJ6) -> 3355.73884 | AT6: 16 | AU6: 16 | AV6: 627 | AX6: 142 | BA6: 0.5 | BB6: 3 | BD6: 0 | BG6: =IF(AT6<18,(P6/18)*(18-AT6),"0") -> 33.92368658 | BH6: =IF(AU6<18,(Q6/18)*(18-AU6),"0") -> 17.29322222 | BQ6: =(AK6-(P6+Q6))*0.0005 -> 1.44739333 | BR6: 5 | BT6: =SUM(AV6:BS6) -> 830.1643021 | BU6: =AK6-BT6 -> 2525.574538 | BV6: =(K6/107%)*120% -> 2282.715359 | BY6: =IF(BX6=4,20%,IF(BX6=5,30%,IF(BX6=6,50%,IF(BX6>6,1,"0")))) -> 0 | BZ6: =(BV6*BY6) -> 0 | CB6: =BV6*CA6 -> 0 | CE6: =BV6-BW6-BZ6-CB6-CC6-CD6 -> 2282.715359 | CF6: =CE6/2 -> 1141.357679 | CG6: =CE6/2 -> 1141.357679 | CH6: حافز مارس 2022 نصفين | CI6: =BU6+CE6 -> 4808.289897 | CK6: =IF(CJ6>1500,CJ6*10%,0) -> 0 | CL6: =CJ6-CK6 -> 0 | CO6: =(BU6+CE6+CJ6)-(CM6+CN6) -> 4808.289897 | CS6: =K6+P6+X6+Y6+Z6+AA6+AB6+CE6+CJ6 -> 5201.955199 | CT6: =E6+AV6+AY6+AZ6+BD6+BG6+BQ6+BR6+750 -> 2093.20108 | CU6: =CS6-CT6 -> 3108.754119 | CV6: =TRUNC(CU6,-1) -> 3100 | CW6: =IF(AND(CV6>1250,CV6<2501),(CV6-1250)*2.5%,IF(AND(CV6>2500,CV6<3751),(CV6-2500)*10%+31.25,IF(AND(CV6>3750,CV6<5001),(CV6-3750)*15%+31.25+125,IF(AND(CV6>5000,CV6<16666.68),(CV6-5000)*20%+31.25+125+187.5,"0"))))-CK6 -> 91.25 | CY6: =CO6-CW6 -> 4717.039897 | DA6: =(AK6-(Q6+S6))+CE6+CL6 -> 5482.815199
B7: 1825.3879 | C7: 2 | D7: محمد محمود صقر | E7: 687.13 | K7: ='مارس 2022'!K7*107% -> 2089.886607 | P7: =K7*15% -> 313.482991 | Q7: ='مارس 2022'!Q7*110% -> 155.639 | U7: 78.33 | V7: 87.73 | W7: 105.57 | X7: 47.83 | Y7: 85.2985 | Z7: =B7*6% -> 109.523274 | AA7: ='مارس 2022'!K7*8% -> 156.2532042 | AB7: 190 | AC7: 10 | AF7: 10 | AK7: =SUM(G7:AJ7) -> 3439.543576 | AT7: 17 | AU7: 17 | AV7: 649 | AX7: 139.3 | AZ7: 18.74 | BA7: 0.5 | BB7: 3 | BD7: 0 | BG7: 17.41572172 | BH7: 8.646611111 | BQ7: =(AK7-(P7+Q7))*0.0005 -> 1.485210792 | BR7: 5 | BT7: =SUM(AV7:BS7) -> 843.0875436 | BU7: =AK7-BT7 -> 2596.456032 | BV7: =(K7/107%)*120% -> 2343.798064 | BY7: =IF(BX7=4,30%,IF(BX7=5,40%,IF(BX7=6,50%,IF(BX7>6,1,"0")))) -> 0 | BZ7: =(BV7*BY7) -> 0 | CB7: 0 | CE7: 2343.798064 | CF7: =CE7/2 -> 1171.899032 | CG7: =CE7/2 -> 1171.899032 | CH7: حافز مارس 2022 نصفين | CI7: 4940.254096 | CK7: =IF(CJ7>1500,CJ7*10%,0) -> 0 | CL7: =CJ7-CK7 -> 0 | CO7: =(BU7+CE7+CJ7)-CM7 -> 4940.254096 | CS7: =K7+P7+X7+Y7+Z7+AA7+AB7+CE7+CJ7 -> 5336.07264 | CT7: =E7+AV7+AY7+AZ7+BD7+BG7+BQ7+BR7+750 -> 2128.770933 | CU7: =CS7-CT7 -> 3207.301707 | CV7: =TRUNC(CU7,-1) -> 3200 | CW7: =IF(AND(CV7>1250,CV7<2501),(CV7-1250)*2.5%,IF(AND(CV7>2500,CV7<3751),(CV7-2500)*10%+31.25,IF(AND(CV7>3750,CV7<5001),(CV7-3750)*15%+31.25+125,IF(AND(CV7>5000,CV7<16666.68),(CV7-5000)*20%+31.25+125+187.5,"0"))))-CK7 -> 101.25 | CY7: =CO7-CW7 -> 4839.004096 | DA7: =(AK7-(Q7+S7))+CE7+CL7 -> 5627.70264
B8: 778.0505 | C8: 3 | D8: محمود السيد برسي | E8: 470.48 | K8: ='مارس 2022'!K8*107% -> 890.7900175 | M8: 81 | P8: 133.6185026 | Q8: ='مارس 2022'!Q8*110% -> 155.639 | S8: 20 | U8: 36.22 | V8: 38.22 | W8: 65 | X8: 27.43 | Y8: 36.3575 | Z8: 46.68303 | AA8: ='مارس 2022'!K8*8% -> 66.6011228 | AB8: 190 | AC8: 10 | AF8: 10 | AK8: =SUM(G8:AJ8) -> 1807.559173 | AT8: 16 | AU8: 16 | AV8: 286 | AX8: 0 | BA8: 0.5 | BB8: 3 | BD8: 0 | BG8: 14.84650029 | BH8: 17.29322222 | BQ8: 0.7591508351 | BR8: 3 | BT8: 325.3988733 | BU8: 1482.1603 | BV8: 999.016842 | BY8: 0 | BZ8: 0 | CB8: 0 | CE8: 999.016842 | CF8: 499.508421 | CG8: 499.508421 | CH8: حافز مارس 2022 نصفين | CI8: 2481.177142 | CK8: 0 | CL8: 0 | CO8: =(BU8+CE8+CJ8)-CM8 -> 2481.177142 | CS8: =K8+P8+X8+Y8+Z8+AA8+AB8+CE8+CJ8 -> 2390.497015 | CT8: =E8+AV8+AY8+AZ8+BD8+BG8+BQ8+BR8+750 -> 1525.085651 | CU8: 865.4113637 | CV8: 860 | CW8: 0 | CY8: 2481.177142 | DA8: 2630.937015
B9: 3324.8003 | C9: 4 | D9: سمير حلمي محمود | DA9: 0
B10: 1536.4665 | C10: 5 | D10: ممدوح محمد عبد المجيد | E10: 609 | K10: ='مارس 2022'!K10*107% -> 1759.100496 | P10: 263.8650744 | Q10: ='مارس 2022'!Q10*110% -> 155.639 | U10: 70.73 | V10: 78.94 | W10: 94.69 | X10: 40.26 | Y10: 71.7975 | Z10: 92.18799 | AA10: ='مارس 2022'!K10*8% -> 131.5215324 | AB10: 190 | AC10: 10 | AF10: 10 | AK10: 2968.731593 | AT10: 0 | AU10: 0 | AV10: 528 | AX10: 60.16666667 | BA10: 0.5 | BB10: 3 | BD10: 0 | BG10: 263.8650744 | BH10: 155.639 | BQ10: 1.274613759 | BR10: 3 | BT10: 1015.445355 | BU10: 1953.286238 | BV10: 1972.822986 | BW10: 115.76 | BY10: 0 | BZ10: 0 | CB10: 0 | CE10: 1857.062986 | CF10: 928.531493 | CG10: 928.531493 | CH10: حافز مارس 2022 نصفين | CI10: 3810.349224 | CK10: 0 | CL10: 0 | CO10: =(BU10+CE10+CJ10)-CM10 -> 3810.349224 | CS10: =K10+P10+X10+Y10+Z10+AA10+AB10+CE10+CJ10 -> 4405.795579 | CT10: =E10+AV10+AY10+AZ10+BD10+BG10+BQ10+BR10+750 -> 2155.139688 | CU10: 2250.65589 | CV10: 2250 | CW10: 25 | CY10: 3785.349224 | DA10: 4670.155579
B11: 1936.7856 | C11: 6 | D11: السعيد حسن الشورى | E11: 646.03 | K11: ='مارس 2022'!K11*107% -> 2217.425833 | P11: 332.613875 | Q11: ='مارس 2022'!Q11*110% -> 155.639 | U11: 89.99 | V11: 100.44 | W11: 119.89 | X11: 50.75 | Y11: 90.504 | Z11: 116.207136 | AA11: ='مارس 2022'!K11*8% -> 165.7888474 | AB11: 190 | AC11: 10 | AF11: 10 | AK11: 3649.248692 | AT11: 18 | AU11: 13 | AV11: 671 | AX11: 115.44 | BA11: 0.5 | BB11: 3 | BD11: 0 | BG11: 0 | BH11: 43.23305556 | BQ11: 1.580497908 | BR11: 5 | BT11: 839.7535535 | BU11: 2809.495138 | BV11: 2486.83271 | BY11: 0 | BZ11: 0 | CB11: 0 | CE11: 2486.83271 | CF11: 1243.416355 | CG11: 1243.416355 | CH11: حافز مارس 2022 نصفين | CI11: 5296.327849 | CK11: 0 | CL11: 0 | CO11: 5296.327849 | CS11: 5650.122402 | CT11: 2073.610498 | CU11: 3576.511904 | CV11: 3570 | CW11: 138.25 | CY11: 5158.077849 | DA11: 5980.442402
B12: 1852.0523 | C12: 7 | D12: خالد حسن سليمان | E12: 703.74 | K12: ='مارس 2022'!K12*107% -> 2120.414678 | P12: 318.0622017 | Q12: ='مارس 2022'!Q12*110% -> 155.639 | U12: 79.61 | V12: 89.13 | W12: 107.16 | X12: 48.52 | Y12: 86.5445 | Z12: 111.123138 | AA12: ='مارس 2022'!K12*8% -> 158.5356769 | AB12: 190 | AC12: 10 | AF12: 10 | AK12: 3484.739195 | AT12: 16 | AU12: 16 | AV12: 649 | AX12: 143.3333333 | BA12: 0.5 | BB12: 3 | BD12: 0 | BG12: 35.34024464 | BH12: 17.29322222 | BQ12: 1.505518997 | BR12: 5 | BT12: 854.9723192 | BU12: 2629.766876 | BV12: 2378.035153 | BY12: 0 | BZ12: 0 | CB12: 0 | CE12: 2378.035153 | CF12: 1189.017577 | CG12: 1189.017577 | CH12: حافز مارس 2022 نصفين | CI12: 5007.802029 | CK12: 0 | CL12: 0 | CO12: 5007.802029 | CS12: 5411.235348 | CT12: 2144.585764 | CU12: 3266.649584 | CV12: 3260 | CW12: 107.25 | CY12: 4900.552029 | DA12: 5707.135348
B13: 1850.6827 | C13: 8 | D13: رجب إبراهيم صالح | E13: 683.06 | K13: ='مارس 2022'!K13*107% -> 2118.846623 | P13: 317.8269935 | Q13: ='مارس 2022'!Q13*110% -> 155.639 | U13: 79.81 | V13: 89.11 | W13: 106.96 | X13: 48.49 | Y13: 86.4805 | Z13: 111.040962 | AA13: ='مارس 2022'!K13*8% -> 158.4184391 | AB13: 190 | AC13: 10 | AF13: 10 | AI13: 5.5 | AK13: 3488.122518 | AT13: 27 | AU13: 27 | AV13: 649 | AX13: 112.5916667 | BA13: 0.5 | BB13: 3 | BD13: 0 | BG13: 0 | BH13: 0 | BQ13: 1.507328262 | BR13: 3 | BT13: 769.5989949 | BU13: 2718.523523 | BV13: 2376.276587 | BY13: 0 | BZ13: 0 | CB13: 0 | CE13: 2376.276587 | CF13: 1188.138293 | CG13: 1188.138293 | CH13: حافز مارس 2022 نصفين | CI13: 5094.80011 | CK13: 0 | CL13: 0 | CO13: 5094.80011 | CS13: 5407.380105 | CT13: 2086.567328 | CU13: 3320.812776 | CV13: 3320 | CW13: 113.25 | CY13: 4981.55011 | DA13: 5708.760105
B14: 1759.8397 | C14: 9 | D14: أحمد محمد حسن | E14: 650.36 | K14: ='مارس 2022'!K14*107% -> 2014.840473 | P14: 302.2260709 | Q14: ='مارس 2022'!Q14*110% -> 155.639 | U14: 75.92 | V14: 84.75 | W14: 101.7 | X14: 46.11 | Y14: 82.2355 | Z14: 105.590382 | AA14: ='مارس 2022'!K14*8% -> 150.6422783 | AB14: 190 | AC14: 10 | AF14: 10 | AI14: 5.5 | AK14: 3335.153704 | AT14: 0 | AU14: 0 | AV14: 627 | AX14: 131.308 | AY14: 4.62 | BA14: 0.5 | BB14: 3 | BD14: 0 | BG14: 302.2260709 | BH14: 155.639 | BQ14: 1.438644316 | BR14: 3 | BT14: 1228.731715 | BU14: 2106.421989 | BV14: 2259.634175 | BY14: 0 | BZ14: 0 | CB14: 0 | CE14: 2259.634175 | CF14: 1129.817087 | CG14: 1129.817087 | CH14: حافز مارس 2022 نصفين | CI14: 4366.056163 | CK14: 0 | CL14: 0 | CO14: 4366.056163 | CS14: 5151.278879 | CT14: 2338.644715 | CU14: 2812.634163 | CV14: 2810 | CW14: 62.25 | CY14: 4303.806163 | DA14: 5439.148879
B15: 1647.7679 | C15: 10 | D15: شحاته عبد الله | E15: 648.22 | K15: ='مارس 2022'!K15*107% -> 1886.529469 | P15: 282.9794203 | Q15: ='مارس 2022'!Q15*110% -> 155.639 | U15: 76.45 | V15: 85.35 | W15: 101.93 | X15: 43.17 | Y15: 76.9985 | Z15: 98.866074 | AA15: ='مارس 2022'!K15*8% -> 141.0489322 | AB15: 200 | AC15: 10 | AF15: 10 | AI15: 5.5 | AK15: 3174.461395 | AT15: 17 | AU15: 17 | AV15: 583 | AX15: 111.3333333 | BA15: 0.5 | BB15: 3 | BD15: 0 | BG15: 15.72107891 | BH15: 8.646611111 | BQ15: 1.367921487 | BR15: 3 | BT15: 726.5689448 | BU15: 2447.89245 | BV15: 2115.733984 | BY15: 0 | BZ15: 0 | CB15: 0 | CE15: 2115.733984 | CF15: 1057.866992 | CG15: 1057.866992 | CH15: حافز مارس 2022 نصفين | CI15: 4563.626434 | CK15: 0 | CL15: 0 | CO15: 4563.626434 | CS15: 4845.326379 | CT15: 2001.309 | CU15: 2844.017378 | CV15: 2840 | CW15: 65.25 | CY15: 4498.376434 | DA15: 5134.556379
B16: 675.2342 | C16: 12 | D16: أحمد شحاته مصطفى | E16: 368.01 | K16: ='مارس 2022'!K16*107% -> 773.0756356 | P16: 115.9613453 | Q16: ='مارس 2022'!Q16*110% -> 155.639 | U16: 29.87 | V16: 33.52 | W16: 65 | X16: 33.74 | Y16: 31.553 | Z16: 40.514052 | AA16: ='مارس 2022'!K16*8% -> 57.80004752 | AB16: 200 | AC16: 10 | AF16: 10 | AI16: 5.5 | AK16: 1562.17308 | AT16: 21 | AU16: 21 | AV16: 253 | AX16: 0 | BA16: 0.5 | BB16: 3 | BD16: 0 | BG16: 0 | BH16: 0 | BQ16: 0.6452863675 | BR16: 3 | BT16: 260.1452864 | BU16: 1302.027794 | BV16: 867.0007128 | BY16: 0 | BZ16: 0 | CB16: 0 | CE16: 867.0007128 | CF16: 433.5003564 | CG16: 433.5003564 | CH16: حافز مارس 2022 نصفين | CI16: 2169.028507 | CK16: 0 | CL16: 0 | CO16: 2169.028507 | CS16: 2119.644793 | CT16: 1374.655286 | CU16: 744.9895069 | CV16: 740 | CW16: 0 | CY16: 2169.028507 | DA16: 2273.534793
B17: 1611.9978 | C17: 13 | D17: أحمد شوقي حميدة | E17: 619.05 | K17: ='مارس 2022'!K17*107% -> 1845.576281 | P17: 276.8364422 | Q17: ='مارس 2022'!Q17*110% -> 155.639 | U17: 74.8 | V17: 83.51 | W17: 99.71 | X17: 42.23 | Y17: 75.327 | Z17: 96.719868 | AA17: ='مارس 2022'!K17*8% -> 137.9870117 | AB17: 200 | AC17: 10 | AF17: 10 | AI17: 5.5 | AK17: 3113.835603 | AT17: 27 | AU17: 27 | AV17: 572 | AX17: 111.6666667 | BA17: 0.5 | BB17: 3 | BD17: 0 | BG17: 0 | BH17: 0 | BQ17: 1.34068008 | BR17: 3 | BT17: 691.5073467 | BU17: 2422.328256 | BV17: 2069.805175 | BY17: 0 | BZ17: 0 | CB17: 0 | CE17: 2069.805175 | CF17: 1034.902588 | CG17: 1034.902588 | CH17: حافز مارس 2022 نصفين | CI17: 4492.133432 | CK17: 0 | CL17: 0 | CO17: 4492.133432 | CS17: 4744.481778 | CT17: 1945.39068 | CU17: 2799.091098 | CV17: 2790 | CW17: 60.25 | CY17: 4431.883432 | DA17: 5028.001778
B18: 2198.0903 | C18: 14 | D18: عبد الناصر سيد هلال | E18: 826.2 | K18: ='مارس 2022'!K18*107% -> 2516.593584 | P18: 377.4890377 | Q18: ='مارس 2022'!Q18*110% -> 155.639 | U18: 95.19 | V18: 106.34 | W18: 120 | X18: 57.59 | Y18: 102.7145 | Z18: 131.885418 | AA18: ='مارس 2022'!K18*8% -> 188.1565297 | AB18: 190 | AC18: 10 | AF18: 10 | AK18: 4061.59807 | AT18: 15 | AU18: 15 | AV18: 770 | AX18: 188.9093333 | BA18: 0.5 | BB18: 3 | BD18: 0 | BG18: 62.91483961 | BH18: 25.93983333 | BQ18: 1.764235016 | BR18: 5 | BT18: 1058.028241 | BU18: 3003.569829 | BV18: 2822.347945 | BY18: 0 | BZ18: 0 | CB18: 0 | CE18: 2822.347945 | CF18: 1411.173973 | CG18: 1411.173973 | CH18: حافز مارس 2022 نصفين | CI18: 5825.917774 | CK18: 0 | CL18: 0 | CO18: 5825.917774 | CS18: 6386.777015 | CT18: 2415.879075 | CU18: 3970.89794 | CV18: 3970 | CW18: 189.25 | CY18: 5636.667774 | DA18: 6728.307015
B19: 1524.322 | C19: 15 | D19: إبراهيم أحمد السيد | E19: 587.46 | K19: ='مارس 2022'!K19*107% -> 1745.196258 | P19: 261.7794387 | Q19: ='مارس 2022'!Q19*110% -> 155.639 | U19: 70.76 | V19: 78.99 | W19: 94.28 | X19: 39.94 | Y19: 71.23 | Z19: 91.45932 | AA19: ='مارس 2022'!K19*8% -> 130.4819632 | AB19: 200 | AC19: 10 | AF19: 10 | AK19: 2959.75598 | AT19: 19 | AU19: 19 | AV19: 550 | AX19: 73.33333333 | AZ19: 3.04 | BA19: 0.5 | BB19: 3 | BD19: 0 | BG19: 0 | BH19: 0 | BQ19: 1.271168771 | BR19: 3 | BT19: 634.1445021 | BU19: 2325.611478 | BV19: 1957.229448 | BY19: 0 | BZ19: 0 | CB19: 0 | CE19: 1957.229448 | CF19: 978.614724 | CG19: 978.614724 | CH19: حافز مارس 2022 نصفين | CI19: 4282.840926 | CK19: 0 | CL19: 0 | CO19: 4282.840926 | CS19: 4497.316428 | CT19: 1894.771169 | CU19: 2602.545259 | CV19: 2600 | CW19: 41.25 | CY19: 4241.590926 | DA19: 4761.346428
B20: 1703.6112 | C20: 16 | D20: إيهاب أحمد صالح | E20: 647.92 | K20: ='مارس 2022'!K20*107% -> 1950.464463 | P20: 292.5696694 | Q20: ='مارس 2022'!Q20*110% -> 155.639 | U20: 73.27 | V20: 82.02 | W20: 98.55 | X20: 44.64 | Y20: 79.608 | Z20: 102.216672 | AA20: ='مارس 2022'!K20*8% -> 145.8291187 | AB20: 190 | AC20: 10 | AF20: 10 | AK20: 3234.806923 | AT20: 17 | AU20: 17 | AV20: 605 | AX20: 127.7 | AZ20: 4.18 | BA20: 0.5 | BB20: 3 | BD20: 0 | BG20: 16.25387052 | BH20: 8.646611111 | BQ20: 1.393299127 | BR20: 3 | BT20: 769.6737808 | BU20: 2465.133142 | BV20: 2187.436781 | BY20: 0 | BZ20: 0 | CB20: 0 | CE20: 2187.436781 | CF20: 1093.71839 | CG20: 1093.71839 | CH20: حافز مارس 2022 نصفين | CI20: 4652.569923 | CK20: 0 | CL20: 0 | CO20: 4652.569923 | CS20: 4992.764704 | CT20: 2027.74717 | CU20: 2965.017534 | CV20: 2960 | CW20: 77.25 | CY20: 4575.319923 | DA20: 5266.604704
B21: 2123.1047 | C21: 19 | D21: محمد محمد نوفل | E21: 817.96 | K21: ='مارس 2022'!K21*107% -> 2430.742571 | P21: 364.6113857 | Q21: ='مارس 2022'!Q21*110% -> 155.639 | U21: 98.6 | V21: 110.06 | W21: 120 | X21: 55.63 | Y21: 99.2105 | Z21: 127.386282 | AA21: ='مارس 2022'!K21*8% -> 181.7377623 | AB21: 190 | AC21: 10 | AF21: 10 | AK21: 3953.617501 | AT21: 18 | AU21: 18 | AV21: 748 | AX21: 161.7933333 | BA21: 0.5 | BB21: 3 | BD21: 0 | BG21: 0 | BH21: 0 | BQ21: 1.716683558 | BR21: 5 | BT21: 920.0100169 | BU21: 3033.607484 | BV21: 2726.066435 | BY21: 0 | BZ21: 0 | CB21: 0 | CE21: 2726.066435 | CF21: 1363.033217 | CG21: 1363.033217 | CH21: حافز مارس 2022 نصفين | CI21: 5759.673919 | CK21: 0 | CL21: 0 | CO21: 5759.673919 | CS21: 6175.384936 | CT21: 2322.676684 | CU21: 3852.708252 | CV21: 3850 | CW21: 171.25 | CY21: 5588.423919 | DA21: 6524.044936
B22: 2128.3049 | C22: 20 | D22: عبد الباسط هريدي | E22: 799.39 | K22: ='مارس 2022'!K22*107% -> 2436.69628 | P22: 365.504442 | Q22: ='مارس 2022'!Q22*110% -> 155.639 | U22: 91.24 | V22: 102.23 | W22: 120 | X22: 55.76 | Y22: 99.4535 | Z22: 127.698294 | AA22: ='مارس 2022'!K22*8% -> 182.1828994 | AB22: 190 | AC22: 10 | AF22: 10 | AK22: 3946.404415 | AT22: 18 | AU22: 18 | AV22: 748 | AX22: 142.2633333 | BA22: 0.5 | BB22: 3 | BD22: 0 | BG22: 0 | BH22: 0 | BQ22: 1.712630487 | BR22: 5 | BT22: 900.4759638 | BU22: 3045.928452 | BV22: 2732.743492 | BY22: 0 | BZ22: 0 | CB22: 0 | CE22: 2732.743492 | CF22: 1366.371746 | CG22: 1366.371746 | CH22: حافز مارس 2022 نصفين | CI22: 5778.671943 | CK22: 0 | CL22: 0 | CO22: 5778.671943 | CS22: 6190.038907 | CT22: 2304.10263 | CU22: 3885.936277 | CV22: 3880 | CW22: 175.75 | CY22: 5602.921943 | DA22: 6523.508907
B23: 1823.9006 | C23: 21 | D23: أحمد حسين حسن | E23: 681.76 | K23: ='مارس 2022'!K23*107% -> 2088.183797 | P23: 313.2275695 | Q23: ='مارس 2022'!Q23*110% -> 155.639 | U23: 84.55 | V23: 94.43 | W23: 112.84 | X23: 47.79 | Y23: 85.229 | Z23: 109.434036 | AA23: ='مارس 2022'!K23*8% -> 156.1258914 | AB23: 190 | AC23: 8 | AF23: 10 | AK23: 3455.449294 | AT23: 18 | AU23: 18 | AV23: 649 | AX23: 144.8713333 | AZ23: 21.47 | BA23: 0.5 | BB23: 3 | BD23: 0 | BG23: 0 | BH23: 0 | BQ23: 1.493291362 | BR23: 3 | BT23: 823.3346247 | BU23: 2632.114669 | BV23: 2341.88837 | BY23: 0 | BZ23: 0 | CB23: 0 | CE23: 2341.88837 | CF23: 1170.944185 | CG23: 1170.944185 | CH23: حافز مارس 2022 نصفين | CI23: 4974.00304 | CK23: 0 | CL23: 0 | CO23: 4974.00304 | CS23: 5331.878664 | CT23: 2106.723291 | CU23: 3225.155373 | CV23: 3220 | CW23: 103.25 | CY23: 4870.75304 | DA23: 5641.698664
B24: 1759.8076 | C24: 22 | D24: كمال عطية عبد الغني | E24: 650.36 | K24: ='مارس 2022'!K24*107% -> 2014.803721 | P24: 302.2205582 | Q24: ='مارس 2022'!Q24*110% -> 155.639 | U24: 75.91 | V24: 84.75 | W24: 101.7 | X24: 46.11 | Y24: 82.234 | Z24: 105.588456 | AA24: ='مارس 2022'!K24*8% -> 150.6395306 | AB24: 190 | AC24: 10 | AF24: 10 | AK24: 3329.595266 | AT24: 18 | AU24: 18 | AV24: 627 | AX24: 139.806 | AZ24: 51.32 | BA24: 0.5 | BB24: 3 | BD24: 0 | BG24: 0 | BH24: 0 | BQ24: 1.435867854 | BR24: 3 | BT24: 826.0618679 | BU24: 2503.533398 | BV24: 2259.592958 | BY24: 0 | BZ24: 0 | CB24: 0 | CE24: 2259.592958 | CF24: 1129.796479 | CG24: 1129.796479 | CH24: حافز مارس 2022 نصفين | CI24: 4763.126357 | CK24: 0 | CL24: 0 | CO24: 4763.126357 | CS24: 5151.189224 | CT24: 2083.115868 | CU24: 3068.073357 | CV24: 3060 | CW24: 87.25 | CY24: 4675.876357 | DA24: 5433.549224
B25: 1579.5233 | C25: 24 | D25: خالد عربي محمد | E25: 607.16 | K25: ='مارس 2022'!K25*107% -> 1808.396226 | P25: 271.2594339 | Q25: ='مارس 2022'!Q25*110% -> 155.639 | U25: 73.3 | V25: 81.83 | W25: 97.7 | X25: 41.38 | Y25: 73.8095 | Z25: 94.771398 | AA25: ='مارس 2022'!K25*8% -> 135.2071945 | AB25: 200 | AC25: 10 | AF25: 10 | AK25: 3053.292753 | AT25: 16 | AU25: 16 | AV25: 561 | AX25: 97.33333333 | AZ25: 2.73 | BA25: 0.5 | BB25: 3 | BD25: 0 | BG25: 30.1399371 | BH25: 17.29322222 | BQ25: 1.313197159 | BR25: 3 | BT25: 716.3096898 | BU25: 2336.983063 | BV25: 2028.107917 | BW25: 528.12 | BY25: 0 | BZ25: 0 | CB25: 0 | CE25: 1499.987917 | CF25: 749.9939586 | CG25: 749.9939586 | CH25: حافز مارس 2022 نصفين | CI25: 3836.97098 | CK25: 0 | CL25: 0 | CO25: 3836.97098 | CS25: 4124.81167 | CT25: 1955.343134 | CU25: 2169.468536 | CV25: 2160 | CW25: 22.75 | CY25: 3814.22098 | DA25: 4397.64167
B26: 1524.3327 | C26: 25 | D26: عمرو شوقي عنتر | E26: 587.47 | K26: ='مارس 2022'!K26*107% -> 1745.208508 | P26: 261.7812762 | Q26: ='مارس 2022'!Q26*110% -> 155.639 | U26: 70.76 | V26: 78.99 | W26: 94.28 | X26: 39.94 | Y26: 71.2305 | Z26: 91.459962 | AA26: ='مارس 2022'!K26*8% -> 130.4828791 | AB26: 200 | AC26: 10 | AF26: 10 | AK26: 2959.772126 | AT26: 2 | AU26: 2 | AV26: 550 | AX26: 78.5 | BA26: 0.5 | BB26: 3 | BD26: 0 | BG26: 232.6944678 | BH26: 138.3457778 | BQ26: 1.271175925 | BR26: 3 | BT26: 1007.311421 | BU26: 1952.460704 | BV26: 1957.243187 | BY26: 0 | BZ26: 0 | CB26: 0 | CE26: 1957.243187 | CF26: 978.6215934 | CG26: 978.6215934 | CH26: حافز مارس 2022 نصفين | CI26: 3909.703891 | CK26: 0 | CL26: 0 | CO26: 3909.703891 | CS26: 4497.346312 | CT26: 2124.435644 | CU26: 2372.910669 | CV26: 2370 | CW26: 28 | CY26: 3881.703891 | DA26: 4761.376312
B27: 1599.008 | C27: 26 | D27: سعيد محمد علي | E27: 615.34 | K27: ='مارس 2022'!K27*107% -> 1830.704259 | P27: 274.6056389 | Q27: ='مارس 2022'!Q27*110% -> 155.639 | U27: 70.76 | V27: 78.99 | W27: 98.94 | X27: 41.89 | Y27: 74.72 | Z27: 95.94048 | AA27: ='مارس 2022'!K27*8% -> 136.8750848 | AB27: 190 | AC27: 10 | AF27: 10 | AK27: 3069.064463 | AT27: 18 | AU27: 18 | AV27: 572 | AX27: 107.1666667 | BA27: 0.5 | BB27: 3 | BD27: 0 | BG27: 0 | BH27: 0 | BQ27: 1.319409912 | BT27: 683.9860766 | BU27: 2385.078386 | BV27: 2053.126272 | BY27: 0 | BZ27: 0 | CB27: 0 | CE27: 2053.126272 | CF27: 1026.563136 | CG27: 1026.563136 | CH27: حافز مارس 2022 نصفين | CI27: 4438.204658 | CK27: 0 | CL27: 0 | CO27: 4438.204658 | CS27: 4697.861735 | CT27: 1938.65941 | CU27: 2759.202325 | CV27: 2750 | CW27: 56.25 | CY27: 4381.954658 | DA27: 4966.551735
B28: 1210.384 | C28: 27 | D28: محمد حسن عبد الفتاح | E28: 477.64 | K28: ='مارس 2022'!K28*107% -> 1385.768642 | P28: 207.8652962 | Q28: ='مارس 2022'!Q28*110% -> 155.639 | U28: 52.68 | V28: 58.73 | W28: 75.07 | X28: 31.71 | Y28: 56.56 | Z28: 72.62304 | AA28: ='مارس 2022'!K28*8% -> 103.6088704 | AB28: 200 | AC28: 10 | AF28: 10 | AK28: 2420.254848 | AT28: 18 | AU28: 18 | AV28: 440 | AX28: 32.95833333 | BA28: 0.5 | BB28: 3 | BD28: 0 | BG28: 0 | BH28: 0 | BQ28: 1.028375276 | BR28: 3 | BT28: 480.4867086 | BU28: 1939.76814 | BV28: 1554.133056 | BY28: 0 | BZ28: 0 | CB28: 0 | CE28: 1554.133056 | CF28: 777.066528 | CG28: 777.066528 | CH28: حافز مارس 2022 نصفين | CI28: 3493.901196 | CK28: 0 | CL28: 0 | CO28: 3493.901196 | CS28: 3612.268904 | CT28: 1671.668375 | CU28: 1940.600529 | CV28: 1940 | CW28: 17.25 | CY28: 3476.651196 | DA28: 3818.748904
B29: 1156.7556 | C29: 28 | D29: سامح سعيد إبراهيم | E29: 467.95 | K29: ='مارس 2022'!K29*107% -> 1324.369486 | P29: 198.655423 | Q29: ='مارس 2022'!Q29*110% -> 155.639 | U29: 50.38 | V29: 56.28 | W29: 71.79 | X29: 30.31 | Y29: 54.054 | Z29: 69.405336 | AA29: ='مارس 2022'!K29*8% -> 99.01827936 | AB29: 200 | AC29: 6 | AF29: 10 | AK29: 2325.901525 | AT29: 16 | AU29: 16 | AV29: 407 | AX29: 21.41666667 | BA29: 0.5 | BB29: 3 | BD29: 0 | BG29: 22.07282477 | BH29: 17.29322222 | BQ29: 0.9858035509 | BR29: 3 | BT29: 475.2685172 | BU29: 1850.633008 | BV29: 1485.27419 | BY29: 0 | BZ29: 0 | CB29: =BV29*CA29 -> 0 | CE29: =BV29-BW29-BZ29-CB29-CC29-CD29 -> 1485.27419 | CF29: 742.6370952 | CG29: 742.6370952 | CH29: حافز مارس 2022 نصفين | CI29: 3335.907198 | CK29: 0 | CL29: 0 | CO29: 3335.907198 | CS29: 3461.086715 | CT29: 1651.008628 | CU29: 1810.078087 | CV29: 1810 | CW29: 14 | CY29: 3321.907198 | DA29: 3655.536715
B30: 1140.7163 | C30: 29 | D30: جمال عبد الستار | E30: 457.64 | K30: ='مارس 2022'!K30*107% -> 1306.006092 | P30: 195.9009138 | Q30: ='مارس 2022'!Q30*110% -> 155.639 | U30: 49.69 | V30: 55.38 | W30: 70.73 | X30: 29.89 | Y30: 53.3045 | Z30: 68.442978 | AA30: ='مارس 2022'!K30*8% -> 97.64531528 | AB30: 200 | AC30: 10 | AF30: 10 | AK30: 2302.628799 | AT30: 17 | AU30: 17 | AV30: 418 | AX30: 25.70833333 | BA30: 0.5 | BB30: 3 | BD30: 0 | BG30: 10.8833841 | BH30: 8.646611111 | BQ30: 0.9755444426 | BR30: 3 | BT30: 470.713873 | BU30: 1831.914926 | BV30: 1464.679729 | BY30: 0 | BZ30: 0 | CB30: =BV30*CA30 -> 0 | CE30: =BV30-BW30-BZ30-CB30-CC30-CD30 -> 1464.679729 | CF30: 732.3398646 | CG30: 732.3398646 | CH30: حافز مارس 2022 نصفين | CI30: 3296.594655 | CK30: 0 | CL30: 0 | CO30: 3296.594655 | CS30: 3415.869528 | CT30: 1640.498929 | CU30: 1775.3706 | CV30: 1770 | CW30: 13 | CY30: 3283.594655 | DA30: 3611.669528
B31: 1012.1879 | C31: 30 | D31: عصام محمد السيد | E31: 419.81 | K31: ='مارس 2022'!K31*107% -> 1158.853927 | P31: 173.828089 | Q31: ='مارس 2022'!Q31*110% -> 155.639 | U31: 43.92 | V31: 48.88 | W31: 65 | X31: 26.52 | Y31: 47.2985 | Z31: 60.731274 | AA31: ='مارس 2022'!K31*8% -> 86.64328424 | AB31: 200 | AC31: 10 | AF31: 10 | AK31: 2087.314074 | AT31: 16 | AU31: 16 | AV31: 374 | AX31: 11.75 | BA31: 0.5 | BB31: 3 | BD31: 0 | BG31: 19.31423211 | BH31: 17.29322222 | BQ31: 0.8789234925 | BR31: 3 | BT31: 429.7363778 | BU31: 1657.577696 | BV31: 1299.649264 | BY31: 0 | BZ31: 0 | CB31: 0 | CE31: 1299.649264 | CF31: 649.8246318 | CG31: 649.8246318 | CH31: حافز مارس 2022 نصفين | CI31: 2957.22696 | CK31: 0 | CL31: 0 | CO31: 2957.22696 | CS31: 3053.524338 | CT31: 1567.003156 | CU31: 1486.521182 | CV31: 1480 | CW31: 5.75 | CY31: 2951.47696 | DA31: 3231.324338
K32: ='مارس 2022'!K32*107% -> 0 | P32: 0 | Q32: ='مارس 2022'!Q32*110% -> 0 | Z32: 0 | AA32: ='مارس 2022'!K32*8% -> 0 | AK32: 0 | BD32: 0 | BG32: 0 | BH32: 0 | BQ32: 0 | BT32: 0 | BU32: 0 | BV32: 0 | BY32: 0 | BZ32: 0 | CB32: 0 | CE32: 0 | CF32: 0 | CG32: 0 | CH32: حافز مارس 2022 نصفين | CI32: 0 | CK32: 0 | CL32: 0 | CO32: 0 | CS32: 0 | CT32: 750 | CU32: -750 | CV32: -750 | CW32: 0 | CY32: 0 | DA32: 0
K33: ='مارس 2022'!K33*107% -> 0 | P33: 0 | Q33: ='مارس 2022'!Q33*110% -> 0 | Z33: 0 | AA33: ='مارس 2022'!K33*8% -> 0 | AK33: 0 | BD33: 0 | BG33: 0 | BH33: 0 | BQ33: 0 | BT33: 0 | BU33: 0 | BV33: 0 | BY33: 0 | BZ33: 0 | CB33: 0 | CE33: 0 | CF33: 0 | CG33: 0 | CH33: حافز مارس 2022 نصفين | CI33: 0 | CK33: 0 | CL33: 0 | CO33: 0 | CS33: 0 | CT33: 750 | CU33: -750 | CV33: -750 | CW33: 0 | CY33: 0 | DA33: 0
D34: السائقين | K34: ='مارس 2022'!K34*107% -> 0 | AA34: ='مارس 2022'!K34*8% -> 0 | CB34: 0 | CK34: 0 | CL34: 0 | CS34: 0 | CW34: 0 | DA34: 0
B35: 1178.4552 | C35: 32 | D35: أحمد محمد حسن خاطر | E35: 479.37 | K35: ='مارس 2022'!K35*107% -> 1349.213358 | O35: 1112.59 | P35: 202.3820038 | Q35: 0 | U35: 50.91 | V35: 56.88 | W35: 68.11 | X35: 30.87 | Y35: 55.068 | Z35: 70.707312 | AA35: ='مارس 2022'!K35*8% -> 100.8757651 | AB35: 190 | AC35: 10 | AF35: 10 | AK35: 3307.606439 | AT35: 0 | AV35: 407 | AX35: 19.625 | AZ35: 47.76 | BA35: 0.5 | BB35: 3 | BD35: 0 | BG35: =IF(AT35<18,(P35/18)*(18-AT35),"0") -> 202.3820038 | BH35: =IF(AU35<18,(Q35/18)*(18-AU35),"0") -> 0 | BQ35: =(AK35-(N35+O35+P35+Q35+AG35))*0.0005 -> 0.9963172178 | BR35: 3 | BT35: 684.263321 | BU35: 2623.343118 | BY35: 0 | BZ35: 0 | CB35: 0 | CE35: =BV35-BW35-BZ35-CC35-CD35 -> 0 | CI35: =BU35+CE35 -> 2623.343118 | CK35: 0 | CL35: 0 | CO35: =(BU35+CE35+CJ35)-CM35 -> 2623.343118 | CS35: 1999.116439 | CT35: =E35+AV35+AY35+AZ35+BD35+BG35+BQ35+BR35+750 -> 1890.508321 | CU35: 108.6081184 | CV35: 100 | CW35: 0 | CY35: 2623.343118 | DA35: 3307.606439
B36: 984.4963 | C36: 33 | D36: إبراهيم الحسيني إبراهيم | E36: 427.51 | K36: ='مارس 2022'!K36*107% -> 1127.149814 | N36: 3479.05 | P36: 169.0724721 | Q36: 0 | U36: 42.63 | V36: 47.54 | W36: 65 | X36: 25.79 | Y36: 46.0045 | Z36: 59.069778 | AA36: ='مارس 2022'!K36*8% -> 84.27288328 | AB36: 190 | AC36: 6 | AF36: 10 | AG36: 347.9 | AK36: 5699.479447 | AT36: 30 | AV36: 308 | AX36: 0 | BA36: 0.5 | BB36: 3 | BD36: 0 | BG36: 0 | BH36: 0 | BQ36: =(AK36-(N36+O36+P36+Q36+AG36))*0.0005 -> 0.8517284876 | BR36: 3 | BT36: 315.3517285 | BU36: 5384.127719 | BY36: 0 | BZ36: 0 | CB36: 0 | CE36: 0 | CI36: 5384.127719 | CK36: 0 | CL36: 0 | CO36: 5384.127719 | CS36: 1701.359447 | CT36: 1489.361728 | CU36: 211.9977187 | CV36: 210 | CW36: 0 | CY36: 5384.127719 | DA36: 5699.479447
B37: 976.6425 | C37: 40 | D37: أحمد محمود عبد الله | E37: 427.51 | K37: ='مارس 2022'!K37*107% -> 1118.157998 | N37: 3402.28 | P37: 167.7236997 | Q37: 0 | U37: 42.63 | V37: 47.54 | W37: 65 | X37: 25.59 | Y37: 45.6375 | Z37: 58.59855 | AA37: ='مارس 2022'!K37*8% -> 83.600598 | AB37: 190 | AC37: 10 | AF37: 10 | AG37: 340.23 | AK37: 5606.988346 | AT37: 30 | AV37: 506 | AX37: 0 | BA37: 0.5 | BB37: 3 | BD37: 0 | BG37: 0 | BH37: 0 | BQ37: 0.8483773231 | BR37: 3 | BT37: 513.3483773 | BU37: 5093.639969 | BY37: 0 | BZ37: 0 | CB37: 0 | CE37: 0 | CI37: 5093.639969 | CK37: 0 | CL37: 0 | CO37: 5093.639969 | CS37: 1689.308346 | CT37: 1687.358377 | CU37: 1.949968664 | CV37: 0 | CW37: 0 | CY37: 5093.639969 | DA37: 5606.988346
B38: 1513.515 | C38: 34 | D38: خالد العوضي عبد الله | E38: 588.96 | K38: ='مارس 2022'!K38*107% -> 1732.823324 | N38: 0 | P38: 259.9234985 | Q38: 0 | U38: 65.73 | V38: 73.52 | W38: 94 | X38: 39.65 | Y38: 70.725 | Z38: 90.8109 | AA38: ='مارس 2022'!K38*8% -> 129.556884 | AB38: 190 | AC38: 10 | AF38: 10 | AG38: 0 | AK38: 2766.739606 | AT38: 16 | AV38: 286 | AX38: 0 | BA38: 0.5 | BB38: 3 | BD38: 0 | BG38: 28.88038873 | BH38: 0 | BJ38: 413.66 | BQ38: 1.253408054 | BR38: 3 | BT38: 736.2937968 | BU38: 2030.445809 | BY38: 0 | BZ38: 0 | CB38: 0 | CE38: 0 | CI38: 2030.445809 | CK38: 0 | CL38: 0 | CO38: 2030.445809 | CS38: 2513.489606 | CT38: 1658.093797 | CU38: 855.3958092 | CV38: 850 | CW38: 0 | CY38: 2030.445809 | DA38: 2766.739606
B39: 1710.4592 | C39: 36 | D39: جمال خميس إسماعيل | E39: 653.4 | K39: ='مارس 2022'!K39*107% -> 1958.304738 | N39: 0 | P39: 293.7457107 | Q39: 0 | U39: 79.33 | V39: 88.58 | W39: 105.81 | X39: 44.81 | Y39: 79.928 | Z39: 102.627552 | AA39: ='مارس 2022'!K39*8% -> 146.4153075 | AB39: 190 | AC39: 10 | AF39: 10 | AG39: 0 | AK39: 3109.551308 | AT39: 17 | AV39: 385 | AX39: 3.4167 | BA39: 0.5 | BB39: 3 | BD39: 0 | BG39: 16.31920615 | BH39: 0 | BQ39: 1.407902799 | BR39: 3 | BT39: 412.6438089 | BU39: 2696.907499 | BY39: 0 | BZ39: 0 | CB39: 0 | CE39: 0 | CI39: 2696.907499 | CK39: 0 | CL39: 0 | CO39: 2696.907499 | CS39: 2815.831308 | CT39: 1809.127109 | CU39: 1006.704199 | CV39: 1000 | CW39: 0 | CY39: 2696.907499 | DA39: 3109.551308
A40: نقل م.نصر | B40: 1573.4564 | C40: 37 | D40: محمد خليل إبراهيم | E40: 616.3 | F40: نقل م.نصر | K40: ='مارس 2022'!K40*107% -> 1801.450232 | P40: 270.2175349 | Q40: 0 | U40: 80.67 | V40: 90.36 | W40: 97.36 | X40: 41.22 | Y40: 73.526 | Z40: 94.407384 | AA40: ='مارس 2022'!K40*8% -> 134.6878678 | AB40: 200 | AC40: 10 | AF40: 10 | AK40: 2903.899019 | AT40: 14 | AV40: 352 | AX40: 0 | BA40: 0.5 | BB40: 3 | BG40: 60.04834108 | BH40: 0 | BQ40: 1.316840742 | BT40: 416.8651818 | BU40: 2487.033837 | BY40: 0 | BZ40: 0 | CB40: 0 | CE40: 0 | CI40: 2487.033837 | CK40: 0 | CL40: 0 | CO40: 2487.033837 | CS40: 2615.509019 | CT40: 1779.665182 | CU40: 835.8438372 | CV40: 830 | CW40: 0 | CY40: 2487.033837 | DA40: 2903.899019
A41: نقل م.نصر | B41: 1579.5233 | C41: 38 | D41: شعبان عبد اللطيف | E41: 632.8 | F41: نقل م.نصر | K41: ='مارس 2022'!K41*107% -> 1808.396226 | P41: 271.2594339 | Q41: 0 | U41: 77.71 | V41: 86.7 | W41: 97.7 | X41: 41.38 | Y41: 73.8095 | Z41: 94.771398 | AA41: ='مارس 2022'!K41*8% -> 135.2071945 | AB41: 200 | AC41: 10 | AF41: 10 | AK41: 2906.933753 | AT41: 14 | AV41: 352 | AX41: 0 | BA41: 0.5 | BB41: 3 | BG41: 60.27987421 | BH41: 0 | BQ41: 1.317837159 | BT41: 417.0977114 | BU41: 2489.836041 | BY41: 0 | BZ41: 0 | CB41: 0 | CE41: 0 | CI41: 2489.836041 | CK41: 0 | CL41: 0 | CO41: 2489.836041 | CS41: 2624.823753 | CT41: 1796.397711 | CU41: 828.4260412 | CV41: 820 | CW41: 0 | CY41: 2489.836041 | DA41: 2906.933753
B42: 1615.91 | C42: 39 | D42: محمود محمد محمود شرارة | E42: 611.49 | K42: ='مارس 2022'!K42*107% -> 1850.055359 | N42: 0 | P42: 277.5083039 | Q42: 0 | U42: 70.12 | V42: 78.28 | W42: 100.31 | X42: 42.34 | Y42: 75.5125 | Z42: 96.9546 | AA42: ='مارس 2022'!K42*8% -> 138.321896 | AB42: 190 | AC42: 10 | AF42: 10 | AG42: 0 | AK42: 2939.402659 | AT42: 17 | AV42: 352 | AX42: 0 | BA42: 0.5 | BB42: 3 | BD42: 0 | BG42: 15.41712799 | BH42: 0 | BQ42: 1.330947178 | BR42: 3 | BT42: 375.2480752 | BU42: 2564.154584 | BY42: 0 | BZ42: 0 | CB42: 0 | CE42: 0 | CI42: 2564.154584 | CK42: 0 | CL42: 0 | CO42: 2564.154584 | CS42: 2670.692659 | CT42: 1733.238075 | CU42: 937.4545837 | CV42: 930 | CW42: 0 | CY42: 2564.154584 | DA42: 2939.402659
B43: 976.6425 | C43: 40 | K43: ='مارس 2022'!K43*107% -> 0 | P43: 0 | AA43: ='مارس 2022'!K43*8% -> 0 | AK43: 0 | AV43: 0 | BD43: 0 | BG43: 0 | BH43: 0 | BQ43: 0 | BT43: 0 | BU43: 0 | BY43: 0 | BZ43: 0 | CB43: 0 | CE43: 0 | CI43: 0 | CK43: 0 | CL43: 0 | CO43: 0 | CS43: 0 | CT43: 750 | CU43: -750 | CV43: -750 | CW43: 0 | CY43: 0 | DA43: 0
C44: 41 | K44: ='مارس 2022'!K44*107% -> 0 | Z44: =B44*6% -> 0 | AA44: ='مارس 2022'!K44*8% -> 0 | BD44: 0 | BG44: 0 | BH44: 0 | BQ44: 0 | BT44: 0 | CB44: 0 | CE44: 0 | CK44: 0 | CL44: 0 | CO44: 0 | CS44: 0 | CT44: 750 | CU44: -750 | CV44: -750 | CW44: 0 | CY44: 0 | DA44: 0
C45: 42 | K45: ='مارس 2022'!K45*107% -> 0 | Z45: 0 | AA45: ='مارس 2022'!K45*8% -> 0 | BD45: 0 | BG45: 0 | BH45: 0 | BQ45: 0 | BT45: 0 | CB45: 0 | CE45: 0 | CK45: 0 | CL45: 0 | CO45: 0 | CS45: 0 | CT45: 750 | CU45: -750 | CV45: -750 | CW45: 0 | CY45: 0 | DA45: 0

Sheet يونيو 2022
E2: الــــــمــــــــســــــــتـــــــــحـــــــــــقـــــــــــــــــــات | AL2: الـــــــــتـــــــــأثيرات | AV2: الــــــــــــــــــــمـــــــــــــــــــــســـــــــــــــــــتــــــــــــــــــــــــــــــــــــقــــــــــــــــــــــــــطـــــــــــــــــــــــــع | BV2: الــــحــافــــــــز
CS4: استخراج الضرائب شهريا خلال عام 2022
D5: الاسم | E5: مجموع العلاوات | F5: كود | G5: غياب | H5: مرضي | I5: إصابة | J5: إيقاف | K5: الأجر الأساسي 7/2021 | L5: بدل تمثيل | M5: بدل تفرغ | N5: عمولة انتاج | O5: معونة مرضي وإصابة | P5: بدل مخاطر | Q5: بدل انتقال | R5: بدل إقامة | S5: انتقال محامين | U5: 2014 | V5: 2015 | W5: 2016 | X5: 0.03 | Y5: 0.05 | Z5: 0.06 | AA5: 8*% | AB5: علاوة استثنائية | AC5: إجتماعية | AD5: بدل نقدي | AE5: فرق بدل نقدي | AF5: المنحة | AG5: بدل تباع | AH5: م. صياتة | AI5: بدل مظهر | AK5: إجمالي المستحق | AL5: عدد أيام الحضور | AM5: أيام الجمعة والسبت | AN5: غياب | AO5: أجازات عارضة | AP5: أجازات اعتيادي | AQ5: أجازات سنوية | AR5: أجازات مرضي تطبيق قرار | AS5: أجازات مرضي لم ينطبق القرار | AT5: صافي أيام عمل بدل مخاطر | AU5: صافي أيام العمل بدل انتقال | AV5: تأمينات شاملة 1/1/2020 | AX5: كسب عمل | AY5: مدة سابقة | AZ5: اشتراكات أجازة خاصة | BA5: إعانة وفاة | BB5: نقابة | BC5: ن. رياضي | BD5: ص. التأميني | BE5: غياب | BF5: غياب حصة الشركة أساسي / متغير | BG5: غياب بدل مخاطر | BH5: غياب بدل انتقال | BI5: فاقد إنتاج | BJ5: جزاءات | BK5: تلفيات | BL5: عجوزات | BM5: مخالفات مرور | BN5: فاقد سولار | BO5: إيجار سكن | BP5: عهد | BQ5: شهداء 0.0005 | BR5: صندوق إعاقة | BS5: مصاريف استئناف | BT5: إجمالي المستقطع | BU5: صافي المستحق | BV5: الحافز | BW5: خصم مبالغ من الحافز | BX5: إجازات عارضة+اعتيادي+سنوي | BY5: نسبة الخصم للأجازات | BZ5: المخصوم بعد نسبة الأداء | CA5: نسبة خصم إداء-أجازات | CB5: المبلغ المخصوم بعد نسبة أداء - أجازات | CC5: خصم مريضي ينطبق القرار | CD5: خصم مرضي لم ينطبق القرار | CE5: صافي الحافز | CF5: نصف أول شهر إبريل 2022 | CG5: نصف ثاني إبريل 2022 | CH5: ملاحظات حافز | CI5: مرتب وحافز | CJ5: مكافأة | CK5: ضريبة من المكافأة | CL5: صافي المكافأة | CO5: إجمالي مرتب+حافز+ مكافأة | CP5: ملاحظات | CS5: إجمالي المستحق الضريبي | CT5: إجمالي المستقطع الضريبي | CU5: الصافي | CV5: الوعاء الضريبي | CW5: الضريبة المستحقة | CY5: الصافي بعد خصم ضريبة 2022 | DA5: إجمالي المستحق الشهري للتأمينات
B6: 1777.8157 | C6: 1 | D6: سهير محمد مدني | E6: 675.83 | K6: ='مارس 2022'!K6*107% -> 2035.421195 | P6: =K6*15% -> 305.3131792 | Q6: ='مارس 2022'!Q6*110% -> 155.639 | U6: 76.44 | V6: 85.57 | W6: 102.85 | X6: 46.58 | Y6: 83.0755 | Z6: =B6*6% -> 106.668942 | AA6: ='مارس 2022'!K6*8% -> 152.1810239 | AB6: 190 | AC6: 6 | AF6: 10 | AK6: =SUM(G6:AJ6) -> 3355.73884 | AT6: 20 | AU6: 15 | AV6: 627 | AX6: 142 | BA6: 0.5 | BB6: 3 | BD6: 0 | BG6: =IF(AT6<18,(P6/18)*(18-AT6),"0") -> 0 | BH6: 25.93983333 | BQ6: =(AK6-(P6+Q6))*0.0005 -> 1.44739333 | BR6: 5 | BT6: =SUM(AV6:BS6) -> 804.8872267 | BU6: =AK6-BT6 -> 2550.851613 | BV6: =(K6)*120% -> 2442.505434 | BY6: =IF(BX6=4,20%,IF(BX6=5,30%,IF(BX6=6,50%,IF(BX6>6,1,"0")))) -> 0 | BZ6: =(BV6*BY6) -> 0 | CB6: =BV6*CA6 -> 0 | CE6: =BV6-BW6-BZ6-CB6-CC6-CD6 -> 2442.505434 | CF6: =CE6/2 -> 1221.252717 | CH6: حافز إبريل 2022 نصفين | CI6: =BU6+CE6 -> 4993.357047 | CK6: =IF(CJ6>1500,CJ6*10%,0) -> 0 | CL6: =CJ6-CK6 -> 0 | CO6: =(BU6+CE6+CJ6)-(CM6+CN6) -> 4993.357047 | CS6: =K6+P6+X6+Y6+Z6+AA6+AB6+CE6+CJ6 -> 5361.745274 | CT6: =E6+AV6+AY6+AZ6+BD6+BG6+BQ6+BR6+750 -> 2059.277393 | CU6: =CS6-CT6 -> 3302.467881 | CV6: =TRUNC(CU6,-1) -> 3300 | CW6: =IF(AND(CV6>1250,CV6<2501),(CV6-1250)*2.5%,IF(AND(CV6>2500,CV6<3751),(CV6-2500)*10%+31.25,IF(AND(CV6>3750,CV6<5001),(CV6-3750)*15%+31.25+125,IF(AND(CV6>5000,CV6<16666.68),(CV6-5000)*20%+31.25+125+187.5,"0"))))-CK6 -> 111.25 | CY6: =CO6-CW6 -> 4882.107047 | DA6: =(AK6-(Q6+S6))+CE6+CL6 -> 5642.605274
B7: 1825.3879 | C7: 2 | D7: محمد محمود صقر | E7: 687.13 | K7: ='مارس 2022'!K7*107% -> 2089.886607 | P7: =K7*15% -> 313.482991 | Q7: ='مارس 2022'!Q7*110% -> 155.639 | U7: 78.33 | V7: 87.73 | W7: 105.57 | X7: 47.83 | Y7: 85.2985 | Z7: =B7*6% -> 109.523274 | AA7: ='مارس 2022'!K7*8% -> 156.2532042 | AB7: 190 | AC7: 10 | AF7: 10 | AK7: =SUM(G7:AJ7) -> 3439.543576 | AT7: 20 | AU7: 15 | AV7: 649 | AX7: 139.3 | AZ7: 18.74 | BA7: 0.5 | BB7: 3 | BD7: 0 | BG7: 0 | BH7: 25.93983333 | BQ7: =(AK7-(P7+Q7))*0.0005 -> 1.485210792 | BR7: 5 | BT7: =SUM(AV7:BS7) -> 842.9650441 | BU7: =AK7-BT7 -> 2596.578532 | BV7: =(K7)*120% -> 2507.863928 | BY7: =IF(BX7=4,30%,IF(BX7=5,40%,IF(BX7=6,50%,IF(BX7>6,1,"0")))) -> 0 | BZ7: =(BV7*BY7) -> 0 | CB7: 0 | CE7: 2507.863928 | CF7: =CE7/2 -> 1253.931964 | CH7: حافز إبريل 2022 نصفين | CI7: 5104.44246 | CK7: =IF(CJ7>1500,CJ7*10%,0) -> 0 | CL7: =CJ7-CK7 -> 0 | CO7: =(BU7+CE7+CJ7)-CM7 -> 5104.44246 | CS7: =K7+P7+X7+Y7+Z7+AA7+AB7+CE7+CJ7 -> 5500.138504 | CT7: =E7+AV7+AY7+AZ7+BD7+BG7+BQ7+BR7+750 -> 2111.355211 | CU7: =CS7-CT7 -> 3388.783293 | CV7: =TRUNC(CU7,-1) -> 3380 | CW7: =IF(AND(CV7>1250,CV7<2501),(CV7-1250)*2.5%,IF(AND(CV7>2500,CV7<3751),(CV7-2500)*10%+31.25,IF(AND(CV7>3750,CV7<5001),(CV7-3750)*15%+31.25+125,IF(AND(CV7>5000,CV7<16666.68),(CV7-5000)*20%+31.25+125+187.5,"0"))))-CK7 -> 119.25 | CY7: =CO7-CW7 -> 4985.19246 | DA7: =(AK7-(Q7+S7))+CE7+CL7 -> 5791.768504
B8: 778.0505 | C8: 3 | D8: محمود السيد برسي | E8: 470.48 | K8: ='مارس 2022'!K8*107% -> 890.7900175 | M8: 81 | P8: 133.6185026 | Q8: ='مارس 2022'!Q8*110% -> 155.639 | S8: 20 | U8: 36.22 | V8: 38.22 | W8: 65 | X8: 27.43 | Y8: 36.3575 | Z8: 46.68303 | AA8: ='مارس 2022'!K8*8% -> 66.6011228 | AB8: 190 | AC8: 10 | AF8: 10 | AK8: =SUM(G8:AJ8) -> 1807.559173 | AT8: 21 | AU8: 16 | AV8: 286 | AX8: 0 | BA8: 0.5 | BB8: 3 | BD8: 0 | BG8: 0 | BH8: 17.29322222 | BQ8: 0.7591508351 | BR8: 3 | BT8: 310.5523731 | BU8: 1497.0068 | BV8: 1068.948021 | BY8: 0 | BZ8: 0 | CB8: 0 | CE8: 1068.948021 | CF8: 534.4740105 | CH8: حافز إبريل 2022 نصفين | CI8: 2565.954821 | CK8: 0 | CL8: 0 | CO8: =(BU8+CE8+CJ8)-CM8 -> 2565.954821 | CS8: =K8+P8+X8+Y8+Z8+AA8+AB8+CE8+CJ8 -> 2460.428194 | CT8: =E8+AV8+AY8+AZ8+BD8+BG8+BQ8+BR8+750 -> 1510.239151 | CU8: 950.189043 | CV8: 950 | CW8: 0 | CY8: 2565.954821 | DA8: 2700.868194
B9: 3324.8003 | C9: 4 | D9: سمير حلمي محمود | CH9: حافز إبريل 2022 نصفين | DA9: 0
B10: 1536.4665 | C10: 5 | D10: ممدوح محمد عبد المجيد | E10: 609 | K10: ='مارس 2022'!K10*107% -> 1759.100496 | P10: 263.8650744 | Q10: ='مارس 2022'!Q10*110% -> 155.639 | U10: 70.73 | V10: 78.94 | W10: 94.69 | X10: 40.26 | Y10: 71.7975 | Z10: 92.18799 | AA10: ='مارس 2022'!K10*8% -> 131.5215324 | AB10: 190 | AC10: 10 | AF10: 10 | AK10: 2968.731593 | AT10: 5 | AU10: 0 | AV10: 528 | AX10: 60.16666667 | BA10: 0.5 | BB10: 3 | BD10: 0 | BG10: 190.5692204 | BH10: 155.639 | BQ10: 1.274613759 | BR10: 3 | BT10: 942.1495008 | BU10: 2026.582092 | BV10: 2110.920595 | BY10: 0 | BZ10: 0 | CB10: 0 | CC10: 297.91 | CE10: 1813.010595 | CF10: 906.5052975 | CH10: حافز إبريل 2022 نصفين | CI10: 3839.592687 | CK10: 0 | CL10: 0 | CO10: =(BU10+CE10+CJ10)-CM10 -> 3839.592687 | CS10: =K10+P10+X10+Y10+Z10+AA10+AB10+CE10+CJ10 -> 4361.743188 | CT10: =E10+AV10+AY10+AZ10+BD10+BG10+BQ10+BR10+750 -> 2081.843834 | CU10: 2279.899354 | CV10: 2270 | CW10: 25.5 | CY10: 3814.092687 | DA10: 4626.103188
B11: 1936.7856 | C11: 6 | D11: السعيد حسن الشورى | E11: 646.03 | K11: ='مارس 2022'!K11*107% -> 2217.425833 | P11: 332.613875 | Q11: ='مارس 2022'!Q11*110% -> 155.639 | U11: 89.99 | V11: 100.44 | W11: 119.89 | X11: 50.75 | Y11: 90.504 | Z11: 116.207136 | AA11: ='مارس 2022'!K11*8% -> 165.7888474 | AB11: 190 | AC11: 10 | AF11: 10 | AK11: 3649.248692 | AT11: 20 | AU11: 15 | AV11: 671 | AX11: 115.44 | BA11: 0.5 | BB11: 3 | BD11: 0 | BG11: 0 | BH11: 25.93983333 | BQ11: 1.580497908 | BR11: 5 | BT11: 822.4603312 | BU11: 2826.788361 | BV11: 2660.911 | BY11: 0 | BZ11: 0 | CB11: 0 | CE11: 2660.911 | CF11: 1330.4555 | CH11: حافز إبريل 2022 نصفين | CI11: 5487.699361 | CK11: 0 | CL11: 0 | CO11: 5487.699361 | CS11: 5824.200692 | CT11: 2073.610498 | CU11: 3750.590194 | CV11: 3750 | CW11: 156.25 | CY11: 5331.449361 | DA11: 6154.520692
B12: 1852.0523 | C12: 7 | D12: خالد حسن سليمان | E12: 703.74 | K12: ='مارس 2022'!K12*107% -> 2120.414678 | P12: 318.0622017 | Q12: ='مارس 2022'!Q12*110% -> 155.639 | U12: 79.61 | V12: 89.13 | W12: 107.16 | X12: 48.52 | Y12: 86.5445 | Z12: 111.123138 | AA12: ='مارس 2022'!K12*8% -> 158.5356769 | AB12: 190 | AC12: 10 | AF12: 10 | AK12: 3484.739195 | AT12: 20 | AU12: 15 | AV12: 649 | AX12: 143.3333333 | BA12: 0.5 | BB12: 3 | BD12: 0 | BG12: 0 | BH12: 25.93983333 | BQ12: 1.505518997 | BR12: 5 | BT12: 828.2786857 | BU12: 2656.460509 | BV12: 2544.497614 | BY12: 0 | BZ12: 0 | CB12: 0 | CE12: 2544.497614 | CF12: 1272.248807 | CH12: حافز إبريل 2022 نصفين | CI12: 5200.958123 | CK12: 0 | CL12: 0 | CO12: 5200.958123 | CS12: 5577.697809 | CT12: 2109.245519 | CU12: 3468.45229 | CV12: 3460 | CW12: 127.25 | CY12: 5073.708123 | DA12: 5873.597809
B13: 1850.6827 | C13: 8 | D13: رجب إبراهيم صالح | E13: 683.06 | K13: ='مارس 2022'!K13*107% -> 2118.846623 | P13: 317.8269935 | Q13: ='مارس 2022'!Q13*110% -> 155.639 | U13: 79.81 | V13: 89.11 | W13: 106.96 | X13: 48.49 | Y13: 86.4805 | Z13: 111.040962 | AA13: ='مارس 2022'!K13*8% -> 158.4184391 | AB13: 190 | AC13: 10 | AF13: 10 | AI13: 5.5 | AK13: 3488.122518 | AT13: 28 | AU13: 26 | AV13: 649 | AX13: 112.5916667 | BA13: 0.5 | BB13: 3 | BD13: 0 | BG13: 0 | BH13: 0 | BQ13: 1.507328262 | BR13: 3 | BT13: 769.5989949 | BU13: 2718.523523 | BV13: 2542.615948 | BY13: 0 | BZ13: 0 | CB13: 0 | CE13: 2542.615948 | CF13: 1271.307974 | CH13: حافز إبريل 2022 نصفين | CI13: 5261.139471 | CK13: 0 | CL13: 0 | CO13: 5261.139471 | CS13: 5573.719466 | CT13: 2086.567328 | CU13: 3487.152137 | CV13: 3480 | CW13: 129.25 | CY13: 5131.889471 | DA13: 5875.099466
B14: 1759.8397 | C14: 9 | D14: أحمد محمد حسن | E14: 650.36 | K14: ='مارس 2022'!K14*107% -> 2014.840473 | P14: 302.2260709 | Q14: ='مارس 2022'!Q14*110% -> 155.639 | U14: 75.92 | V14: 84.75 | W14: 101.7 | X14: 46.11 | Y14: 82.2355 | Z14: 105.590382 | AA14: ='مارس 2022'!K14*8% -> 150.6422783 | AB14: 190 | AC14: 10 | AF14: 10 | AI14: 5.5 | AK14: 3335.153704 | AT14: 20 | AU14: 15 | AV14: 627 | AX14: 131.308 | AY14: 4.62 | BA14: 0.5 | BB14: 3 | BD14: 0 | BG14: 0 | BH14: 25.93983333 | BQ14: 1.438644316 | BR14: 3 | BT14: 796.8064776 | BU14: 2538.347226 | BV14: 2417.808567 | BY14: 0 | BZ14: 0 | CB14: 0 | CE14: 2417.808567 | CF14: 1208.904284 | CH14: حافز إبريل 2022 نصفين | CI14: 4956.155793 | CK14: 0 | CL14: 0 | CO14: 4956.155793 | CS14: 5309.453271 | CT14: 2036.418644 | CU14: 3273.034626 | CV14: 3270 | CW14: 108.25 | CY14: 4847.905793 | DA14: 5597.323271
B15: 1647.7679 | C15: 10 | D15: شحاته عبد الله | E15: 648.22 | K15: ='مارس 2022'!K15*107% -> 1886.529469 | P15: 282.9794203 | Q15: ='مارس 2022'!Q15*110% -> 155.639 | U15: 76.45 | V15: 85.35 | W15: 101.93 | X15: 43.17 | Y15: 76.9985 | Z15: 98.866074 | AA15: ='مارس 2022'!K15*8% -> 141.0489322 | AB15: 200 | AC15: 10 | AF15: 10 | AI15: 5.5 | AK15: 3174.461395 | AT15: 21 | AU15: 20 | AV15: 583 | AX15: 111.3333333 | BA15: 0.5 | BB15: 3 | BD15: 0 | BG15: 0 | BH15: 0 | BQ15: 1.367921487 | BR15: 3 | BT15: 702.2012548 | BU15: 2472.26014 | BV15: 2263.835362 | BY15: 0 | BZ15: 0 | CB15: 0 | CE15: 2263.835362 | CF15: 1131.917681 | CH15: حافز إبريل 2022 نصفين | CI15: 4736.095503 | CK15: 0 | CL15: 0 | CO15: 4736.095503 | CS15: 4993.427758 | CT15: 1985.587921 | CU15: 3007.839836 | CV15: 3000 | CW15: 81.25 | CY15: 4654.845503 | DA15: 5282.657758
B16: 675.2342 | C16: 12 | D16: أحمد شحاته مصطفى | E16: 368.01 | K16: ='مارس 2022'!K16*107% -> 773.0756356 | P16: 115.9613453 | Q16: ='مارس 2022'!Q16*110% -> 155.639 | U16: 29.87 | V16: 33.52 | W16: 65 | X16: 33.74 | Y16: 31.553 | Z16: 40.514052 | AA16: ='مارس 2022'!K16*8% -> 57.80004752 | AB16: 200 | AC16: 10 | AF16: 10 | AI16: 5.5 | AK16: 1562.17308 | AT16: 24 | AU16: 17 | AV16: 253 | AX16: 0 | BA16: 0.5 | BB16: 3 | BD16: 0 | BG16: 0 | BH16: 8.646611111 | BQ16: 0.6452863675 | BR16: 3 | BT16: 268.7918975 | BU16: 1293.381183 | BV16: 927.6907627 | BY16: 0 | BZ16: 0 | CB16: 0 | CE16: 927.6907627 | CF16: 463.8453813 | CH16: حافز إبريل 2022 نصفين | CI16: 2221.071946 | CK16: 0 | CL16: 0 | CO16: 2221.071946 | CS16: 2180.334843 | CT16: 1374.655286 | CU16: 805.6795568 | CV16: 800 | CW16: 0 | CY16: 2221.071946 | DA16: 2334.224843
B17: 1611.9978 | C17: 13 | D17: أحمد شوقي حميدة | E17: 619.05 | K17: ='مارس 2022'!K17*107% -> 1845.576281 | P17: 276.8364422 | Q17: ='مارس 2022'!Q17*110% -> 155.639 | U17: 74.8 | V17: 83.51 | W17: 99.71 | X17: 42.23 | Y17: 75.327 | Z17: 96.719868 | AA17: ='مارس 2022'!K17*8% -> 137.9870117 | AB17: 200 | AC17: 10 | AF17: 10 | AI17: 5.5 | AK17: 3113.835603 | AT17: 28 | AU17: 26 | AV17: 572 | AX17: 111.6666667 | BA17: 0.5 | BB17: 3 | BD17: 0 | BG17: 0 | BH17: 0 | BQ17: 1.34068008 | BR17: 3 | BT17: 691.5073467 | BU17: 2422.328256 | BV17: 2214.691537 | BY17: 0 | BZ17: 0 | CB17: 0 | CE17: 2214.691537 | CF17: 1107.345769 | CH17: حافز إبريل 2022 نصفين | CI17: 4637.019794 | CK17: 0 | CL17: 0 | CO17: 4637.019794 | CS17: 4889.368141 | CT17: 1945.39068 | CU17: 2943.97746 | CV17: 2940 | CW17: 75.25 | CY17: 4561.769794 | DA17: 5172.888141
B18: 2198.0903 | C18: 14 | D18: عبد الناصر سيد هلال | E18: 826.2 | K18: ='مارس 2022'!K18*107% -> 2516.593584 | P18: 377.4890377 | Q18: ='مارس 2022'!Q18*110% -> 155.639 | U18: 95.19 | V18: 106.34 | W18: 120 | X18: 57.59 | Y18: 102.7145 | Z18: 131.885418 | AA18: ='مارس 2022'!K18*8% -> 188.1565297 | AB18: 190 | AC18: 10 | AF18: 10 | AK18: 4061.59807 | AT18: 20 | AU18: 15 | AV18: 770 | AX18: 188.9093333 | BA18: 0.5 | BB18: 3 | BD18: 0 | BG18: 0 | BH18: 25.93983333 | BQ18: 1.764235016 | BR18: 5 | BT18: 995.1134017 | BU18: 3066.484668 | BV18: 3019.912301 | BY18: 0 | BZ18: 0 | CB18: 0 | CE18: 3019.912301 | CF18: 1509.956151 | CH18: حافز إبريل 2022 نصفين | CI18: 6086.39697 | CK18: 0 | CL18: 0 | CO18: 6086.39697 | CS18: 6584.341371 | CT18: 2352.964235 | CU18: 4231.377136 | CV18: 4230 | CW18: 228.25 | CY18: 5858.14697 | DA18: 6925.871371
B19: 1524.322 | C19: 15 | D19: إبراهيم أحمد السيد | E19: 587.46 | K19: ='مارس 2022'!K19*107% -> 1745.196258 | P19: 261.7794387 | Q19: ='مارس 2022'!Q19*110% -> 155.639 | U19: 70.76 | V19: 78.99 | W19: 94.28 | X19: 39.94 | Y19: 71.23 | Z19: 91.45932 | AA19: ='مارس 2022'!K19*8% -> 130.4819632 | AB19: 200 | AC19: 10 | AF19: 10 | AK19: 2959.75598 | AT19: 23 | AU19: 18 | AV19: 550 | AX19: 73.33333333 | AZ19: 3.04 | BA19: 0.5 | BB19: 3 | BD19: 0 | BG19: 0 | BH19: 0 | BQ19: 1.271168771 | BR19: 3 | BT19: 634.1445021 | BU19: 2325.611478 | BV19: 2094.235509 | BY19: 0 | BZ19: 0 | CB19: 0 | CE19: 2094.235509 | CF19: 1047.117755 | CH19: حافز إبريل 2022 نصفين | CI19: 4419.846987 | CK19: 0 | CL19: 0 | CO19: 4419.846987 | CS19: 4634.322489 | CT19: 1894.771169 | CU19: 2739.55132 | CV19: 2730 | CW19: 54.25 | CY19: 4365.596987 | DA19: 4898.352489
B20: 1703.6112 | C20: 16 | D20: إيهاب أحمد صالح | E20: 647.92 | K20: ='مارس 2022'!K20*107% -> 1950.464463 | P20: 292.5696694 | Q20: ='مارس 2022'!Q20*110% -> 155.639 | U20: 73.27 | V20: 82.02 | W20: 98.55 | X20: 44.64 | Y20: 79.608 | Z20: 102.216672 | AA20: ='مارس 2022'!K20*8% -> 145.8291187 | AB20: 190 | AC20: 10 | AF20: 10 | AK20: 3234.806923 | AT20: 21 | AU20: 16 | AV20: 605 | AX20: 127.7 | AZ20: 4.18 | BA20: 0.5 | BB20: 3 | BD20: 0 | BG20: 0 | BH20: 17.29322222 | BQ20: 1.393299127 | BR20: 3 | BT20: 762.0665213 | BU20: 2472.740402 | BV20: 2340.557355 | BY20: 0 | BZ20: 0 | CB20: 0 | CE20: 2340.557355 | CF20: 1170.278678 | CH20: حافز إبريل 2022 نصفين | CI20: 4813.297757 | CK20: 0 | CL20: 0 | CO20: 4813.297757 | CS20: 5145.885278 | CT20: 2011.493299 | CU20: 3134.391979 | CV20: 3130 | CW20: 94.25 | CY20: 4719.047757 | DA20: 5419.725278
B21: 2123.1047 | C21: 19 | D21: محمد محمد نوفل | E21: 817.96 | K21: ='مارس 2022'!K21*107% -> 2430.742571 | P21: 364.6113857 | Q21: ='مارس 2022'!Q21*110% -> 155.639 | U21: 98.6 | V21: 110.06 | W21: 120 | X21: 55.63 | Y21: 99.2105 | Z21: 127.386282 | AA21: ='مارس 2022'!K21*8% -> 181.7377623 | AB21: 190 | AC21: 10 | AF21: 10 | AK21: 3953.617501 | AT21: 18 | AU21: 18 | AV21: 748 | AX21: 161.7933333 | BA21: 0.5 | BB21: 3 | BD21: 0 | BG21: 0 | BH21: 0 | BQ21: 1.716683558 | BR21: 5 | BT21: 920.0100169 | BU21: 3033.607484 | BV21: 2916.891085 | BY21: 0 | BZ21: 0 | CB21: 0 | CE21: 2916.891085 | CF21: 1458.445543 | CH21: حافز إبريل 2022 نصفين | CI21: 5950.498569 | CK21: 0 | CL21: 0 | CO21: 5950.498569 | CS21: 6366.209586 | CT21: 2322.676684 | CU21: 4043.532903 | CV21: 4040 | CW21: 199.75 | CY21: 5750.748569 | DA21: 6714.869586
B22: 2128.3049 | C22: 20 | D22: عبد الباسط هريدي | E22: 799.39 | K22: ='مارس 2022'!K22*107% -> 2436.69628 | P22: 365.504442 | Q22: ='مارس 2022'!Q22*110% -> 155.639 | U22: 91.24 | V22: 102.23 | W22: 120 | X22: 55.76 | Y22: 99.4535 | Z22: 127.698294 | AA22: ='مارس 2022'!K22*8% -> 182.1828994 | AB22: 190 | AC22: 10 | AF22: 10 | AK22: 3946.404415 | AT22: 18 | AU22: 18 | AV22: 748 | AX22: 142.2633333 | BA22: 0.5 | BB22: 3 | BD22: 0 | BG22: 0 | BH22: 0 | BQ22: 1.712630487 | BR22: 5 | BT22: 900.4759638 | BU22: 3045.928452 | BV22: 2924.035536 | BY22: 0 | BZ22: 0 | CB22: 0 | CE22: 2924.035536 | CF22: 1462.017768 | CH22: حافز إبريل 2022 نصفين | CI22: 5969.963988 | CK22: 0 | CL22: 0 | CO22: 5969.963988 | CS22: 6381.330951 | CT22: 2304.10263 | CU22: 4077.228321 | CV22: 4070 | CW22: 204.25 | CY22: 5765.713988 | DA22: 6714.800951
B23: 1823.9006 | C23: 21 | D23: أحمد حسين حسن | E23: 681.76 | K23: ='مارس 2022'!K23*107% -> 2088.183797 | P23: 313.2275695 | Q23: ='مارس 2022'!Q23*110% -> 155.639 | U23: 84.55 | V23: 94.43 | W23: 112.84 | X23: 47.79 | Y23: 85.229 | Z23: 109.434036 | AA23: ='مارس 2022'!K23*8% -> 156.1258914 | AB23: 190 | AC23: 8 | AF23: 10 | AK23: 3455.449294 | AT23: 18 | AU23: 18 | AV23: 649 | AX23: 144.8713333 | AZ23: 21.47 | BA23: 0.5 | BB23: 3 | BD23: 0 | BG23: 0 | BH23: 0 | BQ23: 1.493291362 | BR23: 3 | BT23: 823.3346247 | BU23: 2632.114669 | BV23: 2505.820556 | BY23: 0 | BZ23: 0 | CB23: 0 | CE23: 2505.820556 | CF23: 1252.910278 | CH23: حافز إبريل 2022 نصفين | CI23: 5137.935225 | CK23: 0 | CL23: 0 | CO23: 5137.935225 | CS23: 5495.81085 | CT23: 2106.723291 | CU23: 3389.087559 | CV23: 3380 | CW23: 119.25 | CY23: 5018.685225 | DA23: 5805.63085
B24: 1759.8076 | C24: 22 | D24: كمال عطية عبد الغني | E24: 650.36 | K24: ='مارس 2022'!K24*107% -> 2014.803721 | P24: 302.2205582 | Q24: ='مارس 2022'!Q24*110% -> 155.639 | U24: 75.91 | V24: 84.75 | W24: 101.7 | X24: 46.11 | Y24: 82.234 | Z24: 105.588456 | AA24: ='مارس 2022'!K24*8% -> 150.6395306 | AB24: 190 | AC24: 10 | AF24: 10 | AK24: 3329.595266 | AT24: 18 | AU24: 15 | AV24: 627 | AX24: 139.806 | AZ24: 51.32 | BA24: 0.5 | BB24: 3 | BD24: 0 | BG24: 0 | BH24: 25.93983333 | BQ24: 1.435867854 | BR24: 3 | BT24: 852.0017012 | BU24: 2477.593565 | BV24: 2417.764465 | BY24: 0 | BZ24: 0 | CB24: 0 | CE24: 2417.764465 | CF24: 1208.882233 | CH24: حافز إبريل 2022 نصفين | CI24: 4895.35803 | CK24: 0 | CL24: 0 | CO24: 4895.35803 | CS24: 5309.360731 | CT24: 2083.115868 | CU24: 3226.244864 | CV24: 3220 | CW24: 103.25 | CY24: 4792.10803 | DA24: 5591.720731
B25: 1579.5233 | C25: 24 | D25: خالد عربي محمد | E25: 607.16 | K25: ='مارس 2022'!K25*107% -> 1808.396226 | P25: 271.2594339 | Q25: ='مارس 2022'!Q25*110% -> 155.639 | U25: 73.3 | V25: 81.83 | W25: 97.7 | X25: 41.38 | Y25: 73.8095 | Z25: 94.771398 | AA25: ='مارس 2022'!K25*8% -> 135.2071945 | AB25: 200 | AC25: 10 | AF25: 10 | AK25: 3053.292753 | AT25: 22 | AU25: 17 | AV25: 561 | AX25: 97.33333333 | AZ25: 2.73 | BA25: 0.5 | BB25: 3 | BD25: 0 | BG25: 0 | BH25: 8.646611111 | BQ25: 1.313197159 | BR25: 3 | BT25: 677.5231416 | BU25: 2375.769611 | BV25: 2170.075471 | BY25: 0 | BZ25: 0 | CB25: 0 | CE25: 2170.075471 | CF25: 1085.037736 | CH25: حافز إبريل 2022 نصفين | CI25: 4545.845082 | CK25: 0 | CL25: 0 | CO25: 4545.845082 | CS25: 4794.899224 | CT25: 1925.203197 | CU25: 2869.696027 | CV25: 2860 | CW25: 67.25 | CY25: 4478.595082 | DA25: 5067.729224
B26: 1524.3327 | C26: 25 | D26: عمرو شوقي عنتر | E26: 587.47 | K26: ='مارس 2022'!K26*107% -> 1745.208508 | P26: 261.7812762 | Q26: ='مارس 2022'!Q26*110% -> 155.639 | U26: 70.76 | V26: 78.99 | W26: 94.28 | X26: 39.94 | Y26: 71.2305 | Z26: 91.459962 | AA26: ='مارس 2022'!K26*8% -> 130.4828791 | AB26: 200 | AC26: 10 | AF26: 10 | AK26: 2959.772126 | AT26: 2 | AU26: 2 | AV26: 550 | AX26: 78.5 | BA26: 0.5 | BB26: 3 | BD26: 0 | BG26: 232.6944678 | BH26: 138.3457778 | BQ26: 1.271175925 | BR26: 3 | BT26: 1007.311421 | BU26: 1952.460704 | BV26: 2094.25021 | BY26: 0 | BZ26: 0 | CB26: 0 | CE26: 2094.25021 | CF26: 1047.125105 | CH26: حافز إبريل 2022 نصفين | CI26: 4046.710914 | CK26: 0 | CL26: 0 | CO26: 4046.710914 | CS26: 4634.353335 | CT26: 2124.435644 | CU26: 2509.917692 | CV26: 2500 | CW26: 31.25 | CY26: 4015.460914 | DA26: 4898.383335
B27: 1599.008 | C27: 26 | D27: سعيد محمد علي | E27: 615.34 | K27: ='مارس 2022'!K27*107% -> 1830.704259 | P27: 274.6056389 | Q27: ='مارس 2022'!Q27*110% -> 155.639 | U27: 70.76 | V27: 78.99 | W27: 98.94 | X27: 41.89 | Y27: 74.72 | Z27: 95.94048 | AA27: ='مارس 2022'!K27*8% -> 136.8750848 | AB27: 190 | AC27: 10 | AF27: 10 | AK27: 3069.064463 | AT27: 18 | AU27: 18 | AV27: 572 | AX27: 107.1666667 | BA27: 0.5 | BB27: 3 | BD27: 0 | BG27: 0 | BH27: 0 | BQ27: 1.319409912 | BT27: 683.9860766 | BU27: 2385.078386 | BV27: 2196.845111 | BY27: 0 | BZ27: 0 | CB27: 0 | CE27: 2196.845111 | CF27: 1098.422556 | CH27: حافز إبريل 2022 نصفين | CI27: 4581.923497 | CK27: 0 | CL27: 0 | CO27: 4581.923497 | CS27: 4841.580574 | CT27: 1938.65941 | CU27: 2902.921164 | CV27: 2900 | CW27: 71.25 | CY27: 4510.673497 | DA27: 5110.270574
B28: 1210.384 | C28: 27 | D28: محمد حسن عبد الفتاح | E28: 477.64 | K28: ='مارس 2022'!K28*107% -> 1385.768642 | P28: 207.8652962 | Q28: ='مارس 2022'!Q28*110% -> 155.639 | U28: 52.68 | V28: 58.73 | W28: 75.07 | X28: 31.71 | Y28: 56.56 | Z28: 72.62304 | AA28: ='مارس 2022'!K28*8% -> 103.6088704 | AB28: 200 | AC28: 10 | AF28: 10 | AK28: 2420.254848 | AT28: 23 | AU28: 18 | AV28: 440 | AX28: 32.95833333 | BA28: 0.5 | BB28: 3 | BD28: 0 | BG28: 0 | BH28: 0 | BQ28: 1.028375276 | BR28: 3 | BT28: 480.4867086 | BU28: 1939.76814 | BV28: 1662.92237 | BY28: 0 | BZ28: 0 | CB28: 0 | CE28: 1662.92237 | CF28: 831.461185 | CH28: حافز إبريل 2022 نصفين | CI28: 3602.69051 | CK28: 0 | CL28: 0 | CO28: 3602.69051 | CS28: 3721.058218 | CT28: 1671.668375 | CU28: 2049.389843 | CV28: 2040 | CW28: 19.75 | CY28: 3582.94051 | DA28: 3927.538218
B29: 1156.7556 | C29: 28 | D29: سامح سعيد إبراهيم | E29: 467.95 | K29: ='مارس 2022'!K29*107% -> 1324.369486 | P29: 198.655423 | Q29: ='مارس 2022'!Q29*110% -> 155.639 | U29: 50.38 | V29: 56.28 | W29: 71.79 | X29: 30.31 | Y29: 54.054 | Z29: 69.405336 | AA29: ='مارس 2022'!K29*8% -> 99.01827936 | AB29: 200 | AC29: 6 | AF29: 10 | AK29: 2325.901525 | AT29: 23 | AU29: 18 | AV29: 407 | AX29: 21.41666667 | BA29: 0.5 | BB29: 3 | BD29: 0 | BG29: 0 | BH29: 0 | BQ29: 0.9858035509 | BR29: 3 | BT29: 435.9024702 | BU29: 1889.999055 | BV29: 1589.243384 | BY29: 0 | BZ29: 0 | CB29: =BV29*CA29 -> 0 | CE29: =BV29-BW29-BZ29-CB29-CC29-CD29 -> 1589.243384 | CF29: 794.6216919 | CH29: حافز إبريل 2022 نصفين | CI29: 3479.242438 | CK29: 0 | CL29: 0 | CO29: 3479.242438 | CS29: 3565.055908 | CT29: 1628.935804 | CU29: 1936.120105 | CV29: 1930 | CW29: 17 | CY29: 3462.242438 | DA29: 3759.505908
B30: 1140.7163 | C30: 29 | D30: جمال عبد الستار | E30: 457.64 | K30: ='مارس 2022'!K30*107% -> 1306.006092 | P30: 195.9009138 | Q30: ='مارس 2022'!Q30*110% -> 155.639 | U30: 49.69 | V30: 55.38 | W30: 70.73 | X30: 29.89 | Y30: 53.3045 | Z30: 68.442978 | AA30: ='مارس 2022'!K30*8% -> 97.64531528 | AB30: 200 | AC30: 10 | AF30: 10 | AK30: 2302.628799 | AT30: 21 | AU30: 16 | AV30: 418 | AX30: 25.70833333 | BA30: 0.5 | BB30: 3 | BD30: 0 | BG30: 0 | BH30: 17.29322222 | BQ30: 0.9755444426 | BR30: 3 | BT30: 468.4771 | BU30: 1834.151699 | BV30: 1567.20731 | BY30: 0 | BZ30: 0 | CB30: =BV30*CA30 -> 0 | CE30: =BV30-BW30-BZ30-CB30-CC30-CD30 -> 1567.20731 | CF30: 783.6036551 | CH30: حافز إبريل 2022 نصفين | CI30: 3401.359009 | CK30: 0 | CL30: 0 | CO30: 3401.359009 | CS30: 3518.397109 | CT30: 1629.615544 | CU30: 1888.781565 | CV30: 1880 | CW30: 15.75 | CY30: 3385.609009 | DA30: 3714.197109
B31: 1012.1879 | C31: 30 | D31: عصام محمد السيد | E31: 419.81 | K31: ='مارس 2022'!K31*107% -> 1158.853927 | P31: 173.828089 | Q31: ='مارس 2022'!Q31*110% -> 155.639 | U31: 43.92 | V31: 48.88 | W31: 65 | X31: 26.52 | Y31: 47.2985 | Z31: 60.731274 | AA31: ='مارس 2022'!K31*8% -> 86.64328424 | AB31: 200 | AC31: 10 | AF31: 10 | AK31: 2087.314074 | AT31: 22 | AU31: 17 | AV31: 374 | AX31: 11.75 | BA31: 0.5 | BB31: 3 | BD31: 0 | BG31: 0 | BH31: 8.646611111 | BQ31: 0.8789234925 | BR31: 3 | BT31: 401.7755346 | BU31: 1685.538539 | BV31: 1390.624712 | BY31: 0 | BZ31: 0 | CB31: 0 | CE31: 1390.624712 | CF31: 695.312356 | CH31: حافز إبريل 2022 نصفين | CI31: 3076.163251 | CK31: 0 | CL31: 0 | CO31: 3076.163251 | CS31: 3144.499786 | CT31: 1547.688923 | CU31: 1596.810863 | CV31: 1590 | CW31: 8.5 | CY31: 3067.663251 | DA31: 3322.299786
K32: ='مارس 2022'!K32*107% -> 0 | P32: 0 | Q32: ='مارس 2022'!Q32*110% -> 0 | Z32: 0 | AA32: ='مارس 2022'!K32*8% -> 0 | AK32: 0 | BD32: 0 | BG32: 0 | BH32: 0 | BQ32: 0 | BT32: 0 | BU32: 0 | BV32: 0 | BY32: 0 | BZ32: 0 | CB32: 0 | CE32: 0 | CF32: 0 | CH32: حافز إبريل 2022 نصفين | CI32: 0 | CK32: 0 | CL32: 0 | CO32: 0 | CS32: 0 | CT32: 750 | CU32: -750 | CV32: -750 | CW32: 0 | CY32: 0 | DA32: 0
K33: ='مارس 2022'!K33*107% -> 0 | P33: 0 | Q33: ='مارس 2022'!Q33*110% -> 0 | Z33: 0 | AA33: ='مارس 2022'!K33*8% -> 0 | AK33: 0 | BD33: 0 | BG33: 0 | BH33: 0 | BQ33: 0 | BT33: 0 | BU33: 0 | BV33: 0 | BY33: 0 | BZ33: 0 | CB33: 0 | CE33: 0 | CF33: 0 | CH33: حافز إبريل 2022 نصفين | CI33: 0 | CK33: 0 | CL33: 0 | CO33: 0 | CS33: 0 | CT33: 750 | CU33: -750 | CV33: -750 | CW33: 0 | CY33: 0 | DA33: 0
D34: السائقين | K34: ='مارس 2022'!K34*107% -> 0 | AA34: ='مارس 2022'!K34*8% -> 0 | CB34: 0 | CK34: 0 | CL34: 0 | CS34: 0 | CW34: 0 | DA34: 0
B35: 1178.4552 | C35: 32 | D35: أحمد محمد حسن خاطر | E35: 479.37 | K35: ='مارس 2022'!K35*107% -> 1349.213358 | O35: 1483.45 | P35: 202.3820038 | Q35: 0 | U35: 50.91 | V35: 56.88 | W35: 68.11 | X35: 30.87 | Y35: 55.068 | Z35: 70.707312 | AA35: ='مارس 2022'!K35*8% -> 100.8757651 | AB35: 190 | AC35: 10 | AF35: 10 | AK35: 3678.466439 | AT35: 3 | AV35: 407 | AX35: 19.625 | AZ35: 47.76 | BA35: 0.5 | BB35: 3 | BD35: 0 | BG35: =IF(AT35<18,(P35/18)*(18-AT35),"0") -> 168.6516698 | BH35: 0 | BQ35: =(AK35-(N35+O35+P35+Q35+AG35))*0.0005 -> 0.9963172178 | BR35: 3 | BT35: 650.532987 | BU35: 3027.933452 | BY35: 0 | BZ35: 0 | CB35: 0 | CE35: =BV35-BW35-BZ35-CC35-CD35 -> 0 | CI35: =BU35+CE35 -> 3027.933452 | CK35: 0 | CL35: 0 | CO35: =(BU35+CE35+CJ35)-CM35 -> 3027.933452 | CS35: 1999.116439 | CT35: =E35+AV35+AY35+AZ35+BD35+BG35+BQ35+BR35+750 -> 1856.777987 | CU35: 142.3384523 | CV35: 140 | CW35: 0 | CY35: 3027.933452 | DA35: 3678.466439
B36: 984.4963 | C36: 33 | D36: إبراهيم الحسيني إبراهيم | E36: 427.51 | K36: ='مارس 2022'!K36*107% -> 1127.149814 | N36: 3479.05 | P36: 169.0724721 | Q36: 0 | U36: 42.63 | V36: 47.54 | W36: 65 | X36: 25.79 | Y36: 46.0045 | Z36: 59.069778 | AA36: ='مارس 2022'!K36*8% -> 84.27288328 | AB36: 190 | AC36: 6 | AF36: 10 | AG36: 347.9 | AK36: 5699.479447 | AT36: 29 | AV36: 308 | AX36: 0 | BA36: 0.5 | BB36: 3 | BD36: 0 | BG36: 0 | BH36: 0 | BQ36: =(AK36-(N36+O36+P36+Q36+AG36))*0.0005 -> 0.8517284876 | BR36: 3 | BT36: 315.3517285 | BU36: 5384.127719 | BY36: 0 | BZ36: 0 | CB36: 0 | CE36: 0 | CI36: 5384.127719 | CK36: 0 | CL36: 0 | CO36: 5384.127719 | CS36: 1701.359447 | CT36: 1489.361728 | CU36: 211.9977187 | CV36: 210 | CW36: 0 | CY36: 5384.127719 | DA36: 5699.479447
B37: 976.6425 | C37: 40 | D37: أحمد محمود عبد الله | E37: 427.51 | K37: ='مارس 2022'!K37*107% -> 1118.157998 | N37: 3402.28 | P37: 167.7236997 | Q37: 0 | U37: 42.63 | V37: 47.54 | W37: 65 | X37: 25.59 | Y37: 45.6375 | Z37: 58.59855 | AA37: ='مارس 2022'!K37*8% -> 83.600598 | AB37: 190 | AC37: 10 | AF37: 10 | AG37: 340.23 | AK37: 5606.988346 | AT37: 29 | AV37: 506 | AX37: 0 | BA37: 0.5 | BB37: 3 | BD37: 0 | BG37: 0 | BH37: 0 | BQ37: 0.8483773231 | BR37: 3 | BT37: 513.3483773 | BU37: 5093.639969 | BY37: 0 | BZ37: 0 | CB37: 0 | CE37: 0 | CI37: 5093.639969 | CK37: 0 | CL37: 0 | CO37: 5093.639969 | CS37: 1689.308346 | CT37: 1687.358377 | CU37: 1.949968664 | CV37: 0 | CW37: 0 | CY37: 5093.639969 | DA37: 5606.988346
B38: 1513.515 | C38: 34 | D38: خالد العوضي عبد الله | E38: 588.96 | K38: ='مارس 2022'!K38*107% -> 1732.823324 | N38: 0 | P38: 259.9234985 | Q38: 0 | U38: 65.73 | V38: 73.52 | W38: 94 | X38: 39.65 | Y38: 70.725 | Z38: 90.8109 | AA38: ='مارس 2022'!K38*8% -> 129.556884 | AB38: 190 | AC38: 10 | AF38: 10 | AG38: 0 | AK38: 2766.739606 | AT38: 19 | AV38: 286 | AX38: 0 | BA38: 0.5 | BB38: 3 | BD38: 0 | BG38: 0 | BH38: 0 | BJ38: 500 | BQ38: 1.253408054 | BR38: 3 | BT38: 793.7534081 | BU38: 1972.986198 | BY38: 0 | BZ38: 0 | CB38: 0 | CE38: 0 | CI38: 1972.986198 | CK38: 0 | CL38: 0 | CO38: 1972.986198 | CS38: 2513.489606 | CT38: 1629.213408 | CU38: 884.276198 | CV38: 880 | CW38: 0 | CY38: 1972.986198 | DA38: 2766.739606
B39: 1710.4592 | C39: 36 | D39: جمال خميس إسماعيل | E39: 653.4 | K39: ='مارس 2022'!K39*107% -> 1958.304738 | N39: 0 | P39: 293.7457107 | Q39: 0 | U39: 79.33 | V39: 88.58 | W39: 105.81 | X39: 44.81 | Y39: 79.928 | Z39: 102.627552 | AA39: ='مارس 2022'!K39*8% -> 146.4153075 | AB39: 190 | AC39: 10 | AF39: 10 | AG39: 0 | AK39: 3109.551308 | AT39: 20 | AV39: 385 | AX39: 3.4167 | BA39: 0.5 | BB39: 3 | BD39: 0 | BG39: 0 | BH39: 0 | BQ39: 1.407902799 | BR39: 3 | BT39: 396.3246028 | BU39: 2713.226706 | BY39: 0 | BZ39: 0 | CB39: 0 | CE39: 0 | CI39: 2713.226706 | CK39: 0 | CL39: 0 | CO39: 2713.226706 | CS39: 2815.831308 | CT39: 1792.807903 | CU39: 1023.023406 | CV39: 1020 | CW39: 0 | CY39: 2713.226706 | DA39: 3109.551308
A40: نقل م.نصر | B40: 1573.4564 | C40: 37 | D40: محمد خليل إبراهيم | E40: 616.3 | F40: نقل م.نصر | K40: ='مارس 2022'!K40*107% -> 1801.450232 | P40: 270.2175349 | Q40: 0 | U40: 80.67 | V40: 90.36 | W40: 97.36 | X40: 41.22 | Y40: 73.526 | Z40: 94.407384 | AA40: ='مارس 2022'!K40*8% -> 134.6878678 | AB40: 200 | AC40: 10 | AF40: 10 | AK40: 2903.899019 | AT40: 14 | AV40: 352 | AX40: 0 | BA40: 0.5 | BB40: 3 | BG40: 60.04834108 | BH40: 0 | BQ40: 1.316840742 | BT40: 416.8651818 | BU40: 2487.033837 | BY40: 0 | BZ40: 0 | CB40: 0 | CE40: 0 | CI40: 2487.033837 | CK40: 0 | CL40: 0 | CO40: 2487.033837 | CS40: 2615.509019 | CT40: 1779.665182 | CU40: 835.8438372 | CV40: 830 | CW40: 0 | CY40: 2487.033837 | DA40: 2903.899019
A41: نقل م.نصر | B41: 1579.5233 | C41: 38 | D41: شعبان عبد اللطيف | E41: 632.8 | F41: نقل م.نصر | K41: ='مارس 2022'!K41*107% -> 1808.396226 | P41: 271.2594339 | Q41: 0 | U41: 77.71 | V41: 86.7 | W41: 97.7 | X41: 41.38 | Y41: 73.8095 | Z41: 94.771398 | AA41: ='مارس 2022'!K41*8% -> 135.2071945 | AB41: 200 | AC41: 10 | AF41: 10 | AK41: 2906.933753 | AT41: 14 | AV41: 352 | AX41: 0 | BA41: 0.5 | BB41: 3 | BG41: 60.27987421 | BH41: 0 | BQ41: 1.317837159 | BT41: 417.0977114 | BU41: 2489.836041 | BY41: 0 | BZ41: 0 | CB41: 0 | CE41: 0 | CI41: 2489.836041 | CK41: 0 | CL41: 0 | CO41: 2489.836041 | CS41: 2624.823753 | CT41: 1796.397711 | CU41: 828.4260412 | CV41: 820 | CW41: 0 | CY41: 2489.836041 | DA41: 2906.933753
B42: 1615.91 | C42: 39 | D42: محمود محمد محمود شرارة | E42: 611.49 | K42: ='مارس 2022'!K42*107% -> 1850.055359 | N42: 0 | P42: 277.5083039 | Q42: 0 | U42: 70.12 | V42: 78.28 | W42: 100.31 | X42: 42.34 | Y42: 75.5125 | Z42: 96.9546 | AA42: ='مارس 2022'!K42*8% -> 138.321896 | AB42: 190 | AC42: 10 | AF42: 10 | AG42: 0 | AK42: 2939.402659 | AT42: 20 | AV42: 352 | AX42: 0 | BA42: 0.5 | BB42: 3 | BD42: 0 | BG42: 0 | BH42: 0 | BQ42: 1.330947178 | BR42: 3 | BT42: 359.8309472 | BU42: 2579.571712 | BY42: 0 | BZ42: 0 | CB42: 0 | CE42: 0 | CI42: 2579.571712 | CK42: 0 | CL42: 0 | CO42: 2579.571712 | CS42: 2670.692659 | CT42: 1717.820947 | CU42: 952.8717117 | CV42: 950 | CW42: 0 | CY42: 2579.571712 | DA42: 2939.402659
B43: 976.6425 | C43: 40 | K43: ='مارس 2022'!K43*107% -> 0 | P43: 0 | AA43: ='مارس 2022'!K43*8% -> 0 | AK43: 0 | AV43: 0 | BD43: 0 | BG43: 0 | BH43: 0 | BQ43: 0 | BT43: 0 | BU43: 0 | BY43: 0 | BZ43: 0 | CB43: 0 | CE43: 0 | CI43: 0 | CK43: 0 | CL43: 0 | CO43: 0 | CS43: 0 | CT43: 750 | CU43: -750 | CV43: -750 | CW43: 0 | CY43: 0 | DA43: 0
C44: 41 | K44: ='مارس 2022'!K44*107% -> 0 | Z44: =B44*6% -> 0 | AA44: ='مارس 2022'!K44*8% -> 0 | BD44: 0 | BG44: 0 | BH44: 0 | BQ44: 0 | BT44: 0 | CB44: 0 | CE44: 0 | CK44: 0 | CL44: 0 | CO44: 0 | CS44: 0 | CT44: 750 | CU44: -750 | CV44: -750 | CW44: 0 | CY44: 0 | DA44: 0
C45: 42 | K45: ='مارس 2022'!K45*107% -> 0 | Z45: 0 | AA45: ='مارس 2022'!K45*8% -> 0 | BD45: 0 | BG45: 0 | BH45: 0 | BQ45: 0 | BT45: 0 | CB45: 0 | CE45: 0 | CK45: 0 | CL45: 0 | CO45: 0 | CS45: 0 | CT45: 750 | CU45: -750 | CV45: -750 | CW45: 0 | CY45: 0 | DA45: 0

Sheet يوليو 2022
E2: الــــــمــــــــســــــــتـــــــــحـــــــــــقـــــــــــــــــــات | AL2: الـــــــــتـــــــــأثيرات | AV2: الــــــــــــــــــــمـــــــــــــــــــــســـــــــــــــــــتــــــــــــــــــــــــــــــــــــقــــــــــــــــــــــــــطـــــــــــــــــــــــــع | BV2: الــــحــافــــــــز
CS4: استخراج الضرائب شهريا خلال عام 2022
D5: الاسم | E5: مجموع العلاوات | F5: كود | G5: غياب | H5: مرضي | I5: إصابة | J5: إيقاف | K5: الأجر الأساسي 7/2021 | L5: بدل تمثيل | M5: بدل تفرغ | N5: عمولة انتاج | O5: معونة مرضي وإصابة | P5: بدل مخاطر | Q5: بدل انتقال | R5: بدل إقامة+أجر مكمل | S5: انتقال محامين | U5: 2014 | V5: 2015 | W5: 2016 | X5: 0.03 | Y5: 0.05 | Z5: 0.06 | AA5: 8*% | AB5: علاوة استثنائية | AC5: إجتماعية | AD5: بدل نقدي | AE5: فرق بدل نقدي | AF5: المنحة | AG5: بدل تباع | AH5: م. صياتة | AI5: بدل مظهر | AK5: إجمالي المستحق | AL5: عدد أيام الحضور | AM5: أيام الجمعة والسبت | AN5: غياب | AO5: أجازات عارضة | AP5: أجازات اعتيادي | AQ5: أجازات سنوية | AR5: أجازات مرضي تطبيق قرار | AS5: أجازات مرضي لم ينطبق القرار | AT5: صافي أيام عمل بدل مخاطر | AU5: صافي أيام العمل بدل انتقال | AV5: تأمينات شاملة 1/1/2020 | AX5: كسب عمل | AY5: مدة سابقة | AZ5: اشتراكات أجازة خاصة | BA5: إعانة وفاة | BB5: نقابة | BC5: ن. رياضي | BD5: ص. التأميني | BE5: غياب | BF5: غياب حصة الشركة أساسي / متغير | BG5: غياب بدل مخاطر | BH5: غياب بدل انتقال | BI5: فاقد إنتاج | BJ5: جزاءات | BK5: تلفيات | BL5: عجوزات | BM5: مخالفات مرور | BN5: فاقد سولار | BO5: إيجار سكن | BP5: عهد | BQ5: شهداء 0.0005 | BR5: صندوق إعاقة | BS5: مصاريف استئناف | BT5: إجمالي المستقطع | BU5: صافي المستحق | BV5: الحافز | BW5: خصم مبالغ من الحافز | BX5: إجازات عارضة+اعتيادي+سنوي | BY5: نسبة الخصم للأجازات | BZ5: المخصوم بعد نسبة الأداء | CA5: نسبة خصم إداء-أجازات | CB5: المبلغ المخصوم بعد نسبة أداء - أجازات | CC5: خصم مريضي ينطبق القرار | CD5: خصم مرضي لم ينطبق القرار | CE5: صافي الحافز | CF5: نصف أول شهر إبريل 2022 | CG5: نصف ثاني إبريل 2022 | CH5: ملاحظات حافز | CI5: مرتب وحافز | CJ5: مكافأة | CK5: ضريبة من المكافأة | CL5: صافي المكافأة | CO5: إجمالي مرتب+حافز+ مكافأة | CP5: ملاحظات | CS5: إجمالي المستحق الضريبي | CT5: إجمالي المستقطع الضريبي | CU5: الصافي | CV5: الوعاء الضريبي | CW5: الضريبة المستحقة | CY5: الصافي بعد خصم ضريبة 2022 | DA5: إجمالي المستحق الشهري للتأمينات
B6: 1777.8157 | C6: 1 | D6: سهير محمد مدني | E6: 675.83 | K6: ='مارس 2022'!K6*107% -> 2035.421195 | P6: =K6*15% -> 305.3131792 | Q6: ='مارس 2022'!Q6*110% -> 155.639 | U6: 76.44 | V6: 85.57 | W6: 102.85 | X6: 46.58 | Y6: 83.0755 | Z6: =B6*6% -> 106.668942 | AA6: ='مارس 2022'!K6*8% -> 152.1810239 | AB6: 190 | AC6: 6 | AF6: 10 | AK6: =SUM(G6:AJ6) -> 3355.73884 | AT6: 18 | AU6: 18 | AV6: 627 | AX6: 142 | BA6: 0.5 | BB6: 3 | BD6: 0 | BG6: =IF(AT6<18,(P6/18)*(18-AT6),"0") -> 0 | BH6: 0 | BQ6: =(AK6-(P6+Q6))*0.0005 -> 1.44739333 | BR6: 5 | BT6: =SUM(AV6:BS6) -> 778.9473933 | BU6: =AK6-BT6 -> 2576.791447 | BV6: =(K6)*120% -> 2442.505434 | BY6: =IF(BX6=4,20%,IF(BX6=5,30%,IF(BX6=6,50%,IF(BX6>6,1,"0")))) -> 0 | BZ6: =(BV6*BY6) -> 0 | CB6: =BV6*CA6 -> 0 | CE6: =BV6-BW6-BZ6-CB6-CC6-CD6 -> 2442.505434 | CF6: =CE6/2 -> 1221.252717 | CG6: =CE6/2 -> 1221.252717 | CH6: حافز إبريل 2022 نصفين | CI6: =BU6+CE6 -> 5019.296881 | CJ6: 1902.262799 | CK6: =IF(CJ6>1500,CJ6*10%,0) -> 190.2262799 | CL6: =CJ6-CK6 -> 1712.036519 | CO6: =(BU6+CE6+CJ6)-(CM6+CN6) -> 6921.55968 | CS6: =K6+P6+X6+Y6+Z6+AA6+AB6+CE6+CJ6 -> 7264.008073 | CT6: =E6+AV6+AY6+AZ6+BD6+BG6+BQ6+BR6+750 -> 2059.277393 | CU6: =CS6-CT6 -> 5204.73068 | CV6: =TRUNC(CU6,-1) -> 5200 | CW6: =IF(AND(CV6>1250,CV6<2501),(CV6-1250)*2.5%,IF(AND(CV6>2500,CV6<3751),(CV6-2500)*10%+31.25,IF(AND(CV6>3750,CV6<5001),(CV6-3750)*15%+31.25+125,IF(AND(CV6>5000,CV6<16666.68),(CV6-5000)*20%+31.25+125+187.5,"0"))))-CK6 -> 193.5237201 | CY6: =CO6-CW6 -> 6728.03596 | DA6: =(AK6-(Q6+S6))+CE6+CL6 -> 7354.641793
B7: 1825.3879 | C7: 2 | D7: محمد محمود صقر | E7: 687.13 | K7: ='مارس 2022'!K7*107% -> 2089.886607 | P7: =K7*15% -> 313.482991 | Q7: ='مارس 2022'!Q7*110% -> 155.639 | U7: 78.33 | V7: 87.73 | W7: 105.57 | X7: 47.83 | Y7: 85.2985 | Z7: =B7*6% -> 109.523274 | AA7: ='مارس 2022'!K7*8% -> 156.2532042 | AB7: 190 | AC7: 10 | AF7: 10 | AK7: =SUM(G7:AJ7) -> 3439.543576 | AT7: 19 | AU7: 19 | AV7: 649 | AX7: 139.3 | AZ7: 18.74 | BA7: 0.5 | BB7: 3 | BD7: 0 | BG7: 0 | BH7: 0 | BQ7: =(AK7-(P7+Q7))*0.0005 -> 1.485210792 | BR7: 5 | BT7: =SUM(AV7:BS7) -> 817.0252108 | BU7: =AK7-BT7 -> 2622.518365 | BV7: =(K7)*120% -> 2507.863928 | BY7: =IF(BX7=4,30%,IF(BX7=5,40%,IF(BX7=6,50%,IF(BX7>6,1,"0")))) -> 0 | BZ7: =(BV7*BY7) -> 0 | CB7: 0 | CE7: 2507.863928 | CF7: =CE7/2 -> 1253.931964 | CG7: =CE7/2 -> 1253.931964 | CH7: حافز إبريل 2022 نصفين | CI7: 5130.382293 | CJ7: 1953.165053 | CK7: =IF(CJ7>1500,CJ7*10%,0) -> 195.3165053 | CL7: =CJ7-CK7 -> 1757.848548 | CO7: =(BU7+CE7+CJ7)-CM7 -> 7083.547346 | CS7: =K7+P7+X7+Y7+Z7+AA7+AB7+CE7+CJ7 -> 7453.303557 | CT7: =E7+AV7+AY7+AZ7+BD7+BG7+BQ7+BR7+750 -> 2111.355211 | CU7: =CS7-CT7 -> 5341.948346 | CV7: =TRUNC(CU7,-1) -> 5340 | CW7: =IF(AND(CV7>1250,CV7<2501),(CV7-1250)*2.5%,IF(AND(CV7>2500,CV7<3751),(CV7-2500)*10%+31.25,IF(AND(CV7>3750,CV7<5001),(CV7-3750)*15%+31.25+125,IF(AND(CV7>5000,CV7<16666.68),(CV7-5000)*20%+31.25+125+187.5,"0"))))-CK7 -> 216.4334947 | CY7: =CO7-CW7 -> 6867.113852 | DA7: =(AK7-(Q7+S7))+CE7+CL7 -> 7549.617052
B8: 778.0505 | C8: 3 | D8: محمود السيد برسي | E8: 470.48 | K8: ='مارس 2022'!K8*107% -> 890.7900175 | M8: 81 | P8: 133.6185026 | Q8: ='مارس 2022'!Q8*110% -> 155.639 | S8: 20 | U8: 36.22 | V8: 38.22 | W8: 65 | X8: 27.43 | Y8: 36.3575 | Z8: 46.68303 | AA8: ='مارس 2022'!K8*8% -> 66.6011228 | AB8: 190 | AC8: 10 | AF8: 10 | AK8: =SUM(G8:AJ8) -> 1807.559173 | AT8: 19 | AU8: 18 | AV8: 286 | AX8: 0 | BA8: 0.5 | BB8: 3 | BD8: 0 | BG8: 0 | BH8: 0 | BQ8: 0.7591508351 | BR8: 3 | BT8: 293.2591508 | BU8: 1514.300022 | BV8: 1068.948021 | BY8: 0 | BZ8: 0 | CB8: 0 | CE8: 1068.948021 | CF8: 534.4740105 | CG8: 534.4740105 | CH8: حافز إبريل 2022 نصفين | CI8: 2583.248043 | CJ8: 832.514035 | CK8: 0 | CL8: 832.514035 | CO8: =(BU8+CE8+CJ8)-CM8 -> 3415.762078 | CS8: =K8+P8+X8+Y8+Z8+AA8+AB8+CE8+CJ8 -> 3292.942229 | CT8: =E8+AV8+AY8+AZ8+BD8+BG8+BQ8+BR8+750 -> 1510.239151 | CU8: 1782.703078 | CV8: 1780 | CW8: 13.25 | CY8: 3402.512078 | DA8: 3533.382229
B9: 3324.8003 | C9: 4 | D9: سمير حلمي محمود | CG9: 0 | CH9: حافز إبريل 2022 نصفين | DA9: 0
B10: 1536.4665 | C10: 5 | D10: ممدوح محمد عبد المجيد | E10: 609 | K10: ='مارس 2022'!K10*107% -> 1759.100496 | P10: 263.8650744 | Q10: ='مارس 2022'!Q10*110% -> 155.639 | U10: 70.73 | V10: 78.94 | W10: 94.69 | X10: 40.26 | Y10: 71.7975 | Z10: 92.18799 | AA10: ='مارس 2022'!K10*8% -> 131.5215324 | AB10: 190 | AC10: 10 | AF10: 10 | AK10: 2968.731593 | AT10: 16 | AU10: 11 | AV10: 528 | AX10: 0 | BA10: 0.5 | BB10: 3 | BD10: 0 | BG10: 29.3183416 | BH10: 60.52627778 | BQ10: 1.274613759 | BR10: 3 | BT10: 625.6192331 | BU10: 2343.112359 | BV10: 2110.920595 | BY10: 0 | BZ10: 0 | CB10: 0 | CC10: 297.91 | CE10: 1813.010595 | CF10: 906.5052975 | CG10: 906.5052975 | CH10: حافز إبريل 2022 نصفين | CI10: 4156.122955 | CJ10: 1644.019155 | CK10: 164.4019155 | CL10: 1479.61724 | CO10: =(BU10+CE10+CJ10)-CM10 -> 5800.14211 | CS10: =K10+P10+X10+Y10+Z10+AA10+AB10+CE10+CJ10 -> 6005.762343 | CT10: =E10+AV10+AY10+AZ10+BD10+BG10+BQ10+BR10+750 -> 1920.592955 | CU10: 4085.169387 | CV10: 4080 | CW10: 41.3480845 | CY10: 5758.794025 | DA10: 6105.720427
B11: 1936.7856 | C11: 6 | D11: السعيد حسن الشورى | E11: 646.03 | K11: ='مارس 2022'!K11*107% -> 2217.425833 | P11: 332.613875 | Q11: ='مارس 2022'!Q11*110% -> 155.639 | U11: 89.99 | V11: 100.44 | W11: 119.89 | X11: 50.75 | Y11: 90.504 | Z11: 116.207136 | AA11: ='مارس 2022'!K11*8% -> 165.7888474 | AB11: 190 | AC11: 10 | AF11: 10 | AK11: 3649.248692 | AT11: 19 | AU11: 18 | AV11: 671 | AX11: 115.44 | BA11: 0.5 | BB11: 3 | BD11: 0 | BG11: 0 | BH11: 0 | BQ11: 1.580497908 | BR11: 5 | BT11: 796.5204979 | BU11: 2852.728194 | BV11: 2660.911 | BY11: 0 | BZ11: 0 | CB11: 0 | CE11: 2660.911 | CF11: 1330.4555 | CG11: 1330.4555 | CH11: حافز إبريل 2022 نصفين | CI11: 5513.639194 | CJ11: 2072.360592 | CK11: 207.2360592 | CL11: 1865.124533 | CO11: 7585.999786 | CS11: 7896.561284 | CT11: 2073.610498 | CU11: 5822.950786 | CV11: 5820 | CW11: 300.5139408 | CY11: 7285.485845 | DA11: 8019.645225
B12: 1852.0523 | C12: 7 | D12: خالد حسن سليمان | E12: 703.74 | K12: ='مارس 2022'!K12*107% -> 2120.414678 | P12: 318.0622017 | Q12: ='مارس 2022'!Q12*110% -> 155.639 | U12: 79.61 | V12: 89.13 | W12: 107.16 | X12: 48.52 | Y12: 86.5445 | Z12: 111.123138 | AA12: ='مارس 2022'!K12*8% -> 158.5356769 | AB12: 190 | AC12: 10 | AF12: 10 | AK12: 3484.739195 | AT12: 19 | AU12: 18 | AV12: 649 | AX12: 143.3333333 | BA12: 0.5 | BB12: 3 | BD12: 0 | BG12: 0 | BH12: 0 | BQ12: 1.505518997 | BR12: 5 | BT12: 802.3388523 | BU12: 2682.400343 | BV12: 2544.497614 | BY12: 0 | BZ12: 0 | CB12: 0 | CE12: 2544.497614 | CF12: 1272.248807 | CG12: 1272.248807 | CH12: حافز إبريل 2022 نصفين | CI12: 5226.897956 | CJ12: 1981.695961 | CK12: 198.1695961 | CL12: 1783.526365 | CO12: 7208.593917 | CS12: 7559.39377 | CT12: 2109.245519 | CU12: 5450.148251 | CV12: 5450 | CW12: 235.5804039 | CY12: 6973.013514 | DA12: 7657.124174
B13: 1850.6827 | C13: 8 | D13: رجب إبراهيم صالح | E13: 683.06 | K13: ='مارس 2022'!K13*107% -> 2118.846623 | P13: 317.8269935 | Q13: ='مارس 2022'!Q13*110% -> 155.639 | U13: 79.81 | V13: 89.11 | W13: 106.96 | X13: 48.49 | Y13: 86.4805 | Z13: 111.040962 | AA13: ='مارس 2022'!K13*8% -> 158.4184391 | AB13: 190 | AC13: 10 | AF13: 10 | AI13: 5.5 | AK13: 3488.122518 | AT13: 27 | AU13: 27 | AV13: 649 | AX13: 112.5916667 | BA13: 0.5 | BB13: 3 | BD13: 0 | BG13: 0 | BH13: 0 | BQ13: 1.507328262 | BR13: 3 | BT13: 769.5989949 | BU13: 2718.523523 | BV13: 2542.615948 | BY13: 0 | BZ13: 0 | CB13: 0 | CE13: 2542.615948 | CF13: 1271.307974 | CG13: 1271.307974 | CH13: حافز إبريل 2022 نصفين | CI13: 5261.139471 | CJ13: 1980.230489 | CK13: 198.0230489 | CL13: 1782.20744 | CO13: 7241.36996 | CS13: 7553.949955 | CT13: 2086.567328 | CU13: 5467.382626 | CV13: 5460 | CW13: 237.7269511 | CY13: 7003.643009 | DA13: 7657.306906
B14: 1759.8397 | C14: 9 | D14: أحمد محمد حسن | E14: 650.36 | K14: ='مارس 2022'!K14*107% -> 2014.840473 | P14: 302.2260709 | Q14: ='مارس 2022'!Q14*110% -> 155.639 | U14: 75.92 | V14: 84.75 | W14: 101.7 | X14: 46.11 | Y14: 82.2355 | Z14: 105.590382 | AA14: ='مارس 2022'!K14*8% -> 150.6422783 | AB14: 190 | AC14: 10 | AF14: 10 | AI14: 5.5 | AK14: 3335.153704 | AT14: 19 | AU14: 18 | AV14: 627 | AX14: 131.308 | AY14: 4.62 | BA14: 0.5 | BB14: 3 | BD14: 0 | BG14: 0 | BH14: 0 | BQ14: 1.438644316 | BR14: 3 | BT14: 770.8666443 | BU14: 2564.287059 | BV14: 2417.808567 | BY14: 0 | BZ14: 0 | CB14: 0 | CE14: 2417.808567 | CF14: 1208.904284 | CG14: 1208.904284 | CH14: حافز إبريل 2022 نصفين | CI14: 4982.095626 | CJ14: 1883.028479 | CK14: 188.3028479 | CL14: 1694.725631 | CO14: 6865.124105 | CS14: 7192.48175 | CT14: 2036.418644 | CU14: 5156.063105 | CV14: 5150 | CW14: 185.4471521 | CY14: 6679.676953 | DA14: 7292.048902
B15: 1647.7679 | C15: 10 | D15: شحاته عبد الله | E15: 648.22 | K15: ='مارس 2022'!K15*107% -> 1886.529469 | P15: 282.9794203 | Q15: ='مارس 2022'!Q15*110% -> 155.639 | U15: 76.45 | V15: 85.35 | W15: 101.93 | X15: 43.17 | Y15: 76.9985 | Z15: 98.866074 | AA15: ='مارس 2022'!K15*8% -> 141.0489322 | AB15: 200 | AC15: 10 | AF15: 10 | AI15: 5.5 | AK15: 3174.461395 | AT15: 19 | AU15: 19 | AV15: 583 | AX15: 111.3333333 | BA15: 0.5 | BB15: 3 | BD15: 0 | BG15: 0 | BH15: 0 | BQ15: 1.367921487 | BR15: 3 | BT15: 702.2012548 | BU15: 2472.26014 | BV15: 2263.835362 | BY15: 0 | BZ15: 0 | CB15: 0 | CE15: 2263.835362 | CF15: 1131.917681 | CG15: 1131.917681 | CH15: حافز إبريل 2022 نصفين | CI15: 4736.095503 | CJ15: 1763.111653 | CK15: 176.3111653 | CL15: 1586.800488 | CO15: 6499.207156 | CS15: 6756.539411 | CT15: 1985.587921 | CU15: 4770.951489 | CV15: 4770 | CW15: 132.9388347 | CY15: 6366.268321 | DA15: 6869.458245
B16: 675.2342 | C16: 12 | D16: أحمد شحاته مصطفى | E16: 368.01 | K16: ='مارس 2022'!K16*107% -> 773.0756356 | P16: 115.9613453 | Q16: ='مارس 2022'!Q16*110% -> 155.639 | R16: 74.76 | U16: 29.87 | V16: 33.52 | W16: 65 | X16: 33.74 | Y16: 31.553 | Z16: 40.514052 | AA16: ='مارس 2022'!K16*8% -> 57.80004752 | AB16: 200 | AC16: 10 | AF16: 10 | AI16: 5.5 | AK16: 1636.93308 | AT16: 18 | AU16: 18 | AV16: 253 | AX16: 0 | BA16: 0.5 | BB16: 3 | BD16: 0 | BG16: 0 | BH16: 0 | BQ16: 0.6826663675 | BR16: 3 | BT16: 260.1826664 | BU16: 1376.750414 | BV16: 927.6907627 | BY16: 0 | BZ16: 0 | CB16: 0 | CE16: 927.6907627 | CF16: 463.8453813 | CG16: 463.8453813 | CH16: حافز إبريل 2022 نصفين | CI16: 2304.441177 | CJ16: 722.500594 | CK16: 0 | CL16: 722.500594 | CO16: 3026.941771 | CS16: 2902.835437 | CT16: 1374.692666 | CU16: 1528.142771 | CV16: 1520 | CW16: 6.75 | CY16: 3020.191771 | DA16: 3131.485437
B17: 1611.9978 | C17: 13 | D17: أحمد شوقي حميدة | E17: 619.05 | K17: ='مارس 2022'!K17*107% -> 1845.576281 | P17: 276.8364422 | Q17: ='مارس 2022'!Q17*110% -> 155.639 | U17: 74.8 | V17: 83.51 | W17: 99.71 | X17: 42.23 | Y17: 75.327 | Z17: 96.719868 | AA17: ='مارس 2022'!K17*8% -> 137.9870117 | AB17: 200 | AC17: 10 | AF17: 10 | AI17: 5.5 | AK17: 3113.835603 | AT17: 27 | AU17: 27 | AV17: 572 | AX17: 0 | BA17: 0.5 | BB17: 3 | BD17: 0 | BG17: 0 | BH17: 0 | BQ17: 1.34068008 | BR17: 3 | BT17: 579.8406801 | BU17: 2533.994923 | BV17: 2214.691537 | BY17: 0 | BZ17: 0 | CB17: 0 | CE17: 2214.691537 | CF17: 1107.345769 | CG17: 1107.345769 | CH17: حافز إبريل 2022 نصفين | CI17: 4748.68646 | CJ17: 1724.837646 | CK17: 172.4837646 | CL17: 1552.353881 | CO17: 6473.524106 | CS17: 6614.205787 | CT17: 1945.39068 | CU17: 4668.815106 | CV17: 4660 | CW17: 120.2662354 | CY17: 6353.257871 | DA17: 6725.242022
B18: 2198.0903 | C18: 14 | D18: عبد الناصر سيد هلال | E18: 826.2 | K18: ='مارس 2022'!K18*107% -> 2516.593584 | P18: 377.4890377 | Q18: ='مارس 2022'!Q18*110% -> 155.639 | U18: 95.19 | V18: 106.34 | W18: 120 | X18: 57.59 | Y18: 102.7145 | Z18: 131.885418 | AA18: ='مارس 2022'!K18*8% -> 188.1565297 | AB18: 190 | AC18: 10 | AF18: 10 | AK18: 4061.59807 | AT18: 7 | AU18: 7 | AV18: 770 | AX18: 188.9093333 | BA18: 0.5 | BB18: 3 | BD18: 0 | BG18: 230.6877452 | BH18: 95.11272222 | BQ18: 1.764235016 | BR18: 5 | BT18: 1294.974036 | BU18: 2766.624034 | BV18: 3019.912301 | BY18: 0 | BZ18: 0 | CB18: 0 | CE18: 3019.912301 | CF18: 1509.956151 | CG18: 1509.956151 | CH18: حافز إبريل 2022 نصفين | CI18: 5786.536335 | CJ18: 2351.956621 | CK18: 235.1956621 | CL18: 2116.760959 | CO18: 8138.492956 | CS18: 8936.297992 | CT18: 2583.65198 | CU18: 6352.646012 | CV18: 6350 | CW18: 378.5543379 | CY18: 7759.938618 | DA18: 9042.63233
B19: 1524.322 | C19: 15 | D19: إبراهيم أحمد السيد | E19: 587.46 | K19: ='مارس 2022'!K19*107% -> 1745.196258 | P19: 261.7794387 | Q19: ='مارس 2022'!Q19*110% -> 155.639 | U19: 70.76 | V19: 78.99 | W19: 94.28 | X19: 39.94 | Y19: 71.23 | Z19: 91.45932 | AA19: ='مارس 2022'!K19*8% -> 130.4819632 | AB19: 200 | AC19: 10 | AF19: 10 | AK19: 2959.75598 | AT19: 20 | AU19: 20 | AV19: 550 | AX19: 0 | AZ19: 3.04 | BA19: 0.5 | BB19: 3 | BD19: 0 | BG19: 0 | BH19: 0 | BQ19: 1.271168771 | BR19: 3 | BT19: 560.8111688 | BU19: 2398.944811 | BV19: 2094.235509 | BY19: 0 | BZ19: 0 | CB19: 0 | CE19: 2094.235509 | CF19: 1047.117755 | CG19: 1047.117755 | CH19: حافز إبريل 2022 نصفين | CI19: 4493.18032 | CJ19: 1631.02454 | CK19: 163.102454 | CL19: 1467.922086 | CO19: 6124.20486 | CS19: 6265.347029 | CT19: 1894.771169 | CU19: 4370.57586 | CV19: 4370 | CW19: 86.147546 | CY19: 6038.057314 | DA19: 6366.274575
B20: 1703.6112 | C20: 16 | D20: إيهاب أحمد صالح | E20: 647.92 | K20: ='مارس 2022'!K20*107% -> 1950.464463 | P20: 292.5696694 | Q20: ='مارس 2022'!Q20*110% -> 155.639 | U20: 73.27 | V20: 82.02 | W20: 98.55 | X20: 44.64 | Y20: 79.608 | Z20: 102.216672 | AA20: ='مارس 2022'!K20*8% -> 145.8291187 | AB20: 190 | AC20: 10 | AF20: 10 | AK20: 3234.806923 | AT20: 19 | AU20: 18 | AV20: 605 | AX20: 127.7 | AZ20: 4.18 | BA20: 0.5 | BB20: 3 | BD20: 0 | BG20: 0 | BH20: 0 | BQ20: 1.393299127 | BR20: 3 | BT20: 744.7732991 | BU20: 2490.033624 | BV20: 2340.557355 | BY20: 0 | BZ20: 0 | CB20: 0 | CE20: 2340.557355 | CF20: 1170.278678 | CG20: 1170.278678 | CH20: حافز إبريل 2022 نصفين | CI20: 4830.590979 | CJ20: 1822.863984 | CK20: 182.2863984 | CL20: 1640.577586 | CO20: 6653.454963 | CS20: 6968.749262 | CT20: 2011.493299 | CU20: 4957.255963 | CV20: 4950 | CW20: 153.9636016 | CY20: 6499.491362 | DA20: 7060.302864
B21: 2123.1047 | C21: 19 | D21: محمد محمد نوفل | E21: 817.96 | K21: ='مارس 2022'!K21*107% -> 2430.742571 | P21: 364.6113857 | Q21: ='مارس 2022'!Q21*110% -> 155.639 | U21: 98.6 | V21: 110.06 | W21: 120 | X21: 55.63 | Y21: 99.2105 | Z21: 127.386282 | AA21: ='مارس 2022'!K21*8% -> 181.7377623 | AB21: 190 | AC21: 10 | AF21: 10 | AK21: 3953.617501 | AT21: 18 | AU21: 18 | AV21: 748 | AX21: 161.7933333 | BA21: 0.5 | BB21: 3 | BD21: 0 | BG21: 0 | BH21: 0 | BQ21: 1.716683558 | BR21: 5 | BT21: 920.0100169 | BU21: 3033.607484 | BV21: 2916.891085 | BY21: 0 | BZ21: 0 | CB21: 0 | CE21: 2916.891085 | CF21: 1458.445543 | CG21: 1458.445543 | CH21: حافز إبريل 2022 نصفين | CI21: 5950.498569 | CJ21: 2271.722029 | CK21: 227.1722029 | CL21: 2044.549826 | CO21: 8222.220598 | CS21: 8637.931615 | CT21: 2322.676684 | CU21: 6315.254932 | CV21: 6310 | CW21: 378.5777971 | CY21: 7843.642801 | DA21: 8759.419412
B22: 2128.3049 | C22: 20 | D22: عبد الباسط هريدي | E22: 799.39 | K22: ='مارس 2022'!K22*107% -> 2436.69628 | P22: 365.504442 | Q22: ='مارس 2022'!Q22*110% -> 155.639 | U22: 91.24 | V22: 102.23 | W22: 120 | X22: 55.76 | Y22: 99.4535 | Z22: 127.698294 | AA22: ='مارس 2022'!K22*8% -> 182.1828994 | AB22: 190 | AC22: 10 | AF22: 10 | AK22: 3946.404415 | AT22: 18 | AU22: 18 | AV22: 748 | AX22: 142.2633333 | BA22: 0.5 | BB22: 3 | BD22: 0 | BG22: 0 | BH22: 0 | BQ22: 1.712630487 | BR22: 5 | BT22: 900.4759638 | BU22: 3045.928452 | BV22: 2924.035536 | BY22: 0 | BZ22: 0 | CB22: 0 | CE22: 2924.035536 | CF22: 1462.017768 | CG22: 1462.017768 | CH22: حافز إبريل 2022 نصفين | CI22: 5969.963988 | CJ22: 2277.286243 | CK22: 227.7286243 | CL22: 2049.557619 | CO22: 8247.250231 | CS22: 8658.617194 | CT22: 2304.10263 | CU22: 6354.514564 | CV22: 6350 | CW22: 386.0213757 | CY22: 7861.228855 | DA22: 8764.35857
B23: 1823.9006 | C23: 21 | D23: أحمد حسين حسن | E23: 681.76 | K23: ='مارس 2022'!K23*107% -> 2088.183797 | P23: 313.2275695 | Q23: ='مارس 2022'!Q23*110% -> 155.639 | U23: 84.55 | V23: 94.43 | W23: 112.84 | X23: 47.79 | Y23: 85.229 | Z23: 109.434036 | AA23: ='مارس 2022'!K23*8% -> 156.1258914 | AB23: 190 | AC23: 8 | AF23: 10 | AK23: 3455.449294 | AT23: 18 | AU23: 18 | AV23: 649 | AX23: 144.8713333 | AZ23: 21.47 | BA23: 0.5 | BB23: 3 | BD23: 0 | BG23: 0 | BH23: 0 | BQ23: 1.493291362 | BR23: 3 | BT23: 823.3346247 | BU23: 2632.114669 | BV23: 2505.820556 | BY23: 0 | BZ23: 0 | CB23: 0 | CE23: 2505.820556 | CF23: 1252.910278 | CG23: 1252.910278 | CH23: حافز إبريل 2022 نصفين | CI23: 5137.935225 | CJ23: 1951.573642 | CK23: 195.1573642 | CL23: 1756.416278 | CO23: 7089.508867 | CS23: 7447.384492 | CT23: 2106.723291 | CU23: 5340.661201 | CV23: 5340 | CW23: 216.5926358 | CY23: 6872.916232 | DA23: 7562.047128
B24: 1759.8076 | C24: 22 | D24: كمال عطية عبد الغني | E24: 650.36 | K24: ='مارس 2022'!K24*107% -> 2014.803721 | P24: 302.2205582 | Q24: ='مارس 2022'!Q24*110% -> 155.639 | U24: 75.91 | V24: 84.75 | W24: 101.7 | X24: 46.11 | Y24: 82.234 | Z24: 105.588456 | AA24: ='مارس 2022'!K24*8% -> 150.6395306 | AB24: 190 | AC24: 10 | AF24: 10 | AK24: 3329.595266 | AT24: 13 | AU24: 12 | AV24: 627 | AX24: 139.806 | AZ24: 51.32 | BA24: 0.5 | BB24: 3 | BD24: 0 | BG24: 83.95015505 | BH24: 51.87966667 | BQ24: 1.435867854 | BR24: 3 | BT24: 961.8916896 | BU24: 2367.703576 | BV24: 2417.764465 | BY24: 0 | BZ24: 0 | CB24: 0 | CE24: 2417.764465 | CF24: 1208.882233 | CG24: 1208.882233 | CH24: حافز إبريل 2022 نصفين | CI24: 4785.468042 | CJ24: 1882.994132 | CK24: 188.2994132 | CL24: 1694.694719 | CO24: 6668.462174 | CS24: 7192.354863 | CT24: 2167.066023 | CU24: 5025.288841 | CV24: 5020 | CW24: 159.4505868 | CY24: 6509.011587 | DA24: 7286.41545
B25: 1579.5233 | C25: 24 | D25: خالد عربي محمد | E25: 607.16 | K25: ='مارس 2022'!K25*107% -> 1808.396226 | P25: 271.2594339 | Q25: ='مارس 2022'!Q25*110% -> 155.639 | U25: 73.3 | V25: 81.83 | W25: 97.7 | X25: 41.38 | Y25: 73.8095 | Z25: 94.771398 | AA25: ='مارس 2022'!K25*8% -> 135.2071945 | AB25: 200 | AC25: 10 | AF25: 10 | AK25: 3053.292753 | AT25: 19 | AU25: 18 | AV25: 561 | AX25: 0 | AZ25: 2.73 | BA25: 0.5 | BB25: 3 | BD25: 0 | BG25: 0 | BH25: 0 | BQ25: 1.313197159 | BR25: 3 | BT25: 571.5431972 | BU25: 2481.749555 | BV25: 2170.075471 | BY25: 0 | BZ25: 0 | CB25: 0 | CE25: 2170.075471 | CF25: 1085.037736 | CG25: 1085.037736 | CH25: حافز إبريل 2022 نصفين | CI25: 4651.825027 | CJ25: 1690.089931 | CK25: 169.0089931 | CL25: 1521.080938 | CO25: 6341.914958 | CS25: 6484.989155 | CT25: 1925.203197 | CU25: 4559.785958 | CV25: 4550 | CW25: 107.2410069 | CY25: 6234.673951 | DA25: 6588.810162
B26: 1524.3327 | C26: 25 | D26: عمرو شوقي عنتر | E26: 587.47 | K26: ='مارس 2022'!K26*107% -> 1745.208508 | P26: 261.7812762 | Q26: ='مارس 2022'!Q26*110% -> 155.639 | U26: 70.76 | V26: 78.99 | W26: 94.28 | X26: 39.94 | Y26: 71.2305 | Z26: 91.459962 | AA26: ='مارس 2022'!K26*8% -> 130.4828791 | AB26: 200 | AC26: 10 | AF26: 10 | AK26: 2959.772126 | AT26: 2 | AU26: 2 | AV26: 550 | AX26: 78.5 | BA26: 0.5 | BB26: 3 | BD26: 0 | BG26: 232.6944678 | BH26: 138.3457778 | BQ26: 1.271175925 | BR26: 3 | BT26: 1007.311421 | BU26: 1952.460704 | BV26: 2094.25021 | BY26: 0 | BZ26: 0 | CB26: 0 | CE26: 2094.25021 | CF26: 1047.125105 | CG26: 1047.125105 | CH26: حافز إبريل 2022 نصفين | CI26: 4046.710914 | CJ26: 1631.035989 | CK26: 163.1035989 | CL26: 1467.93239 | CO26: 5677.746903 | CS26: 6265.389324 | CT26: 2124.435644 | CU26: 4140.953681 | CV26: 4140 | CW26: 51.6464011 | CY26: 5626.100502 | DA26: 6366.315726
B27: 1599.008 | C27: 26 | D27: سعيد محمد علي | E27: 615.34 | K27: ='مارس 2022'!K27*107% -> 1830.704259 | P27: 274.6056389 | Q27: ='مارس 2022'!Q27*110% -> 155.639 | U27: 70.76 | V27: 78.99 | W27: 98.94 | X27: 41.89 | Y27: 74.72 | Z27: 95.94048 | AA27: ='مارس 2022'!K27*8% -> 136.8750848 | AB27: 190 | AC27: 10 | AF27: 10 | AK27: 3069.064463 | AT27: 18 | AU27: 18 | AV27: 572 | AX27: 107.1666667 | BA27: 0.5 | BB27: 3 | BD27: 0 | BG27: 0 | BH27: 0 | BQ27: 1.319409912 | BT27: 683.9860766 | BU27: 2385.078386 | BV27: 2196.845111 | BY27: 0 | BZ27: 0 | CB27: 0 | CE27: 2196.845111 | CF27: 1098.422556 | CG27: 1098.422556 | CH27: حافز إبريل 2022 نصفين | CI27: 4581.923497 | CJ27: 1710.93856 | CK27: 171.093856 | CL27: 1539.844704 | CO27: 6292.862057 | CS27: 6552.519134 | CT27: 1938.65941 | CU27: 4613.859724 | CV27: 4610 | CW27: 114.156144 | CY27: 6178.705913 | DA27: 6650.115278
B28: 1210.384 | C28: 27 | D28: محمد حسن عبد الفتاح | E28: 477.64 | K28: ='مارس 2022'!K28*107% -> 1385.768642 | P28: 207.8652962 | Q28: ='مارس 2022'!Q28*110% -> 155.639 | U28: 52.68 | V28: 58.73 | W28: 75.07 | X28: 31.71 | Y28: 56.56 | Z28: 72.62304 | AA28: ='مارس 2022'!K28*8% -> 103.6088704 | AB28: 200 | AC28: 10 | AF28: 10 | AK28: 2420.254848 | AT28: 19 | AU28: 18 | AV28: 440 | AX28: 0 | BA28: 0.5 | BB28: 3 | BD28: 0 | BG28: 0 | BH28: 0 | BQ28: 1.028375276 | BR28: 3 | BT28: 447.5283753 | BU28: 1972.726473 | BV28: 1662.92237 | BY28: 0 | BZ28: 0 | CB28: 0 | CE28: 1662.92237 | CF28: 831.461185 | CG28: 831.461185 | CH28: حافز إبريل 2022 نصفين | CI28: 3635.648843 | CJ28: 1295.11088 | CK28: 0 | CL28: 1295.11088 | CO28: 4930.759723 | CS28: 5016.169098 | CT28: 1671.668375 | CU28: 3344.500723 | CV28: 3340 | CW28: 115.25 | CY28: 4815.509723 | DA28: 5222.649098
B29: 1156.7556 | C29: 28 | D29: سامح سعيد إبراهيم | E29: 467.95 | K29: ='مارس 2022'!K29*107% -> 1324.369486 | P29: 198.655423 | Q29: ='مارس 2022'!Q29*110% -> 155.639 | U29: 50.38 | V29: 56.28 | W29: 71.79 | X29: 30.31 | Y29: 54.054 | Z29: 69.405336 | AA29: ='مارس 2022'!K29*8% -> 99.01827936 | AB29: 200 | AC29: 6 | AF29: 10 | AK29: 2325.901525 | AT29: 19 | AU29: 18 | AV29: 407 | AX29: 0 | BA29: 0.5 | BB29: 3 | BD29: 0 | BG29: 0 | BH29: 0 | BQ29: 0.9858035509 | BR29: 3 | BT29: 414.4858036 | BU29: 1911.415721 | BV29: 1589.243384 | BY29: 0 | BZ29: 0 | CB29: =BV29*CA29 -> 0 | CE29: =BV29-BW29-BZ29-CB29-CC29-CD29 -> 1589.243384 | CF29: 794.6216919 | CG29: 794.6216919 | CH29: حافز إبريل 2022 نصفين | CI29: 3500.659105 | CJ29: 1237.728492 | CK29: 0 | CL29: 1237.728492 | CO29: 4738.387597 | CS29: 4802.7844 | CT29: 1628.935804 | CU29: 3173.848597 | CV29: 3170 | CW29: 98.25 | CY29: 4640.137597 | DA29: 4997.2344
B30: 1140.7163 | C30: 29 | D30: جمال عبد الستار | E30: 457.64 | K30: ='مارس 2022'!K30*107% -> 1306.006092 | P30: 195.9009138 | Q30: ='مارس 2022'!Q30*110% -> 155.639 | U30: 49.69 | V30: 55.38 | W30: 70.73 | X30: 29.89 | Y30: 53.3045 | Z30: 68.442978 | AA30: ='مارس 2022'!K30*8% -> 97.64531528 | AB30: 200 | AC30: 10 | AF30: 10 | AK30: 2302.628799 | AT30: 19 | AU30: 18 | AV30: 418 | AX30: 0 | BA30: 0.5 | BB30: 3 | BD30: 0 | BG30: 0 | BH30: 0 | BQ30: 0.9755444426 | BR30: 3 | BT30: 425.4755444 | BU30: 1877.153254 | BV30: 1567.20731 | BY30: 0 | BZ30: 0 | CB30: =BV30*CA30 -> 0 | CE30: =BV30-BW30-BZ30-CB30-CC30-CD30 -> 1567.20731 | CF30: 783.6036551 | CG30: 783.6036551 | CH30: حافز إبريل 2022 نصفين | CI30: 3444.360565 | CJ30: 1220.566441 | CK30: 0 | CL30: 1220.566441 | CO30: 4664.927006 | CS30: 4738.96355 | CT30: 1629.615544 | CU30: 3109.348006 | CV30: 3100 | CW30: 91.25 | CY30: 4573.677006 | DA30: 4934.76355
B31: 1012.1879 | C31: 30 | D31: عصام محمد السيد | E31: 419.81 | K31: ='مارس 2022'!K31*107% -> 1158.853927 | P31: 173.828089 | Q31: ='مارس 2022'!Q31*110% -> 155.639 | U31: 43.92 | V31: 48.88 | W31: 65 | X31: 26.52 | Y31: 47.2985 | Z31: 60.731274 | AA31: ='مارس 2022'!K31*8% -> 86.64328424 | AB31: 200 | AC31: 10 | AF31: 10 | AK31: 2087.314074 | AT31: 19 | AU31: 18 | AV31: 374 | AX31: 0 | BA31: 0.5 | BB31: 3 | BD31: 0 | BG31: 0 | BH31: 0 | BQ31: 0.8789234925 | BR31: 3 | BT31: 381.3789235 | BU31: 1705.93515 | BV31: 1390.624712 | BY31: 0 | BZ31: 0 | CB31: 0 | CE31: 1390.624712 | CF31: 695.312356 | CG31: 695.312356 | CH31: حافز إبريل 2022 نصفين | CI31: 3096.559863 | CJ31: 1083.041053 | CK31: 0 | CL31: 1083.041053 | CO31: 4179.600916 | CS31: 4227.540839 | CT31: 1547.688923 | CU31: 2679.851916 | CV31: 2670 | CW31: 48.25 | CY31: 4131.350916 | DA31: 4405.340839
K32: ='مارس 2022'!K32*107% -> 0 | P32: 0 | Q32: ='مارس 2022'!Q32*110% -> 0 | Z32: 0 | AA32: ='مارس 2022'!K32*8% -> 0 | AK32: 0 | BD32: 0 | BG32: 0 | BH32: 0 | BQ32: 0 | BT32: 0 | BU32: 0 | BV32: 0 | BY32: 0 | BZ32: 0 | CB32: 0 | CE32: 0 | CF32: 0 | CG32: 0 | CH32: حافز إبريل 2022 نصفين | CI32: 0 | CJ32: 0 | CK32: 0 | CL32: 0 | CO32: 0 | CS32: 0 | CT32: 750 | CU32: -750 | CV32: -750 | CW32: 0 | CY32: 0 | DA32: 0
K33: ='مارس 2022'!K33*107% -> 0 | P33: 0 | Q33: ='مارس 2022'!Q33*110% -> 0 | Z33: 0 | AA33: ='مارس 2022'!K33*8% -> 0 | AK33: 0 | BD33: 0 | BG33: 0 | BH33: 0 | BQ33: 0 | BT33: 0 | BU33: 0 | BV33: 0 | BY33: 0 | BZ33: 0 | CB33: 0 | CE33: 0 | CF33: 0 | CG33: 0 | CH33: حافز إبريل 2022 نصفين | CI33: 0 | CJ33: 0 | CK33: 0 | CL33: 0 | CO33: 0 | CS33: 0 | CT33: 750 | CU33: -750 | CV33: -750 | CW33: 0 | CY33: 0 | DA33: 0
D34: السائقين | K34: ='مارس 2022'!K34*107% -> 0 | AA34: ='مارس 2022'!K34*8% -> 0 | CB34: 0 | CG34: 0 | CK34: 0 | CL34: 0 | CS34: 0 | CW34: 0 | DA34: 0
B35: 1178.4552 | C35: 32 | D35: أحمد محمد حسن خاطر | E35: 479.37 | K35: ='مارس 2022'!K35*107% -> 1349.213358 | O35: 1285.65 | P35: 202.3820038 | Q35: 0 | U35: 50.91 | V35: 56.88 | W35: 68.11 | X35: 30.87 | Y35: 55.068 | Z35: 70.707312 | AA35: ='مارس 2022'!K35*8% -> 100.8757651 | AB35: 190 | AC35: 10 | AF35: 10 | AK35: 3480.666439 | AT35: 0 | AV35: 407 | AX35: 0 | AZ35: 47.76 | BA35: 0.5 | BB35: 3 | BD35: 0 | BG35: =IF(AT35<18,(P35/18)*(18-AT35),"0") -> 202.3820038 | BH35: 0 | BQ35: =(AK35-(N35+O35+P35+Q35+AG35))*0.0005 -> 0.9963172178 | BR35: 3 | BT35: 664.638321 | BU35: 2816.028118 | BY35: 0 | BZ35: 0 | CB35: 0 | CE35: =BV35-BW35-BZ35-CC35-CD35 -> 0 | CG35: 0 | CI35: =BU35+CE35 -> 2816.028118 | CJ35: 1260.947064 | CK35: 0 | CL35: 1260.947064 | CO35: =(BU35+CE35+CJ35)-CM35 -> 4076.975182 | CS35: 3260.063503 | CT35: =E35+AV35+AY35+AZ35+BD35+BG35+BQ35+BR35+750 -> 1890.508321 | CU35: 1369.555182 | CV35: 1360 | CW35: 2.75 | CY35: 4074.225182 | DA35: 4741.613503
B36: 984.4963 | C36: 33 | D36: إبراهيم الحسيني إبراهيم | E36: 427.51 | K36: ='مارس 2022'!K36*107% -> 1127.149814 | N36: 4860.94 | P36: 169.0724721 | Q36: 0 | U36: 42.63 | V36: 47.54 | W36: 65 | X36: 25.79 | Y36: 46.0045 | Z36: 59.069778 | AA36: ='مارس 2022'!K36*8% -> 84.27288328 | AB36: 190 | AC36: 6 | AF36: 10 | AG36: 486.09 | AK36: 7219.559447 | AT36: 30 | AV36: 308 | AX36: 0 | BA36: 0.5 | BB36: 3 | BD36: 0 | BG36: 0 | BH36: 0 | BQ36: =(AK36-(N36+O36+P36+Q36+AG36))*0.0005 -> 0.8517284876 | BR36: 3 | BT36: 315.3517285 | BU36: 6904.207719 | BY36: 0 | BZ36: 0 | CB36: 0 | CE36: 0 | CG36: 0 | CI36: 6904.207719 | CJ36: 948.07 | CK36: 0 | CL36: 948.07 | CO36: 7852.277719 | CS36: 2649.429447 | CT36: 1489.361728 | CU36: 1160.067719 | CV36: 1160 | CW36: 0 | CY36: 7852.277719 | DA36: 8167.629447
B37: 976.6425 | C37: 40 | D37: أحمد محمود عبد الله | E37: 427.51 | K37: ='مارس 2022'!K37*107% -> 1118.157998 | N37: 2149.5 | P37: 167.7236997 | Q37: 0 | U37: 42.63 | V37: 47.54 | W37: 65 | X37: 25.59 | Y37: 45.6375 | Z37: 58.59855 | AA37: ='مارس 2022'!K37*8% -> 83.600598 | AB37: 190 | AC37: 10 | AF37: 10 | AG37: 214.95 | AK37: 4228.928346 | AT37: 21 | AV37: 506 | AX37: 0 | BA37: 0.5 | BB37: 3 | BD37: 0 | BG37: 0 | BH37: 0 | BQ37: 0.8483773231 | BR37: 3 | BT37: 513.3483773 | BU37: 3715.579969 | BY37: 0 | BZ37: 0 | CB37: 0 | CE37: 0 | CG37: 0 | CI37: 3715.579969 | CJ37: 1045.007475 | CK37: 0 | CL37: 1045.007475 | CO37: 4760.587444 | CS37: 2734.315821 | CT37: 1687.358377 | CU37: 1046.957444 | CV37: 1040 | CW37: 0 | CY37: 4760.587444 | DA37: 5273.935821
B38: 1513.515 | C38: 34 | D38: خالد العوضي عبد الله | E38: 588.96 | K38: ='مارس 2022'!K38*107% -> 1732.823324 | N38: 0 | P38: 259.9234985 | Q38: 0 | U38: 65.73 | V38: 73.52 | W38: 94 | X38: 39.65 | Y38: 70.725 | Z38: 90.8109 | AA38: ='مارس 2022'!K38*8% -> 129.556884 | AB38: 190 | AC38: 10 | AF38: 10 | AG38: 0 | AK38: 2766.739606 | AT38: 9 | AV38: 286 | AX38: 0 | BA38: 0.5 | BB38: 3 | BD38: 0 | BG38: 129.9617493 | BH38: 0 | BQ38: 1.253408054 | BR38: 3 | BT38: 423.7151573 | BU38: 2343.024449 | BY38: 0 | BZ38: 0 | CB38: 0 | CE38: 0 | CG38: 0 | CI38: 2343.024449 | CJ38: 1619.46105 | CK38: 161.946105 | CL38: 1457.514945 | CO38: 3962.485499 | CS38: 4132.950656 | CT38: 1759.175157 | CU38: 2373.775499 | CV38: 2370 | CW38: -133.946105 | CY38: 4096.431604 | DA38: 4224.254551
B39: 1710.4592 | C39: 36 | D39: جمال خميس إسماعيل | E39: 653.4 | K39: ='مارس 2022'!K39*107% -> 1958.304738 | N39: 0 | P39: 293.7457107 | Q39: 0 | U39: 79.33 | V39: 88.58 | W39: 105.81 | X39: 44.81 | Y39: 79.928 | Z39: 102.627552 | AA39: ='مارس 2022'!K39*8% -> 146.4153075 | AB39: 190 | AC39: 10 | AF39: 10 | AG39: 0 | AK39: 3109.551308 | AT39: 10 | AV39: 385 | AX39: 0 | BA39: 0.5 | BB39: 3 | BD39: 0 | BG39: 130.5536492 | BH39: 0 | BQ39: 1.407902799 | BR39: 3 | BT39: 523.461552 | BU39: 2586.089756 | BY39: 0 | BZ39: 0 | CB39: 0 | CE39: 0 | CG39: 0 | CI39: 2586.089756 | CJ39: 1830.191344 | CK39: 183.0191344 | CL39: 1647.17221 | CO39: 4416.2811 | CS39: 4646.022652 | CT39: 1923.361552 | CU39: 2722.6611 | CV39: 2720 | CW39: -129.7691344 | CY39: 4546.050235 | DA39: 4756.723518
A40: نقل م.نصر | B40: 1573.4564 | C40: 37 | D40: محمد خليل إبراهيم | E40: 616.3 | F40: نقل م.نصر | K40: ='مارس 2022'!K40*107% -> 1801.450232 | P40: 270.2175349 | Q40: 0 | U40: 80.67 | V40: 90.36 | W40: 97.36 | X40: 41.22 | Y40: 73.526 | Z40: 94.407384 | AA40: ='مارس 2022'!K40*8% -> 134.6878678 | AB40: 200 | AC40: 10 | AF40: 10 | AK40: 2903.899019 | AT40: 14 | AV40: 352 | AX40: 0 | BA40: 0.5 | BB40: 3 | BG40: 60.04834108 | BH40: 0 | BQ40: 1.316840742 | BT40: 416.8651818 | BU40: 2487.033837 | BY40: 0 | BZ40: 0 | CB40: 0 | CE40: 0 | CG40: 0 | CI40: 2487.033837 | CJ40: 1683.598348 | CK40: 168.3598348 | CL40: 1515.238513 | CO40: 4170.632185 | CS40: 4299.107367 | CT40: 1779.665182 | CU40: 2519.442185 | CV40: 2510 | CW40: -136.1098348 | CY40: 4306.74202 | DA40: 4419.137532
A41: نقل م.نصر | B41: 1579.5233 | C41: 38 | D41: شعبان عبد اللطيف | E41: 632.8 | F41: نقل م.نصر | K41: ='مارس 2022'!K41*107% -> 1808.396226 | P41: 271.2594339 | Q41: 0 | U41: 77.71 | V41: 86.7 | W41: 97.7 | X41: 41.38 | Y41: 73.8095 | Z41: 94.771398 | AA41: ='مارس 2022'!K41*8% -> 135.2071945 | AB41: 200 | AC41: 10 | AF41: 10 | AK41: 2906.933753 | AT41: 14 | AV41: 352 | AX41: 0 | BA41: 0.5 | BB41: 3 | BG41: 60.27987421 | BH41: 0 | BQ41: 1.317837159 | BT41: 417.0977114 | BU41: 2489.836041 | BY41: 0 | BZ41: 0 | CB41: 0 | CE41: 0 | CG41: 0 | CI41: 2489.836041 | CJ41: 1690.089931 | CK41: 169.0089931 | CL41: 1521.080938 | CO41: 4179.925972 | CS41: 4314.913684 | CT41: 1796.397711 | CU41: 2518.515972 | CV41: 2510 | CW41: -136.7589931 | CY41: 4316.684965 | DA41: 4428.01469
B42: 1615.91 | C42: 39 | D42: محمود محمد محمود شرارة | E42: 611.49 | K42: ='مارس 2022'!K42*107% -> 1850.055359 | N42: 0 | P42: 277.5083039 | Q42: 0 | U42: 70.12 | V42: 78.28 | W42: 100.31 | X42: 42.34 | Y42: 75.5125 | Z42: 96.9546 | AA42: ='مارس 2022'!K42*8% -> 138.321896 | AB42: 190 | AC42: 10 | AF42: 10 | AG42: 0 | AK42: 2939.402659 | AT42: 10 | AV42: 352 | AX42: 0 | BA42: 0.5 | BB42: 3 | BD42: 0 | BG42: 123.3370239 | BH42: 0 | BQ42: 1.330947178 | BR42: 3 | BT42: 483.1679711 | BU42: 2456.234688 | BY42: 0 | BZ42: 0 | CB42: 0 | CE42: 0 | CG42: 0 | CI42: 2456.234688 | CJ42: 1729.0237 | CK42: 172.90237 | CL42: 1556.12133 | CO42: 4185.258388 | CS42: 4399.716359 | CT42: 1841.157971 | CU42: 2558.558388 | CV42: 2550 | CW42: -136.65237 | CY42: 4321.910758 | DA42: 4495.523989
B43: 976.6425 | C43: 40 | K43: ='مارس 2022'!K43*107% -> 0 | P43: 0 | AA43: ='مارس 2022'!K43*8% -> 0 | AK43: 0 | AV43: 0 | BD43: 0 | BG43: 0 | BH43: 0 | BQ43: 0 | BT43: 0 | BU43: 0 | BY43: 0 | BZ43: 0 | CB43: 0 | CE43: 0 | CG43: 0 | CI43: 0 | CK43: 0 | CL43: 0 | CO43: 0 | CS43: 0 | CT43: 750 | CU43: -750 | CV43: -750 | CW43: 0 | CY43: 0 | DA43: 0
C44: 41 | K44: ='مارس 2022'!K44*107% -> 0 | Z44: =B44*6% -> 0 | AA44: ='مارس 2022'!K44*8% -> 0 | BD44: 0 | BG44: 0 | BH44: 0 | BQ44: 0 | BT44: 0 | CB44: 0 | CE44: 0 | CG44: 0 | CJ44: 0 | CK44: 0 | CL44: 0 | CO44: 0 | CS44: 0 | CT44: 750 | CU44: -750 | CV44: -750 | CW44: 0 | CY44: 0 | DA44: 0
C45: 42 | K45: ='مارس 2022'!K45*107% -> 0 | Z45: 0 | AA45: ='مارس 2022'!K45*8% -> 0 | BD45: 0 | BG45: 0 | BH45: 0 | BQ45: 0 | BT45: 0 | CB45: 0 | CE45: 0 | CG45: 0 | CK45: 0 | CL45: 0 | CO45: 0 | CS45: 0 | CT45: 750 | CU45: -750 | CV45: -750 | CW45: 0 | CY45: 0 | DA45: 0

Sheet أغسطس 2022
E2: الــــــمــــــــســــــــتـــــــــحـــــــــــقـــــــــــــــــــات | AL2: الـــــــــتـــــــــأثيرات | AV2: الــــــــــــــــــــمـــــــــــــــــــــســـــــــــــــــــتــــــــــــــــــــــــــــــــــــقــــــــــــــــــــــــــطـــــــــــــــــــــــــع | BV2: الــــحــافــــــــز
CS4: استخراج الضرائب شهريا خلال عام 2022
D5: الاسم | E5: مجموع العلاوات | F5: كود | G5: غياب | H5: مرضي | I5: إصابة | J5: إيقاف | K5: الأجر الأساسي 7/2021 | L5: بدل تمثيل | M5: بدل تفرغ | N5: عمولة انتاج | O5: معونة مرضي وإصابة | P5: بدل مخاطر | Q5: بدل انتقال | R5: بدل إقامة+أجر مكمل | S5: انتقال محامين | U5: 2014 | V5: 2015 | W5: 2016 | X5: 0.03 | Y5: 0.05 | Z5: 0.06 | AA5: 8*% | AB5: علاوة استثنائية | AC5: إجتماعية | AD5: بدل نقدي | AE5: فرق بدل نقدي | AF5: المنحة | AG5: بدل تباع | AH5: م. صياتة | AI5: بدل مظهر | AK5: إجمالي المستحق | AL5: عدد أيام الحضور | AM5: أيام الجمعة والسبت | AN5: غياب | AO5: أجازات عارضة | AP5: أجازات اعتيادي | AQ5: أجازات سنوية | AR5: أجازات مرضي تطبيق قرار | AS5: أجازات مرضي لم ينطبق القرار | AT5: صافي أيام عمل بدل مخاطر | AU5: صافي أيام العمل بدل انتقال | AV5: تأمينات شاملة 1/1/2020 | AX5: كسب عمل | AY5: مدة سابقة | AZ5: اشتراكات أجازة خاصة | BA5: إعانة وفاة | BB5: نقابة | BC5: ن. رياضي | BD5: ص. التأميني | BE5: غياب | BF5: غياب حصة الشركة أساسي / متغير | BG5: غياب بدل مخاطر | BH5: غياب بدل انتقال | BI5: فاقد إنتاج | BJ5: جزاءات | BK5: تلفيات | BL5: عجوزات | BM5: مخالفات مرور | BN5: فاقد سولار | BO5: إيجار سكن | BP5: عهد | BQ5: شهداء 0.0005 | BR5: صندوق إعاقة | BS5: مصاريف استئناف | BT5: إجمالي المستقطع | BU5: صافي المستحق | BV5: الحافز | BW5: خصم مبالغ من الحافز | BX5: إجازات عارضة+اعتيادي+سنوي | BY5: نسبة الخصم للأجازات | BZ5: المخصوم بعد نسبة الأداء | CA5: نسبة خصم إداء-أجازات | CB5: المبلغ المخصوم بعد نسبة أداء - أجازات | CC5: خصم مريضي ينطبق القرار | CD5: خصم مرضي لم ينطبق القرار | CE5: صافي الحافز | CF5: نصف أول شهر إبريل 2022 | CG5: نصف ثاني إبريل 2022 | CH5: ملاحظات حافز | CI5: مرتب وحافز | CJ5: مكافأة | CK5: ضريبة من المكافأة | CL5: صافي المكافأة | CO5: إجمالي مرتب+حافز+ مكافأة | CP5: ملاحظات | CS5: إجمالي المستحق الضريبي | CT5: إجمالي المستقطع الضريبي | CU5: الصافي | CV5: الوعاء الضريبي | CW5: الضريبة المستحقة | CY5: الصافي بعد خصم ضريبة 2022 | DA5: إجمالي المستحق الشهري للتأمينات
B6: 1777.8157 | C6: 1 | D6: سهير محمد مدني | E6: 675.83 | K6: ='مارس 2022'!K6*107% -> 2035.421195 | P6: =K6*15% -> 305.3131792 | Q6: ='مارس 2022'!Q6*110% -> 155.639 | U6: 76.44 | V6: 85.57 | W6: 102.85 | X6: 46.58 | Y6: 83.0755 | Z6: =B6*6% -> 106.668942 | AA6: ='مارس 2022'!K6*8% -> 152.1810239 | AB6: 190 | AC6: 6 | AF6: 10 | AK6: =SUM(G6:AJ6) -> 3355.73884 | AT6: 20 | AU6: 14 | AV6: 627 | AX6: 142 | BA6: 0.5 | BB6: 3 | BD6: 0 | BG6: =IF(AT6<18,(P6/18)*(18-AT6),"0") -> 0 | BH6: 34.58644444 | BQ6: =(AK6-(P6+Q6))*0.0005 -> 1.44739333 | BR6: 5 | BT6: =SUM(AV6:BS6) -> 813.5338378 | BU6: =AK6-BT6 -> 2542.205002 | BV6: =(K6)*120% -> 2442.505434 | BY6: =IF(BX6=4,20%,IF(BX6=5,30%,IF(BX6=6,50%,IF(BX6>6,1,"0")))) -> 0 | BZ6: =(BV6*BY6) -> 0 | CB6: =BV6*CA6 -> 0 | CE6: =BV6-BW6-BZ6-CB6-CC6-CD6 -> 2442.505434 | CF6: =CE6/2 -> 1221.252717 | CH6: حافز إبريل 2022 نصفين | CI6: =BU6+CE6 -> 4984.710436 | CK6: =IF(CJ6>1500,CJ6*10%,0) -> 0 | CL6: =CJ6-CK6 -> 0 | CO6: =(BU6+CE6+CJ6)-(CM6+CN6) -> 4984.710436 | CS6: =K6+P6+X6+Y6+Z6+AA6+AB6+CE6+CJ6 -> 5361.745274 | CT6: =E6+AV6+AY6+AZ6+BD6+BG6+BQ6+BR6+750 -> 2059.277393 | CU6: =CS6-CT6 -> 3302.467881 | CV6: =TRUNC(CU6,-1) -> 3300 | CW6: =IF(AND(CV6>1250,CV6<2501),(CV6-1250)*2.5%,IF(AND(CV6>2500,CV6<3751),(CV6-2500)*10%+31.25,IF(AND(CV6>3750,CV6<5001),(CV6-3750)*15%+31.25+125,IF(AND(CV6>5000,CV6<16666.68),(CV6-5000)*20%+31.25+125+187.5,"0"))))-CK6 -> 111.25 | CY6: =CO6-CW6 -> 4873.460436 | DA6: =(AK6-(Q6+S6))+CE6+CL6 -> 5642.605274
B7: 1825.3879 | C7: 2 | D7: محمد محمود صقر | E7: 687.13 | K7: ='مارس 2022'!K7*107% -> 2089.886607 | P7: =K7*15% -> 313.482991 | Q7: ='مارس 2022'!Q7*110% -> 155.639 | U7: 78.33 | V7: 87.73 | W7: 105.57 | X7: 47.83 | Y7: 85.2985 | Z7: =B7*6% -> 109.523274 | AA7: ='مارس 2022'!K7*8% -> 156.2532042 | AB7: 190 | AC7: 10 | AF7: 10 | AK7: =SUM(G7:AJ7) -> 3439.543576 | AT7: 18 | AU7: 12 | AV7: 649 | AX7: 139.3 | AZ7: 18.74 | BA7: 0.5 | BB7: 3 | BD7: 0 | BG7: 0 | BH7: 51.87966667 | BQ7: =(AK7-(P7+Q7))*0.0005 -> 1.485210792 | BR7: 5 | BT7: =SUM(AV7:BS7) -> 868.9048775 | BU7: =AK7-BT7 -> 2570.638698 | BV7: =(K7)*120% -> 2507.863928 | BY7: =IF(BX7=4,30%,IF(BX7=5,40%,IF(BX7=6,50%,IF(BX7>6,1,"0")))) -> 0 | BZ7: =(BV7*BY7) -> 0 | CB7: 0 | CE7: 2507.863928 | CF7: =CE7/2 -> 1253.931964 | CH7: حافز إبريل 2022 نصفين | CI7: 5078.502627 | CK7: =IF(CJ7>1500,CJ7*10%,0) -> 0 | CL7: =CJ7-CK7 -> 0 | CO7: =(BU7+CE7+CJ7)-CM7 -> 5078.502627 | CS7: =K7+P7+X7+Y7+Z7+AA7+AB7+CE7+CJ7 -> 5500.138504 | CT7: =E7+AV7+AY7+AZ7+BD7+BG7+BQ7+BR7+750 -> 2111.355211 | CU7: =CS7-CT7 -> 3388.783293 | CV7: =TRUNC(CU7,-1) -> 3380 | CW7: =IF(AND(CV7>1250,CV7<2501),(CV7-1250)*2.5%,IF(AND(CV7>2500,CV7<3751),(CV7-2500)*10%+31.25,IF(AND(CV7>3750,CV7<5001),(CV7-3750)*15%+31.25+125,IF(AND(CV7>5000,CV7<16666.68),(CV7-5000)*20%+31.25+125+187.5,"0"))))-CK7 -> 119.25 | CY7: =CO7-CW7 -> 4959.252627 | DA7: =(AK7-(Q7+S7))+CE7+CL7 -> 5791.768504
B8: 778.0505 | C8: 3 | D8: محمود السيد برسي | E8: 470.48 | K8: ='مارس 2022'!K8*107% -> 890.7900175 | M8: 81 | P8: 133.6185026 | Q8: ='مارس 2022'!Q8*110% -> 155.639 | S8: 20 | U8: 36.22 | V8: 38.22 | W8: 65 | X8: 27.43 | Y8: 36.3575 | Z8: 46.68303 | AA8: ='مارس 2022'!K8*8% -> 66.6011228 | AB8: 190 | AC8: 10 | AF8: 10 | AK8: =SUM(G8:AJ8) -> 1807.559173 | AT8: 22 | AU8: 16 | AV8: 286 | AX8: 0 | BA8: 0.5 | BB8: 3 | BD8: 0 | BG8: 0 | BH8: 17.29322222 | BQ8: 0.7591508351 | BR8: 3 | BT8: 310.5523731 | BU8: 1497.0068 | BV8: 1068.948021 | BY8: 0 | BZ8: 0 | CB8: 0 | CE8: 1068.948021 | CF8: 534.4740105 | CH8: حافز إبريل 2022 نصفين | CI8: 2565.954821 | CK8: 0 | CL8: 0 | CO8: =(BU8+CE8+CJ8)-CM8 -> 2565.954821 | CS8: =K8+P8+X8+Y8+Z8+AA8+AB8+CE8+CJ8 -> 2460.428194 | CT8: =E8+AV8+AY8+AZ8+BD8+BG8+BQ8+BR8+750 -> 1510.239151 | CU8: 950.189043 | CV8: 950 | CW8: 0 | CY8: 2565.954821 | DA8: 2700.868194
B9: 3324.8003 | C9: 4 | D9: سمير حلمي محمود | CH9: حافز إبريل 2022 نصفين | DA9: 0
B10: 1536.4665 | C10: 5 | D10: ممدوح محمد عبد المجيد | E10: 609 | F10: نقل قنا | K10: ='مارس 2022'!K10*107% -> 1759.100496 | P10: 263.8650744 | Q10: ='مارس 2022'!Q10*110% -> 155.639 | U10: 70.73 | V10: 78.94 | W10: 94.69 | X10: 40.26 | Y10: 71.7975 | Z10: 92.18799 | AA10: ='مارس 2022'!K10*8% -> 131.5215324 | AB10: 190 | AC10: 10 | AF10: 10 | AK10: 2968.731593 | AT10: 19 | AU10: 13 | AV10: 528 | AX10: 0 | BA10: 0.5 | BB10: 3 | BD10: 0 | BG10: 0 | BH10: 43.23305556 | BQ10: 1.274613759 | BR10: 3 | BT10: 579.0076693 | BU10: 2389.723923 | BV10: 2110.920595 | BY10: 0 | BZ10: 0 | CB10: 0 | CC10: 297.91 | CE10: 1813.010595 | CF10: 906.5052975 | CH10: حافز إبريل 2022 نصفين | CI10: 4202.734518 | CK10: 0 | CL10: 0 | CO10: =(BU10+CE10+CJ10)-CM10 -> 4202.734518 | CS10: =K10+P10+X10+Y10+Z10+AA10+AB10+CE10+CJ10 -> 4361.743188 | CT10: =E10+AV10+AY10+AZ10+BD10+BG10+BQ10+BR10+750 -> 1891.274614 | CU10: 2470.468574 | CV10: 2470 | CW10: 30.5 | CY10: 4172.234518 | DA10: 4626.103188
B11: 1936.7856 | C11: 6 | D11: السعيد حسن الشورى | E11: 646.03 | K11: ='مارس 2022'!K11*107% -> 2217.425833 | P11: 332.613875 | Q11: ='مارس 2022'!Q11*110% -> 155.639 | U11: 89.99 | V11: 100.44 | W11: 119.89 | X11: 50.75 | Y11: 90.504 | Z11: 116.207136 | AA11: ='مارس 2022'!K11*8% -> 165.7888474 | AB11: 190 | AC11: 10 | AF11: 10 | AK11: 3649.248692 | AT11: 19 | AU11: 13 | AV11: 671 | AX11: 115.44 | BA11: 0.5 | BB11: 3 | BD11: 0 | BG11: 0 | BH11: 43.23305556 | BQ11: 1.580497908 | BR11: 5 | BT11: 839.7535535 | BU11: 2809.495138 | BV11: 2660.911 | BY11: 0 | BZ11: 0 | CB11: 0 | CE11: 2660.911 | CF11: 1330.4555 | CH11: حافز إبريل 2022 نصفين | CI11: 5470.406138 | CK11: 0 | CL11: 0 | CO11: 5470.406138 | CS11: 5824.200692 | CT11: 2073.610498 | CU11: 3750.590194 | CV11: 3750 | CW11: 156.25 | CY11: 5314.156138 | DA11: 6154.520692
B12: 1852.0523 | C12: 7 | D12: خالد حسن سليمان | E12: 703.74 | K12: ='مارس 2022'!K12*107% -> 2120.414678 | P12: 318.0622017 | Q12: ='مارس 2022'!Q12*110% -> 155.639 | U12: 79.61 | V12: 89.13 | W12: 107.16 | X12: 48.52 | Y12: 86.5445 | Z12: 111.123138 | AA12: ='مارس 2022'!K12*8% -> 158.5356769 | AB12: 190 | AC12: 10 | AF12: 10 | AK12: 3484.739195 | AT12: 19 | AU12: 15 | AV12: 649 | AX12: 143.3333333 | BA12: 0.5 | BB12: 3 | BD12: 0 | BG12: 0 | BH12: 25.93983333 | BQ12: 1.505518997 | BR12: 5 | BT12: 828.2786857 | BU12: 2656.460509 | BV12: 2544.497614 | BY12: 0 | BZ12: 0 | CB12: 0 | CE12: 2544.497614 | CF12: 1272.248807 | CH12: حافز إبريل 2022 نصفين | CI12: 5200.958123 | CK12: 0 | CL12: 0 | CO12: 5200.958123 | CS12: 5577.697809 | CT12: 2109.245519 | CU12: 3468.45229 | CV12: 3460 | CW12: 127.25 | CY12: 5073.708123 | DA12: 5873.597809
B13: 1850.6827 | C13: 8 | D13: رجب إبراهيم صالح | E13: 683.06 | K13: ='مارس 2022'!K13*107% -> 2118.846623 | P13: 317.8269935 | Q13: ='مارس 2022'!Q13*110% -> 155.639 | U13: 79.81 | V13: 89.11 | W13: 106.96 | X13: 48.49 | Y13: 86.4805 | Z13: 111.040962 | AA13: ='مارس 2022'!K13*8% -> 158.4184391 | AB13: 190 | AC13: 10 | AF13: 10 | AI13: 5.5 | AK13: 3488.122518 | AT13: 28 | AU13: 28 | AV13: 649 | AX13: 112.5916667 | BA13: 0.5 | BB13: 3 | BD13: 0 | BG13: 0 | BH13: 0 | BQ13: 1.507328262 | BR13: 3 | BT13: 769.5989949 | BU13: 2718.523523 | BV13: 2542.615948 | BY13: 0 | BZ13: 0 | CB13: 0 | CE13: 2542.615948 | CF13: 1271.307974 | CH13: حافز إبريل 2022 نصفين | CI13: 5261.139471 | CK13: 0 | CL13: 0 | CO13: 5261.139471 | CS13: 5573.719466 | CT13: 2086.567328 | CU13: 3487.152137 | CV13: 3480 | CW13: 129.25 | CY13: 5131.889471 | DA13: 5875.099466
B14: 1759.8397 | C14: 9 | D14: أحمد محمد حسن | E14: 650.36 | K14: ='مارس 2022'!K14*107% -> 2014.840473 | P14: 302.2260709 | Q14: ='مارس 2022'!Q14*110% -> 155.639 | U14: 75.92 | V14: 84.75 | W14: 101.7 | X14: 46.11 | Y14: 82.2355 | Z14: 105.590382 | AA14: ='مارس 2022'!K14*8% -> 150.6422783 | AB14: 190 | AC14: 10 | AF14: 10 | AI14: 5.5 | AK14: 3335.153704 | AT14: 20 | AU14: 10 | AV14: 627 | AX14: 131.308 | AY14: 4.62 | BA14: 0.5 | BB14: 3 | BD14: 0 | BG14: 0 | BH14: 69.17288889 | BQ14: 1.438644316 | BR14: 3 | BT14: 840.0395332 | BU14: 2495.114171 | BV14: 2417.808567 | BY14: 0 | BZ14: 0 | CB14: 0 | CE14: 2417.808567 | CF14: 1208.904284 | CH14: حافز إبريل 2022 نصفين | CI14: 4912.922738 | CK14: 0 | CL14: 0 | CO14: 4912.922738 | CS14: 5309.453271 | CT14: 2036.418644 | CU14: 3273.034626 | CV14: 3270 | CW14: 108.25 | CY14: 4804.672738 | DA14: 5597.323271
B15: 1647.7679 | C15: 10 | D15: شحاته عبد الله | E15: 648.22 | K15: ='مارس 2022'!K15*107% -> 1886.529469 | P15: 282.9794203 | Q15: ='مارس 2022'!Q15*110% -> 155.639 | U15: 76.45 | V15: 85.35 | W15: 101.93 | X15: 43.17 | Y15: 76.9985 | Z15: 98.866074 | AA15: ='مارس 2022'!K15*8% -> 141.0489322 | AB15: 200 | AC15: 10 | AF15: 10 | AI15: 5.5 | AK15: 3174.461395 | AT15: 21 | AU15: 16 | AV15: 583 | AX15: 111.3333333 | BA15: 0.5 | BB15: 3 | BD15: 0 | BG15: 0 | BH15: 17.29322222 | BQ15: 1.367921487 | BR15: 3 | BT15: 719.494477 | BU15: 2454.966918 | BV15: 2263.835362 | BY15: 0 | BZ15: 0 | CB15: 0 | CE15: 2263.835362 | CF15: 1131.917681 | CH15: حافز إبريل 2022 نصفين | CI15: 4718.802281 | CK15: 0 | CL15: 0 | CO15: 4718.802281 | CS15: 4993.427758 | CT15: 1985.587921 | CU15: 3007.839836 | CV15: 3000 | CW15: 81.25 | CY15: 4637.552281 | DA15: 5282.657758
B16: 675.2342 | C16: 12 | D16: أحمد شحاته مصطفى | E16: 368.01 | K16: ='مارس 2022'!K16*107% -> 773.0756356 | P16: 115.9613453 | Q16: ='مارس 2022'!Q16*110% -> 155.639 | R16: 74.76 | U16: 29.87 | V16: 33.52 | W16: 65 | X16: 33.74 | Y16: 31.553 | Z16: 40.514052 | AA16: ='مارس 2022'!K16*8% -> 57.80004752 | AB16: 200 | AC16: 10 | AF16: 10 | AI16: 5.5 | AK16: 1636.93308 | AT16: 23 | AU16: 18 | AV16: 253 | AX16: 0 | BA16: 0.5 | BB16: 3 | BD16: 0 | BG16: 0 | BH16: 0 | BQ16: 0.6826663675 | BR16: 3 | BT16: 260.1826664 | BU16: 1376.750414 | BV16: 927.6907627 | BY16: 0 | BZ16: 0 | CB16: 0 | CE16: 927.6907627 | CF16: 463.8453813 | CH16: حافز إبريل 2022 نصفين | CI16: 2304.441177 | CK16: 0 | CL16: 0 | CO16: 2304.441177 | CS16: 2180.334843 | CT16: 1374.692666 | CU16: 805.6421768 | CV16: 800 | CW16: 0 | CY16: 2304.441177 | DA16: 2408.984843
B17: 1611.9978 | C17: 13 | D17: أحمد شوقي حميدة | E17: 619.05 | K17: ='مارس 2022'!K17*107% -> 1845.576281 | P17: 276.8364422 | Q17: ='مارس 2022'!Q17*110% -> 155.639 | U17: 74.8 | V17: 83.51 | W17: 99.71 | X17: 42.23 | Y17: 75.327 | Z17: 96.719868 | AA17: ='مارس 2022'!K17*8% -> 137.9870117 | AB17: 200 | AC17: 10 | AF17: 10 | AI17: 5.5 | AK17: 3113.835603 | AT17: 28 | AU17: 28 | AV17: 572 | AX17: 0 | BA17: 0.5 | BB17: 3 | BD17: 0 | BG17: 0 | BH17: 0 | BQ17: 1.34068008 | BR17: 3 | BT17: 579.8406801 | BU17: 2533.994923 | BV17: 2214.691537 | BY17: 0 | BZ17: 0 | CB17: 0 | CE17: 2214.691537 | CF17: 1107.345769 | CH17: حافز إبريل 2022 نصفين | CI17: 4748.68646 | CK17: 0 | CL17: 0 | CO17: 4748.68646 | CS17: 4889.368141 | CT17: 1945.39068 | CU17: 2943.97746 | CV17: 2940 | CW17: 75.25 | CY17: 4673.43646 | DA17: 5172.888141
B18: 2198.0903 | C18: 14 | D18: عبد الناصر سيد هلال | E18: 826.2 | K18: ='مارس 2022'!K18*107% -> 2516.593584 | P18: 377.4890377 | Q18: ='مارس 2022'!Q18*110% -> 155.639 | U18: 95.19 | V18: 106.34 | W18: 120 | X18: 57.59 | Y18: 102.7145 | Z18: 131.885418 | AA18: ='مارس 2022'!K18*8% -> 188.1565297 | AB18: 190 | AC18: 10 | AF18: 10 | AK18: 4061.59807 | AT18: 19 | AU18: 13 | AV18: 770 | AX18: 188.9093333 | BA18: 0.5 | BB18: 3 | BD18: 0 | BG18: 0 | BH18: 43.23305556 | BQ18: 1.764235016 | BR18: 5 | BT18: 1012.406624 | BU18: 3049.191446 | BV18: 3019.912301 | BY18: 0 | BZ18: 0 | CB18: 0 | CE18: 3019.912301 | CF18: 1509.956151 | CH18: حافز إبريل 2022 نصفين | CI18: 6069.103747 | CK18: 0 | CL18: 0 | CO18: 6069.103747 | CS18: 6584.341371 | CT18: 2352.964235 | CU18: 4231.377136 | CV18: 4230 | CW18: 228.25 | CY18: 5840.853747 | DA18: 6925.871371
B19: 1524.322 | C19: 15 | D19: إبراهيم أحمد السيد | E19: 587.46 | K19: ='مارس 2022'!K19*107% -> 1745.196258 | P19: 261.7794387 | Q19: ='مارس 2022'!Q19*110% -> 155.639 | U19: 70.76 | V19: 78.99 | W19: 94.28 | X19: 39.94 | Y19: 71.23 | Z19: 91.45932 | AA19: ='مارس 2022'!K19*8% -> 130.4819632 | AB19: 200 | AC19: 10 | AF19: 10 | AK19: 2959.75598 | AT19: 22 | AU19: 16 | AV19: 550 | AX19: 0 | AZ19: 3.04 | BA19: 0.5 | BB19: 3 | BD19: 0 | BG19: 0 | BH19: 17.29322222 | BQ19: 1.271168771 | BR19: 3 | BT19: 578.104391 | BU19: 2381.651589 | BV19: 2094.235509 | BY19: 0 | BZ19: 0 | CB19: 0 | CE19: 2094.235509 | CF19: 1047.117755 | CH19: حافز إبريل 2022 نصفين | CI19: 4475.887098 | CK19: 0 | CL19: 0 | CO19: 4475.887098 | CS19: 4634.322489 | CT19: 1894.771169 | CU19: 2739.55132 | CV19: 2730 | CW19: 54.25 | CY19: 4421.637098 | DA19: 4898.352489
B20: 1703.6112 | C20: 16 | D20: إيهاب أحمد صالح | E20: 647.92 | K20: ='مارس 2022'!K20*107% -> 1950.464463 | P20: 292.5696694 | Q20: ='مارس 2022'!Q20*110% -> 155.639 | U20: 73.27 | V20: 82.02 | W20: 98.55 | X20: 44.64 | Y20: 79.608 | Z20: 102.216672 | AA20: ='مارس 2022'!K20*8% -> 145.8291187 | AB20: 190 | AC20: 10 | AF20: 10 | AK20: 3234.806923 | AT20: 20 | AU20: 14 | AV20: 605 | AX20: 127.7 | AZ20: 4.18 | BA20: 0.5 | BB20: 3 | BD20: 0 | BG20: 0 | BH20: 34.58644444 | BQ20: 1.393299127 | BR20: 3 | BT20: 779.3597436 | BU20: 2455.447179 | BV20: 2340.557355 | BY20: 0 | BZ20: 0 | CB20: 0 | CE20: 2340.557355 | CF20: 1170.278678 | CH20: حافز إبريل 2022 نصفين | CI20: 4796.004535 | CK20: 0 | CL20: 0 | CO20: 4796.004535 | CS20: 5145.885278 | CT20: 2011.493299 | CU20: 3134.391979 | CV20: 3130 | CW20: 94.25 | CY20: 4701.754535 | DA20: 5419.725278
B21: 2123.1047 | C21: 19 | D21: محمد محمد نوفل | E21: 817.96 | K21: ='مارس 2022'!K21*107% -> 2430.742571 | P21: 364.6113857 | Q21: ='مارس 2022'!Q21*110% -> 155.639 | U21: 98.6 | V21: 110.06 | W21: 120 | X21: 55.63 | Y21: 99.2105 | Z21: 127.386282 | AA21: ='مارس 2022'!K21*8% -> 181.7377623 | AB21: 190 | AC21: 10 | AF21: 10 | AK21: 3953.617501 | AT21: 18 | AU21: 18 | AV21: 748 | AX21: 161.7933333 | BA21: 0.5 | BB21: 3 | BD21: 0 | BG21: 0 | BH21: 0 | BQ21: 1.716683558 | BR21: 5 | BT21: 920.0100169 | BU21: 3033.607484 | BV21: 2916.891085 | BY21: 0 | BZ21: 0 | CB21: 0 | CE21: 2916.891085 | CF21: 1458.445543 | CH21: حافز إبريل 2022 نصفين | CI21: 5950.498569 | CK21: 0 | CL21: 0 | CO21: 5950.498569 | CS21: 6366.209586 | CT21: 2322.676684 | CU21: 4043.532903 | CV21: 4040 | CW21: 199.75 | CY21: 5750.748569 | DA21: 6714.869586
B22: 2128.3049 | C22: 20 | D22: عبد الباسط هريدي | E22: 799.39 | K22: ='مارس 2022'!K22*107% -> 2436.69628 | P22: 365.504442 | Q22: ='مارس 2022'!Q22*110% -> 155.639 | U22: 91.24 | V22: 102.23 | W22: 120 | X22: 55.76 | Y22: 99.4535 | Z22: 127.698294 | AA22: ='مارس 2022'!K22*8% -> 182.1828994 | AB22: 190 | AC22: 10 | AF22: 10 | AK22: 3946.404415 | AT22: 18 | AU22: 18 | AV22: 748 | AX22: 142.2633333 | BA22: 0.5 | BB22: 3 | BD22: 0 | BG22: 0 | BH22: 0 | BQ22: 1.712630487 | BR22: 5 | BT22: 900.4759638 | BU22: 3045.928452 | BV22: 2924.035536 | BY22: 0 | BZ22: 0 | CB22: 0 | CE22: 2924.035536 | CF22: 1462.017768 | CH22: حافز إبريل 2022 نصفين | CI22: 5969.963988 | CK22: 0 | CL22: 0 | CO22: 5969.963988 | CS22: 6381.330951 | CT22: 2304.10263 | CU22: 4077.228321 | CV22: 4070 | CW22: 204.25 | CY22: 5765.713988 | DA22: 6714.800951
B23: 1823.9006 | C23: 21 | D23: أحمد حسين حسن | E23: 681.76 | K23: ='مارس 2022'!K23*107% -> 2088.183797 | P23: 313.2275695 | Q23: ='مارس 2022'!Q23*110% -> 155.639 | U23: 84.55 | V23: 94.43 | W23: 112.84 | X23: 47.79 | Y23: 85.229 | Z23: 109.434036 | AA23: ='مارس 2022'!K23*8% -> 156.1258914 | AB23: 190 | AC23: 8 | AF23: 10 | AK23: 3455.449294 | AT23: 18 | AU23: 18 | AV23: 649 | AX23: 144.8713333 | AZ23: 21.47 | BA23: 0.5 | BB23: 3 | BD23: 0 | BG23: 0 | BH23: 0 | BQ23: 1.493291362 | BR23: 3 | BT23: 823.3346247 | BU23: 2632.114669 | BV23: 2505.820556 | BY23: 0 | BZ23: 0 | CB23: 0 | CE23: 2505.820556 | CF23: 1252.910278 | CH23: حافز إبريل 2022 نصفين | CI23: 5137.935225 | CK23: 0 | CL23: 0 | CO23: 5137.935225 | CS23: 5495.81085 | CT23: 2106.723291 | CU23: 3389.087559 | CV23: 3380 | CW23: 119.25 | CY23: 5018.685225 | DA23: 5805.63085
B24: 1759.8076 | C24: 22 | D24: كمال عطية عبد الغني | E24: 650.36 | K24: ='مارس 2022'!K24*107% -> 2014.803721 | P24: 302.2205582 | Q24: ='مارس 2022'!Q24*110% -> 155.639 | U24: 75.91 | V24: 84.75 | W24: 101.7 | X24: 46.11 | Y24: 82.234 | Z24: 105.588456 | AA24: ='مارس 2022'!K24*8% -> 150.6395306 | AB24: 190 | AC24: 10 | AF24: 10 | AK24: 3329.595266 | AT24: 19 | AU24: 13 | AV24: 627 | AX24: 139.806 | AZ24: 51.32 | BA24: 0.5 | BB24: 3 | BD24: 0 | BG24: 0 | BH24: 43.23305556 | BQ24: 1.435867854 | BR24: 3 | BT24: 869.2949234 | BU24: 2460.300343 | BV24: 2417.764465 | BY24: 0 | BZ24: 0 | CB24: 0 | CE24: 2417.764465 | CF24: 1208.882233 | CH24: حافز إبريل 2022 نصفين | CI24: 4878.064808 | CK24: 0 | CL24: 0 | CO24: 4878.064808 | CS24: 5309.360731 | CT24: 2083.115868 | CU24: 3226.244864 | CV24: 3220 | CW24: 103.25 | CY24: 4774.814808 | DA24: 5591.720731
B25: 1579.5233 | C25: 24 | D25: خالد عربي محمد | E25: 607.16 | K25: ='مارس 2022'!K25*107% -> 1808.396226 | P25: 271.2594339 | Q25: ='مارس 2022'!Q25*110% -> 155.639 | U25: 73.3 | V25: 81.83 | W25: 97.7 | X25: 41.38 | Y25: 73.8095 | Z25: 94.771398 | AA25: ='مارس 2022'!K25*8% -> 135.2071945 | AB25: 200 | AC25: 10 | AF25: 10 | AK25: 3053.292753 | AT25: 19 | AU25: 13 | AV25: 561 | AX25: 0 | AZ25: 2.73 | BA25: 0.5 | BB25: 3 | BD25: 0 | BG25: 0 | BH25: 43.23305556 | BQ25: 1.313197159 | BR25: 3 | BT25: 614.7762527 | BU25: 2438.5165 | BV25: 2170.075471 | BY25: 0 | BZ25: 0 | CB25: 0 | CE25: 2170.075471 | CF25: 1085.037736 | CH25: حافز إبريل 2022 نصفين | CI25: 4608.591971 | CK25: 0 | CL25: 0 | CO25: 4608.591971 | CS25: 4794.899224 | CT25: 1925.203197 | CU25: 2869.696027 | CV25: 2860 | CW25: 67.25 | CY25: 4541.341971 | DA25: 5067.729224
B26: 1524.3327 | C26: 25 | D26: عمرو شوقي عنتر | E26: 587.47 | K26: ='مارس 2022'!K26*107% -> 1745.208508 | P26: 261.7812762 | Q26: ='مارس 2022'!Q26*110% -> 155.639 | U26: 70.76 | V26: 78.99 | W26: 94.28 | X26: 39.94 | Y26: 71.2305 | Z26: 91.459962 | AA26: ='مارس 2022'!K26*8% -> 130.4828791 | AB26: 200 | AC26: 10 | AF26: 10 | AK26: 2959.772126 | AT26: 2 | AU26: 2 | AV26: 550 | AX26: 78.5 | BA26: 0.5 | BB26: 3 | BD26: 0 | BG26: 232.6944678 | BH26: 138.3457778 | BQ26: 1.271175925 | BR26: 3 | BT26: 1007.311421 | BU26: 1952.460704 | BV26: 2094.25021 | BY26: 0 | BZ26: 0 | CB26: 0 | CE26: 2094.25021 | CF26: 1047.125105 | CH26: حافز إبريل 2022 نصفين | CI26: 4046.710914 | CK26: 0 | CL26: 0 | CO26: 4046.710914 | CS26: 4634.353335 | CT26: 2124.435644 | CU26: 2509.917692 | CV26: 2500 | CW26: 31.25 | CY26: 4015.460914 | DA26: 4898.383335
B27: 1599.008 | C27: 26 | D27: سعيد محمد علي | E27: 615.34 | K27: ='مارس 2022'!K27*107% -> 1830.704259 | P27: 274.6056389 | Q27: ='مارس 2022'!Q27*110% -> 155.639 | U27: 70.76 | V27: 78.99 | W27: 98.94 | X27: 41.89 | Y27: 74.72 | Z27: 95.94048 | AA27: ='مارس 2022'!K27*8% -> 136.8750848 | AB27: 190 | AC27: 10 | AF27: 10 | AK27: 3069.064463 | AT27: 18 | AU27: 18 | AV27: 572 | AX27: 107.1666667 | BA27: 0.5 | BB27: 3 | BD27: 0 | BG27: 0 | BH27: 0 | BQ27: 1.319409912 | BT27: 683.9860766 | BU27: 2385.078386 | BV27: 2196.845111 | BY27: 0 | BZ27: 0 | CB27: 0 | CE27: 2196.845111 | CF27: 1098.422556 | CH27: حافز إبريل 2022 نصفين | CI27: 4581.923497 | CK27: 0 | CL27: 0 | CO27: 4581.923497 | CS27: 4841.580574 | CT27: 1938.65941 | CU27: 2902.921164 | CV27: 2900 | CW27: 71.25 | CY27: 4510.673497 | DA27: 5110.270574
B28: 1210.384 | C28: 27 | D28: محمد حسن عبد الفتاح | E28: 477.64 | K28: ='مارس 2022'!K28*107% -> 1385.768642 | P28: 207.8652962 | Q28: ='مارس 2022'!Q28*110% -> 155.639 | U28: 52.68 | V28: 58.73 | W28: 75.07 | X28: 31.71 | Y28: 56.56 | Z28: 72.62304 | AA28: ='مارس 2022'!K28*8% -> 103.6088704 | AB28: 200 | AC28: 10 | AF28: 10 | AK28: 2420.254848 | AT28: 21 | AU28: 15 | AV28: 440 | AX28: 0 | BA28: 0.5 | BB28: 3 | BD28: 0 | BG28: 0 | BH28: 25.93983333 | BQ28: 1.028375276 | BR28: 3 | BT28: 473.4682086 | BU28: 1946.78664 | BV28: 1662.92237 | BY28: 0 | BZ28: 0 | CB28: 0 | CE28: 1662.92237 | CF28: 831.461185 | CH28: حافز إبريل 2022 نصفين | CI28: 3609.70901 | CK28: 0 | CL28: 0 | CO28: 3609.70901 | CS28: 3721.058218 | CT28: 1671.668375 | CU28: 2049.389843 | CV28: 2040 | CW28: 19.75 | CY28: 3589.95901 | DA28: 3927.538218
B29: 1156.7556 | C29: 28 | D29: سامح سعيد إبراهيم | E29: 467.95 | K29: ='مارس 2022'!K29*107% -> 1324.369486 | P29: 198.655423 | Q29: ='مارس 2022'!Q29*110% -> 155.639 | U29: 50.38 | V29: 56.28 | W29: 71.79 | X29: 30.31 | Y29: 54.054 | Z29: 69.405336 | AA29: ='مارس 2022'!K29*8% -> 99.01827936 | AB29: 200 | AC29: 6 | AF29: 10 | AK29: 2325.901525 | AT29: 20 | AU29: 9 | AV29: 407 | AX29: 0 | BA29: 0.5 | BB29: 3 | BD29: 0 | BG29: 0 | BH29: 77.8195 | BQ29: 0.9858035509 | BR29: 3 | BT29: 492.3053036 | BU29: 1833.596221 | BV29: 1589.243384 | BY29: 0 | BZ29: 0 | CB29: =BV29*CA29 -> 0 | CE29: =BV29-BW29-BZ29-CB29-CC29-CD29 -> 1589.243384 | CF29: 794.6216919 | CH29: حافز إبريل 2022 نصفين | CI29: 3422.839605 | CK29: 0 | CL29: 0 | CO29: 3422.839605 | CS29: 3565.055908 | CT29: 1628.935804 | CU29: 1936.120105 | CV29: 1930 | CW29: 17 | CY29: 3405.839605 | DA29: 3759.505908
B30: 1140.7163 | C30: 29 | D30: جمال عبد الستار | E30: 457.64 | K30: ='مارس 2022'!K30*107% -> 1306.006092 | P30: 195.9009138 | Q30: ='مارس 2022'!Q30*110% -> 155.639 | U30: 49.69 | V30: 55.38 | W30: 70.73 | X30: 29.89 | Y30: 53.3045 | Z30: 68.442978 | AA30: ='مارس 2022'!K30*8% -> 97.64531528 | AB30: 200 | AC30: 10 | AF30: 10 | AK30: 2302.628799 | AT30: 20 | AU30: 14 | AV30: 418 | AX30: 0 | BA30: 0.5 | BB30: 3 | BD30: 0 | BG30: 0 | BH30: 34.58644444 | BQ30: 0.9755444426 | BR30: 3 | BT30: 460.0619889 | BU30: 1842.56681 | BV30: 1567.20731 | BY30: 0 | BZ30: 0 | CB30: =BV30*CA30 -> 0 | CE30: =BV30-BW30-BZ30-CB30-CC30-CD30 -> 1567.20731 | CF30: 783.6036551 | CH30: حافز إبريل 2022 نصفين | CI30: 3409.77412 | CK30: 0 | CL30: 0 | CO30: 3409.77412 | CS30: 3518.397109 | CT30: 1629.615544 | CU30: 1888.781565 | CV30: 1880 | CW30: 15.75 | CY30: 3394.02412 | DA30: 3714.197109
B31: 1012.1879 | C31: 30 | D31: عصام محمد السيد | E31: 419.81 | K31: ='مارس 2022'!K31*107% -> 1158.853927 | P31: 173.828089 | Q31: ='مارس 2022'!Q31*110% -> 155.639 | U31: 43.92 | V31: 48.88 | W31: 65 | X31: 26.52 | Y31: 47.2985 | Z31: 60.731274 | AA31: ='مارس 2022'!K31*8% -> 86.64328424 | AB31: 200 | AC31: 10 | AF31: 10 | AK31: 2087.314074 | AT31: 22 | AU31: 16 | AV31: 374 | AX31: 0 | BA31: 0.5 | BB31: 3 | BD31: 0 | BG31: 0 | BH31: 17.29322222 | BQ31: 0.8789234925 | BR31: 3 | BT31: 398.6721457 | BU31: 1688.641928 | BV31: 1390.624712 | BY31: 0 | BZ31: 0 | CB31: 0 | CE31: 1390.624712 | CF31: 695.312356 | CH31: حافز إبريل 2022 نصفين | CI31: 3079.26664 | CK31: 0 | CL31: 0 | CO31: 3079.26664 | CS31: 3144.499786 | CT31: 1547.688923 | CU31: 1596.810863 | CV31: 1590 | CW31: 8.5 | CY31: 3070.76664 | DA31: 3322.299786
K32: ='مارس 2022'!K32*107% -> 0 | P32: 0 | Q32: ='مارس 2022'!Q32*110% -> 0 | Z32: 0 | AA32: ='مارس 2022'!K32*8% -> 0 | AK32: 0 | BD32: 0 | BG32: 0 | BH32: 0 | BQ32: 0 | BT32: 0 | BU32: 0 | BV32: 0 | BY32: 0 | BZ32: 0 | CB32: 0 | CE32: 0 | CF32: 0 | CH32: حافز إبريل 2022 نصفين | CI32: 0 | CK32: 0 | CL32: 0 | CO32: 0 | CS32: 0 | CT32: 750 | CU32: -750 | CV32: -750 | CW32: 0 | CY32: 0 | DA32: 0
K33: ='مارس 2022'!K33*107% -> 0 | P33: 0 | Q33: ='مارس 2022'!Q33*110% -> 0 | Z33: 0 | AA33: ='مارس 2022'!K33*8% -> 0 | AK33: 0 | BD33: 0 | BG33: 0 | BH33: 0 | BQ33: 0 | BT33: 0 | BU33: 0 | BV33: 0 | BY33: 0 | BZ33: 0 | CB33: 0 | CE33: 0 | CF33: 0 | CH33: حافز إبريل 2022 نصفين | CI33: 0 | CK33: 0 | CL33: 0 | CO33: 0 | CS33: 0 | CT33: 750 | CU33: -750 | CV33: -750 | CW33: 0 | CY33: 0 | DA33: 0
D34: السائقين | K34: ='مارس 2022'!K34*107% -> 0 | AA34: ='مارس 2022'!K34*8% -> 0 | CB34: 0 | CK34: 0 | CL34: 0 | CS34: 0 | CW34: 0 | DA34: 0
B35: 1178.4552 | C35: 32 | D35: أحمد محمد حسن خاطر | E35: 479.37 | K35: ='مارس 2022'!K35*107% -> 1349.213358 | O35: 1112.59 | P35: 202.3820038 | Q35: 0 | U35: 50.91 | V35: 56.88 | W35: 68.11 | X35: 30.87 | Y35: 55.068 | Z35: 70.707312 | AA35: ='مارس 2022'!K35*8% -> 100.8757651 | AB35: 190 | AC35: 10 | AF35: 10 | AK35: 3307.606439 | AT35: 7 | AV35: 407 | AX35: 0 | AZ35: 47.76 | BA35: 0.5 | BB35: 3 | BD35: 0 | BG35: =IF(AT35<18,(P35/18)*(18-AT35),"0") -> 123.6778912 | BH35: 0 | BQ35: =(AK35-(N35+O35+P35+Q35+AG35))*0.0005 -> 0.9963172178 | BR35: 3 | BT35: 585.9342084 | BU35: 2721.672231 | BY35: 0 | BZ35: 0 | CB35: 0 | CE35: =BV35-BW35-BZ35-CC35-CD35 -> 0 | CI35: =BU35+CE35 -> 2721.672231 | CK35: 0 | CL35: 0 | CO35: =(BU35+CE35+CJ35)-CM35 -> 2721.672231 | CS35: 1999.116439 | CT35: =E35+AV35+AY35+AZ35+BD35+BG35+BQ35+BR35+750 -> 1811.804208 | CU35: 187.312231 | CV35: 180 | CW35: 0 | CY35: 2721.672231 | DA35: 3307.606439
B36: 984.4963 | C36: 33 | D36: إبراهيم الحسيني إبراهيم | E36: 427.51 | K36: ='مارس 2022'!K36*107% -> 1127.149814 | N36: 3479.05 | P36: 169.0724721 | Q36: 0 | U36: 42.63 | V36: 47.54 | W36: 65 | X36: 25.79 | Y36: 46.0045 | Z36: 59.069778 | AA36: ='مارس 2022'!K36*8% -> 84.27288328 | AB36: 190 | AC36: 6 | AF36: 10 | AG36: 347.9 | AK36: 5699.479447 | AT36: 31 | AV36: 308 | AX36: 0 | BA36: 0.5 | BB36: 3 | BD36: 0 | BG36: 0 | BH36: 0 | BQ36: =(AK36-(N36+O36+P36+Q36+AG36))*0.0005 -> 0.8517284876 | BR36: 3 | BT36: 315.3517285 | BU36: 5384.127719 | BY36: 0 | BZ36: 0 | CB36: 0 | CE36: 0 | CI36: 5384.127719 | CK36: 0 | CL36: 0 | CO36: 5384.127719 | CS36: 1701.359447 | CT36: 1489.361728 | CU36: 211.9977187 | CV36: 210 | CW36: 0 | CY36: 5384.127719 | DA36: 5699.479447
B37: 976.6425 | C37: 40 | D37: أحمد محمود عبد الله | E37: 427.51 | K37: ='مارس 2022'!K37*107% -> 1118.157998 | N37: 3402.28 | P37: 167.7236997 | Q37: 0 | U37: 42.63 | V37: 47.54 | W37: 65 | X37: 25.59 | Y37: 45.6375 | Z37: 58.59855 | AA37: ='مارس 2022'!K37*8% -> 83.600598 | AB37: 190 | AC37: 10 | AF37: 10 | AG37: 340.23 | AK37: 5606.988346 | AT37: 20 | AV37: 506 | AX37: 0 | BA37: 0.5 | BB37: 3 | BD37: 0 | BG37: 0 | BH37: 0 | BQ37: 0.8483773231 | BR37: 3 | BT37: 513.3483773 | BU37: 5093.639969 | BY37: 0 | BZ37: 0 | CB37: 0 | CE37: 0 | CI37: 5093.639969 | CK37: 0 | CL37: 0 | CO37: 5093.639969 | CS37: 1689.308346 | CT37: 1687.358377 | CU37: 1.949968664 | CV37: 0 | CW37: 0 | CY37: 5093.639969 | DA37: 5606.988346
B38: 1513.515 | C38: 34 | D38: خالد العوضي عبد الله | E38: 588.96 | K38: ='مارس 2022'!K38*107% -> 1732.823324 | N38: 0 | P38: 259.9234985 | Q38: 0 | U38: 65.73 | V38: 73.52 | W38: 94 | X38: 39.65 | Y38: 70.725 | Z38: 90.8109 | AA38: ='مارس 2022'!K38*8% -> 129.556884 | AB38: 190 | AC38: 10 | AF38: 10 | AG38: 0 | AK38: 2766.739606 | AT38: 20 | AV38: 286 | AX38: 0 | BA38: 0.5 | BB38: 3 | BD38: 0 | BG38: 0 | BH38: 0 | BJ38: 500 | BQ38: 1.253408054 | BR38: 3 | BT38: 793.7534081 | BU38: 1972.986198 | BY38: 0 | BZ38: 0 | CB38: 0 | CE38: 0 | CI38: 1972.986198 | CK38: 0 | CL38: 0 | CO38: 1972.986198 | CS38: 2513.489606 | CT38: 1629.213408 | CU38: 884.276198 | CV38: 880 | CW38: 0 | CY38: 1972.986198 | DA38: 2766.739606
B39: 1710.4592 | C39: 36 | D39: جمال خميس إسماعيل | E39: 653.4 | K39: ='مارس 2022'!K39*107% -> 1958.304738 | N39: 0 | P39: 293.7457107 | Q39: 0 | U39: 79.33 | V39: 88.58 | W39: 105.81 | X39: 44.81 | Y39: 79.928 | Z39: 102.627552 | AA39: ='مارس 2022'!K39*8% -> 146.4153075 | AB39: 190 | AC39: 10 | AF39: 10 | AG39: 0 | AK39: 3109.551308 | AT39: 18 | AV39: 385 | AX39: 0 | BA39: 0.5 | BB39: 3 | BD39: 0 | BG39: 0 | BH39: 0 | BQ39: 1.407902799 | BR39: 3 | BT39: 392.9079028 | BU39: 2716.643406 | BY39: 0 | BZ39: 0 | CB39: 0 | CE39: 0 | CI39: 2716.643406 | CK39: 0 | CL39: 0 | CO39: 2716.643406 | CS39: 2815.831308 | CT39: 1792.807903 | CU39: 1023.023406 | CV39: 1020 | CW39: 0 | CY39: 2716.643406 | DA39: 3109.551308
A40: نقل م.نصر | B40: 1573.4564 | C40: 37 | D40: محمد خليل إبراهيم | E40: 616.3 | F40: نقل م.نصر | K40: ='مارس 2022'!K40*107% -> 1801.450232 | P40: 270.2175349 | Q40: 0 | U40: 80.67 | V40: 90.36 | W40: 97.36 | X40: 41.22 | Y40: 73.526 | Z40: 94.407384 | AA40: ='مارس 2022'!K40*8% -> 134.6878678 | AB40: 200 | AC40: 10 | AF40: 10 | AK40: 2903.899019 | AT40: 14 | AV40: 352 | AX40: 0 | BA40: 0.5 | BB40: 3 | BG40: 60.04834108 | BH40: 0 | BQ40: 1.316840742 | BT40: 416.8651818 | BU40: 2487.033837 | BY40: 0 | BZ40: 0 | CB40: 0 | CE40: 0 | CI40: 2487.033837 | CK40: 0 | CL40: 0 | CO40: 2487.033837 | CS40: 2615.509019 | CT40: 1779.665182 | CU40: 835.8438372 | CV40: 830 | CW40: 0 | CY40: 2487.033837 | DA40: 2903.899019
A41: نقل م.نصر | B41: 1579.5233 | C41: 38 | D41: شعبان عبد اللطيف | E41: 632.8 | F41: نقل م.نصر | K41: ='مارس 2022'!K41*107% -> 1808.396226 | P41: 271.2594339 | Q41: 0 | U41: 77.71 | V41: 86.7 | W41: 97.7 | X41: 41.38 | Y41: 73.8095 | Z41: 94.771398 | AA41: ='مارس 2022'!K41*8% -> 135.2071945 | AB41: 200 | AC41: 10 | AF41: 10 | AK41: 2906.933753 | AT41: 14 | AV41: 352 | AX41: 0 | BA41: 0.5 | BB41: 3 | BG41: 60.27987421 | BH41: 0 | BQ41: 1.317837159 | BT41: 417.0977114 | BU41: 2489.836041 | BY41: 0 | BZ41: 0 | CB41: 0 | CE41: 0 | CI41: 2489.836041 | CK41: 0 | CL41: 0 | CO41: 2489.836041 | CS41: 2624.823753 | CT41: 1796.397711 | CU41: 828.4260412 | CV41: 820 | CW41: 0 | CY41: 2489.836041 | DA41: 2906.933753
B42: 1615.91 | C42: 39 | D42: محمود محمد محمود شرارة | E42: 611.49 | K42: ='مارس 2022'!K42*107% -> 1850.055359 | N42: 0 | P42: 277.5083039 | Q42: 0 | U42: 70.12 | V42: 78.28 | W42: 100.31 | X42: 42.34 | Y42: 75.5125 | Z42: 96.9546 | AA42: ='مارس 2022'!K42*8% -> 138.321896 | AB42: 190 | AC42: 10 | AF42: 10 | AG42: 0 | AK42: 2939.402659 | AT42: 18 | AV42: 352 | AX42: 0 | BA42: 0.5 | BB42: 3 | BD42: 0 | BG42: 0 | BH42: 0 | BQ42: 1.330947178 | BR42: 3 | BT42: 359.8309472 | BU42: 2579.571712 | BY42: 0 | BZ42: 0 | CB42: 0 | CE42: 0 | CI42: 2579.571712 | CK42: 0 | CL42: 0 | CO42: 2579.571712 | CS42: 2670.692659 | CT42: 1717.820947 | CU42: 952.8717117 | CV42: 950 | CW42: 0 | CY42: 2579.571712 | DA42: 2939.402659
B43: 976.6425 | C43: 40 | K43: ='مارس 2022'!K43*107% -> 0 | P43: 0 | AA43: ='مارس 2022'!K43*8% -> 0 | AK43: 0 | AV43: 0 | BD43: 0 | BG43: 0 | BH43: 0 | BQ43: 0 | BT43: 0 | BU43: 0 | BY43: 0 | BZ43: 0 | CB43: 0 | CE43: 0 | CI43: 0 | CK43: 0 | CL43: 0 | CO43: 0 | CS43: 0 | CT43: 750 | CU43: -750 | CV43: -750 | CW43: 0 | CY43: 0 | DA43: 0
C44: 41 | K44: ='مارس 2022'!K44*107% -> 0 | Z44: =B44*6% -> 0 | AA44: ='مارس 2022'!K44*8% -> 0 | BD44: 0 | BG44: 0 | BH44: 0 | BQ44: 0 | BT44: 0 | CB44: 0 | CE44: 0 | CK44: 0 | CL44: 0 | CO44: 0 | CS44: 0 | CT44: 750 | CU44: -750 | CV44: -750 | CW44: 0 | CY44: 0 | DA44: 0
C45: 42 | K45: ='مارس 2022'!K45*107% -> 0 | Z45: 0 | AA45: ='مارس 2022'!K45*8% -> 0 | BD45: 0 | BG45: 0 | BH45: 0 | BQ45: 0 | BT45: 0 | CB45: 0 | CE45: 0 | CK45: 0 | CL45: 0 | CO45: 0 | CS45: 0 | CT45: 750 | CU45: -750 | CV45: -750 | CW45: 0 | CY45: 0 | DA45: 0

Sheet سبتمبر 2022
E2: الــــــمــــــــســــــــتـــــــــحـــــــــــقـــــــــــــــــــات | AL2: الـــــــــتـــــــــأثيرات | AV2: الــــــــــــــــــــمـــــــــــــــــــــســـــــــــــــــــتــــــــــــــــــــــــــــــــــــقــــــــــــــــــــــــــطـــــــــــــــــــــــــع | BV2: الــــحــافــــــــز
CS4: استخراج الضرائب شهريا خلال عام 2022
D5: الاسم | E5: مجموع العلاوات | F5: كود | G5: غياب | H5: مرضي | I5: إصابة | J5: إيقاف | K5: الأجر الأساسي 7/2021 | L5: بدل تمثيل | M5: بدل تفرغ | N5: عمولة انتاج | O5: معونة مرضي وإصابة | P5: بدل مخاطر | Q5: بدل انتقال | R5: بدل إقامة | S5: انتقال محامين | U5: 2014 | V5: 2015 | W5: 2016 | X5: 0.03 | Y5: 0.05 | Z5: 0.06 | AA5: 8*% | AB5: علاوة استثنائية | AC5: إجتماعية | AD5: بدل نقدي | AE5: فرق بدل نقدي | AF5: المنحة | AG5: بدل تباع | AH5: م. صياتة | AI5: بدل مظهر | AK5: إجمالي المستحق | AL5: عدد أيام الحضور | AM5: أيام الجمعة والسبت | AN5: غياب | AO5: أجازات عارضة | AP5: أجازات اعتيادي | AQ5: أجازات سنوية | AR5: أجازات مرضي تطبيق قرار | AS5: أجازات مرضي لم ينطبق القرار | AT5: صافي أيام عمل بدل مخاطر | AU5: صافي أيام العمل بدل انتقال | AV5: تأمينات شاملة 1/1/2020 | AX5: كسب عمل | AY5: مدة سابقة | AZ5: اشتراكات أجازة خاصة | BA5: إعانة وفاة | BB5: نقابة | BC5: ن. رياضي | BD5: ص. التأميني | BE5: غياب | BF5: غياب حصة الشركة أساسي / متغير | BG5: غياب بدل مخاطر | BH5: غياب بدل انتقال | BI5: فاقد إنتاج | BJ5: جزاءات | BK5: تلفيات | BL5: عجوزات | BM5: مخالفات مرور | BN5: فاقد سولار | BO5: إيجار سكن | BP5: عهد | BQ5: شهداء 0.0005 | BR5: صندوق إعاقة | BS5: مصاريف استئناف | BT5: إجمالي المستقطع | BU5: صافي المستحق | BV5: الحافز | BW5: خصم مبالغ من الحافز | BX5: إجازات عارضة+اعتيادي+سنوي | BY5: نسبة الخصم للأجازات | BZ5: المخصوم بعد نسبة الأداء | CA5: نسبة خصم إداء-أجازات | CB5: المبلغ المخصوم بعد نسبة أداء - أجازات | CC5: خصم مريضي ينطبق القرار | CD5: خصم مرضي لم ينطبق القرار | CE5: صافي الحافز | CF5: نصف أول شهر إبريل 2022 | CG5: نصف ثاني إبريل 2022 | CH5: ملاحظات حافز | CI5: مرتب وحافز | CJ5: مكافأة | CK5: ضريبة من المكافأة | CL5: صافي المكافأة | CO5: إجمالي مرتب+حافز+ مكافأة | CP5: ملاحظات | CS5: إجمالي المستحق الضريبي | CT5: إجمالي المستقطع الضريبي | CU5: الصافي | CV5: الوعاء الضريبي | CW5: الضريبة المستحقة | CY5: الصافي بعد خصم ضريبة 2022 | DA5: إجمالي المستحق الشهري للتأمينات
B6: 1777.8157 | C6: 1 | D6: سهير محمد مدني | E6: 675.83 | K6: ='مارس 2022'!K6*107% -> 2035.421195 | P6: =K6*15% -> 305.3131792 | Q6: ='مارس 2022'!Q6*110% -> 155.639 | U6: 76.44 | V6: 85.57 | W6: 102.85 | X6: 46.58 | Y6: 83.0755 | Z6: =B6*6% -> 106.668942 | AA6: ='مارس 2022'!K6*8% -> 152.1810239 | AB6: 190 | AC6: 6 | AF6: 10 | AK6: =SUM(G6:AJ6) -> 3355.73884 | AT6: 20 | AU6: 15 | AV6: 627 | AX6: 142 | BA6: 0.5 | BB6: 3 | BD6: 0 | BG6: =IF(AT6<18,(P6/18)*(18-AT6),"0") -> 0 | BH6: 25.93983333 | BQ6: =(AK6-(P6+Q6))*0.0005 -> 1.44739333 | BR6: 5 | BT6: =SUM(AV6:BS6) -> 804.8872267 | BU6: =AK6-BT6 -> 2550.851613 | BV6: =(K6)*120% -> 2442.505434 | BY6: =IF(BX6=4,20%,IF(BX6=5,30%,IF(BX6=6,50%,IF(BX6>6,1,"0")))) -> 0 | BZ6: =(BV6*BY6) -> 0 | CB6: =BV6*CA6 -> 0 | CE6: =BV6-BW6-BZ6-CB6-CC6-CD6 -> 2442.505434 | CF6: =CE6/2 -> 1221.252717 | CH6: حافز إبريل 2022 نصفين | CI6: =BU6+CE6 -> 4993.357047 | CK6: =IF(CJ6>1500,CJ6*10%,0) -> 0 | CL6: =CJ6-CK6 -> 0 | CO6: =(BU6+CE6+CJ6)-(CM6+CN6) -> 4993.357047 | CS6: =K6+P6+X6+Y6+Z6+AA6+AB6+CE6+CJ6 -> 5361.745274 | CT6: =E6+AV6+AY6+AZ6+BD6+BG6+BQ6+BR6+750 -> 2059.277393 | CU6: =CS6-CT6 -> 3302.467881 | CV6: =TRUNC(CU6,-1) -> 3300 | CW6: =IF(AND(CV6>1250,CV6<2501),(CV6-1250)*2.5%,IF(AND(CV6>2500,CV6<3751),(CV6-2500)*10%+31.25,IF(AND(CV6>3750,CV6<5001),(CV6-3750)*15%+31.25+125,IF(AND(CV6>5000,CV6<16666.68),(CV6-5000)*20%+31.25+125+187.5,"0"))))-CK6 -> 111.25 | CY6: =CO6-CW6 -> 4882.107047 | DA6: =(AK6-(Q6+S6))+CE6+CL6 -> 5642.605274
B7: 1825.3879 | C7: 2 | D7: محمد محمود صقر | E7: 687.13 | K7: ='مارس 2022'!K7*107% -> 2089.886607 | P7: =K7*15% -> 313.482991 | Q7: ='مارس 2022'!Q7*110% -> 155.639 | U7: 78.33 | V7: 87.73 | W7: 105.57 | X7: 47.83 | Y7: 85.2985 | Z7: =B7*6% -> 109.523274 | AA7: ='مارس 2022'!K7*8% -> 156.2532042 | AB7: 190 | AC7: 10 | AF7: 10 | AK7: =SUM(G7:AJ7) -> 3439.543576 | AT7: 20 | AU7: 15 | AV7: 649 | AX7: 139.3 | AZ7: 18.74 | BA7: 0.5 | BB7: 3 | BD7: 0 | BG7: 0 | BH7: 25.93983333 | BQ7: =(AK7-(P7+Q7))*0.0005 -> 1.485210792 | BR7: 5 | BT7: =SUM(AV7:BS7) -> 842.9650441 | BU7: =AK7-BT7 -> 2596.578532 | BV7: =(K7)*120% -> 2507.863928 | BY7: =IF(BX7=4,30%,IF(BX7=5,40%,IF(BX7=6,50%,IF(BX7>6,1,"0")))) -> 0 | BZ7: =(BV7*BY7) -> 0 | CB7: 0 | CE7: 2507.863928 | CF7: =CE7/2 -> 1253.931964 | CH7: حافز إبريل 2022 نصفين | CI7: 5104.44246 | CK7: =IF(CJ7>1500,CJ7*10%,0) -> 0 | CL7: =CJ7-CK7 -> 0 | CO7: =(BU7+CE7+CJ7)-CM7 -> 5104.44246 | CS7: =K7+P7+X7+Y7+Z7+AA7+AB7+CE7+CJ7 -> 5500.138504 | CT7: =E7+AV7+AY7+AZ7+BD7+BG7+BQ7+BR7+750 -> 2111.355211 | CU7: =CS7-CT7 -> 3388.783293 | CV7: =TRUNC(CU7,-1) -> 3380 | CW7: =IF(AND(CV7>1250,CV7<2501),(CV7-1250)*2.5%,IF(AND(CV7>2500,CV7<3751),(CV7-2500)*10%+31.25,IF(AND(CV7>3750,CV7<5001),(CV7-3750)*15%+31.25+125,IF(AND(CV7>5000,CV7<16666.68),(CV7-5000)*20%+31.25+125+187.5,"0"))))-CK7 -> 119.25 | CY7: =CO7-CW7 -> 4985.19246 | DA7: =(AK7-(Q7+S7))+CE7+CL7 -> 5791.768504
B8: 778.0505 | C8: 3 | D8: محمود السيد برسي | E8: 470.48 | K8: ='مارس 2022'!K8*107% -> 890.7900175 | M8: 81 | P8: 133.6185026 | Q8: ='مارس 2022'!Q8*110% -> 155.639 | S8: 20 | U8: 36.22 | V8: 38.22 | W8: 65 | X8: 27.43 | Y8: 36.3575 | Z8: 46.68303 | AA8: ='مارس 2022'!K8*8% -> 66.6011228 | AB8: 190 | AC8: 10 | AF8: 10 | AK8: =SUM(G8:AJ8) -> 1807.559173 | AT8: 21 | AU8: 16 | AV8: 286 | AX8: 0 | BA8: 0.5 | BB8: 3 | BD8: 0 | BG8: 0 | BH8: 17.29322222 | BQ8: 0.7591508351 | BR8: 3 | BT8: 310.5523731 | BU8: 1497.0068 | BV8: 1068.948021 | BY8: 0 | BZ8: 0 | CB8: 0 | CE8: 1068.948021 | CF8: 534.4740105 | CH8: حافز إبريل 2022 نصفين | CI8: 2565.954821 | CK8: 0 | CL8: 0 | CO8: =(BU8+CE8+CJ8)-CM8 -> 2565.954821 | CS8: =K8+P8+X8+Y8+Z8+AA8+AB8+CE8+CJ8 -> 2460.428194 | CT8: =E8+AV8+AY8+AZ8+BD8+BG8+BQ8+BR8+750 -> 1510.239151 | CU8: 950.189043 | CV8: 950 | CW8: 0 | CY8: 2565.954821 | DA8: 2700.868194
B9: 3324.8003 | C9: 4 | D9: سمير حلمي محمود | CH9: حافز إبريل 2022 نصفين | DA9: 0
B10: 1536.4665 | C10: 5 | D10: ممدوح محمد عبد المجيد | E10: 609 | K10: ='مارس 2022'!K10*107% -> 1759.100496 | P10: 263.8650744 | Q10: ='مارس 2022'!Q10*110% -> 155.639 | U10: 70.73 | V10: 78.94 | W10: 94.69 | X10: 40.26 | Y10: 71.7975 | Z10: 92.18799 | AA10: ='مارس 2022'!K10*8% -> 131.5215324 | AB10: 190 | AC10: 10 | AF10: 10 | AK10: 2968.731593 | AT10: 5 | AU10: 0 | AV10: 528 | AX10: 60.16666667 | BA10: 0.5 | BB10: 3 | BD10: 0 | BG10: 190.5692204 | BH10: 155.639 | BQ10: 1.274613759 | BR10: 3 | BT10: 942.1495008 | BU10: 2026.582092 | BV10: 2110.920595 | BY10: 0 | BZ10: 0 | CB10: 0 | CC10: 297.91 | CE10: 1813.010595 | CF10: 906.5052975 | CH10: حافز إبريل 2022 نصفين | CI10: 3839.592687 | CK10: 0 | CL10: 0 | CO10: =(BU10+CE10+CJ10)-CM10 -> 3839.592687 | CS10: =K10+P10+X10+Y10+Z10+AA10+AB10+CE10+CJ10 -> 4361.743188 | CT10: =E10+AV10+AY10+AZ10+BD10+BG10+BQ10+BR10+750 -> 2081.843834 | CU10: 2279.899354 | CV10: 2270 | CW10: 25.5 | CY10: 3814.092687 | DA10: 4626.103188
B11: 1936.7856 | C11: 6 | D11: السعيد حسن الشورى | E11: 646.03 | K11: ='مارس 2022'!K11*107% -> 2217.425833 | P11: 332.613875 | Q11: ='مارس 2022'!Q11*110% -> 155.639 | U11: 89.99 | V11: 100.44 | W11: 119.89 | X11: 50.75 | Y11: 90.504 | Z11: 116.207136 | AA11: ='مارس 2022'!K11*8% -> 165.7888474 | AB11: 190 | AC11: 10 | AF11: 10 | AK11: 3649.248692 | AT11: 20 | AU11: 15 | AV11: 671 | AX11: 115.44 | BA11: 0.5 | BB11: 3 | BD11: 0 | BG11: 0 | BH11: 25.93983333 | BQ11: 1.580497908 | BR11: 5 | BT11: 822.4603312 | BU11: 2826.788361 | BV11: 2660.911 | BY11: 0 | BZ11: 0 | CB11: 0 | CE11: 2660.911 | CF11: 1330.4555 | CH11: حافز إبريل 2022 نصفين | CI11: 5487.699361 | CK11: 0 | CL11: 0 | CO11: 5487.699361 | CS11: 5824.200692 | CT11: 2073.610498 | CU11: 3750.590194 | CV11: 3750 | CW11: 156.25 | CY11: 5331.449361 | DA11: 6154.520692
B12: 1852.0523 | C12: 7 | D12: خالد حسن سليمان | E12: 703.74 | K12: ='مارس 2022'!K12*107% -> 2120.414678 | P12: 318.0622017 | Q12: ='مارس 2022'!Q12*110% -> 155.639 | U12: 79.61 | V12: 89.13 | W12: 107.16 | X12: 48.52 | Y12: 86.5445 | Z12: 111.123138 | AA12: ='مارس 2022'!K12*8% -> 158.5356769 | AB12: 190 | AC12: 10 | AF12: 10 | AK12: 3484.739195 | AT12: 20 | AU12: 15 | AV12: 649 | AX12: 143.3333333 | BA12: 0.5 | BB12: 3 | BD12: 0 | BG12: 0 | BH12: 25.93983333 | BQ12: 1.505518997 | BR12: 5 | BT12: 828.2786857 | BU12: 2656.460509 | BV12: 2544.497614 | BY12: 0 | BZ12: 0 | CB12: 0 | CE12: 2544.497614 | CF12: 1272.248807 | CH12: حافز إبريل 2022 نصفين | CI12: 5200.958123 | CK12: 0 | CL12: 0 | CO12: 5200.958123 | CS12: 5577.697809 | CT12: 2109.245519 | CU12: 3468.45229 | CV12: 3460 | CW12: 127.25 | CY12: 5073.708123 | DA12: 5873.597809
B13: 1850.6827 | C13: 8 | D13: رجب إبراهيم صالح | E13: 683.06 | K13: ='مارس 2022'!K13*107% -> 2118.846623 | P13: 317.8269935 | Q13: ='مارس 2022'!Q13*110% -> 155.639 | U13: 79.81 | V13: 89.11 | W13: 106.96 | X13: 48.49 | Y13: 86.4805 | Z13: 111.040962 | AA13: ='مارس 2022'!K13*8% -> 158.4184391 | AB13: 190 | AC13: 10 | AF13: 10 | AI13: 5.5 | AK13: 3488.122518 | AT13: 28 | AU13: 26 | AV13: 649 | AX13: 112.5916667 | BA13: 0.5 | BB13: 3 | BD13: 0 | BG13: 0 | BH13: 0 | BQ13: 1.507328262 | BR13: 3 | BT13: 769.5989949 | BU13: 2718.523523 | BV13: 2542.615948 | BY13: 0 | BZ13: 0 | CB13: 0 | CE13: 2542.615948 | CF13: 1271.307974 | CH13: حافز إبريل 2022 نصفين | CI13: 5261.139471 | CK13: 0 | CL13: 0 | CO13: 5261.139471 | CS13: 5573.719466 | CT13: 2086.567328 | CU13: 3487.152137 | CV13: 3480 | CW13: 129.25 | CY13: 5131.889471 | DA13: 5875.099466
B14: 1759.8397 | C14: 9 | D14: أحمد محمد حسن | E14: 650.36 | K14: ='مارس 2022'!K14*107% -> 2014.840473 | P14: 302.2260709 | Q14: ='مارس 2022'!Q14*110% -> 155.639 | U14: 75.92 | V14: 84.75 | W14: 101.7 | X14: 46.11 | Y14: 82.2355 | Z14: 105.590382 | AA14: ='مارس 2022'!K14*8% -> 150.6422783 | AB14: 190 | AC14: 10 | AF14: 10 | AI14: 5.5 | AK14: 3335.153704 | AT14: 20 | AU14: 15 | AV14: 627 | AX14: 131.308 | AY14: 4.62 | BA14: 0.5 | BB14: 3 | BD14: 0 | BG14: 0 | BH14: 25.93983333 | BQ14: 1.438644316 | BR14: 3 | BT14: 796.8064776 | BU14: 2538.347226 | BV14: 2417.808567 | BY14: 0 | BZ14: 0 | CB14: 0 | CE14: 2417.808567 | CF14: 1208.904284 | CH14: حافز إبريل 2022 نصفين | CI14: 4956.155793 | CK14: 0 | CL14: 0 | CO14: 4956.155793 | CS14: 5309.453271 | CT14: 2036.418644 | CU14: 3273.034626 | CV14: 3270 | CW14: 108.25 | CY14: 4847.905793 | DA14: 5597.323271
B15: 1647.7679 | C15: 10 | D15: شحاته عبد الله | E15: 648.22 | K15: ='مارس 2022'!K15*107% -> 1886.529469 | P15: 282.9794203 | Q15: ='مارس 2022'!Q15*110% -> 155.639 | U15: 76.45 | V15: 85.35 | W15: 101.93 | X15: 43.17 | Y15: 76.9985 | Z15: 98.866074 | AA15: ='مارس 2022'!K15*8% -> 141.0489322 | AB15: 200 | AC15: 10 | AF15: 10 | AI15: 5.5 | AK15: 3174.461395 | AT15: 21 | AU15: 20 | AV15: 583 | AX15: 111.3333333 | BA15: 0.5 | BB15: 3 | BD15: 0 | BG15: 0 | BH15: 0 | BQ15: 1.367921487 | BR15: 3 | BT15: 702.2012548 | BU15: 2472.26014 | BV15: 2263.835362 | BY15: 0 | BZ15: 0 | CB15: 0 | CE15: 2263.835362 | CF15: 1131.917681 | CH15: حافز إبريل 2022 نصفين | CI15: 4736.095503 | CK15: 0 | CL15: 0 | CO15: 4736.095503 | CS15: 4993.427758 | CT15: 1985.587921 | CU15: 3007.839836 | CV15: 3000 | CW15: 81.25 | CY15: 4654.845503 | DA15: 5282.657758
B16: 675.2342 | C16: 12 | D16: أحمد شحاته مصطفى | E16: 368.01 | K16: ='مارس 2022'!K16*107% -> 773.0756356 | P16: 115.9613453 | Q16: ='مارس 2022'!Q16*110% -> 155.639 | U16: 29.87 | V16: 33.52 | W16: 65 | X16: 33.74 | Y16: 31.553 | Z16: 40.514052 | AA16: ='مارس 2022'!K16*8% -> 57.80004752 | AB16: 200 | AC16: 10 | AF16: 10 | AI16: 5.5 | AK16: 1562.17308 | AT16: 24 | AU16: 17 | AV16: 253 | AX16: 0 | BA16: 0.5 | BB16: 3 | BD16: 0 | BG16: 0 | BH16: 8.646611111 | BQ16: 0.6452863675 | BR16: 3 | BT16: 268.7918975 | BU16: 1293.381183 | BV16: 927.6907627 | BY16: 0 | BZ16: 0 | CB16: 0 | CE16: 927.6907627 | CF16: 463.8453813 | CH16: حافز إبريل 2022 نصفين | CI16: 2221.071946 | CK16: 0 | CL16: 0 | CO16: 2221.071946 | CS16: 2180.334843 | CT16: 1374.655286 | CU16: 805.6795568 | CV16: 800 | CW16: 0 | CY16: 2221.071946 | DA16: 2334.224843
B17: 1611.9978 | C17: 13 | D17: أحمد شوقي حميدة | E17: 619.05 | K17: ='مارس 2022'!K17*107% -> 1845.576281 | P17: 276.8364422 | Q17: ='مارس 2022'!Q17*110% -> 155.639 | U17: 74.8 | V17: 83.51 | W17: 99.71 | X17: 42.23 | Y17: 75.327 | Z17: 96.719868 | AA17: ='مارس 2022'!K17*8% -> 137.9870117 | AB17: 200 | AC17: 10 | AF17: 10 | AI17: 5.5 | AK17: 3113.835603 | AT17: 28 | AU17: 26 | AV17: 572 | AX17: 111.6666667 | BA17: 0.5 | BB17: 3 | BD17: 0 | BG17: 0 | BH17: 0 | BQ17: 1.34068008 | BR17: 3 | BT17: 691.5073467 | BU17: 2422.328256 | BV17: 2214.691537 | BY17: 0 | BZ17: 0 | CB17: 0 | CE17: 2214.691537 | CF17: 1107.345769 | CH17: حافز إبريل 2022 نصفين | CI17: 4637.019794 | CK17: 0 | CL17: 0 | CO17: 4637.019794 | CS17: 4889.368141 | CT17: 1945.39068 | CU17: 2943.97746 | CV17: 2940 | CW17: 75.25 | CY17: 4561.769794 | DA17: 5172.888141
B18: 2198.0903 | C18: 14 | D18: عبد الناصر سيد هلال | E18: 826.2 | K18: ='مارس 2022'!K18*107% -> 2516.593584 | P18: 377.4890377 | Q18: ='مارس 2022'!Q18*110% -> 155.639 | U18: 95.19 | V18: 106.34 | W18: 120 | X18: 57.59 | Y18: 102.7145 | Z18: 131.885418 | AA18: ='مارس 2022'!K18*8% -> 188.1565297 | AB18: 190 | AC18: 10 | AF18: 10 | AK18: 4061.59807 | AT18: 20 | AU18: 15 | AV18: 770 | AX18: 188.9093333 | BA18: 0.5 | BB18: 3 | BD18: 0 | BG18: 0 | BH18: 25.93983333 | BQ18: 1.764235016 | BR18: 5 | BT18: 995.1134017 | BU18: 3066.484668 | BV18: 3019.912301 | BY18: 0 | BZ18: 0 | CB18: 0 | CE18: 3019.912301 | CF18: 1509.956151 | CH18: حافز إبريل 2022 نصفين | CI18: 6086.39697 | CK18: 0 | CL18: 0 | CO18: 6086.39697 | CS18: 6584.341371 | CT18: 2352.964235 | CU18: 4231.377136 | CV18: 4230 | CW18: 228.25 | CY18: 5858.14697 | DA18: 6925.871371
B19: 1524.322 | C19: 15 | D19: إبراهيم أحمد السيد | E19: 587.46 | K19: ='مارس 2022'!K19*107% -> 1745.196258 | P19: 261.7794387 | Q19: ='مارس 2022'!Q19*110% -> 155.639 | U19: 70.76 | V19: 78.99 | W19: 94.28 | X19: 39.94 | Y19: 71.23 | Z19: 91.45932 | AA19: ='مارس 2022'!K19*8% -> 130.4819632 | AB19: 200 | AC19: 10 | AF19: 10 | AK19: 2959.75598 | AT19: 23 | AU19: 18 | AV19: 550 | AX19: 73.33333333 | AZ19: 3.04 | BA19: 0.5 | BB19: 3 | BD19: 0 | BG19: 0 | BH19: 0 | BQ19: 1.271168771 | BR19: 3 | BT19: 634.1445021 | BU19: 2325.611478 | BV19: 2094.235509 | BY19: 0 | BZ19: 0 | CB19: 0 | CE19: 2094.235509 | CF19: 1047.117755 | CH19: حافز إبريل 2022 نصفين | CI19: 4419.846987 | CK19: 0 | CL19: 0 | CO19: 4419.846987 | CS19: 4634.322489 | CT19: 1894.771169 | CU19: 2739.55132 | CV19: 2730 | CW19: 54.25 | CY19: 4365.596987 | DA19: 4898.352489
B20: 1703.6112 | C20: 16 | D20: إيهاب أحمد صالح | E20: 647.92 | K20: ='مارس 2022'!K20*107% -> 1950.464463 | P20: 292.5696694 | Q20: ='مارس 2022'!Q20*110% -> 155.639 | U20: 73.27 | V20: 82.02 | W20: 98.55 | X20: 44.64 | Y20: 79.608 | Z20: 102.216672 | AA20: ='مارس 2022'!K20*8% -> 145.8291187 | AB20: 190 | AC20: 10 | AF20: 10 | AK20: 3234.806923 | AT20: 21 | AU20: 16 | AV20: 605 | AX20: 127.7 | AZ20: 4.18 | BA20: 0.5 | BB20: 3 | BD20: 0 | BG20: 0 | BH20: 17.29322222 | BQ20: 1.393299127 | BR20: 3 | BT20: 762.0665213 | BU20: 2472.740402 | BV20: 2340.557355 | BY20: 0 | BZ20: 0 | CB20: 0 | CE20: 2340.557355 | CF20: 1170.278678 | CH20: حافز إبريل 2022 نصفين | CI20: 4813.297757 | CK20: 0 | CL20: 0 | CO20: 4813.297757 | CS20: 5145.885278 | CT20: 2011.493299 | CU20: 3134.391979 | CV20: 3130 | CW20: 94.25 | CY20: 4719.047757 | DA20: 5419.725278
B21: 2123.1047 | C21: 19 | D21: محمد محمد نوفل | E21: 817.96 | K21: ='مارس 2022'!K21*107% -> 2430.742571 | P21: 364.6113857 | Q21: ='مارس 2022'!Q21*110% -> 155.639 | U21: 98.6 | V21: 110.06 | W21: 120 | X21: 55.63 | Y21: 99.2105 | Z21: 127.386282 | AA21: ='مارس 2022'!K21*8% -> 181.7377623 | AB21: 190 | AC21: 10 | AF21: 10 | AK21: 3953.617501 | AT21: 18 | AU21: 18 | AV21: 748 | AX21: 161.7933333 | BA21: 0.5 | BB21: 3 | BD21: 0 | BG21: 0 | BH21: 0 | BQ21: 1.716683558 | BR21: 5 | BT21: 920.0100169 | BU21: 3033.607484 | BV21: 2916.891085 | BY21: 0 | BZ21: 0 | CB21: 0 | CE21: 2916.891085 | CF21: 1458.445543 | CH21: حافز إبريل 2022 نصفين | CI21: 5950.498569 | CK21: 0 | CL21: 0 | CO21: 5950.498569 | CS21: 6366.209586 | CT21: 2322.676684 | CU21: 4043.532903 | CV21: 4040 | CW21: 199.75 | CY21: 5750.748569 | DA21: 6714.869586
B22: 2128.3049 | C22: 20 | D22: عبد الباسط هريدي | E22: 799.39 | K22: ='مارس 2022'!K22*107% -> 2436.69628 | P22: 365.504442 | Q22: ='مارس 2022'!Q22*110% -> 155.639 | U22: 91.24 | V22: 102.23 | W22: 120 | X22: 55.76 | Y22: 99.4535 | Z22: 127.698294 | AA22: ='مارس 2022'!K22*8% -> 182.1828994 | AB22: 190 | AC22: 10 | AF22: 10 | AK22: 3946.404415 | AT22: 18 | AU22: 18 | AV22: 748 | AX22: 142.2633333 | BA22: 0.5 | BB22: 3 | BD22: 0 | BG22: 0 | BH22: 0 | BQ22: 1.712630487 | BR22: 5 | BT22: 900.4759638 | BU22: 3045.928452 | BV22: 2924.035536 | BY22: 0 | BZ22: 0 | CB22: 0 | CE22: 2924.035536 | CF22: 1462.017768 | CH22: حافز إبريل 2022 نصفين | CI22: 5969.963988 | CK22: 0 | CL22: 0 | CO22: 5969.963988 | CS22: 6381.330951 | CT22: 2304.10263 | CU22: 4077.228321 | CV22: 4070 | CW22: 204.25 | CY22: 5765.713988 | DA22: 6714.800951
B23: 1823.9006 | C23: 21 | D23: أحمد حسين حسن | E23: 681.76 | K23: ='مارس 2022'!K23*107% -> 2088.183797 | P23: 313.2275695 | Q23: ='مارس 2022'!Q23*110% -> 155.639 | U23: 84.55 | V23: 94.43 | W23: 112.84 | X23: 47.79 | Y23: 85.229 | Z23: 109.434036 | AA23: ='مارس 2022'!K23*8% -> 156.1258914 | AB23: 190 | AC23: 8 | AF23: 10 | AK23: 3455.449294 | AT23: 18 | AU23: 18 | AV23: 649 | AX23: 144.8713333 | AZ23: 21.47 | BA23: 0.5 | BB23: 3 | BD23: 0 | BG23: 0 | BH23: 0 | BQ23: 1.493291362 | BR23: 3 | BT23: 823.3346247 | BU23: 2632.114669 | BV23: 2505.820556 | BY23: 0 | BZ23: 0 | CB23: 0 | CE23: 2505.820556 | CF23: 1252.910278 | CH23: حافز إبريل 2022 نصفين | CI23: 5137.935225 | CK23: 0 | CL23: 0 | CO23: 5137.935225 | CS23: 5495.81085 | CT23: 2106.723291 | CU23: 3389.087559 | CV23: 3380 | CW23: 119.25 | CY23: 5018.685225 | DA23: 5805.63085
B24: 1759.8076 | C24: 22 | D24: كمال عطية عبد الغني | E24: 650.36 | K24: ='مارس 2022'!K24*107% -> 2014.803721 | P24: 302.2205582 | Q24: ='مارس 2022'!Q24*110% -> 155.639 | U24: 75.91 | V24: 84.75 | W24: 101.7 | X24: 46.11 | Y24: 82.234 | Z24: 105.588456 | AA24: ='مارس 2022'!K24*8% -> 150.6395306 | AB24: 190 | AC24: 10 | AF24: 10 | AK24: 3329.595266 | AT24: 18 | AU24: 18 | AV24: 627 | AX24: 139.806 | AZ24: 51.32 | BA24: 0.5 | BB24: 3 | BD24: 0 | BG24: 0 | BH24: 0 | BQ24: 1.435867854 | BR24: 3 | BT24: 826.0618679 | BU24: 2503.533398 | BV24: 2417.764465 | BY24: 0 | BZ24: 0 | CB24: 0 | CE24: 2417.764465 | CF24: 1208.882233 | CH24: حافز إبريل 2022 نصفين | CI24: 4921.297864 | CK24: 0 | CL24: 0 | CO24: 4921.297864 | CS24: 5309.360731 | CT24: 2083.115868 | CU24: 3226.244864 | CV24: 3220 | CW24: 103.25 | CY24: 4818.047864 | DA24: 5591.720731
B25: 1579.5233 | C25: 24 | D25: خالد عربي محمد | E25: 607.16 | K25: ='مارس 2022'!K25*107% -> 1808.396226 | P25: 271.2594339 | Q25: ='مارس 2022'!Q25*110% -> 155.639 | U25: 73.3 | V25: 81.83 | W25: 97.7 | X25: 41.38 | Y25: 73.8095 | Z25: 94.771398 | AA25: ='مارس 2022'!K25*8% -> 135.2071945 | AB25: 200 | AC25: 10 | AF25: 10 | AK25: 3053.292753 | AT25: 22 | AU25: 17 | AV25: 561 | AX25: 97.33333333 | AZ25: 2.73 | BA25: 0.5 | BB25: 3 | BD25: 0 | BG25: 0 | BH25: 8.646611111 | BQ25: 1.313197159 | BR25: 3 | BT25: 677.5231416 | BU25: 2375.769611 | BV25: 2170.075471 | BY25: 0 | BZ25: 0 | CB25: 0 | CE25: 2170.075471 | CF25: 1085.037736 | CH25: حافز إبريل 2022 نصفين | CI25: 4545.845082 | CK25: 0 | CL25: 0 | CO25: 4545.845082 | CS25: 4794.899224 | CT25: 1925.203197 | CU25: 2869.696027 | CV25: 2860 | CW25: 67.25 | CY25: 4478.595082 | DA25: 5067.729224
B26: 1524.3327 | C26: 25 | D26: عمرو شوقي عنتر | E26: 587.47 | K26: ='مارس 2022'!K26*107% -> 1745.208508 | P26: 261.7812762 | Q26: ='مارس 2022'!Q26*110% -> 155.639 | U26: 70.76 | V26: 78.99 | W26: 94.28 | X26: 39.94 | Y26: 71.2305 | Z26: 91.459962 | AA26: ='مارس 2022'!K26*8% -> 130.4828791 | AB26: 200 | AC26: 10 | AF26: 10 | AK26: 2959.772126 | AT26: 2 | AU26: 2 | AV26: 550 | AX26: 78.5 | BA26: 0.5 | BB26: 3 | BD26: 0 | BG26: 232.6944678 | BH26: 138.3457778 | BQ26: 1.271175925 | BR26: 3 | BT26: 1007.311421 | BU26: 1952.460704 | BV26: 2094.25021 | BY26: 0 | BZ26: 0 | CB26: 0 | CE26: 2094.25021 | CF26: 1047.125105 | CH26: حافز إبريل 2022 نصفين | CI26: 4046.710914 | CK26: 0 | CL26: 0 | CO26: 4046.710914 | CS26: 4634.353335 | CT26: 2124.435644 | CU26: 2509.917692 | CV26: 2500 | CW26: 31.25 | CY26: 4015.460914 | DA26: 4898.383335
B27: 1599.008 | C27: 26 | D27: سعيد محمد علي | E27: 615.34 | K27: ='مارس 2022'!K27*107% -> 1830.704259 | P27: 274.6056389 | Q27: ='مارس 2022'!Q27*110% -> 155.639 | U27: 70.76 | V27: 78.99 | W27: 98.94 | X27: 41.89 | Y27: 74.72 | Z27: 95.94048 | AA27: ='مارس 2022'!K27*8% -> 136.8750848 | AB27: 190 | AC27: 10 | AF27: 10 | AK27: 3069.064463 | AT27: 18 | AU27: 18 | AV27: 572 | AX27: 107.1666667 | BA27: 0.5 | BB27: 3 | BD27: 0 | BG27: 0 | BH27: 0 | BQ27: 1.319409912 | BT27: 683.9860766 | BU27: 2385.078386 | BV27: 2196.845111 | BY27: 0 | BZ27: 0 | CB27: 0 | CE27: 2196.845111 | CF27: 1098.422556 | CH27: حافز إبريل 2022 نصفين | CI27: 4581.923497 | CK27: 0 | CL27: 0 | CO27: 4581.923497 | CS27: 4841.580574 | CT27: 1938.65941 | CU27: 2902.921164 | CV27: 2900 | CW27: 71.25 | CY27: 4510.673497 | DA27: 5110.270574
B28: 1210.384 | C28: 27 | D28: محمد حسن عبد الفتاح | E28: 477.64 | K28: ='مارس 2022'!K28*107% -> 1385.768642 | P28: 207.8652962 | Q28: ='مارس 2022'!Q28*110% -> 155.639 | U28: 52.68 | V28: 58.73 | W28: 75.07 | X28: 31.71 | Y28: 56.56 | Z28: 72.62304 | AA28: ='مارس 2022'!K28*8% -> 103.6088704 | AB28: 200 | AC28: 10 | AF28: 10 | AK28: 2420.254848 | AT28: 23 | AU28: 18 | AV28: 440 | AX28: 32.95833333 | BA28: 0.5 | BB28: 3 | BD28: 0 | BG28: 0 | BH28: 0 | BQ28: 1.028375276 | BR28: 3 | BT28: 480.4867086 | BU28: 1939.76814 | BV28: 1662.92237 | BY28: 0 | BZ28: 0 | CB28: 0 | CE28: 1662.92237 | CF28: 831.461185 | CH28: حافز إبريل 2022 نصفين | CI28: 3602.69051 | CK28: 0 | CL28: 0 | CO28: 3602.69051 | CS28: 3721.058218 | CT28: 1671.668375 | CU28: 2049.389843 | CV28: 2040 | CW28: 19.75 | CY28: 3582.94051 | DA28: 3927.538218
B29: 1156.7556 | C29: 28 | D29: سامح سعيد إبراهيم | E29: 467.95 | K29: ='مارس 2022'!K29*107% -> 1324.369486 | P29: 198.655423 | Q29: ='مارس 2022'!Q29*110% -> 155.639 | U29: 50.38 | V29: 56.28 | W29: 71.79 | X29: 30.31 | Y29: 54.054 | Z29: 69.405336 | AA29: ='مارس 2022'!K29*8% -> 99.01827936 | AB29: 200 | AC29: 6 | AF29: 10 | AK29: 2325.901525 | AT29: 23 | AU29: 18 | AV29: 407 | AX29: 21.41666667 | BA29: 0.5 | BB29: 3 | BD29: 0 | BG29: 0 | BH29: 0 | BQ29: 0.9858035509 | BR29: 3 | BT29: 435.9024702 | BU29: 1889.999055 | BV29: 1589.243384 | BY29: 0 | BZ29: 0 | CB29: =BV29*CA29 -> 0 | CE29: =BV29-BW29-BZ29-CB29-CC29-CD29 -> 1589.243384 | CF29: 794.6216919 | CH29: حافز إبريل 2022 نصفين | CI29: 3479.242438 | CK29: 0 | CL29: 0 | CO29: 3479.242438 | CS29: 3565.055908 | CT29: 1628.935804 | CU29: 1936.120105 | CV29: 1930 | CW29: 17 | CY29: 3462.242438 | DA29: 3759.505908
B30: 1140.7163 | C30: 29 | D30: جمال عبد الستار | E30: 457.64 | K30: ='مارس 2022'!K30*107% -> 1306.006092 | P30: 195.9009138 | Q30: ='مارس 2022'!Q30*110% -> 155.639 | U30: 49.69 | V30: 55.38 | W30: 70.73 | X30: 29.89 | Y30: 53.3045 | Z30: 68.442978 | AA30: ='مارس 2022'!K30*8% -> 97.64531528 | AB30: 200 | AC30: 10 | AF30: 10 | AK30: 2302.628799 | AT30: 21 | AU30: 16 | AV30: 418 | AX30: 25.70833333 | BA30: 0.5 | BB30: 3 | BD30: 0 | BG30: 0 | BH30: 17.29322222 | BQ30: 0.9755444426 | BR30: 3 | BT30: 468.4771 | BU30: 1834.151699 | BV30: 1567.20731 | BY30: 0 | BZ30: 0 | CB30: =BV30*CA30 -> 0 | CE30: =BV30-BW30-BZ30-CB30-CC30-CD30 -> 1567.20731 | CF30: 783.6036551 | CH30: حافز إبريل 2022 نصفين | CI30: 3401.359009 | CK30: 0 | CL30: 0 | CO30: 3401.359009 | CS30: 3518.397109 | CT30: 1629.615544 | CU30: 1888.781565 | CV30: 1880 | CW30: 15.75 | CY30: 3385.609009 | DA30: 3714.197109
B31: 1012.1879 | C31: 30 | D31: عصام محمد السيد | E31: 419.81 | K31: ='مارس 2022'!K31*107% -> 1158.853927 | P31: 173.828089 | Q31: ='مارس 2022'!Q31*110% -> 155.639 | U31: 43.92 | V31: 48.88 | W31: 65 | X31: 26.52 | Y31: 47.2985 | Z31: 60.731274 | AA31: ='مارس 2022'!K31*8% -> 86.64328424 | AB31: 200 | AC31: 10 | AF31: 10 | AK31: 2087.314074 | AT31: 22 | AU31: 17 | AV31: 374 | AX31: 11.75 | BA31: 0.5 | BB31: 3 | BD31: 0 | BG31: 0 | BH31: 8.646611111 | BQ31: 0.8789234925 | BR31: 3 | BT31: 401.7755346 | BU31: 1685.538539 | BV31: 1390.624712 | BY31: 0 | BZ31: 0 | CB31: 0 | CE31: 1390.624712 | CF31: 695.312356 | CH31: حافز إبريل 2022 نصفين | CI31: 3076.163251 | CK31: 0 | CL31: 0 | CO31: 3076.163251 | CS31: 3144.499786 | CT31: 1547.688923 | CU31: 1596.810863 | CV31: 1590 | CW31: 8.5 | CY31: 3067.663251 | DA31: 3322.299786
K32: ='مارس 2022'!K32*107% -> 0 | P32: 0 | Q32: ='مارس 2022'!Q32*110% -> 0 | Z32: 0 | AA32: ='مارس 2022'!K32*8% -> 0 | AK32: 0 | BD32: 0 | BG32: 0 | BH32: 0 | BQ32: 0 | BT32: 0 | BU32: 0 | BV32: 0 | BY32: 0 | BZ32: 0 | CB32: 0 | CE32: 0 | CF32: 0 | CH32: حافز إبريل 2022 نصفين | CI32: 0 | CK32: 0 | CL32: 0 | CO32: 0 | CS32: 0 | CT32: 750 | CU32: -750 | CV32: -750 | CW32: 0 | CY32: 0 | DA32: 0
K33: ='مارس 2022'!K33*107% -> 0 | P33: 0 | Q33: ='مارس 2022'!Q33*110% -> 0 | Z33: 0 | AA33: ='مارس 2022'!K33*8% -> 0 | AK33: 0 | BD33: 0 | BG33: 0 | BH33: 0 | BQ33: 0 | BT33: 0 | BU33: 0 | BV33: 0 | BY33: 0 | BZ33: 0 | CB33: 0 | CE33: 0 | CF33: 0 | CH33: حافز إبريل 2022 نصفين | CI33: 0 | CK33: 0 | CL33: 0 | CO33: 0 | CS33: 0 | CT33: 750 | CU33: -750 | CV33: -750 | CW33: 0 | CY33: 0 | DA33: 0
D34: السائقين | K34: ='مارس 2022'!K34*107% -> 0 | AA34: ='مارس 2022'!K34*8% -> 0 | CB34: 0 | CK34: 0 | CL34: 0 | CS34: 0 | CW34: 0 | DA34: 0
B35: 1178.4552 | C35: 32 | D35: أحمد محمد حسن خاطر | E35: 479.37 | K35: ='مارس 2022'!K35*107% -> 1349.213358 | O35: 1112.59 | P35: 202.3820038 | Q35: 0 | U35: 50.91 | V35: 56.88 | W35: 68.11 | X35: 30.87 | Y35: 55.068 | Z35: 70.707312 | AA35: ='مارس 2022'!K35*8% -> 100.8757651 | AB35: 190 | AC35: 10 | AF35: 10 | AK35: 3307.606439 | AT35: 3 | AV35: 407 | AX35: 19.625 | AZ35: 47.76 | BA35: 0.5 | BB35: 3 | BD35: 0 | BG35: =IF(AT35<18,(P35/18)*(18-AT35),"0") -> 168.6516698 | BH35: 0 | BQ35: =(AK35-(N35+O35+P35+Q35+AG35))*0.0005 -> 0.9963172178 | BR35: 3 | BT35: 650.532987 | BU35: 2657.073452 | BY35: 0 | BZ35: 0 | CB35: 0 | CE35: =BV35-BW35-BZ35-CC35-CD35 -> 0 | CI35: =BU35+CE35 -> 2657.073452 | CK35: 0 | CL35: 0 | CO35: =(BU35+CE35+CJ35)-CM35 -> 2657.073452 | CS35: 1999.116439 | CT35: =E35+AV35+AY35+AZ35+BD35+BG35+BQ35+BR35+750 -> 1856.777987 | CU35: 142.3384523 | CV35: 140 | CW35: 0 | CY35: 2657.073452 | DA35: 3307.606439
B36: 984.4963 | C36: 33 | D36: إبراهيم الحسيني إبراهيم | E36: 427.51 | K36: ='مارس 2022'!K36*107% -> 1127.149814 | N36: 3479.05 | P36: 169.0724721 | Q36: 0 | U36: 42.63 | V36: 47.54 | W36: 65 | X36: 25.79 | Y36: 46.0045 | Z36: 59.069778 | AA36: ='مارس 2022'!K36*8% -> 84.27288328 | AB36: 190 | AC36: 6 | AF36: 10 | AG36: 347.9 | AK36: 5699.479447 | AT36: 29 | AV36: 308 | AX36: 0 | BA36: 0.5 | BB36: 3 | BD36: 0 | BG36: 0 | BH36: 0 | BQ36: =(AK36-(N36+O36+P36+Q36+AG36))*0.0005 -> 0.8517284876 | BR36: 3 | BT36: 315.3517285 | BU36: 5384.127719 | BY36: 0 | BZ36: 0 | CB36: 0 | CE36: 0 | CI36: 5384.127719 | CK36: 0 | CL36: 0 | CO36: 5384.127719 | CS36: 1701.359447 | CT36: 1489.361728 | CU36: 211.9977187 | CV36: 210 | CW36: 0 | CY36: 5384.127719 | DA36: 5699.479447
